Workbook

Sheet Startup Page
A1: Version: | J1: 4.0.5 | AB1: Lists for 2nd dropdown | AD1: Lists for 3rd dropdown | AF1: Lists for 4th dropdown
B2: General Info | F2: Load Rating Contents | O2: Condition ratings | AB2: Deck List | AD2: Deck List | AV2: Number of Spans | AW2: Number of Lanes | AZ2: COUNTY | BA2: DISTRICT | BB2: RELHUM
B3: District: | C3: =VLOOKUP(C4,AZ3:BA257,2,TRUE) -> Tyler (10) | H3: Page # | I3: Total Pages | O3: N/A | X3: Page Numbers | AB3: =_xlfn._xlws.FILTER($L$5:$L$7,($L$5:$L$7<>"")*($L$5:$L$7<>$G$6)) -> Concrete Deck | AD3: =_xlfn._xlws.FILTER($L$5:$L$7,($L$5:$L$7<>"")*($L$5:$L$7<>$G$6)*($L$5:$L$7<>$G$7)) -> Concrete Deck | AV3: 1 | AW3: 1 | AZ3: County (###) | BA3: District (##) | BB3: 50
B4: County: | C4: Anderson (001) | F4: Load Rating Summary Sheet | H4: 1 | I4: =COUNTA(G6:G7,G10:G13,G17:G22,G42)+1 -> 1 | L4: Deck List | O4: 9 | Z4: 1 | AB4: Steel Deck | AD4: Steel Deck | AV4: 2 | AW4: 2 | AZ4: Anderson (001) | BA4: Tyler (10) | BB4: 70
B5: Structure # : | C5: CCCC-SS-SSS | F5: Deck | L5: Concrete Deck | O5: 8 | AB5: Timber Deck | AD5: Timber Deck | AV5: 3 | AZ5: Andrews (002) | BA5: Odessa (06) | BB5: 50
B6: Facility Carried: | C6: xx | F6: 1 | H6: =IF(Z6=0,"",SUM($Z$4:Z6)) ->  | L6: Steel Deck | O6: 7 | X6: =ISBLANK(G6) -> TRUE | Y6: 1 | Z6: =IF(X6,0,1) -> 0 | AV6: 4 | AZ6: Angelina (003) | BA6: Lufkin (11) | BB6: 75
B7: Feature Intersected: | C7: xx | F7: 2 | H7: =IF(Z7=0,"",SUM($Z$4:Z7)) ->  | L7: Timber Deck | O7: 6 | X7: =ISBLANK(G7) -> TRUE | Y7: 2 | Z7: =IF(X7,0,1) -> 0 | AV7: 5 | AZ7: Aransas (004) | BA7: Corpus Christi (16) | BB7: 75
B8: Location: | C8: =facility_carried&" Over "&feature_int -> xx Over xx | F8: 3 | H8: =IF(Z8=0,"",SUM($Z$4:Z8)) ->  | O8: 5 | X8: =ISBLANK(G8) -> TRUE | Y8: 3 | Z8: =IF(X8,0,1) -> 0 | AV8: 6 | AZ8: Archer (005) | BA8: Wichita Falls (03) | BB8: 60
F9: Superstructure | O9: 4 | AV9: 7 | AZ9: Armstrong (006) | BA9: Amarillo (04) | BB9: 55
F10: 1 | H10: =IF(Z10=0,"",IF(SUM($Z$4:Z10)=SUM($Z$4:Z9)+1,SUM($Z$4:Z10),SUM($Z$4:Z10)-1&"-"&SUM($Z$4:Z10))) ->  | L10: Superstructure List | O10: 3 | X10: =ISBLANK(G10) -> TRUE | Y10: 4 | Z10: =IF(X10,0,1)+IF(G10=$L$14,1,0) -> 0 | AV10: 8 | AZ10: Atascosa (007) | BA10: San Antonio (15) | BB10: 70
B11: Rating Engineer's Initials: | C11: TxDOT | F11: 2 | H11: =IF(Z11=0,"",IF(SUM($Z$4:Z11)=SUM($Z$4:Z10)+1,SUM($Z$4:Z11),SUM($Z$4:Z11)-1&"-"&SUM($Z$4:Z11))) ->  | O11: 2 | X11: TRUE | Y11: 5 | Z11: =IF(X11,0,1)+IF(G11=$L$14,1,0) -> 0 | AB11: Superstructure List | AD11: Superstructure List | AF11: Superstructure List | AH11: Superstructure List | AJ11: Superstructure List | AV11: 9 | AZ11: Austin (008) | BA11: Yoakum (13) | BB11: 75
B12: Year Built: | C12: 2000 | F12: 3 | H12: =IF(Z12=0,"",IF(SUM($Z$4:Z12)=SUM($Z$4:Z11)+1,SUM($Z$4:Z12),SUM($Z$4:Z12)-1&"-"&SUM($Z$4:Z12))) ->  | L12: Steel Stringer (Simple) | O12: 1 | X12: TRUE | Y12: 6 | Z12: 0 | AB12: =_xlfn._xlws.FILTER($L$11:$L$20,($L$11:$L$20<>"")*($L$11:$L$20<>$G$10)) -> Steel Stringer (Simple) | AD12: =_xlfn._xlws.FILTER($L$11:$L$20,($L$11:$L$20<>"")*($L$11:$L$20<>$G$10)*($L$11:$L$20<>$G$11)) -> Steel Stringer (Simple) | AF12: =_xlfn._xlws.FILTER($L$11:$L$20,($L$11:$L$20<>"")*($L$11:$L$20<>$G$10)*($L$11:$L$20<>$G$11)*($L$11:$L$20<>$G$12)) -> Steel Stringer (Simple) | AH12: =_xlfn._xlws.FILTER($L$11:$L$20,($L$11:$L$20<>"")*($L$11:$L$20<>$G$10)*($L$11:$L$20<>$G$11)*($L$11:$L$20<>$G$12)*($L$11:$L$20<>$G$13)) -> Steel Stringer (Simple) | AJ12: =_xlfn._xlws.FILTER($L$11:$L$20,($L$11:$L$20<>"")*($L$11:$L$20<>$G$10)*($L$11:$L$20<>$G$11)*($L$11:$L$20<>$G$12)*($L$11:$L$20<>$G$13)*($L$11:$L$20<>$G$14)) -> Steel Stringer (Simple) | AV12: 10 | AZ12: Bailey (009) | BA12: Lubbock (05) | BB12: 50
B13: Year Widened: | C13: N/A | F13: 4 | H13: =IF(Z13=0,"",IF(SUM($Z$4:Z13)=SUM($Z$4:Z12)+1,SUM($Z$4:Z13),SUM($Z$4:Z13)-1&"-"&SUM($Z$4:Z13))) ->  | L13: Steel Stringer (Simple) (2) | O13: 0 | X13: TRUE | Y13: 7 | Z13: 0 | AB13: Steel Stringer (Simple) (2) | AD13: Steel Stringer (Simple) (2) | AF13: Steel Stringer (Simple) (2) | AH13: Steel Stringer (Simple) (2) | AJ13: Steel Stringer (Simple) (2) | AV13: 11 | AZ13: Bandera (010) | BA13: San Antonio (15) | BB13: 65
F14: 5 | H14: =IF(Z14=0,"",IF(SUM($Z$4:Z14)=SUM($Z$4:Z13)+1,SUM($Z$4:Z14),SUM($Z$4:Z14)-1&"-"&SUM($Z$4:Z14))) ->  | L14: Steel Stringer (Continuous) | X14: TRUE | Y14: 8 | Z14: 0 | AB14: Steel Stringer (Continuous) | AD14: Steel Stringer (Continuous) | AF14: Steel Stringer (Continuous) | AH14: Steel Stringer (Continuous) | AJ14: Steel Stringer (Continuous) | AV14: 12 | AZ14: Bastrop (011) | BA14: Austin (14) | BB14: 70
B15: General Load Rating Comments: | F15: 6 | H15: =IF(Z15=0,"",IF(SUM($Z$4:Z15)=SUM($Z$4:Z14)+1,SUM($Z$4:Z15),SUM($Z$4:Z15)-1&"-"&SUM($Z$4:Z15))) ->  | L15: Steel Floorbeam | X15: TRUE | Y15: 9 | Z15: 0 | AB15: Steel Floorbeam | AD15: Steel Floorbeam | AF15: Steel Floorbeam | AH15: Steel Floorbeam | AJ15: Steel Floorbeam | AV15: 13 | AZ15: Baylor (012) | BA15: Wichita Falls (03) | BB15: 60
B16: (This section will not be printed) | F16: Substructure | H16: =IF(Z16=0,"",IF(SUM($Z$4:Z16)=SUM($Z$4:Z15)+1,SUM($Z$4:Z16),SUM($Z$4:Z16)-1&"-"&SUM($Z$4:Z16))) ->  | L16: Steel Girder (Simple) - GFS | AB16: Steel Girder (Simple) - GFS | AD16: Steel Girder (Simple) - GFS | AF16: Steel Girder (Simple) - GFS | AH16: Steel Girder (Simple) - GFS | AJ16: Steel Girder (Simple) - GFS | AV16: 14 | AZ16: Bee (013) | BA16: Corpus Christi (16) | BB16: 70
F17: 1 | H17: =IF(Z17=0,"",IF(SUM($Z$4:Z17)=SUM($Z$4:Z16)+1,SUM($Z$4:Z17),SUM($Z$4:Z17)-1&"-"&SUM($Z$4:Z17))) ->  | L17: Timber Stringer | X17: =ISBLANK(G17) -> TRUE | Y17: 10 | Z17: 0 | AB17: Timber Stringer | AD17: Timber Stringer | AF17: Timber Stringer | AH17: Timber Stringer | AJ17: Timber Stringer | AV17: 15 | AZ17: Bell (014) | BA17: Waco (09) | BB17: 65
F18: 2 | H18: =IF(Z18=0,"",IF(SUM($Z$4:Z18)=SUM($Z$4:Z17)+1,SUM($Z$4:Z18),SUM($Z$4:Z18)-1&"-"&SUM($Z$4:Z18))) ->  | L18: Timber Stringer (2) | X18: =ISBLANK(G18) -> TRUE | Y18: 11 | Z18: =IF(X18,0,1) -> 0 | AB18: Timber Stringer (2) | AD18: Timber Stringer (2) | AF18: Timber Stringer (2) | AH18: Timber Stringer (2) | AJ18: Timber Stringer (2) | AV18: 16 | AZ18: Bexar (015) | BA18: San Antonio (15) | BB18: 70
F19: 3 | H19: =IF(Z19=0,"",IF(SUM($Z$4:Z19)=SUM($Z$4:Z18)+1,SUM($Z$4:Z19),SUM($Z$4:Z19)-1&"-"&SUM($Z$4:Z19))) ->  | L19: Steel Flatcar | X19: TRUE | Y19: 12 | Z19: 0 | AB19: Steel Flatcar | AD19: Steel Flatcar | AF19: Steel Flatcar | AH19: Steel Flatcar | AJ19: Steel Flatcar | AV19: 17 | AZ19: Blanco (016) | BA19: Austin (14) | BB19: 65
F20: 4 | H20: =IF(Z20=0,"",IF(SUM($Z$4:Z20)=SUM($Z$4:Z19)+1,SUM($Z$4:Z20),SUM($Z$4:Z20)-1&"-"&SUM($Z$4:Z20))) ->  | X20: TRUE | Y20: 13 | Z20: 0 | AV20: 18 | AZ20: Borden (017) | BA20: Abilene (08) | BB20: 55
F21: 5 | H21: =IF(Z21=0,"",IF(SUM($Z$4:Z21)=SUM($Z$4:Z20)+1,SUM($Z$4:Z21),SUM($Z$4:Z21)-1&"-"&SUM($Z$4:Z21))) ->  | X21: TRUE | Y21: 14 | Z21: 0 | AV21: 19 | AZ21: Bosque (018) | BA21: Waco (09) | BB21: 65
F22: 6 | H22: =IF(Z22=0,"",IF(SUM($Z$4:Z22)=SUM($Z$4:Z21)+1,SUM($Z$4:Z22),SUM($Z$4:Z22)-1&"-"&SUM($Z$4:Z22))) ->  | L22: Substructure (Caps) List | X22: TRUE | Y22: 15 | Z22: 0 | AB22: Substructure (Caps) List | AD22: Substructure (Caps) List | AF22: Substructure (Caps) List | AH22: Substructure (Caps) List | AJ22: Substructure (Caps) List | AL22: Substructure (Caps) List | AN22: Substructure (Caps) List | AV22: 20 | AZ22: Bowie (019) | BA22: Atlanta (19) | BB22: 70
F23: 7 | H23: =IF(Z23=0,"",IF(SUM($Z$4:Z23)=SUM($Z$4:Z22)+1,SUM($Z$4:Z23),SUM($Z$4:Z23)-1&"-"&SUM($Z$4:Z23))) ->  | X23: TRUE | Y23: 16 | Z23: 0 | AB23: =_xlfn._xlws.FILTER($L$23:$L$32,($L$23:$L$32<>"")*($L$23:$L$32<>$G$17)) -> Steel Cap | AD23: =_xlfn._xlws.FILTER($L$23:$L$32,($L$23:$L$32<>"")*($L$23:$L$32<>$G$17)*($L$23:$L$32<>$G$18)) -> Steel Cap | AF23: =_xlfn._xlws.FILTER($L$23:$L$32,($L$23:$L$32<>"")*($L$23:$L$32<>$G$17)*($L$23:$L$32<>$G$18)*($L$23:$L$32<>$G$19)) -> Steel Cap | AH23: =_xlfn._xlws.FILTER($L$23:$L$32,($L$23:$L$32<>"")*($L$23:$L$32<>$G$17)*($L$23:$L$32<>$G$18)*($L$23:$L$32<>$G$19)*($L$23:$L$32<>$G$20)) -> Steel Cap | AJ23: =_xlfn._xlws.FILTER($L$23:$L$32,($L$23:$L$32<>"")*($L$23:$L$32<>$G$17)*($L$23:$L$32<>$G$18)*($L$23:$L$32<>$G$19)*($L$23:$L$32<>$G$20)*($L$23:$L$32<>$G$21)) -> Steel Cap | AL23: =_xlfn._xlws.FILTER($L$23:$L$32,($L$23:$L$32<>"")*($L$23:$L$32<>$G$17)*($L$23:$L$32<>$G$18)*($L$23:$L$32<>$G$19)*($L$23:$L$32<>$G$20)*($L$23:$L$32<>$G$21)*($L$23:$L$32<>$G$22)) -> Steel Cap | AN23: =_xlfn._xlws.FILTER($L$23:$L$32,($L$23:$L$32<>"")*($L$23:$L$32<>$G$17)*($L$23:$L$32<>$G$18)*($L$23:$L$32<>$G$19)*($L$23:$L$32<>$G$20)*($L$23:$L$32<>$G$21)*($L$23:$L$32<>$G$22)*($L$23:$L$32<>$G$23)) -> Steel Cap | AV23: 21 | AZ23: Brazoria (020) | BA23: Houston (12) | BB23: 75
F24: 8 | H24: =IF(Z24=0,"",IF(SUM($Z$4:Z24)=SUM($Z$4:Z23)+1,SUM($Z$4:Z24),SUM($Z$4:Z24)-1&"-"&SUM($Z$4:Z24))) ->  | X24: TRUE | Y24: 17 | Z24: 0 | AB24: Steel Cap (2) | AD24: Steel Cap (2) | AF24: Steel Cap (2) | AH24: Steel Cap (2) | AJ24: Steel Cap (2) | AL24: Steel Cap (2) | AN24: Steel Cap (2) | AV24: 22 | AZ24: Brazos (021) | BA24: Bryan (17) | BB24: 70
F25: Use the 'Update Sheets' to load the load rating sheets selected above. Only those selected above will be included. | L25: Steel Cap | AB25: Steel Pile | AD25: Steel Pile | AF25: Steel Pile | AH25: Steel Pile | AJ25: Steel Pile | AL25: Steel Pile | AN25: Steel Pile | AV25: 23 | AZ25: Brewster (022) | BA25: El Paso (24) | BB25: 55
B26: Load Rating Info | L26: Steel Cap (2) | AB26: Steel Pile (2) | AD26: Steel Pile (2) | AF26: Steel Pile (2) | AH26: Steel Pile (2) | AJ26: Steel Pile (2) | AL26: Steel Pile (2) | AN26: Steel Pile (2) | AV26: 24 | AZ26: Briscoe (023) | BA26: Childress (25) | BB26: 55
L27: Steel Pile | AB27: Timber Cap | AD27: Timber Cap | AF27: Timber Cap | AH27: Timber Cap | AJ27: Timber Cap | AL27: Timber Cap | AN27: Timber Cap | AV27: 25 | AZ27: Brooks (024) | BA27: Pharr (21) | BB27: 70
B28: Number of Spans: | C28: 1 | L28: Steel Pile (2) | AB28: Timber Cap (2) | AD28: Timber Cap (2) | AF28: Timber Cap (2) | AH28: Timber Cap (2) | AJ28: Timber Cap (2) | AL28: Timber Cap (2) | AN28: Timber Cap (2) | AV28: 26 | AZ28: Brown (025) | BA28: Brownwood (23) | BB28: 60
B29: Number of Lanes: | C29: 1 | L29: Timber Cap | AB29: Timber Pile | AD29: Timber Pile | AF29: Timber Pile | AH29: Timber Pile | AJ29: Timber Pile | AL29: Timber Pile | AN29: Timber Pile | AV29: 27 | AZ29: Burleson (026) | BA29: Bryan (17) | BB29: 70
B30: AADT (One Direction): | C30: 50 | L30: Timber Cap (2) | AB30: Timber Pile (2) | AD30: Timber Pile (2) | AF30: Timber Pile (2) | AH30: Timber Pile (2) | AJ30: Timber Pile (2) | AL30: Timber Pile (2) | AN30: Timber Pile (2) | AV30: 28 | AZ30: Burnet (027) | BA30: Austin (14) | BB30: 65
B31: AADT Truck Percentage (1% MIN): | C31: 0.01 | L31: Timber Pile | AV31: 29 | AZ31: Caldwell (028) | BA31: Austin (14) | BB31: 70
B32: Emergency Vehicle (EV) Crossing Per Day: | C32: 1 | L32: Timber Pile (2) | AV32: 30 | AZ32: Calhoun (029) | BA32: Yoakum (13) | BB32: 75
AV33: 31 | AZ33: Callahan (030) | BA33: Abilene (08) | BB33: 60
AV34: 32 | AZ34: Cameron (031) | BA34: Pharr (21) | BB34: 75
A35: ***DO NOT PRINT OR INCLUDE THIS PAGE IN THE LOAD RATING REPORT*** | AV35: 33 | AZ35: Camp (032) | BA35: Atlanta (19) | BB35: 70
AV36: 34 | AZ36: Carson (033) | BA36: Amarillo (04) | BB36: 55
AV37: 35 | AZ37: Cass (034) | BA37: Atlanta (19) | BB37: 70
AV38: 36 | AZ38: Castro (035) | BA38: Lubbock (05) | BB38: 55
AV39: 37 | AZ39: Chambers (036) | BA39: Beaumont (20) | BB39: 75
AV40: 38 | AZ40: Cherokee (037) | BA40: Tyler (10) | BB40: 70
AV41: 39 | AZ41: Childress (038) | BA41: Childress (25) | BB41: 55
AV42: 40 | AZ42: Clay (039) | BA42: Wichita Falls (03) | BB42: 60
AV43: 41 | AZ43: Cochran (040) | BA43: Lubbock (05) | BB43: 50
AV44: 42 | AZ44: Coke (041) | BA44: San Angelo (07) | BB44: 60
AV45: 43 | AZ45: Coleman (042) | BA45: Brownwood (23) | BB45: 60
AV46: 44 | AZ46: Collin (043) | BA46: Dallas (18) | BB46: 65
AV47: 45 | AZ47: Collingsworth (044) | BA47: Childress (25) | BB47: 55
AV48: 46 | AZ48: Colorado (045) | BA48: Yoakum (13) | BB48: 75
AV49: 47 | AZ49: Comal (046) | BA49: San Antonio (15) | BB49: 70
AV50: 48 | AZ50: Comanche (047) | BA50: Brownwood (23) | BB50: 60
AV51: 49 | AZ51: Concho (048) | BA51: San Angelo (07) | BB51: 60
AV52: 50 | AZ52: Cooke (049) | BA52: Wichita Falls (03) | BB52: 65
AV53: 51 | AZ53: Coryell (050) | BA53: Waco (09) | BB53: 65
AV54: 52 | AZ54: Cottle (051) | BA54: Childress (25) | BB54: 55
AV55: 53 | AZ55: Crane (052) | BA55: Odessa (06) | BB55: 50
AV56: 54 | AZ56: Crockett (053) | BA56: San Angelo (07) | BB56: 55
AV57: 55 | AZ57: Crosby (054) | BA57: Lubbock (05) | BB57: 55
AV58: 56 | AZ58: Culberson (055) | BA58: El Paso (24) | BB58: 45
AV59: 57 | AZ59: Dallam (056) | BA59: Amarillo (04) | BB59: 55
AV60: 58 | AZ60: Dallas (057) | BA60: Dallas (18) | BB60: 65
AV61: 59 | AZ61: Dawson (058) | BA61: Lubbock (05) | BB61: 55
AV62: 60 | AZ62: Deaf Smith (059) | BA62: Amarillo (04) | BB62: 55
AV63: 61 | AZ63: Delta (060) | BA63: Paris (01) | BB63: 65
AV64: 62 | AZ64: Denton (061) | BA64: Dallas (18) | BB64: 65
AV65: 63 | AZ65: Dewitt (062) | BA65: Yoakum (13) | BB65: 75
AV66: 64 | AZ66: Dickens (063) | BA66: Childress (25) | BB66: 55
AV67: 65 | AZ67: Dimmit (064) | BA67: Laredo (22) | BB67: 65
AV68: 66 | AZ68: Donley (065) | BA68: Childress (25) | BB68: 55
AV69: 67 | AZ69: Duval (067) | BA69: Laredo (22) | BB69: 70
AV70: 68 | AZ70: Eastland (068) | BA70: Brownwood (23) | BB70: 65
AV71: 69 | AZ71: Ector (069) | BA71: Odessa (06) | BB71: 50
AV72: 70 | AZ72: Edwards (070) | BA72: San Angelo (07) | BB72: 65
AV73: 71 | AZ73: El Paso (072) | BA73: El Paso (24) | BB73: 40
AV74: 72 | AZ74: Ellis (071) | BA74: Dallas (18) | BB74: 65
AV75: 73 | AZ75: Erath (073) | BA75: Fort Worth (02) | BB75: 65
AV76: 74 | AZ76: Falls (074) | BA76: Waco (09) | BB76: 65
AV77: 75 | AZ77: Fannin (075) | BA77: Paris (01) | BB77: 65
AV78: 76 | AZ78: Fayette (076) | BA78: Yoakum (13) | BB78: 70
AV79: 77 | AZ79: Fisher (077) | BA79: Abilene (08) | BB79: 55
AV80: 78 | AZ80: Floyd (078) | BA80: Lubbock (05) | BB80: 55
AV81: 79 | AZ81: Foard (079) | BA81: Childress (25) | BB81: 60
AV82: 80 | AZ82: Fort Bend (080) | BA82: Houston (12) | BB82: 75
AV83: 81 | AZ83: Franklin (081) | BA83: Paris (01) | BB83: 65
AV84: 82 | AZ84: Freestone (082) | BA84: Bryan (17) | BB84: 70
AV85: 83 | AZ85: Frio (083) | BA85: San Antonio (15) | BB85: 65
AV86: 84 | AZ86: Gaines (084) | BA86: Lubbock (05) | BB86: 50
AV87: 85 | AZ87: Galveston (085) | BA87: Houston (12) | BB87: 75
AV88: 86 | AZ88: Garza (086) | BA88: Lubbock (05) | BB88: 55
AV89: 87 | AZ89: Gillespie (087) | BA89: Austin (14) | BB89: 65
AV90: 88 | AZ90: Glasscock (088) | BA90: San Angelo (07) | BB90: 55
AV91: 89 | AZ91: Goliad (089) | BA91: Corpus Christi (16) | BB91: 75
AV92: 90 | AZ92: Gonzales (090) | BA92: Yoakum (13) | BB92: 70
AV93: 91 | AZ93: Gray (091) | BA93: Amarillo (04) | BB93: 55
AV94: 92 | AZ94: Grayson (092) | BA94: Paris (01) | BB94: 65
AV95: 93 | AZ95: Gregg (093) | BA95: Tyler (10) | BB95: 70
AV96: 94 | AZ96: Grimes (094) | BA96: Bryan (17) | BB96: 75
AV97: 95 | AZ97: Guadalupe (095) | BA97: San Antonio (15) | BB97: 70
AV98: 96 | AZ98: Hale (096) | BA98: Lubbock (05) | BB98: 55
AV99: 97 | AZ99: Hall (097) | BA99: Childress (25) | BB99: 55
AV100: 98 | AZ100: Hamilton (098) | BA100: Waco (09) | BB100: 65
AV101: 99 | AZ101: Hansford (099) | BA101: Amarillo (04) | BB101: 55
AV102: 100 | AZ102: Hardeman (100) | BA102: Childress (25) | BB102: 60
AV103: 101 | AZ103: Hardin (101) | BA103: Beaumont (20) | BB103: 70
AV104: 102 | AZ104: Harris (102) | BA104: Houston (12) | BB104: 75
AV105: 103 | AZ105: Harrison (103) | BA105: Atlanta (19) | BB105: 70
AV106: 104 | AZ106: Hartley (104) | BA106: Amarillo (04) | BB106: 55
AV107: 105 | AZ107: Haskell (105) | BA107: Abilene (08) | BB107: 60
AV108: 106 | AZ108: Hays (106) | BA108: Austin (14) | BB108: 65
AV109: 107 | AZ109: Hemphill (107) | BA109: Amarillo (04) | BB109: 55
AV110: 108 | AZ110: Henderson (108) | BA110: Tyler (10) | BB110: 70
AV111: 109 | AZ111: Hidalgo (109) | BA111: Pharr (21) | BB111: 75
AV112: 110 | AZ112: Hill (110) | BA112: Waco (09) | BB112: 65
AV113: 111 | AZ113: Hockley (111) | BA113: Lubbock (05) | BB113: 50
AV114: 112 | AZ114: Hood (112) | BA114: Fort Worth (02) | BB114: 65
AV115: 113 | AZ115: Hopkins (113) | BA115: Paris (01) | BB115: 65
AV116: 114 | AZ116: Houston (114) | BA116: Lufkin (11) | BB116: 70
AV117: 115 | AZ117: Howard (115) | BA117: Abilene (08) | BB117: 55
AV118: 116 | AZ118: Hudspeth (116) | BA118: El Paso (24) | BB118: 45
AV119: 117 | AZ119: Hunt (117) | BA119: Paris (01) | BB119: 65
AV120: 118 | AZ120: Hutchinson (118) | BA120: Amarillo (04) | BB120: 55
AV121: 119 | AZ121: Irion (119) | BA121: San Angelo (07) | BB121: 55
AV122: 120 | AZ122: Jack (120) | BA122: Fort Worth (02) | BB122: 60
AV123: 121 | AZ123: Jackson (121) | BA123: Yoakum (13) | BB123: 75
AV124: 122 | AZ124: Jasper (122) | BA124: Beaumont (20) | BB124: 75
AV125: 123 | AZ125: Jeff Davis (123) | BA125: El Paso (24) | BB125: 50
AV126: 124 | AZ126: Jefferson (124) | BA126: Beaumont (20) | BB126: 75
AV127: 125 | AZ127: Jim Hogg (125) | BA127: Pharr (21) | BB127: 70
AV128: 126 | AZ128: Jim Wells (126) | BA128: Corpus Christi (16) | BB128: 75
AV129: 127 | AZ129: Johnson (127) | BA129: Fort Worth (02) | BB129: 65
AV130: 128 | AZ130: Jones (128) | BA130: Abilene (08) | BB130: 60
AV131: 129 | AZ131: Karnes (129) | BA131: Corpus Christi (16) | BB131: 70
AV132: 130 | AZ132: Kaufman (130) | BA132: Dallas (18) | BB132: 65
AV133: 131 | AZ133: Kendall (131) | BA133: San Antonio (15) | BB133: 65
AV134: 132 | AZ134: Kenedy (066) | BA134: Pharr (21) | BB134: 75
AV135: 133 | AZ135: Kent (132) | BA135: Abilene (08) | BB135: 55
AV136: 134 | AZ136: Kerr (133) | BA136: San Antonio (15) | BB136: 65
AV137: 135 | AZ137: Kimble (134) | BA137: San Angelo (07) | BB137: 60
AV138: 136 | AZ138: King (135) | BA138: Childress (25) | BB138: 55
AV139: 137 | AZ139: Kinney (136) | BA139: Laredo (22) | BB139: 60
AV140: 138 | AZ140: Kleberg (137) | BA140: Corpus Christi (16) | BB140: 75
AV141: 139 | AZ141: Knox (138) | BA141: Childress (25) | BB141: 60
AV142: 140 | AZ142: Lamar (139) | BA142: Paris (01) | BB142: 65
AV143: 141 | AZ143: Lamb (140) | BA143: Lubbock (05) | BB143: 50
AV144: 142 | AZ144: Lampasas (141) | BA144: Brownwood (23) | BB144: 65
AV145: 143 | AZ145: Lasalle (142) | BA145: Laredo (22) | BB145: 70
AV146: 144 | AZ146: Lavaca (143) | BA146: Yoakum (13) | BB146: 75
AV147: 145 | AZ147: Lee (144) | BA147: Austin (14) | BB147: 65
AV148: 146 | AZ148: Leon (145) | BA148: Bryan (17) | BB148: 70
AV149: 147 | AZ149: Liberty (146) | BA149: Beaumont (20) | BB149: 75
AV150: 148 | AZ150: Limestone (147) | BA150: Waco (09) | BB150: 70
AV151: 149 | AZ151: Lipscomb (148) | BA151: Amarillo (04) | BB151: 55
AV152: 150 | AZ152: Live Oak (149) | BA152: Corpus Christi (16) | BB152: 70
AV153: 151 | AZ153: Llano (150) | BA153: Austin (14) | BB153: 65
AV154: 152 | AZ154: Loving (151) | BA154: Odessa (06) | BB154: 50
AV155: 153 | AZ155: Lubbock (152) | BA155: Lubbock (05) | BB155: 55
AV156: 154 | AZ156: Lynn (153) | BA156: Lubbock (05) | BB156: 55
AV157: 155 | AZ157: Madison (154) | BA157: Bryan (17) | BB157: 70
AV158: 156 | AZ158: Marion (155) | BA158: Atlanta (19) | BB158: 70
AV159: 157 | AZ159: Martin (156) | BA159: Odessa (06) | BB159: 50
AV160: 158 | AZ160: Mason (157) | BA160: Austin (14) | BB160: 65
AV161: 159 | AZ161: Matagorda (158) | BA161: Yoakum (13) | BB161: 75
AV162: 160 | AZ162: Maverick (159) | BA162: Laredo (22) | BB162: 65
AV163: 161 | AZ163: Mcculloch (160) | BA163: Brownwood (23) | BB163: 60
AV164: 162 | AZ164: Mclennan (161) | BA164: Waco (09) | BB164: 70
AV165: 163 | AZ165: Mcmullen (162) | BA165: San Antonio (15) | BB165: 70
AV166: 164 | AZ166: Medard (164) | BA166: San Angelo (07) | BB166: 60
AV167: 165 | AZ167: Medina (163) | BA167: San Antonio (15) | BB167: 65
AV168: 166 | AZ168: Midland (165) | BA168: Odessa (06) | BB168: 50
AV169: 167 | AZ169: Milam (166) | BA169: Bryan (17) | BB169: 70
AV170: 168 | AZ170: Mills (167) | BA170: Brownwood (23) | BB170: 65
AV171: 169 | AZ171: Mitchell (168) | BA171: Abilene (08) | BB171: 55
AV172: 170 | AZ172: Montague (169) | BA172: Wichita Falls (03) | BB172: 60
AV173: 171 | AZ173: Montgomery (170) | BA173: Houston (12) | BB173: 75
AV174: 172 | AZ174: Moore (171) | BA174: Amarillo (04) | BB174: 55
AV175: 173 | AZ175: Morris (172) | BA175: Atlanta (19) | BB175: 70
AV176: 174 | AZ176: Motley (173) | BA176: Childress (25) | BB176: 55
AV177: 175 | AZ177: Nacogdoches (174) | BA177: Lufkin (11) | BB177: 70
AV178: 176 | AZ178: Navarro (175) | BA178: Dallas (18) | BB178: 65
AV179: 177 | AZ179: Newton (176) | BA179: Beaumont (20) | BB179: 75
AV180: 178 | AZ180: Nolan (177) | BA180: Abilene (08) | BB180: 55
AV181: 179 | AZ181: Nueces (178) | BA181: Corpus Christi (16) | BB181: 75
AV182: 180 | AZ182: Ochiltree (179) | BA182: Amarillo (04) | BB182: 55
AV183: 181 | AZ183: Oldham (180) | BA183: Amarillo (04) | BB183: 55
AV184: 182 | AZ184: Orange (181) | BA184: Beaumont (20) | BB184: 75
AV185: 183 | AZ185: Palo Pinto (182) | BA185: Fort Worth (02) | BB185: 60
AV186: 184 | AZ186: Panola (183) | BA186: Atlanta (19) | BB186: 70
AV187: 185 | AZ187: Parker (184) | BA187: Fort Worth (02) | BB187: 65
AV188: 186 | AZ188: Parmer (185) | BA188: Lubbock (05) | BB188: 50
AV189: 187 | AZ189: Pecos (186) | BA189: Odessa (06) | BB189: 50
AV190: 188 | AZ190: Polk (187) | BA190: Lufkin (11) | BB190: 75
AV191: 189 | AZ191: Potter (188) | BA191: Amarillo (04) | BB191: 55
AV192: 190 | AZ192: Presidio (189) | BA192: El Paso (24) | BB192: 55
AV193: 191 | AZ193: Rains (190) | BA193: Paris (01) | BB193: 65
AV194: 192 | AZ194: Randall (191) | BA194: Amarillo (04) | BB194: 55
AV195: 193 | AZ195: Reagan (192) | BA195: San Angelo (07) | BB195: 55
AV196: 194 | AZ196: Real (193) | BA196: San Angelo (07) | BB196: 60
AV197: 195 | AZ197: Red River (194) | BA197: Paris (01) | BB197: 65
AV198: 196 | AZ198: Reeves (195) | BA198: Odessa (06) | BB198: 50
AV199: 197 | AZ199: Refugio (196) | BA199: Corpus Christi (16) | BB199: 75
AV200: 198 | AZ200: Roberts (197) | BA200: Amarillo (04) | BB200: 55
... 102 more rows

Sheet Load Rating Summary
B1: TBLRP-LFR Spreadsheet | T1: Prepare for printing by hiding all non load rated sheets.
B2: Load Rating Summary | R2: Show hidden tabs
T3: Startup Page | V3: Maximum Ratings
J4: Date: | O4: =TODAY() -> 2024-11-13 | T4: LIVE LOADS | W4: INV | X4: OPR
J5: Rating Engineer's Initials: | O5: =eng_initials -> TxDOT | T5: Rating Factor Database | V5: H | W5: 45 | X5: 75
J6: Version: | O6: =version_no -> 4.0.5 | T6: TX Standard Beam Shapes Table | V6: HS | W6: 45 | X6: 75
B7: Bridge Information | V7: SHV | W7: 2 | X7: 2
B8: District: | C8: =district -> Tyler (10) | H8: AADT ®: | J8: =AADT -> 50 | L8: =AADT -> 50 | N8: # of Lanes: | O8: =no_lanes -> 1 | V8: EV | X8: 2
B9: County: | C9: =county -> Anderson (001) | H9: Truck % (1% MIN): | J9: =truck_pct -> 0.01 | L9: =truck_pct -> 0.01
B10: Structure # : | C10: =struct_no -> CCCC-SS-SSS | H10: EV Daily Crossing: | J10: =EV_crossing -> 1 | L10: =EV_crossing -> 1 | M10: (1 or 10) One Direction
B11: Location: | C11: =br_descrip -> xx Over xx | H11: Year Built: | J11: =yr_built -> 2000
B14: Components and Load Ratings
H17: Inventory | L17: Operating
B18: Component | D18: Description | H18: H | I18: HS | L18: H | N18: HS | T18: Visible Tabs | U18: Hide this tab | V18: Visible or Hidden | X18: Description | Y18: H | AA18: HS | AC18: SU4 | AD18: SU5 | AE18: SU6 | AF18: SU7 | AG18: T3 | AH18: T3-S2 | AI18: T3-3 | AJ18: NRL | AK18: EV2 | AL18: EV3
B19: =IF(ISBLANK(AN21),"",AN21) ->  | D19: =IF($B19="","",IF(VLOOKUP($B19,$T$21:$X$52,5,0)=0,"",VLOOKUP($B19,$T$21:$X$52,5,0))) ->  | H19: =IF($B19="","",VLOOKUP($B19,$T$21:$AL$45,6,0)) ->  | I19: =IF($B19="","",VLOOKUP($B19,$T$21:$AL$45,8,0)) ->  | L19: =IF($B19="","",VLOOKUP($B19,$T$21:$AL$45,7,0)) ->  | N19: =IF($B19="","",VLOOKUP($B19,$T$21:$AL$45,9,0)) ->  | Y19: Inv | Z19: Opr | AA19: Inv | AB19: Opr | AC19: Opr | AD19: Opr | AE19: Opr | AF19: Opr | AG19: Opr | AH19: Opr | AI19: Opr | AJ19: Opr | AK19: Opr | AL19: Opr
B20: =IF(ISBLANK(AN22),"",AN22) ->  | H20: =IF($B20="","",VLOOKUP($B20,$T$21:$AL$45,6,0)) ->  | N20: =IF($B20="","",VLOOKUP($B20,$T$21:$AL$45,9,0)) ->  | AN20: List of Load Rated Components
S21: 1 | T21: =SHEETNAME(S21) -> Startup Page | U21: ="'"&T21&"'!A1" -> 'Startup Page'!A1 | V21: =IF(issheetvisible(INDIRECT(U21)),"Visible","Hidden") -> Visible | AN21: =_xlfn._xlws.FILTER(OFFSET('Startup Page'!$G$6,0,0,MATCH(LOOKUP(2,1/('Startup Page'!$G$6:$G$24<>""),'Startup Page'!$G$6:$G$24),'Startup Page'!$G$6:$G$24,0)),LEN(OFFSET('Startup Page'!$G$6,0,0,MATCH(LOOKUP(2,1/('Startup Page'!$G$6:$G$24<>""),'Startup Page'!$G$6:$G$24),'Startup Page'!$G$6:$G$24,0)))>2) -> 
S22: 2 | T22: =SHEETNAME(S22) -> Load Rating Summary | U22: ="'"&T22&"'!A1" -> 'Load Rating Summary'!A1 | V22: =IF(issheetvisible(INDIRECT(U22)),"Visible","Hidden") -> Visible
S23: 3 | T23: =SHEETNAME(S23) -> Dead Load Calcs and Tables | U23: 'Dead Load Calcs and Tables'!A1 | V23: =IF(issheetvisible(INDIRECT(U23)),"Visible","Hidden") -> Hidden
S24: 4 | T24: =SHEETNAME(S24) -> Concrete Deck | U24: 'Concrete Deck'!A1 | V24: =IF(issheetvisible(INDIRECT(U24)),"Visible","Hidden") -> Hidden | X24: =IF(V24="Hidden","",INDIRECT("'"&$T24&"'!"&X57)) ->  | Y24: =IF($V24="Hidden","",INDIRECT("'"&$T24&"'!"&Y57)) ->  | Z24: =IF($V24="Hidden","",INDIRECT("'"&$T24&"'!"&Z57)) ->  | AA24: =IF($V24="Hidden","",INDIRECT("'"&$T24&"'!"&AA57)) ->  | AB24: =IF($V24="Hidden","",INDIRECT("'"&$T24&"'!"&AB57)) ->  | AC24: =IF($V24="Hidden","",INDIRECT("'"&$T24&"'!"&AD57)) ->  | AD24: =IF($V24="Hidden","",INDIRECT("'"&$T24&"'!"&AF57)) ->  | AE24: =IF($V24="Hidden","",INDIRECT("'"&$T24&"'!"&AH57)) ->  | AF24: =IF($V24="Hidden","",INDIRECT("'"&$T24&"'!"&AJ57)) ->  | AG24: =IF($V24="Hidden","",INDIRECT("'"&$T24&"'!"&AL57)) ->  | AH24: =IF($V24="Hidden","",INDIRECT("'"&$T24&"'!"&AN57)) ->  | AI24: =IF($V24="Hidden","",INDIRECT("'"&$T24&"'!"&AP57)) ->  | AJ24: =IF($V24="Hidden","",INDIRECT("'"&$T24&"'!"&AR57)) ->  | AK24: =IF($V24="Hidden","",INDIRECT("'"&$T24&"'!"&AS57)) ->  | AL24: =IF($V24="Hidden","",INDIRECT("'"&$T24&"'!"&AT57)) -> 
S25: 5 | T25: =SHEETNAME(S25) -> Steel Deck | U25: 'Steel Deck'!A1 | V25: =IF(issheetvisible(INDIRECT(U25)),"Visible","Hidden") -> Hidden | X25: =IF(V25="Hidden","",INDIRECT("'"&$T25&"'!"&X58)) ->  | Y25: =IF($V25="Hidden","",INDIRECT("'"&$T25&"'!"&Y58)) ->  | Z25: =IF($V25="Hidden","",INDIRECT("'"&$T25&"'!"&Z58)) ->  | AA25: =IF($V25="Hidden","",INDIRECT("'"&$T25&"'!"&AA58)) ->  | AB25: =IF($V25="Hidden","",INDIRECT("'"&$T25&"'!"&AB58)) ->  | AC25: =IF($V25="Hidden","",INDIRECT("'"&$T25&"'!"&AD58)) ->  | AD25: =IF($V25="Hidden","",INDIRECT("'"&$T25&"'!"&AF58)) ->  | AE25: =IF($V25="Hidden","",INDIRECT("'"&$T25&"'!"&AH58)) ->  | AF25: =IF($V25="Hidden","",INDIRECT("'"&$T25&"'!"&AJ58)) ->  | AG25: =IF($V25="Hidden","",INDIRECT("'"&$T25&"'!"&AL58)) ->  | AH25: =IF($V25="Hidden","",INDIRECT("'"&$T25&"'!"&AN58)) ->  | AI25: =IF($V25="Hidden","",INDIRECT("'"&$T25&"'!"&AP58)) ->  | AJ25: =IF($V25="Hidden","",INDIRECT("'"&$T25&"'!"&AR58)) ->  | AK25: =IF($V25="Hidden","",INDIRECT("'"&$T25&"'!"&AS58)) ->  | AL25: =IF($V25="Hidden","",INDIRECT("'"&$T25&"'!"&AT58)) -> 
S26: 6 | T26: =SHEETNAME(S26) -> Timber Deck | U26: 'Timber Deck'!A1 | V26: =IF(issheetvisible(INDIRECT(U26)),"Visible","Hidden") -> Hidden | X26: =IF(V26="Hidden","",INDIRECT("'"&$T26&"'!"&X59)) ->  | Y26: =IF($V26="Hidden","",INDIRECT("'"&$T26&"'!"&Y59)) ->  | Z26: =IF($V26="Hidden","",INDIRECT("'"&$T26&"'!"&Z59)) ->  | AA26: =IF($V26="Hidden","",INDIRECT("'"&$T26&"'!"&AA59)) ->  | AB26: =IF($V26="Hidden","",INDIRECT("'"&$T26&"'!"&AB59)) ->  | AC26: =IF($V26="Hidden","",INDIRECT("'"&$T26&"'!"&AD59)) ->  | AD26: =IF($V26="Hidden","",INDIRECT("'"&$T26&"'!"&AF59)) ->  | AE26: =IF($V26="Hidden","",INDIRECT("'"&$T26&"'!"&AH59)) ->  | AF26: =IF($V26="Hidden","",INDIRECT("'"&$T26&"'!"&AJ59)) ->  | AG26: =IF($V26="Hidden","",INDIRECT("'"&$T26&"'!"&AL59)) ->  | AH26: =IF($V26="Hidden","",INDIRECT("'"&$T26&"'!"&AN59)) ->  | AI26: =IF($V26="Hidden","",INDIRECT("'"&$T26&"'!"&AP59)) ->  | AJ26: =IF($V26="Hidden","",INDIRECT("'"&$T26&"'!"&AR59)) ->  | AK26: =IF($V26="Hidden","",INDIRECT("'"&$T26&"'!"&AS59)) ->  | AL26: =IF($V26="Hidden","",INDIRECT("'"&$T26&"'!"&AT59)) -> 
S27: 7 | T27: =SHEETNAME(S27) -> Steel Stringer (Simple) | U27: 'Steel Stringer (Simple)'!A1 | V27: =IF(issheetvisible(INDIRECT(U27)),"Visible","Hidden") -> Hidden | X27: =IF(V27="Hidden","",INDIRECT("'"&$T27&"'!"&X60)) ->  | Y27: =IF($V27="Hidden","",INDIRECT("'"&$T27&"'!"&Y60)) ->  | Z27: =IF($V27="Hidden","",INDIRECT("'"&$T27&"'!"&Z60)) ->  | AA27: =IF($V27="Hidden","",INDIRECT("'"&$T27&"'!"&AA60)) ->  | AB27: =IF($V27="Hidden","",INDIRECT("'"&$T27&"'!"&AB60)) ->  | AC27: =IF($V27="Hidden","",INDIRECT("'"&$T27&"'!"&AD60)) ->  | AD27: =IF($V27="Hidden","",INDIRECT("'"&$T27&"'!"&AF60)) ->  | AE27: =IF($V27="Hidden","",INDIRECT("'"&$T27&"'!"&AH60)) ->  | AF27: =IF($V27="Hidden","",INDIRECT("'"&$T27&"'!"&AJ60)) ->  | AG27: =IF($V27="Hidden","",INDIRECT("'"&$T27&"'!"&AL60)) ->  | AH27: =IF($V27="Hidden","",INDIRECT("'"&$T27&"'!"&AN60)) ->  | AI27: =IF($V27="Hidden","",INDIRECT("'"&$T27&"'!"&AP60)) ->  | AJ27: =IF($V27="Hidden","",INDIRECT("'"&$T27&"'!"&AR60)) ->  | AK27: =IF($V27="Hidden","",INDIRECT("'"&$T27&"'!"&AS60)) ->  | AL27: =IF($V27="Hidden","",INDIRECT("'"&$T27&"'!"&AT60)) -> 
S28: 8 | T28: =SHEETNAME(S28) -> Steel Stringer (Simple) (2) | U28: 'Steel Stringer (Simple) (2)'!A1 | V28: =IF(issheetvisible(INDIRECT(U28)),"Visible","Hidden") -> Hidden | X28: =IF(V28="Hidden","",INDIRECT("'"&$T28&"'!"&X61)) ->  | Y28: =IF($V28="Hidden","",INDIRECT("'"&$T28&"'!"&Y61)) ->  | Z28: =IF($V28="Hidden","",INDIRECT("'"&$T28&"'!"&Z61)) ->  | AA28: =IF($V28="Hidden","",INDIRECT("'"&$T28&"'!"&AA61)) ->  | AB28: =IF($V28="Hidden","",INDIRECT("'"&$T28&"'!"&AB61)) ->  | AC28: =IF($V28="Hidden","",INDIRECT("'"&$T28&"'!"&AD61)) ->  | AD28: =IF($V28="Hidden","",INDIRECT("'"&$T28&"'!"&AF61)) ->  | AE28: =IF($V28="Hidden","",INDIRECT("'"&$T28&"'!"&AH61)) ->  | AF28: =IF($V28="Hidden","",INDIRECT("'"&$T28&"'!"&AJ61)) ->  | AG28: =IF($V28="Hidden","",INDIRECT("'"&$T28&"'!"&AL61)) ->  | AH28: =IF($V28="Hidden","",INDIRECT("'"&$T28&"'!"&AN61)) ->  | AI28: =IF($V28="Hidden","",INDIRECT("'"&$T28&"'!"&AP61)) ->  | AJ28: =IF($V28="Hidden","",INDIRECT("'"&$T28&"'!"&AR61)) ->  | AK28: =IF($V28="Hidden","",INDIRECT("'"&$T28&"'!"&AS61)) ->  | AL28: =IF($V28="Hidden","",INDIRECT("'"&$T28&"'!"&AT61)) -> 
S29: 9 | T29: =SHEETNAME(S29) -> Steel Stringer (Continuous) | U29: 'Steel Stringer (Continuous)'!A1 | V29: =IF(issheetvisible(INDIRECT(U29)),"Visible","Hidden") -> Hidden | X29: =IF(V29="Hidden","",INDIRECT("'"&$T29&"'!"&X62)) ->  | Y29: =IF($V29="Hidden","",INDIRECT("'"&$T29&"'!"&Y62)) ->  | Z29: =IF($V29="Hidden","",INDIRECT("'"&$T29&"'!"&Z62)) ->  | AA29: =IF($V29="Hidden","",INDIRECT("'"&$T29&"'!"&AA62)) ->  | AB29: =IF($V29="Hidden","",INDIRECT("'"&$T29&"'!"&AB62)) ->  | AC29: =IF($V29="Hidden","",INDIRECT("'"&$T29&"'!"&AD62)) ->  | AD29: =IF($V29="Hidden","",INDIRECT("'"&$T29&"'!"&AF62)) ->  | AE29: =IF($V29="Hidden","",INDIRECT("'"&$T29&"'!"&AH62)) ->  | AF29: =IF($V29="Hidden","",INDIRECT("'"&$T29&"'!"&AJ62)) ->  | AG29: =IF($V29="Hidden","",INDIRECT("'"&$T29&"'!"&AL62)) ->  | AH29: =IF($V29="Hidden","",INDIRECT("'"&$T29&"'!"&AN62)) ->  | AI29: =IF($V29="Hidden","",INDIRECT("'"&$T29&"'!"&AP62)) ->  | AJ29: =IF($V29="Hidden","",INDIRECT("'"&$T29&"'!"&AR62)) ->  | AK29: =IF($V29="Hidden","",INDIRECT("'"&$T29&"'!"&AS62)) ->  | AL29: =IF($V29="Hidden","",INDIRECT("'"&$T29&"'!"&AT62)) -> 
S30: 10 | T30: =SHEETNAME(S30) -> Steel Girder (Simple) - GFS | U30: 'Steel Girder (Simple) - GFS'!A1 | V30: =IF(issheetvisible(INDIRECT(U30)),"Visible","Hidden") -> Hidden | X30: =IF(V30="Hidden","",INDIRECT("'"&$T30&"'!"&X63)) ->  | Y30: =IF($V30="Hidden","",INDIRECT("'"&$T30&"'!"&Y63)) ->  | Z30: =IF($V30="Hidden","",INDIRECT("'"&$T30&"'!"&Z63)) ->  | AA30: =IF($V30="Hidden","",INDIRECT("'"&$T30&"'!"&AA63)) ->  | AB30: =IF($V30="Hidden","",INDIRECT("'"&$T30&"'!"&AB63)) ->  | AC30: =IF($V30="Hidden","",INDIRECT("'"&$T30&"'!"&AD63)) ->  | AD30: =IF($V30="Hidden","",INDIRECT("'"&$T30&"'!"&AF63)) ->  | AE30: =IF($V30="Hidden","",INDIRECT("'"&$T30&"'!"&AH63)) ->  | AF30: =IF($V30="Hidden","",INDIRECT("'"&$T30&"'!"&AJ63)) ->  | AG30: =IF($V30="Hidden","",INDIRECT("'"&$T30&"'!"&AL63)) ->  | AH30: =IF($V30="Hidden","",INDIRECT("'"&$T30&"'!"&AN63)) ->  | AI30: =IF($V30="Hidden","",INDIRECT("'"&$T30&"'!"&AP63)) ->  | AJ30: =IF($V30="Hidden","",INDIRECT("'"&$T30&"'!"&AR63)) ->  | AK30: =IF($V30="Hidden","",INDIRECT("'"&$T30&"'!"&AS63)) ->  | AL30: =IF($V30="Hidden","",INDIRECT("'"&$T30&"'!"&AT63)) -> 
S31: 11 | T31: =SHEETNAME(S31) -> Steel Floorbeam | U31: 'Steel Floorbeam'!A1 | V31: =IF(issheetvisible(INDIRECT(U31)),"Visible","Hidden") -> Hidden | X31: =IF(V31="Hidden","",INDIRECT("'"&$T31&"'!"&X64)) ->  | Y31: =IF($V31="Hidden","",INDIRECT("'"&$T31&"'!"&Y64)) ->  | Z31: =IF($V31="Hidden","",INDIRECT("'"&$T31&"'!"&Z64)) ->  | AA31: =IF($V31="Hidden","",INDIRECT("'"&$T31&"'!"&AA64)) ->  | AB31: =IF($V31="Hidden","",INDIRECT("'"&$T31&"'!"&AB64)) ->  | AC31: =IF($V31="Hidden","",INDIRECT("'"&$T31&"'!"&AD64)) ->  | AD31: =IF($V31="Hidden","",INDIRECT("'"&$T31&"'!"&AF64)) ->  | AE31: =IF($V31="Hidden","",INDIRECT("'"&$T31&"'!"&AH64)) ->  | AF31: =IF($V31="Hidden","",INDIRECT("'"&$T31&"'!"&AJ64)) ->  | AG31: =IF($V31="Hidden","",INDIRECT("'"&$T31&"'!"&AL64)) ->  | AH31: =IF($V31="Hidden","",INDIRECT("'"&$T31&"'!"&AN64)) ->  | AI31: =IF($V31="Hidden","",INDIRECT("'"&$T31&"'!"&AP64)) ->  | AJ31: =IF($V31="Hidden","",INDIRECT("'"&$T31&"'!"&AR64)) ->  | AK31: =IF($V31="Hidden","",INDIRECT("'"&$T31&"'!"&AS64)) ->  | AL31: =IF($V31="Hidden","",INDIRECT("'"&$T31&"'!"&AT64)) -> 
S32: 12 | T32: =SHEETNAME(S32) -> Steel Flatcar | U32: 'Steel Flatcar'!A1 | V32: =IF(issheetvisible(INDIRECT(U32)),"Visible","Hidden") -> Hidden | X32: =IF(V32="Hidden","",INDIRECT("'"&$T32&"'!"&X65)) ->  | Y32: =IF($V32="Hidden","",INDIRECT("'"&$T32&"'!"&Y65)) ->  | Z32: =IF($V32="Hidden","",INDIRECT("'"&$T32&"'!"&Z65)) ->  | AA32: =IF($V32="Hidden","",INDIRECT("'"&$T32&"'!"&AA65)) ->  | AB32: =IF($V32="Hidden","",INDIRECT("'"&$T32&"'!"&AB65)) ->  | AC32: =IF($V32="Hidden","",INDIRECT("'"&$T32&"'!"&AD65)) ->  | AD32: =IF($V32="Hidden","",INDIRECT("'"&$T32&"'!"&AF65)) ->  | AE32: =IF($V32="Hidden","",INDIRECT("'"&$T32&"'!"&AH65)) ->  | AF32: =IF($V32="Hidden","",INDIRECT("'"&$T32&"'!"&AJ65)) ->  | AG32: =IF($V32="Hidden","",INDIRECT("'"&$T32&"'!"&AL65)) ->  | AH32: =IF($V32="Hidden","",INDIRECT("'"&$T32&"'!"&AN65)) ->  | AI32: =IF($V32="Hidden","",INDIRECT("'"&$T32&"'!"&AP65)) ->  | AJ32: =IF($V32="Hidden","",INDIRECT("'"&$T32&"'!"&AR65)) ->  | AK32: =IF($V32="Hidden","",INDIRECT("'"&$T32&"'!"&AS65)) ->  | AL32: =IF($V32="Hidden","",INDIRECT("'"&$T32&"'!"&AT65)) -> 
B33: =IF(ISBLANK(AN35),"",AN35) ->  | S33: 13 | T33: =SHEETNAME(S33) -> Timber Stringer | U33: 'Timber Stringer'!A1 | V33: =IF(issheetvisible(INDIRECT(U33)),"Visible","Hidden") -> Hidden | X33: =IF(V33="Hidden","",INDIRECT("'"&$T33&"'!"&X66)) ->  | Y33: =IF($V33="Hidden","",INDIRECT("'"&$T33&"'!"&Y66)) ->  | Z33: =IF($V33="Hidden","",INDIRECT("'"&$T33&"'!"&Z66)) ->  | AA33: =IF($V33="Hidden","",INDIRECT("'"&$T33&"'!"&AA66)) ->  | AB33: =IF($V33="Hidden","",INDIRECT("'"&$T33&"'!"&AB66)) ->  | AC33: =IF($V33="Hidden","",INDIRECT("'"&$T33&"'!"&AD66)) ->  | AD33: =IF($V33="Hidden","",INDIRECT("'"&$T33&"'!"&AF66)) ->  | AE33: =IF($V33="Hidden","",INDIRECT("'"&$T33&"'!"&AH66)) ->  | AF33: =IF($V33="Hidden","",INDIRECT("'"&$T33&"'!"&AJ66)) ->  | AG33: =IF($V33="Hidden","",INDIRECT("'"&$T33&"'!"&AL66)) ->  | AH33: =IF($V33="Hidden","",INDIRECT("'"&$T33&"'!"&AN66)) ->  | AI33: =IF($V33="Hidden","",INDIRECT("'"&$T33&"'!"&AP66)) ->  | AJ33: =IF($V33="Hidden","",INDIRECT("'"&$T33&"'!"&AR66)) ->  | AK33: =IF($V33="Hidden","",INDIRECT("'"&$T33&"'!"&AS66)) ->  | AL33: =IF($V33="Hidden","",INDIRECT("'"&$T33&"'!"&AT66)) -> 
B34: =IF(ISBLANK(AN36),"",AN36) ->  | S34: 14 | T34: =SHEETNAME(S34) -> Timber Stringer (2) | U34: 'Timber Stringer (2)'!A1 | V34: =IF(issheetvisible(INDIRECT(U34)),"Visible","Hidden") -> Hidden | X34: =IF(V34="Hidden","",INDIRECT("'"&$T34&"'!"&X67)) ->  | Y34: =IF($V34="Hidden","",INDIRECT("'"&$T34&"'!"&Y67)) ->  | Z34: =IF($V34="Hidden","",INDIRECT("'"&$T34&"'!"&Z67)) ->  | AA34: =IF($V34="Hidden","",INDIRECT("'"&$T34&"'!"&AA67)) ->  | AB34: =IF($V34="Hidden","",INDIRECT("'"&$T34&"'!"&AB67)) ->  | AC34: =IF($V34="Hidden","",INDIRECT("'"&$T34&"'!"&AD67)) ->  | AD34: =IF($V34="Hidden","",INDIRECT("'"&$T34&"'!"&AF67)) ->  | AE34: =IF($V34="Hidden","",INDIRECT("'"&$T34&"'!"&AH67)) ->  | AF34: =IF($V34="Hidden","",INDIRECT("'"&$T34&"'!"&AJ67)) ->  | AG34: =IF($V34="Hidden","",INDIRECT("'"&$T34&"'!"&AL67)) ->  | AH34: =IF($V34="Hidden","",INDIRECT("'"&$T34&"'!"&AN67)) ->  | AI34: =IF($V34="Hidden","",INDIRECT("'"&$T34&"'!"&AP67)) ->  | AJ34: =IF($V34="Hidden","",INDIRECT("'"&$T34&"'!"&AR67)) ->  | AK34: =IF($V34="Hidden","",INDIRECT("'"&$T34&"'!"&AS67)) ->  | AL34: =IF($V34="Hidden","",INDIRECT("'"&$T34&"'!"&AT67)) -> 
B35: =IF(ISBLANK(AN37),"",AN37) ->  | S35: 15 | T35: =SHEETNAME(S35) -> Steel Cap | U35: 'Steel Cap'!A1 | V35: =IF(issheetvisible(INDIRECT(U35)),"Visible","Hidden") -> Hidden | X35: =IF(V35="Hidden","",INDIRECT("'"&$T35&"'!"&X68)) ->  | Y35: =IF($V35="Hidden","",INDIRECT("'"&$T35&"'!"&Y68)) ->  | Z35: =IF($V35="Hidden","",INDIRECT("'"&$T35&"'!"&Z68)) ->  | AA35: =IF($V35="Hidden","",INDIRECT("'"&$T35&"'!"&AA68)) ->  | AB35: =IF($V35="Hidden","",INDIRECT("'"&$T35&"'!"&AB68)) ->  | AC35: =IF($V35="Hidden","",INDIRECT("'"&$T35&"'!"&AD68)) ->  | AD35: =IF($V35="Hidden","",INDIRECT("'"&$T35&"'!"&AF68)) ->  | AE35: =IF($V35="Hidden","",INDIRECT("'"&$T35&"'!"&AH68)) ->  | AF35: =IF($V35="Hidden","",INDIRECT("'"&$T35&"'!"&AJ68)) ->  | AG35: =IF($V35="Hidden","",INDIRECT("'"&$T35&"'!"&AL68)) ->  | AH35: =IF($V35="Hidden","",INDIRECT("'"&$T35&"'!"&AN68)) ->  | AI35: =IF($V35="Hidden","",INDIRECT("'"&$T35&"'!"&AP68)) ->  | AJ35: =IF($V35="Hidden","",INDIRECT("'"&$T35&"'!"&AR68)) ->  | AK35: =IF($V35="Hidden","",INDIRECT("'"&$T35&"'!"&AS68)) ->  | AL35: =IF($V35="Hidden","",INDIRECT("'"&$T35&"'!"&AT68)) -> 
S36: 16 | T36: =SHEETNAME(S36) -> Steel Cap (2) | U36: 'Steel Cap (2)'!A1 | V36: =IF(issheetvisible(INDIRECT(U36)),"Visible","Hidden") -> Hidden | X36: =IF(V36="Hidden","",INDIRECT("'"&$T36&"'!"&X69)) ->  | Y36: =IF($V36="Hidden","",INDIRECT("'"&$T36&"'!"&Y69)) ->  | Z36: =IF($V36="Hidden","",INDIRECT("'"&$T36&"'!"&Z69)) ->  | AA36: =IF($V36="Hidden","",INDIRECT("'"&$T36&"'!"&AA69)) ->  | AB36: =IF($V36="Hidden","",INDIRECT("'"&$T36&"'!"&AB69)) ->  | AC36: =IF($V36="Hidden","",INDIRECT("'"&$T36&"'!"&AD69)) ->  | AD36: =IF($V36="Hidden","",INDIRECT("'"&$T36&"'!"&AF69)) ->  | AE36: =IF($V36="Hidden","",INDIRECT("'"&$T36&"'!"&AH69)) ->  | AF36: =IF($V36="Hidden","",INDIRECT("'"&$T36&"'!"&AJ69)) ->  | AG36: =IF($V36="Hidden","",INDIRECT("'"&$T36&"'!"&AL69)) ->  | AH36: =IF($V36="Hidden","",INDIRECT("'"&$T36&"'!"&AN69)) ->  | AI36: =IF($V36="Hidden","",INDIRECT("'"&$T36&"'!"&AP69)) ->  | AJ36: =IF($V36="Hidden","",INDIRECT("'"&$T36&"'!"&AR69)) ->  | AK36: =IF($V36="Hidden","",INDIRECT("'"&$T36&"'!"&AS69)) ->  | AL36: =IF($V36="Hidden","",INDIRECT("'"&$T36&"'!"&AT69)) -> 
B37: Controlling Component | S37: 17 | T37: =SHEETNAME(S37) -> Timber Cap | U37: 'Timber Cap'!A1 | V37: =IF(issheetvisible(INDIRECT(U37)),"Visible","Hidden") -> Hidden | X37: =IF(V37="Hidden","",INDIRECT("'"&$T37&"'!"&X70)) ->  | Y37: =IF($V37="Hidden","",INDIRECT("'"&$T37&"'!"&Y70)) ->  | Z37: =IF($V37="Hidden","",INDIRECT("'"&$T37&"'!"&Z70)) ->  | AA37: =IF($V37="Hidden","",INDIRECT("'"&$T37&"'!"&AA70)) ->  | AB37: =IF($V37="Hidden","",INDIRECT("'"&$T37&"'!"&AB70)) ->  | AC37: =IF($V37="Hidden","",INDIRECT("'"&$T37&"'!"&AD70)) ->  | AD37: =IF($V37="Hidden","",INDIRECT("'"&$T37&"'!"&AF70)) ->  | AE37: =IF($V37="Hidden","",INDIRECT("'"&$T37&"'!"&AH70)) ->  | AF37: =IF($V37="Hidden","",INDIRECT("'"&$T37&"'!"&AJ70)) ->  | AG37: =IF($V37="Hidden","",INDIRECT("'"&$T37&"'!"&AL70)) ->  | AH37: =IF($V37="Hidden","",INDIRECT("'"&$T37&"'!"&AN70)) ->  | AI37: =IF($V37="Hidden","",INDIRECT("'"&$T37&"'!"&AP70)) ->  | AJ37: =IF($V37="Hidden","",INDIRECT("'"&$T37&"'!"&AR70)) ->  | AK37: =IF($V37="Hidden","",INDIRECT("'"&$T37&"'!"&AS70)) ->  | AL37: =IF($V37="Hidden","",INDIRECT("'"&$T37&"'!"&AT70)) -> 
S38: 18 | T38: =SHEETNAME(S38) -> Timber Cap (2) | U38: 'Timber Cap (2)'!A1 | V38: =IF(issheetvisible(INDIRECT(U38)),"Visible","Hidden") -> Hidden | X38: =IF(V38="Hidden","",INDIRECT("'"&$T38&"'!"&X71)) ->  | Y38: =IF($V38="Hidden","",INDIRECT("'"&$T38&"'!"&Y71)) ->  | Z38: =IF($V38="Hidden","",INDIRECT("'"&$T38&"'!"&Z71)) ->  | AA38: =IF($V38="Hidden","",INDIRECT("'"&$T38&"'!"&AA71)) ->  | AB38: =IF($V38="Hidden","",INDIRECT("'"&$T38&"'!"&AB71)) ->  | AC38: =IF($V38="Hidden","",INDIRECT("'"&$T38&"'!"&AD71)) ->  | AD38: =IF($V38="Hidden","",INDIRECT("'"&$T38&"'!"&AF71)) ->  | AE38: =IF($V38="Hidden","",INDIRECT("'"&$T38&"'!"&AH71)) ->  | AF38: =IF($V38="Hidden","",INDIRECT("'"&$T38&"'!"&AJ71)) ->  | AG38: =IF($V38="Hidden","",INDIRECT("'"&$T38&"'!"&AL71)) ->  | AH38: =IF($V38="Hidden","",INDIRECT("'"&$T38&"'!"&AN71)) ->  | AI38: =IF($V38="Hidden","",INDIRECT("'"&$T38&"'!"&AP71)) ->  | AJ38: =IF($V38="Hidden","",INDIRECT("'"&$T38&"'!"&AR71)) ->  | AK38: =IF($V38="Hidden","",INDIRECT("'"&$T38&"'!"&AS71)) ->  | AL38: =IF($V38="Hidden","",INDIRECT("'"&$T38&"'!"&AT71)) -> 
E39: Controlling Component | S39: 19 | T39: =SHEETNAME(S39) -> Steel Pile | U39: 'Steel Pile'!A1 | V39: =IF(issheetvisible(INDIRECT(U39)),"Visible","Hidden") -> Hidden | X39: =IF(V39="Hidden","",INDIRECT("'"&$T39&"'!"&X72)) ->  | Y39: =IF($V39="Hidden","",INDIRECT("'"&$T39&"'!"&Y72)) ->  | Z39: =IF($V39="Hidden","",INDIRECT("'"&$T39&"'!"&Z72)) ->  | AA39: =IF($V39="Hidden","",INDIRECT("'"&$T39&"'!"&AA72)) ->  | AB39: =IF($V39="Hidden","",INDIRECT("'"&$T39&"'!"&AB72)) ->  | AC39: =IF($V39="Hidden","",INDIRECT("'"&$T39&"'!"&AD72)) ->  | AD39: =IF($V39="Hidden","",INDIRECT("'"&$T39&"'!"&AF72)) ->  | AE39: =IF($V39="Hidden","",INDIRECT("'"&$T39&"'!"&AH72)) ->  | AF39: =IF($V39="Hidden","",INDIRECT("'"&$T39&"'!"&AJ72)) ->  | AG39: =IF($V39="Hidden","",INDIRECT("'"&$T39&"'!"&AL72)) ->  | AH39: =IF($V39="Hidden","",INDIRECT("'"&$T39&"'!"&AN72)) ->  | AI39: =IF($V39="Hidden","",INDIRECT("'"&$T39&"'!"&AP72)) ->  | AJ39: =IF($V39="Hidden","",INDIRECT("'"&$T39&"'!"&AR72)) ->  | AK39: =IF($V39="Hidden","",INDIRECT("'"&$T39&"'!"&AS72)) ->  | AL39: =IF($V39="Hidden","",INDIRECT("'"&$T39&"'!"&AT72)) -> 
B40: H Inventory: | D40: =MIN(H19:H35) ->  | E40: =INDEX($B$19:$B$35,MATCH(MIN($H$19:$H$35),$H$19:$H$35,0),1) ->  | S40: 20 | T40: =SHEETNAME(S40) -> Steel Pile (2) | U40: 'Steel Pile (2)'!A1 | V40: =IF(issheetvisible(INDIRECT(U40)),"Visible","Hidden") -> Hidden | X40: =IF(V40="Hidden","",INDIRECT("'"&$T40&"'!"&X73)) ->  | Y40: =IF($V40="Hidden","",INDIRECT("'"&$T40&"'!"&Y73)) ->  | Z40: =IF($V40="Hidden","",INDIRECT("'"&$T40&"'!"&Z73)) ->  | AA40: =IF($V40="Hidden","",INDIRECT("'"&$T40&"'!"&AA73)) ->  | AB40: =IF($V40="Hidden","",INDIRECT("'"&$T40&"'!"&AB73)) ->  | AC40: =IF($V40="Hidden","",INDIRECT("'"&$T40&"'!"&AD73)) ->  | AD40: =IF($V40="Hidden","",INDIRECT("'"&$T40&"'!"&AF73)) ->  | AE40: =IF($V40="Hidden","",INDIRECT("'"&$T40&"'!"&AH73)) ->  | AF40: =IF($V40="Hidden","",INDIRECT("'"&$T40&"'!"&AJ73)) ->  | AG40: =IF($V40="Hidden","",INDIRECT("'"&$T40&"'!"&AL73)) ->  | AH40: =IF($V40="Hidden","",INDIRECT("'"&$T40&"'!"&AN73)) ->  | AI40: =IF($V40="Hidden","",INDIRECT("'"&$T40&"'!"&AP73)) ->  | AJ40: =IF($V40="Hidden","",INDIRECT("'"&$T40&"'!"&AR73)) ->  | AK40: =IF($V40="Hidden","",INDIRECT("'"&$T40&"'!"&AS73)) ->  | AL40: =IF($V40="Hidden","",INDIRECT("'"&$T40&"'!"&AT73)) -> 
B41: H Operating: | D41: =MIN(L19:M35) ->  | E41: =INDEX($B$19:$B$35,MATCH(MIN($L$19:$L$35),$L$19:$L$35,0),1) ->  | S41: 21 | T41: =SHEETNAME(S41) -> Timber Pile | U41: 'Timber Pile'!A1 | V41: =IF(issheetvisible(INDIRECT(U41)),"Visible","Hidden") -> Hidden | X41: =IF(V41="Hidden","",INDIRECT("'"&$T41&"'!"&X74)) ->  | Y41: =IF($V41="Hidden","",INDIRECT("'"&$T41&"'!"&Y74)) ->  | Z41: =IF($V41="Hidden","",INDIRECT("'"&$T41&"'!"&Z74)) ->  | AA41: =IF($V41="Hidden","",INDIRECT("'"&$T41&"'!"&AA74)) ->  | AB41: =IF($V41="Hidden","",INDIRECT("'"&$T41&"'!"&AB74)) ->  | AC41: =IF($V41="Hidden","",INDIRECT("'"&$T41&"'!"&AD74)) ->  | AD41: =IF($V41="Hidden","",INDIRECT("'"&$T41&"'!"&AF74)) ->  | AE41: =IF($V41="Hidden","",INDIRECT("'"&$T41&"'!"&AH74)) ->  | AF41: =IF($V41="Hidden","",INDIRECT("'"&$T41&"'!"&AJ74)) ->  | AG41: =IF($V41="Hidden","",INDIRECT("'"&$T41&"'!"&AL74)) ->  | AH41: =IF($V41="Hidden","",INDIRECT("'"&$T41&"'!"&AN74)) ->  | AI41: =IF($V41="Hidden","",INDIRECT("'"&$T41&"'!"&AP74)) ->  | AJ41: =IF($V41="Hidden","",INDIRECT("'"&$T41&"'!"&AR74)) ->  | AK41: =IF($V41="Hidden","",INDIRECT("'"&$T41&"'!"&AS74)) ->  | AL41: =IF($V41="Hidden","",INDIRECT("'"&$T41&"'!"&AT74)) -> 
B42: HS Inventory: | D42: =MIN(I19:K35) ->  | E42: =INDEX($B$19:$B$35,MATCH(MIN($I$19:$I$35),$I$19:$I$35,0),1) ->  | S42: 22 | T42: =SHEETNAME(S42) -> Timber Pile (2) | U42: 'Timber Pile (2)'!A1 | V42: =IF(issheetvisible(INDIRECT(U42)),"Visible","Hidden") -> Hidden | X42: =IF(V42="Hidden","",INDIRECT("'"&$T42&"'!"&X75)) ->  | Y42: =IF($V42="Hidden","",INDIRECT("'"&$T42&"'!"&Y75)) ->  | Z42: =IF($V42="Hidden","",INDIRECT("'"&$T42&"'!"&Z75)) ->  | AA42: =IF($V42="Hidden","",INDIRECT("'"&$T42&"'!"&AA75)) ->  | AB42: =IF($V42="Hidden","",INDIRECT("'"&$T42&"'!"&AB75)) ->  | AC42: =IF($V42="Hidden","",INDIRECT("'"&$T42&"'!"&AD75)) ->  | AD42: =IF($V42="Hidden","",INDIRECT("'"&$T42&"'!"&AF75)) ->  | AE42: =IF($V42="Hidden","",INDIRECT("'"&$T42&"'!"&AH75)) ->  | AF42: =IF($V42="Hidden","",INDIRECT("'"&$T42&"'!"&AJ75)) ->  | AG42: =IF($V42="Hidden","",INDIRECT("'"&$T42&"'!"&AL75)) ->  | AH42: =IF($V42="Hidden","",INDIRECT("'"&$T42&"'!"&AN75)) ->  | AI42: =IF($V42="Hidden","",INDIRECT("'"&$T42&"'!"&AP75)) ->  | AJ42: =IF($V42="Hidden","",INDIRECT("'"&$T42&"'!"&AR75)) ->  | AK42: =IF($V42="Hidden","",INDIRECT("'"&$T42&"'!"&AS75)) ->  | AL42: =IF($V42="Hidden","",INDIRECT("'"&$T42&"'!"&AT75)) -> 
B43: HS Operating: | D43: =MIN(N19:O35) ->  | E43: =INDEX($B$19:$B$35,MATCH(MIN($N$19:$N$35),$N$19:$N$35,0),1) ->  | S43: 23 | T43: =SHEETNAME(S43) -> Concrete Superstructure | U43: 'Concrete Superstructure'!A1 | V43: =IF(issheetvisible(INDIRECT(U43)),"Visible","Hidden") -> Hidden
B44: SU4 Operating: | D44: =MIN(AC24:AC52) -> 0 | E44: =INDEX($T$24:$T$52,MATCH(MIN($AC$24:$AC$52),$AC$24:$AC$52,0),1) ->  | S44: 24 | T44: =SHEETNAME(S44) -> Concrete Substructure | U44: 'Concrete Substructure'!A1 | V44: =IF(issheetvisible(INDIRECT(U44)),"Visible","Hidden") -> Hidden
B45: SU5 Operating: | D45: =MIN(AD24:AD52) -> 0 | E45: =INDEX($T$24:$T$52,MATCH(MIN($AD$24:$AD$52),$AD$24:$AD$52,0),1) ->  | S45: 25 | T45: =SHEETNAME(S45) -> Future Analysis Module - 1 | U45: 'Future Analysis Module - 1'!A1 | V45: =IF(issheetvisible(INDIRECT(U45)),"Visible","Hidden") -> Hidden
B46: SU6 Operating: | D46: =MIN(AE24:AE52) -> 0 | E46: =INDEX($T$24:$T$52,MATCH(MIN($AE$24:$AE$52),$AE$24:$AE$52,0),1) ->  | S46: 26 | T46: =SHEETNAME(S46) -> Future Analysis Module - 2 | U46: 'Future Analysis Module - 2'!A1 | V46: =IF(issheetvisible(INDIRECT(U46)),"Visible","Hidden") -> Hidden
B47: SU7 Operating: | D47: =MIN(AF24:AF52) -> 0 | E47: =INDEX($T$24:$T$52,MATCH(MIN($AF$24:$AF$52),$AF$24:$AF$52,0),1) ->  | S47: 27 | T47: =SHEETNAME(S47) -> Future Analysis Module - 3 | U47: 'Future Analysis Module - 3'!A1 | V47: =IF(issheetvisible(INDIRECT(U47)),"Visible","Hidden") -> Hidden
B48: TYPE 3: | D48: =MIN(AG24:AG52) -> 0 | E48: =INDEX($T$24:$T$52,MATCH(MIN($AG$24:$AG$52),$AG$24:$AG$52,0),1) ->  | S48: 28 | T48: =SHEETNAME(S48) -> Rating Factor Database | U48: 'Rating Factor Database'!A1 | V48: =IF(issheetvisible(INDIRECT(U48)),"Visible","Hidden") -> Hidden
B49: TYPE 3S2: | D49: =MIN(AH24:AH52) -> 0 | E49: =INDEX($T$24:$T$52,MATCH(MIN($AH$24:$AH$52),$AH$24:$AH$52,0),1) ->  | S49: 29 | T49: =SHEETNAME(S49) -> Timber Prop. - Southern Pine | U49: 'Timber Prop. - Southern Pine'!A1 | V49: =IF(issheetvisible(INDIRECT(U49)),"Visible","Hidden") -> Hidden
B50: TYPE 3-3: | D50: =MIN(AI24:AI52) -> 0 | E50: =INDEX($T$24:$T$52,MATCH(MIN($AI$24:$AI$52),$AI$24:$AI$52,0),1) ->  | S50: 30 | T50: =SHEETNAME(S50) -> TX Standard Beam Shapes Table | U50: 'TX Standard Beam Shapes Table'!A1 | V50: =IF(issheetvisible(INDIRECT(U50)),"Visible","Hidden") -> Hidden
B51: NRL: | D51: =MIN(AJ24:AJ52) -> 0 | E51: =INDEX($T$24:$T$52,MATCH(MIN($AJ$24:$AJ$52),$AJ$24:$AJ$52,0),1) ->  | S51: 31 | T51: =SHEETNAME(S51) -> LIVE LOADS | U51: 'LIVE LOADS'!A1 | V51: =IF(issheetvisible(INDIRECT(U51)),"Visible","Hidden") -> Hidden
B52: EV2 Operating: | D52: =MIN(AK24:AK52) -> 0 | E52: =INDEX($T$24:$T$52,MATCH(MIN($AK$24:$AK$52),$AK$24:$AK$52,0),1) ->  | S52: 32 | T52: =SHEETNAME(S52) -> NRL | U52: 'NRL'!A1 | V52: =IF(issheetvisible(INDIRECT(U52)),"Visible","Hidden") -> Hidden
B53: EV3 Operating: | D53: =MIN(AL24:AL52) -> 0 | E53: =INDEX($T$24:$T$52,MATCH(MIN($AL$24:$AL$52),$AL$24:$AL$52,0),1) -> 
T54: Tabs that don't have ratings
T55: Startup Page | Y55: H | AA55: HS | AC55: SU4 | AE55: SU5 | AG55: SU6 | AI55: SU7 | AK55: T3 | AM55: T3-S2 | AO55: T3-3 | AQ55: NRL | AS55: EV2 | AT55: EV3
T56: Summary Sheet | W56: Cell locations | X56: Description | Y56: Inv | Z56: Opr | AA56: Inv | AB56: Opr | AC56: Inv | AD56: Opr | AE56: Inv | AF56: Opr | AG56: Inv | AH56: Opr | AI56: Inv | AJ56: Opr | AK56: Inv | AL56: Opr | AM56: Inv | AN56: Opr | AO56: Inv | AP56: Opr | AQ56: Inv | AR56: Opr | AS56: Opr | AT56: Opr
T57: Dead Load Calcs and Tables | W57: Concrete Deck | X57: H12 | Y57: J62 | Z57: J63 | AA57: J59 | AB57: J60 | AD57: H65 | AF57: H66 | AH57: H67 | AJ57: H68 | AL57: K65 | AN57: K66 | AP57: K67 | AR57: K68 | AS57: H70 | AT57: K70
B58: Additional Notes | T58: SH-EV Rating | W58: Steel Deck | X58: I12 | Y58: K62 | Z58: K63 | AA58: K59 | AB58: K60 | AD58: I65 | AF58: I66 | AH58: I67 | AJ58: I68 | AL58: L65 | AN58: L66 | AP58: L67 | AR58: L68 | AS58: I70 | AT58: L70
T59: Rating Factor Database | W59: Timber Deck | X59: H12 | Y59: J62 | Z59: J63 | AA59: J59 | AB59: J60 | AD59: H65 | AF59: H66 | AH59: H67 | AJ59: H68 | AL59: K65 | AN59: K66 | AP59: K67 | AR59: K68 | AS59: H70 | AT59: K70
T60: TX Standard Beam Shapes Table | W60: Steel Stringer (Simple) | X60: H12 | Y60: J62 | Z60: J63 | AA60: J59 | AB60: J60 | AD60: H65 | AF60: H66 | AH60: H67 | AJ60: H68 | AL60: K65 | AN60: K66 | AP60: K67 | AR60: K68 | AS60: H70 | AT60: K70
T61: LIVE LOADS | W61: Steel Stringer (Simple) (2) | X61: H12 | Y61: J62 | Z61: J63 | AA61: J59 | AB61: J60 | AD61: H65 | AF61: H66 | AH61: H67 | AJ61: H68 | AL61: K65 | AN61: K66 | AP61: K67 | AR61: K68 | AS61: H70 | AT61: K70
T62: SU4 Truck | W62: Steel Stringer (Continuous) | X62: I12 | Y62: K62 | Z62: K63 | AA62: K59 | AB62: K60 | AD62: I65 | AF62: I66 | AH62: I67 | AJ62: I68 | AL62: M65 | AN62: M66 | AP62: M67 | AR62: M68 | AS62: I70 | AT62: M70
T63: SU5 Truck | W63: Steel Girder (Simple) - GFS | X63: H12 | Y63: J62 | Z63: J63 | AA63: J59 | AB63: J60 | AD63: H65 | AF63: H66 | AH63: H67 | AJ63: H68 | AL63: K65 | AN63: K66 | AP63: K67 | AR63: K68 | AS63: H70 | AT63: K70
T64: SU6 Truck | W64: Steel Floorbeam | X64: H12 | Y64: J62 | Z64: J63 | AA64: J59 | AB64: J60 | AD64: H65 | AF64: H66 | AH64: H67 | AJ64: H68 | AL64: K65 | AN64: K66 | AP64: K67 | AR64: K68 | AS64: H70 | AT64: K70
T65: SU7 Truck | W65: Steel Flatcar | X65: J12 | Y65: M62 | Z65: M63 | AA65: M59 | AB65: M60 | AD65: J65 | AF65: J66 | AH65: J67 | AJ65: J68 | AL65: O65 | AN65: O66 | AP65: O67 | AR65: O68 | AS65: J70 | AT65: O70
T66: EV2 | W66: Timber Stringer | X66: H12 | Y66: J62 | Z66: J63 | AA66: J59 | AB66: J60 | AD66: H65 | AF66: H66 | AH66: H67 | AJ66: H68 | AL66: K65 | AN66: K66 | AP66: K67 | AR66: K68 | AS66: H70 | AT66: K70
T67: EV3 | W67: Timber Stringer (2) | X67: H12 | Y67: J62 | Z67: J63 | AA67: J59 | AB67: J60 | AD67: H65 | AF67: H66 | AH67: H67 | AJ67: H68 | AL67: K65 | AN67: K66 | AP67: K67 | AR67: K68 | AS67: H70 | AT67: K70
T68: EV3_!RATE | W68: Steel Cap | X68: J12 | Y68: L62 | Z68: L63 | AA68: L59 | AB68: L60 | AD68: J65 | AF68: J66 | AH68: J67 | AJ68: J68 | AL68: M65 | AN68: M66 | AP68: M67 | AR68: M68 | AS68: J70 | AT68: M70
W69: Steel Cap (2) | X69: J12 | Y69: L62 | Z69: L63 | AA69: L59 | AB69: L60 | AD69: J65 | AF69: J66 | AH69: J67 | AJ69: J68 | AL69: M65 | AN69: M66 | AP69: M67 | AR69: M68 | AS69: J70 | AT69: M70
W70: Timber Cap | X70: H12 | Y70: J62 | Z70: J63 | AA70: J59 | AB70: J60 | AD70: H65 | AF70: H66 | AH70: H67 | AJ70: H68 | AL70: K65 | AN70: K66 | AP70: K67 | AR70: K68 | AS70: H70 | AT70: K70
W71: Timber Cap (2) | X71: H12 | Y71: J62 | Z71: J63 | AA71: J59 | AB71: J60 | AD71: H65 | AF71: H66 | AH71: H67 | AJ71: H68 | AL71: K65 | AN71: K66 | AP71: K67 | AR71: K68 | AS71: H70 | AT71: K70
B72: *** DO NOT DISCLOSE *** THIS INFORMATION IS CONFIDENTIAL UNDER THE TEXAS HOMELAND SECURITY ACT AND 23 USC SECTION 409, SAFETY SENSITIVE INFORMATION | W72: Steel Pile | X72: H12 | Y72: J62 | Z72: J63 | AA72: J59 | AB72: J60 | AD72: H65 | AF72: H66 | AH72: H67 | AJ72: H68 | AL72: K65 | AN72: K66 | AP72: K67 | AR72: K68 | AS72: H70 | AT72: K70
W73: Steel Pile (2) | X73: H12 | Y73: J62 | Z73: J63 | AA73: J59 | AB73: J60 | AD73: H65 | AF73: H66 | AH73: H67 | AJ73: H68 | AL73: K65 | AN73: K66 | AP73: K67 | AR73: K68 | AS73: H70 | AT73: K70
W74: Timber Pile | X74: H12 | Y74: J62 | Z74: J63 | AA74: J59 | AB74: J60 | AD74: H65 | AF74: H66 | AH74: H67 | AJ74: H68 | AL74: K65 | AN74: K66 | AP74: K67 | AR74: K68 | AS74: H70 | AT74: K70
W75: Timber Pile (2) | X75: H12 | Y75: J62 | Z75: J63 | AA75: J59 | AB75: J60 | AD75: H65 | AF75: H66 | AH75: H67 | AJ75: H68 | AL75: K65 | AN75: K66 | AP75: K67 | AR75: K68 | AS75: H70 | AT75: K70
W76: Concrete Superstructure
W77: Concrete Substructure
W78: New Component-1
W79: New Component-2
W80: New Component-3

Sheet Dead Load Calcs and Tables (hidden)
I1: Concrete Deck | J1: Steel Deck | K1: Timber Deck
I2: Deck Thickness (in): | J2: Steel Deck Type | K2: Timber Depth (in):
I3: f'c (ksi): | J3: Designation | K3: Fill Weight (ksf):
I4: Fill Weight (ksf): | J4: Weight of Corrugation (ksf):
I5: Composite Action (Y/N): | J5: Fill Weight (ksf):
I6: Slab Embedment (in):
A7: Hidden? | C7: Data Validation List Population
E8: Deck
D9: Deck Defined in Girder Module | E9: Deck Name | F9: Material Unit Weight (kcf) | G9: Deck Weight (ksf) | H9: Fill Weight (ksf) | I9: Wearing Surface (ksf) | J9: Misc. Weight (ksf) | K9: Total Weight (ksf) | L9: Deck Thickness (in): | M9: Deck Type | N9: Designation | O9: Weight of Corrugation (ksf): | P9: Fill Depth above top of deck (in): | Q9: Unit weight of fill material (kcf): | R9: Wearing Surface Thickness (in): | S9: Wearing Surface Material Weight (kcf):
D10: No Deck Import
A11: ="'"&$E11&"'!A1" -> 'Concrete Deck'!A1 | B11: =IFERROR(IF(issheetvisible(INDIRECT(A11)),"Visible","Hidden"), "ADD SHEET") -> Hidden | C11: =IF($B11 = "Visible", $E11, "") ->  | D11: =IFERROR(_xlfn._xlws.FILTER(C11:C16, C11:C16<>""),"") ->  | E11: Concrete Deck | F11: 0.15 | G11: =$F$11*'Concrete Deck'!$E$18/12 -> 0 | H11: ='Concrete Deck'!$E$28*'Concrete Deck'!$E$27/12 -> 0 | I11: ='Concrete Deck'!$E$26*'Concrete Deck'!$E$25/12 -> 0 | J11: ='Concrete Deck'!$E$29 -> 0 | K11: =SUM(G11:J11) -> 0 | L11: ='Concrete Deck'!$E$18 -> 0 | P11: ='Concrete Deck'!$E$27 -> 0 | Q11: ='Concrete Deck'!$E$28 -> 0 | R11: ='Concrete Deck'!$E$25 -> 0 | S11: ='Concrete Deck'!$E$26 -> 0
A12: ="'"&$E12&"'!A1" -> 'Steel Deck'!A1 | B12: =IFERROR(IF(issheetvisible(INDIRECT(A12)),"Visible","Hidden"), "ADD SHEET") -> Hidden | E12: Steel Deck | G12: =IF('Steel Deck'!$E$17='Steel Deck'!$P$3,'Steel Deck'!$E$21,IF('Steel Deck'!$E$17='Steel Deck'!$P$15,'Steel Deck'!$E$21,IF('Steel Deck'!$E$17='Steel Deck'!$P$27,'Steel Deck'!$E$27,""))) ->  | H12: =IF('Steel Deck'!$E$17='Steel Deck'!$BE$3,0,'Steel Deck'!$E$27*'Steel Deck'!$E$25/12) -> 0 | J12: =IF('Steel Deck'!$E$17="Steel Open Grid Deck",'Steel Deck'!$E$29,'Steel Deck'!$E$28) -> 0 | K12: =SUM(G12:J12) -> 0 | L12: ='Steel Deck'!E20 -> 0 | M12: ='Steel Deck'!$E$17 -> 0 | N12: ='Steel Deck'!E18 -> 0 | O12: ='Steel Deck'!E21 -> 0 | P12: =IF($M12="Steel Open Grid Deck","",'Steel Deck'!$E$25) -> 0 | Q12: =IF($M12="Steel Open Grid Deck","",'Steel Deck'!$E$27) -> 0
A13: ="'"&$E13&"'!A1" -> 'Steel Deck (2)'!A1 | B13: =IFERROR(IF(issheetvisible(INDIRECT(A13)),"Visible","Hidden"), "ADD SHEET") -> ADD SHEET | E13: Steel Deck (2) | K13: =SUM(G13:J13) -> 0
A14: ="'"&$E14&"'!A1" -> 'Timber Deck'!A1 | B14: =IFERROR(IF(issheetvisible(INDIRECT(A14)),"Visible","Hidden"), "ADD SHEET") -> Hidden | E14: Timber Deck | F14: ='Timber Deck'!$E$18 -> 0.05 | G14: =F14*'Timber Deck'!$E$19/12 -> 0 | H14: ='Timber Deck'!$E$26*'Timber Deck'!$E$25/12 -> 0 | I14: =(('Timber Deck'!$E$24*'Timber Deck'!$E$23)+('Timber Deck'!$E$21*'Timber Deck'!$E$22))/12 -> 0 | J14: ='Timber Deck'!$E$27 -> 0 | K14: =SUM(G14:J14) -> 0 | L14: ='Timber Deck'!E19 -> 0 | P14: ='Timber Deck'!$E$25 -> 0 | Q14: ='Timber Deck'!$E$26 -> 0 | R14: ='Timber Deck'!$E$23 -> 0 | S14: ='Timber Deck'!$E$24 -> 0
A15: ="'"&$E15&"'!A1" -> 'Timber Deck (2)'!A1 | B15: =IFERROR(IF(issheetvisible(INDIRECT(A15)),"Visible","Hidden"), "ADD SHEET") -> ADD SHEET | E15: Timber Deck (2) | K15: =SUM(G15:J15) -> 0
E19: Superstructure
E20: Superstructure Name | F20: Stringer Weight (klf) | G20: Stringer Spacing (in) | H20: LLDF | I20: LL Impact | J20: Span | K20: Misc. Comp Dead Load per Beam (k/ft): | L20: Misc. Non-Comp Dead Load per Beam (k/ft): | M20: Total Weight (k/ft): | N20: Standard Beam Designation | O20: Original Standard Beam Designation Wt (klf) | P20: Calculated (per inputs) Beam Designation Wt (klf) | Q20: Cover Plate Weight (klf)
A22: ="'"&$E22&"'!A1" -> 'Steel Stringer (Simple)'!A1 | B22: =IFERROR(IF(issheetvisible(INDIRECT(A22)),"Visible","Hidden"), "ADD SHEET") -> Hidden | C22: =IF($B22 = "Visible", $E22, "") ->  | D22: =IFERROR(_xlfn._xlws.FILTER(C22:C33, C22:C33<>""),"") ->  | E22: Steel Stringer (Simple) | F22: =IFERROR(O22,P22)+Q22 -> 0 | G22: ='Steel Stringer (Simple)'!$E$21*12 -> 0 | H22: =IF(ISBLANK('Steel Stringer (Simple)'!K31),'Steel Stringer (Simple)'!$J$31,'Steel Stringer (Simple)'!K31) -> More info needed | I22: =IF(ISBLANK('Steel Stringer (Simple)'!K34),'Steel Stringer (Simple)'!$J$34,'Steel Stringer (Simple)'!K34) -> 1.3 | J22: ='Steel Stringer (Simple)'!E18 -> 0 | K22: ='Steel Stringer (Simple)'!E22 -> 0 | L22: ='Steel Stringer (Simple)'!E23 -> 0 | M22: =F22+K22+L22 -> 0 | N22: ='Steel Stringer (Simple)'!J17 -> 0 | O22: =INDEX('TX Standard Beam Shapes Table'!$A$7:$Q$1907,MATCH('Dead Load Calcs and Tables'!N22,'TX Standard Beam Shapes Table'!$A$7:$A$1907,0),17) ->  | P22: ='Steel Stringer (Simple)'!$P$44 -> 0 | Q22: =('Steel Stringer (Simple)'!AR31+'Steel Stringer (Simple)'!AR37)/144*0.49 -> 0
A23: ="'"&$E23&"'!A1" -> 'Steel Stringer (Simple) (2)'!A1 | B23: =IFERROR(IF(issheetvisible(INDIRECT(A23)),"Visible","Hidden"), "ADD SHEET") -> Hidden | C23: =IF($B23 = "Visible", $E23, "") ->  | E23: Steel Stringer (Simple) (2) | F23: =IFERROR(O23,P23)+Q23 -> 0 | G23: ='Steel Stringer (Simple) (2)'!$E$21*12 -> 0 | H23: =IF(ISBLANK('Steel Stringer (Simple) (2)'!K31),'Steel Stringer (Simple) (2)'!$J$31,'Steel Stringer (Simple) (2)'!K31) -> More info needed | I23: =IF(ISBLANK('Steel Stringer (Simple) (2)'!K34),'Steel Stringer (Simple) (2)'!$J$34,'Steel Stringer (Simple) (2)'!K34) -> 1.3 | J23: ='Steel Stringer (Simple) (2)'!E18 -> 0 | K23: ='Steel Stringer (Simple) (2)'!E22 -> 0 | L23: ='Steel Stringer (Simple) (2)'!E23 -> 0 | M23: =F23+K23+L23 -> 0 | N23: ='Steel Stringer (Simple) (2)'!J17 -> 0 | O23: =INDEX('TX Standard Beam Shapes Table'!$A$7:$Q$1907,MATCH('Dead Load Calcs and Tables'!N23,'TX Standard Beam Shapes Table'!$A$7:$A$1907,0),17) ->  | P23: ='Steel Stringer (Simple) (2)'!$P$44 -> 0 | Q23: =('Steel Stringer (Simple) (2)'!AR31+'Steel Stringer (Simple) (2)'!AR37)/144*0.49 -> 0
A24: ="'"&$E24&"'!A1" -> 'Steel Stringer (Continuous)'!A1 | B24: =IFERROR(IF(issheetvisible(INDIRECT(A24)),"Visible","Hidden"), "ADD SHEET") -> Hidden | E24: Steel Stringer (Continuous) | F24: - | G24: - | H24: - | I24: - | J24: - | K24: - | L24: - | M24: - | N24: - | O24: - | P24: -
A25: =IF(B24="Visible",E25,"") ->  | B25: =IF(A25="","","Visible") ->  | C25: =IF($B25 = "Visible", $A25, "") ->  | E25: Continuous Stringer (Span 1) | F25: =IFERROR(O25,P25) -> 0 | G25: ='Steel Stringer (Continuous)'!$S$32*12 -> 0 | H25: ='Steel Stringer (Continuous)'!$AQ$44 ->  | I25: ='Steel Stringer (Continuous)'!$AQ$41 -> 1.3 | J25: ='Steel Stringer (Continuous)'!$S$30 -> 0 | K25: ='Steel Stringer (Continuous)'!S34 -> 0 | L25: ='Steel Stringer (Continuous)'!S33 -> 0 | M25: 0 | N25: ='Steel Stringer (Continuous)'!S36 -> 0 | O25: =INDEX('TX Standard Beam Shapes Table'!$A$7:$Q$1907,MATCH('Dead Load Calcs and Tables'!N25,'TX Standard Beam Shapes Table'!$A$7:$A$1907,0),17) ->  | P25: ='Steel Stringer (Continuous)'!$AH$42 -> 0 | Q25: -
A26: =IF(B24="Visible",E26,"") ->  | B26: =IF(A26="","","Visible") ->  | C26: =IF($B26 = "Visible", $A26, "") ->  | E26: Continuous Stringer (Span 2) | F26: =IFERROR(O26,P26) -> 0 | G26: ='Steel Stringer (Continuous)'!$T$32*12 -> 0 | H26: ='Steel Stringer (Continuous)'!$AR$44 ->  | I26: ='Steel Stringer (Continuous)'!$AR$41 -> 1.3 | J26: ='Steel Stringer (Continuous)'!$T$30 -> 0 | K26: ='Steel Stringer (Continuous)'!T34 -> 0 | L26: ='Steel Stringer (Continuous)'!T33 -> 0 | M26: 0 | N26: ='Steel Stringer (Continuous)'!T36 -> 0 | O26: =INDEX('TX Standard Beam Shapes Table'!$A$7:$Q$1907,MATCH('Dead Load Calcs and Tables'!N26,'TX Standard Beam Shapes Table'!$A$7:$A$1907,0),17) ->  | P26: ='Steel Stringer (Continuous)'!$AI$42 -> 0 | Q26: -
A27: =IF(AND(B24="Visible",F27>0),E27,"") ->  | B27: =IF(A27="","","Visible") ->  | C27: =IF($B27 = "Visible", $A27, "") ->  | E27: Continuous Stringer (Span 3) | F27: 0 | G27: ='Steel Stringer (Continuous)'!$W$32*12 -> 0 | H27: ='Steel Stringer (Continuous)'!$AS$44 ->  | I27: ='Steel Stringer (Continuous)'!$AS$41 -> 1.3 | J27: ='Steel Stringer (Continuous)'!$W$30 -> 0 | K27: ='Steel Stringer (Continuous)'!W34 -> 0 | L27: ='Steel Stringer (Continuous)'!W33 -> 0 | M27: 0 | N27: ='Steel Stringer (Continuous)'!W36 -> 0 | O27: =INDEX('TX Standard Beam Shapes Table'!$A$7:$Q$1907,MATCH('Dead Load Calcs and Tables'!N27,'TX Standard Beam Shapes Table'!$A$7:$A$1907,0),17) ->  | P27: ='Steel Stringer (Continuous)'!$AJ$42 -> 0 | Q27: -
A28: =IF(AND(B24="Visible",F28>0),E28,"") ->  | B28: =IF(A28="","","Visible") ->  | C28: =IF($B28 = "Visible", $A28, "") ->  | E28: Continuous Stringer (Span 4) | F28: 0 | G28: ='Steel Stringer (Continuous)'!$Y$32*12 -> 0 | H28: ='Steel Stringer (Continuous)'!$AT$44 ->  | I28: ='Steel Stringer (Continuous)'!$AT$41 -> 1.3 | J28: ='Steel Stringer (Continuous)'!$Y$30 -> 0 | K28: ='Steel Stringer (Continuous)'!Y34 -> 0 | L28: ='Steel Stringer (Continuous)'!Y33 -> 0 | M28: 0 | N28: ='Steel Stringer (Continuous)'!Y36 -> 0 | O28: =INDEX('TX Standard Beam Shapes Table'!$A$7:$Q$1907,MATCH('Dead Load Calcs and Tables'!N28,'TX Standard Beam Shapes Table'!$A$7:$A$1907,0),17) ->  | P28: ='Steel Stringer (Continuous)'!$AK$42 -> 0 | Q28: -
A29: =IF(AND(B24="Visible",F29>0),E29,"") ->  | B29: =IF(A29="","","Visible") ->  | C29: =IF($B29 = "Visible", $A29, "") ->  | E29: Continuous Stringer (Span 5) | F29: 0 | G29: ='Steel Stringer (Continuous)'!$AB$32*12 -> 0 | H29: ='Steel Stringer (Continuous)'!$AU$44 ->  | I29: ='Steel Stringer (Continuous)'!$AU$41 -> 1.3 | J29: ='Steel Stringer (Continuous)'!$AB$30 -> 0 | K29: ='Steel Stringer (Continuous)'!AB34 -> 0 | L29: ='Steel Stringer (Continuous)'!AB33 -> 0 | M29: 0 | N29: ='Steel Stringer (Continuous)'!AB36 -> 0 | O29: =INDEX('TX Standard Beam Shapes Table'!$A$7:$Q$1907,MATCH('Dead Load Calcs and Tables'!N29,'TX Standard Beam Shapes Table'!$A$7:$A$1907,0),17) ->  | P29: ='Steel Stringer (Continuous)'!$AL$42 -> 0 | Q29: -
A30: ="'"&$E30&"'!A1" -> 'Steel Floorbeam'!A1 | B30: =IFERROR(IF(issheetvisible(INDIRECT(A30)),"Visible","Hidden"), "ADD SHEET") -> Hidden | C30: =IF($B30 = "Visible", $E30, "") ->  | E30: Steel Floorbeam | F30: 0 | G30: - | H30: - | I30: =IF('Steel Floorbeam'!K31="",'Steel Floorbeam'!J31,'Steel Floorbeam'!K31) -> 1.3 | J30: - | M30: 0 | N30: ='Steel Floorbeam'!E18 -> 0 | O30: =INDEX('TX Standard Beam Shapes Table'!$A$7:$Q$1907,MATCH('Dead Load Calcs and Tables'!N30,'TX Standard Beam Shapes Table'!$A$7:$A$1907,0),17) ->  | P30: ='Steel Floorbeam'!$E$29 -> 0 | Q30: -
A31: ="'"&$E31&"'!A1" -> 'Steel Girder (Simple) - GFS'!A1 | B31: =IFERROR(IF(issheetvisible(INDIRECT(A31)),"Visible","Hidden"), "ADD SHEET") -> Hidden | C31: =IF($B31 = "Visible", $E31, "") ->  | E31: Steel Girder (Simple) - GFS | F31: =IFERROR(O31,(P31-Q31))+('Steel Girder (Simple) - GFS'!$K$40*'Steel Girder (Simple) - GFS'!$P$57)/'Steel Girder (Simple) - GFS'!$E$18+Q31 ->  | G31: ='Steel Girder (Simple) - GFS'!E21*12 -> 0 | H31: =IF(ISBLANK('Steel Girder (Simple) - GFS'!K31),'Steel Girder (Simple) - GFS'!$J$31,'Steel Girder (Simple) - GFS'!K31) -> More info needed | I31: =IF(ISBLANK('Steel Girder (Simple) - GFS'!K34),'Steel Girder (Simple) - GFS'!$J$34,'Steel Girder (Simple) - GFS'!K34) -> 1.3 | J31: ='Steel Girder (Simple) - GFS'!E18 -> 0 | K31: ='Steel Girder (Simple) - GFS'!E22 -> 0 | L31: ='Steel Girder (Simple) - GFS'!E23 -> 0 | N31: ='Steel Girder (Simple) - GFS'!J17 -> 0 | O31: =INDEX('TX Standard Beam Shapes Table'!$A$7:$Q$1907,MATCH('Dead Load Calcs and Tables'!N31,'TX Standard Beam Shapes Table'!$A$7:$A$1907,0),17) ->  | P31: ='Steel Girder (Simple) - GFS'!$P$44+('Steel Girder (Simple) - GFS'!$K$40*'Steel Girder (Simple) - GFS'!$P$57)/'Steel Girder (Simple) - GFS'!$E$18 ->  | Q31: =('Steel Girder (Simple) - GFS'!AR31+'Steel Girder (Simple) - GFS'!AR37)/144*0.49 -> 0
A32: ="'"&$E32&"'!A1" -> 'Timber Stringer'!A1 | B32: =IFERROR(IF(issheetvisible(INDIRECT(A32)),"Visible","Hidden"), "ADD SHEET") -> Hidden | C32: =IF($B32 = "Visible", $E32, "") ->  | E32: Timber Stringer | F32: ='Timber Stringer'!$K$17*'Timber Stringer'!$K$19*'Timber Stringer'!$K$20/144 -> 0 | G32: ='Timber Stringer'!$E$23 -> 0 | H32: ='Timber Stringer'!K26 ->  | I32: ='Timber Stringer'!K27 -> 1.3 | J32: =MAX('Timber Stringer'!E19:E21) -> 0 | L32: ='Timber Stringer'!K23 -> 0 | M32: 0 | N32: Timber | O32: - | P32: - | Q32: -
A33: ="'"&$E33&"'!A1" -> 'Timber Stringer (2)'!A1 | B33: =IFERROR(IF(issheetvisible(INDIRECT(A33)),"Visible","Hidden"), "ADD SHEET") -> Hidden | C33: =IF($B33 = "Visible", $E33, "") ->  | E33: Timber Stringer (2) | F33: ='Timber Stringer (2)'!$K$17*'Timber Stringer (2)'!$K$19*'Timber Stringer (2)'!$K$20/144 -> 0 | G33: ='Timber Stringer (2)'!$E$23 -> 0 | H33: ='Timber Stringer (2)'!K26 ->  | I33: ='Timber Stringer (2)'!K27 -> 1.3 | J33: =MAX('Timber Stringer (2)'!E19:E21) -> 0 | L33: ='Timber Stringer (2)'!K23 -> 0 | M33: 0 | N33: Timber | O33: - | P33: - | Q33: -
E35: Substructure*
E36: Substructure Name | F36: Material Unit Weight (kcf) | G36: Cap Width (in) | H36: Cap Height (in) | I36: Cap Weight (klf) | J36: Cap Moment of Inertia (in4) | K36: Cap Length (ft) | L36: Standard Beam Designation | M36: Original Standard Beam Designation Wt (klf) | N36: Calculated (per inputs) Beam Designation Wt (klf)
A38: ="'"&$E38&"'!A1" -> 'Concrete Substructure'!A1 | B38: =IFERROR(IF(issheetvisible(INDIRECT(A38)),"Visible","Hidden"), "ADD SHEET") -> Hidden | C38: =IF($B38 = "Visible", $E38, "") ->  | D38: =IFERROR(_xlfn._xlws.FILTER(C38:C42, C38:C42<>""),"") ->  | E38: Concrete Substructure
A39: ="'"&$E39&"'!A1" -> 'Timber Cap'!A1 | B39: =IFERROR(IF(issheetvisible(INDIRECT(A39)),"Visible","Hidden"), "ADD SHEET") -> Hidden | C39: =IF($B39 = "Visible", $E39, "") ->  | E39: Timber Cap | F39: ='Timber Cap'!E20 -> 0.05 | G39: ='Timber Cap'!E21 -> 0 | H39: ='Timber Cap'!E22 -> 0 | I39: ='Timber Cap'!K23 -> 0 | J39: ='Timber Cap'!K31*'Timber Cap'!E22/2 ->  | K39: -
A40: ="'"&$E40&"'!A1" -> 'Timber Cap (2)'!A1 | B40: =IFERROR(IF(issheetvisible(INDIRECT(A40)),"Visible","Hidden"), "ADD SHEET") -> Hidden | C40: =IF($B40 = "Visible", $E40, "") ->  | E40: Timber Cap (2) | F40: ='Timber Cap (2)'!E20 -> 0.05 | G40: ='Timber Cap (2)'!E21 -> 0 | H40: ='Timber Cap (2)'!E22 -> 0 | I40: ='Timber Cap (2)'!K23 -> 0 | J40: ='Timber Cap (2)'!K31*'Timber Cap (2)'!E22/2 ->  | K40: -
A41: ="'"&$E41&"'!A1" -> 'Steel Cap'!A1 | B41: =IFERROR(IF(issheetvisible(INDIRECT(A41)),"Visible","Hidden"), "ADD SHEET") -> Hidden | C41: =IF($B41 = "Visible", $E41, "") ->  | E41: Steel Cap | F41: 0.49 | G41: - | H41: - | I41: =IFERROR(M41,N41) -> 0 | J41: ='Steel Cap'!$AA$77 ->  | K41: ='Steel Cap'!E28 -> 0 | L41: ='Steel Cap'!E18 -> 0 | M41: =INDEX('TX Standard Beam Shapes Table'!$A$7:$Q$1907,MATCH('Dead Load Calcs and Tables'!L41,'TX Standard Beam Shapes Table'!$A$7:$A$1907,0),17) ->  | N41: ='Steel Cap'!BL27 -> 0
A42: ="'"&$E42&"'!A1" -> 'Steel Cap (2)'!A1 | B42: =IFERROR(IF(issheetvisible(INDIRECT(A42)),"Visible","Hidden"), "ADD SHEET") -> Hidden | C42: =IF($B42 = "Visible", $E42, "") ->  | E42: Steel Cap (2) | F42: 0.49 | G42: - | H42: - | I42: =IFERROR(M42,N42) -> 0 | J42: ='Steel Cap (2)'!$AA$77 ->  | K42: ='Steel Cap (2)'!E28 -> 0 | L42: ='Steel Cap (2)'!E18 -> 0 | M42: =INDEX('TX Standard Beam Shapes Table'!$A$7:$Q$1907,MATCH('Dead Load Calcs and Tables'!L42,'TX Standard Beam Shapes Table'!$A$7:$A$1907,0),17) ->  | N42: ='Steel Cap (2)'!BL27 -> 0
E43: *Piles not included
E45: Floorbeam Stringer Dropdown
E47: =E22 -> Steel Stringer (Simple)
E48: =E23 -> Steel Stringer (Simple) (2)
E50: Continuous Stringer (Span 1)
E51: Continuous Stringer (Span 2)
E52: Continuous Stringer (Span 3)
E53: Continuous Stringer (Span 4)
E54: Continuous Stringer (Span 5)
E57: Timber Stringer
E58: Timber Stringer (2)

Sheet Concrete Deck (hidden)
B1: TBLRP-LFR Spreadsheet | M1: UPDATED 2/14/24
B2: Concrete Deck without Plans
E4: Rating must be performed if concrete deck is <6” thick or the condition rating is 4 or less. | H4: Date: | K4: =TODAY() -> 2024-11-13 | Q4: RECOMMENDED UNIT WEIGHTS FOR FILL AND WEARING SURFACE MATERIALS
H5: Rating Engineer's Initials: | K5: =eng_initials -> TxDOT
H6: Version: | K6: =version_no -> 4.0.5 | Q6: Material | R6: Unit Weight
B7: Bridge Information | Q7: Concrete | R7: 0.15 | S7: kcf
B8: District: | C8: =district -> Tyler (10) | G8: AADT ®: | H8: =AADT -> 50 | J8: # of Lanes: | K8: =no_lanes -> 1 | Q8: Steel | R8: 0.49 | S8: kcf
B9: County: | C9: =county -> Anderson (001) | G9: Truck % (1% MIN): | H9: =truck_pct -> 0.01 | Q9: Wood/Timber | R9: 0.05 | S9: kcf
B10: Structure # : | C10: =struct_no -> CCCC-SS-SSS | G10: EV Daily Crossing: | H10: =EV_crossing -> 1 | J10: (1 or 10) One Direction | Q10: Soil (Light) | R10: 0.1 | S10: kcf
B11: Location: | C11: =br_descrip -> xx Over xx | G11: Year Built: | H11: =yr_built -> 2000 | Q11: Soil (Medium) | R11: 0.11 | S11: kcf
G12: Deck Descr: | Q12: Soil (Heavy) | R12: 0.12 | S12: kcf
Q13: Gravel | R13: 0.125 | S13: kcf
B14: Deck Inputs | Q14: Asphalt | R14: 0.145 | S14: kcf
B16: DATA INPUT TABLE | H16: RECOMMENDED f'c OF CONCRETE DECK
B17: Deck Condition Rating:
B18: Deck Thickness (in): | H18: Good | J18: 2.5 | K18: ksi
B19: Assumed Eff. Deck Thickness (d) (in): | H19: Fair | J19: 1.5 | K19: ksi
B20: f'c (ksi): | H20: Poor | J20: 1 | K20: ksi
B21: LL Impact: | E21: 1.3
H22: TIRE CONTACT AREA
I23: Length (c1): | J23: 10 | K23: in
B24: DEAD LOAD INPUTS | I24: Width (c2): | J24: 20 | K24: in
B25: Wearing Surface Thickness (in): | I25: βc: | J25: =J24/J23 -> 2
B26: Wearing Surface Material Unit Weight (kcf):
B27: Fill Material Depth (in):
B28: Fill Material Unit Weight (kcf):
B29: Misc. Dead Load (ksf):
B35: Punching Shear Analysis
B37: Concrete Deck Shear Capactiy (Vc) | G37: Live Load Punching Shear (VLL)
B38: Vc = (.8 + 2 / βc) * √(f'c) < 1.8 * √(f'c) | G38: VLL = V / (bo * d) | I38: Truck | J38: Max Tire Weight (V) (k) | K38: VLL w/o impact (ksi)
D39: =IF(E20=0,"",IFERROR(MIN((0.8+2/J25)*SQRT(E20*1000)/1000,1.8*SQRT(E20*1000)/1000),"")) ->  | E39: ksi | Q39: EV LIVE LOAD FACTOR | U39: LFR Load Factors
R40: EV Crossing = | S40: =$D$11 -> 0 | U40: A1 = | V40: 1.3
B41: Punching Shear Perimeter (bo): | G41: H: | J41: 16 | K41: =IFERROR((J41/($D$43*$E$19)),"") ->  | R41: ADTT = | S41: =$H$9*$H$10 -> 0.01 | U41: A2-INV = | V41: 2.17
B42: bo = 2 * (c1 + c2) +4 * d | G42: HS: | J42: 16 | R42: EV3 Operating LL Factor (1 crossing) = | S42: 1.1 | U42: A2-OP = | V42: 1.3
D43: =IF(E19=0,"",IFERROR((2*(J23+J24)+4*E19),"")) ->  | E43: in | G43: SU4: | J43: 8.5 | R43: EV2 Operating LL Factor (1 crossing) = | S43: =IF(AND(S41>0,S41<1000),1.1,IF(OR(S41=0,S41>6000),1.3,(1.3-1.1)*(S41-1000)/5000+1.1)) -> 1.1
G44: SU5: | J44: 8.5 | R44: EV3 Operating LL Factor (10 crossing) = | S44: =IF(AND(S41>0,S41<1000),1.1,IF(OR(S41=0,S41>6000),1.2,(1.2-1.1)*(S41-1000)/5000+1.1)) -> 1.1 | AF44: HS Inventory: | AH44: = (Vc - 1.3*MDL)/(2.17*MLL) = | AL44: ="("&FIXED($D$39,3)&"-1.3*0)/(2.17*"&FIXED($K$42,3)&")=" ->  | AM44: = | AN44: =$D$39/($V$41*$E$21*$K$42) ->  | AO44: R.F.
G45: SU6: | J45: 8.5 | R45: EV2 Operating LL Factor (10 crossing) = | S45: =IF(AND(S41>0,S41<1000),1.1,IF(OR(S41=0,S41>6000),1.5,(1.5-1.1)*(S41-1000)/5000+1.1)) -> 1.1 | AF45: HS Operating | AH45: = (Vc - 1.3*MDL)/(1.3*MLL) = | AJ45: ="("&$D$39&"-1.3*0)/(1.3*"&$K$42&")=" -> (-1.3*0)/(1.3*)= | AM45: = | AN45: =$D$39/($V$41*$E$21*$K$42) ->  | AO45: R.F.
G46: SU7: | J46: 8.5 | R46: Min lanes = | S46: =$K$9 -> 0
G47: T3: | J47: 8.5 | K47: =IFERROR((J47/($D$43*$E$19)),"") ->  | R47: EV2 Operating LL Factor = | S47: =IF(S46<2,1.3,IF(S40=1,S43,S45)) -> 1.3
G48: T3S2: | J48: 7.75 | R48: EV3 Operating LL Factor = | S48: =IF(S46<2,1.3,IF(S40=1,S42,S44)) -> 1.3
G49: T3-3: | J49: 8
G50: NRL: | J50: 8.5
G51: EV2: | J51: 16.75
G52: EV3: | J52: 15.5
B57: Additional Notes
G58: € HS Ratings
G59: HS Inventory: | J59: =IFERROR((36*($D$39/($V$41*$E$21*$K42))/(36/20)),"") ->  | K59: =IFERROR($D$39/($V$41*$E$21*$K42),"") -> 
G60: HS Operating: | J60: =IFERROR((36*($D$39/($V$42*$E$21*$K42))/(36/20)),"") ->  | K60: =IFERROR($D$39/($V$42*$E$21*$K42),"") -> 
G61: ¥£ H RATING
G62: H Inventory: | J62: =IFERROR((36*($D$39/($V$41*$E$21*$K41))/(36/20)),"") ->  | K62: =IFERROR($D$39/($V$41*$E$21*$K41),"") -> 
G63: H Operating: | J63: =IFERROR((36*($D$39/($V$42*$E$21*$K41))/(36/20)),"") ->  | K63: =IFERROR($D$39/($V$42*$E$21*$K41),"") -> 
G64: AASHTO LEGAL LOADS RATING FACTORS
G65: SU4 Operating: | H65: =IFERROR(($D$39/($V$42*$E$21*$K43)),"") ->  | J65: TYPE 3: | K65: =IFERROR(($D$39/($V$42*$E$21*$K47)),"") -> 
G66: SU5 Operating: | H66: =IFERROR(($D$39/($V$42*$E$21*$K44)),"") ->  | J66: TYPE 3S2: | K66: =IFERROR(($D$39/($V$42*$E$21*$K48)),"") -> 
G67: SU6 Operating: | H67: =IFERROR(($D$39/($V$42*$E$21*$K45)),"") ->  | J67: TYPE 3-3: | K67: =IFERROR(($D$39/($V$42*$E$21*$K49)),"") -> 
B68: € - | C68: Punching Shear Controls Ratings | G68: SU7 Operating: | H68: =IFERROR(($D$39/($V$42*$E$21*$K46)),"") ->  | J68: NRL: | K68: =IFERROR(($D$39/($V$42*$E$21*$K50)),"") -> 
B69: ¥ - | C69: Based on H-20 Rating | G69: EMERGENCY VEHICLE (EV) RATING FACTORS
B70: £ - | C70: Punching Shear Controls Ratings | G70: EV2 Operating: | H70: =IFERROR(($D$39/($S$47*$E$21*$K51)),"") ->  | J70: EV3 Operating: | K70: =IFERROR(($D$39/($S$48*$E$21*$K52)),"") -> 
G71: See Formula 6-1a (MCEB) for the general Rating Formula.
B72: *** DO NOT DISCLOSE *** THIS INFORMATION IS CONFIDENTIAL UNDER THE TEXAS HOMELAND SECURITY ACT AND 23 USC SECTION 409, SAFETY SENSITIVE INFORMATION

Sheet Steel Deck (hidden)
B1: TBLRP-LFR Spreadsheet
B2: Steel Deck | P2: Deck Inputs | V2: Steel Corrugated Deck | AM2: Steel Corrugated Deck | AZ2: Simple or Continuous | BC2: Data Input Table Options
P3: Steel Corrugated Deck | V3: Deck Capacity: | AM3: Steel Corrugated Deck | AN3: P x H x Thickness | AT3: Steel Weight | AU3: Section Modulus | AV3: Allowable Moment | AW3: Moment of Inertia | AZ3: Simple | BC3: Steel Corrugated Deck | BD3: Steel Plate Deck | BE3: Steel Open Grid Deck
I4: Date: | L4: =TODAY() -> 2024-11-13 | P4: =BC4 -> Designation: | Q4: = | R4: =IF($E$17=$BC$3,$E$18,"-") -> - | W4: Deck capacity (no section loss) = | X4: =R8*R5/12 ->  | Y4: k-in/in | Z4: Fy*S | AN4: Pitch/Width | AP4: Height | AR4: Thickness | AS4: Gage | AZ4: Continuous | BB4: 1 | BC4: Designation: | BD4: Designation: | BE4: Designation:
I5: Rating Engineer's Initials: | L5: =eng_initials -> TxDOT | P5: Fy (ksi): | Q5: = | R5: =IF($E$17=$BC$3,$E$19,"-") -> - | W5: Reduction factor for section loss = | X5: =1-$E$23 -> 1 | AN5: (In.) | AP5: (In.) | AR5: (In.) | AT5: (ksf) | AU5: (in3/ft) | AV5: (in-kip) | AW5: (in^4/ft) | BB5: 2 | BC5: Fy (ksi): | BD5: Fy (ksi): | BE5: Fy (ksi):
I6: Version: | L6: =version_no -> 4.0.5 | P6: Original Thickness (in): | Q6: = | R6: =IF($E$17=$BC$3,$E$20,"-") -> - | W6: Deck capacity (including section loss) = | X6: =X4*X5 ->  | Y6: k-in/in | Z6: Fy*S*(1-SL%) = | AL6: From TBLRP | AM6: 6 x 2 x 0.109 | AN6: 6 | AO6: x | AP6: 2 | AQ6: x | AR6: 0.109 | AS6: 12 | AT6: 0.006 | AU6: 1.176 | AV6: 39.3 | BB6: 3 | BC6: Original Thickness (in): | BD6: Original Thickness (in): | BE6: Main Beam (MB) Depth (in):
B7: Bridge Information | P7: Weight (ksf): | Q7: = | R7: =IF($E$17=$BC$3,$E$21,"-") -> - | AL7: From TBLRP | AM7: 6 x 2 x 0.134 | AN7: 6 | AO7: x | AP7: 2 | AQ7: x | AR7: 0.134 | AS7: 10 | AT7: 0.008 | AU7: 1.488 | AV7: 49.8 | BB7: 4 | BC7: Weight (ksf): | BD7: Original Weight (ksf): | BE7: Main Beam (MB) thickness (in):
B8: District: | C8: =district -> Tyler (10) | H8: AADT ®: | I8: =AADT -> 50 | K8: # of Lanes: | L8: =no_lanes -> 1 | P8: Original Sx (in^3/ft): | Q8: = | R8: =IF($E$17=$BC$3,$E$22,"-") -> - | V8: Dead Load Moments | AL8: From TBLRP | AM8: 6 x 2 x 0.179 | AN8: 6 | AO8: x | AP8: 2 | AQ8: x | AR8: 0.179 | AS8: 7 | AT8: 0.011 | AU8: 1.944 | AV8: 64.9 | BB8: 5 | BC8: Original Sx (in^3/ft): | BD8: Original Sx (in^3/ft): | BE8: Main Beam (MB) Spacing (in):
B9: County: | C9: =county -> Anderson (001) | H9: Truck % (1% MIN): | I9: =truck_pct -> 0.01 | P9: Section Loss (%): | Q9: = | R9: =IF($E$17=$BC$3,$E$23,"-") -> - | V9: Corrugated Deck- | W9: Simple | X9: max + M = | Y9: =0.125*($R$7/144)*$F$32^2 ->  | Z9: k-in/in | AA9: 0.125*w*l^2 | AL9: From Contech | AM9: 6 x 2 x 0.105 | AN9: 6 | AO9: x | AP9: 2 | AQ9: x | AR9: 0.105 | AS9: 12 | AT9: 0.00598 | AU9: 1.062 | AW9: 1.151 | BB9: 6 | BC9: Section Loss (%): | BD9: Section Loss (%): | BE9: MB Thickness Section Loss (%):
B10: Structure # : | C10: =struct_no -> CCCC-SS-SSS | H10: EV Daily Crossing: | I10: =EV_crossing -> 1 | K10: (1 or 10) One Direction | P10: Simple or Continuous: | Q10: = | R10: =IF($E$17=$BC$3,$E$24,"-") -> - | W10: Continuous | X10: max + M = | Y10: =0.08*($R$7/144)*$F$32^2 ->  | Z10: k-in/in | AA10: 0.08*w*l^2 | AL10: From Contech | AM10: 6 x 2 x 0.135 | AN10: 6 | AO10: x | AP10: 2 | AQ10: x | AR10: 0.135 | AS10: 10 | AT10: 0.00763 | AU10: 1.342 | AW10: 1.466 | BB10: 7 | BC10: Simple or Continuous: | BD10: Simple or Continuous: | BE10: Supplemental Bar Depth (in):
B11: Location: | C11: =br_descrip -> xx Over xx | H11: Year Built: | I11: =yr_built -> 2000 | P11: Fill and Wearing Surface Depth (in): | Q11: = | R11: =IF($E$17=$BC$3,$E$25,"-") -> - | AL11: From Contech | AM11: 6 x 2 x 0.179 | AN11: 6 | AO11: x | AP11: 2 | AQ11: x | AR11: 0.179 | AS11: 7 | AT11: 0.01006 | AU11: 1.732 | AW11: 1.92 | BB11: 8 | BC11: Fill and Wearing Surface Depth (in): | BD11: Fill and Wearing Surface Depth (in): | BE11: Supplemental Bar Thickness (in):
H12: Deck Descr: | P12: Fill and Wearing Surface Material: | Q12: = | R12: =IF($E$17=$BC$3,$E$26,"-") -> - | V12: Fill material - | X12: w = | Y12: =(R13*R11/12)/144 ->  | Z12: k/in | AL12: From Contech | AM12: 9 x 3 x 0.164 | AN12: 9 | AO12: x | AP12: 3 | AQ12: x | AR12: 0.164 | AS12: 8 | AT12: 0.0105 | AU12: 2.906 | AW12: 4.68 | BB12: 9 | BC12: Fill and Wearing Surface Material: | BD12: Fill and Wearing Surface Material: | BE12: Supplemental Bars Btw Each MB:
P13: Fill and Wearing Surface Unit Weight (kcf): | Q13: = | R13: =IF($E$17=$BC$3,$E$27,"-") -> - | W13: Simple | X13: max + M = | Y13: =0.125*Y12*F32^2 ->  | Z13: k-in/in | AA13: 0.125*w*l^2 | AL13: From Contech | AM13: 9 x 3 x 0.179 | AN13: 9 | AO13: x | AP13: 3 | AQ13: x | AR13: 0.179 | AS13: 7 | AT13: 0.0115 | AU13: 3.173 | AW13: 5.12 | BB13: 10 | BC13: Fill and Wearing Surface Unit Weight (kcf): | BD13: Fill and Wearing Surface Unit Weight (kcf): | BE13: Total Weight (ksf):
B14: Deck Inputs | P14: Misc. Dead Load (ksf): | Q14: = | R14: =IF($E$17=$BC$3,$E$28,"-") -> - | W14: Continuous | X14: max + M = | Y14: =0.08*Y12*F32^2 ->  | Z14: k-in/in | AA14: 0.08*w*l^2 | AL14: From Contech | AM14: 9 x 3 x 0.209 | AN14: 9 | AO14: x | AP14: 3 | AQ14: x | AR14: 0.209 | AS14: 5 | AT14: 0.0135 | AU14: 3.68 | AW14: 5.973 | BB14: 11 | BC14: Misc. Dead Load (ksf): | BD14: Misc. Dead Load (ksf): | BE14: Original Sx (in^3/ft): | BF14: <<misc loads need to be in ksf for equations to be right
P15: Steel Plate Deck | W15: Continuous | AL15: From Contech | AM15: 9 x 3 x 0.239 | AN15: 9 | AO15: x | AP15: 3 | AQ15: x | AR15: 0.239 | AS15: 3 | AT15: 0.0153 | AU15: 4.16 | AW15: 6.84 | BB15: 12 | BE15: Misc. Dead Load (ksf):
B16: DATA INPUT TABLE | H16: TIRE CONTACT AREA (in)** | P16: =BD4 -> Designation: | Q16: = | R16: =IF($E$17=$BD$3,$E$18,"-") -> - | AL16: From Contech | AM16: 9 x 3 x 0.313 | AN16: 9 | AO16: x | AP16: 3 | AQ16: x | AR16: 0.313 | AS16: 5/16" | AT16: 0.0198 | AU16: 5.316 | AW16: 8.751 | BB16: 13
B17: Deck Type | H17: Rear | J17: AASHTO | K17: Through Fill | L17: Total | P17: Fy (ksi): | Q17: = | R17: =IF($E$17=$BD$3,$E$19,"-") -> - | V17: Miscellaneous Loads - | X17: w = | Y17: =$R$14/144 ->  | Z17: k/in | AL17: From Contech | AM17: 9 x 3 x 0.375 | AN17: 9 | AO17: x | AP17: 3 | AQ17: x | AR17: 0.375 | AS17: 3/8" | AT17: 0.0238 | AU17: 6.276 | AW17: 10.331 | BB17: 14
B18: =IFERROR(HLOOKUP($E$17,$BC$3:$BE$19,$BB5,0),"") ->  | H18: =IF($E$17=$BC$3,"Width",IF($E$17=$BD$3,"HS Width",IF($E$17=$BE$3,"Width",""))) ->  | J18: =IF($E$17=$BC$3,$W$25,IF($E$17=$BD$3,$W$99,IF($E$17=$BE$3,$Y$165,""))) ->  | K18: =IF($E$17=$BC$3,$X$25,IF($E$17=$BD$3,$X$99,IF($E$17=$BE$3,"",""))) ->  | L18: =IF($E$17=$BC$3,$Y$25,IF($E$17=$BD$3,$Y$99,IF($E$17=$BE$3,$Y$165,""))) ->  | P18: Original Thickness (in): | Q18: = | R18: =IF($E$17=$BD$3,$E$20,"-") -> - | W18: Simple | X18: max + M = | Y18: =0.125*Y17*F32^2 ->  | Z18: k-in/in | AA18: 0.125*w*l^2 | AL18: From Contech | AM18: 12 x 4 x 0.149 | AN18: 12 | AO18: x | AP18: 4 | AQ18: x | AR18: 0.149 | AS18: 9 | AT18: 0.00959 | AU18: 3.65 | AW18: 8.62 | BB18: 15
B19: =IFERROR(HLOOKUP($E$17,$BC$3:$BE$19,$BB6,0),"") ->  | H19: =IF($E$17=$BC$3,"Length",IF($E$17=$BD$3,"SHV/EV Width",IF($E$17=$BE$3,"HS Length",""))) ->  | J19: =IF($E$17=$BC$3,$W$26,IF($E$17=$BD$3,$W$98,IF($E$17=$BE$3,$X$165,""))) ->  | K19: =IF($E$17=$BC$3,$X$26,IF($E$17=$BD$3,$X$98,IF($E$17=$BE$3,"",""))) ->  | L19: =IF($E$17=$BC$3,$Y$26,IF($E$17=$BD$3,$Y$98,IF($E$17=$BE$3,$X$165,""))) ->  | P19: =BD7 -> Original Weight (ksf): | Q19: = | R19: =IF($E$17=$BD$3,$E$21,"-") -> - | W19: Continuous | X19: max + M = | Y19: =0.08*Y17*F32^2 ->  | Z19: k-in/in | AA19: 0.08*w*l^2 | AL19: From Contech | AM19: 12 x 4 x 0.164 | AN19: 12 | AO19: x | AP19: 4 | AQ19: x | AR19: 0.164 | AS19: 8 | AT19: 0.01055 | AU19: 4.01 | AW19: 9.48 | BB19: 16
B20: =IFERROR("*"&HLOOKUP($E$17,$BC$3:$BE$19,$BB7,0),"") ->  | H20: =IF($E$17=$BC$3,"",IF($E$17=$BD$3,"Length",IF($E$17=$BE$3,"SHV Length",""))) ->  | J20: =IF($E$17=$BC$3,"",IF($E$17=$BD$3,$Z$99,IF($E$17=$BE$3,$X$166,""))) ->  | K20: =IF($E$17=$BC$3,"",IF($E$17=$BD$3,$AA$99,IF($E$17=$BE$3,"",""))) ->  | L20: =IF($E$17=$BC$3,"",IF($E$17=$BD$3,$AB$99,IF($E$17=$BE$3,$X$166,""))) ->  | P20: =BD8 -> Original Sx (in^3/ft): | Q20: = | R20: =IF($E$17=$BD$3,$E$22,"-") -> - | AL20: From Contech | AM20: 12 x 4 x 0.179 | AN20: 12 | AO20: x | AP20: 4 | AQ20: x | AR20: 0.179 | AS20: 7 | AT20: 0.0115 | AU20: 4.34 | AW20: 10.34 | BB20: 17
B21: =IFERROR(HLOOKUP($E$17,$BC$3:$BE$19,$BB8,0),"") ->  | H21: =IF($E$17=$BC$3,"",IF($E$17=$BD$3,"",IF($E$17=$BE$3,"EV2 Length",""))) ->  | J21: =IF($E$17=$BC$3,"",IF($E$17=$BD$3,"",IF($E$17=$BE$3,$X$170,""))) ->  | K21: =IF($E$17=$BC$3,"",IF($E$17=$BD$3,"",IF($E$17=$BE$3,"",""))) ->  | L21: =IF($E$17=$BC$3,"",IF($E$17=$BD$3,"",IF($E$17=$BE$3,$X$170,""))) ->  | P21: =BD9 -> Section Loss (%): | Q21: = | R21: =IF($E$17=$BD$3,$E$23,"-") -> -
H22: =IF($E$17=$BC$3,"",IF($E$17=$BD$3,"",IF($E$17=$BE$3,"EV3 Length",""))) ->  | J22: =IF($E$17=$BC$3,"",IF($E$17=$BD$3,"",IF($E$17=$BE$3,$X$171,""))) ->  | K22: =IF($E$17=$BC$3,"",IF($E$17=$BD$3,"",IF($E$17=$BE$3,"",""))) ->  | L22: =IF($E$17=$BC$3,"",IF($E$17=$BD$3,"",IF($E$17=$BE$3,$X$171,""))) ->  | P22: Simple or Continuous: | Q22: = | R22: =IF($E$17=$BD$3,$E$24,"-") -> - | V22: Live Load Moments (Rear Axle) | AM22: Steel Open Grid Deck
H23: Front | J23: AASHTO | K23: Through Fill | L23: Total | P23: Fill and Wearing Surface Depth (in): | Q23: = | R23: =IF($E$17=$BD$3,$E$25,"-") -> - | V23: Tire contact area: (rear axle) | AN23: Section Modulus Top | AO23: Section Modulus Bottom | AP23: Approximate Weight | AQ23: Main Beam (MB) depth | AR23: Main Beam (MB) spacing | AS23: Main Beam (MB) weight | AT23: Cross Bar (C'Bar) depth | AU23: Cross Bar (C'Bar) spacing | AV23: Cross Bar (C'Bar) thickness | AW23: Supplemental Bar depth | AX23: Supplemental Bar thickness | AY23: Supplemental Bars btw each MB
H24: =IF($E$17=$BC$3,"Width",IF($E$17=$BD$3,"Width",IF($E$17=$BE$3,"Width",""))) ->  | J24: =IF($E$17=$BC$3,$W$43,IF($E$17=$BD$3,$W$116,IF($E$17=$BE$3,$Y$179,""))) ->  | K24: =IF($E$17=$BC$3,$X$43,IF($E$17=$BD$3,$X$116,IF($E$17=$BE$3,"",""))) ->  | L24: =IF($E$17=$BC$3,$Y$43,IF($E$17=$BD$3,$Y$116,IF($E$17=$BE$3,$Y$179,""))) ->  | P24: Fill and Wearing Surface Material: | Q24: = | R24: =IF($E$17=$BD$3,$E$26,"-") -> - | W24: per AASHTO 3.30 | X24: add for fill | Y24: USE
H25: =IF($E$17=$BC$3,"Length",IF($E$17=$BD$3,"Length",IF($E$17=$BE$3,"HS/SHV Length",""))) ->  | J25: =IF($E$17=$BC$3,$W$44,IF($E$17=$BD$3,$W$117,IF($E$17=$BE$3,$X$179,""))) ->  | K25: =IF($E$17=$BC$3,$X$44,IF($E$17=$BD$3,$X$117,IF($E$17=$BE$3,"",""))) ->  | L25: =IF($E$17=$BC$3,$Y$44,IF($E$17=$BD$3,$Y$117,IF($E$17=$BE$3,$X$179,""))) ->  | P25: Fill and Wearing Surface Unit Weight (kcf): | Q25: = | R25: =IF($E$17=$BD$3,$E$27,"-") -> - | V25: width = | W25: =IF($K$33<>"",$K$33,20) -> 20 | X25: =2*R11 ->  | Y25: =W25+X25 ->  | Z25: inches
H26: =IF($E$17=$BC$3,"",IF($E$17=$BD$3,"",IF($E$17=$BE$3,"EV Length",""))) ->  | J26: =IF($E$17=$BC$3,"",IF($E$17=$BD$3,"",IF($E$17=$BE$3,$X$184,""))) ->  | K26: =IF($E$17=$BC$3,"",IF($E$17=$BD$3,"",IF($E$17=$BE$3,"",""))) ->  | L26: =IF($E$17=$BC$3,"",IF($E$17=$BD$3,"",IF($E$17=$BE$3,$X$184,""))) ->  | P26: Misc. Dead Load (ksf): | Q26: = | R26: =IF($E$17=$BD$3,$E$28,"-") -> - | V26: length = | W26: =IF($L$33<>"",$L$33,10) -> 10 | X26: =2*R11 ->  | Y26: =W26+X26 ->  | Z26: inches | AA26: =IF(Y26<48,"OK-Less than 48","more than 48, wheel loads overlap!!!") -> 
P27: Steel Open Grid Deck | V27: Truck | W27: Max. Wheel Load (k) | X27: Is calculated deck span between flange tips < wheel width? | Y27: load to top of deck(k/in) | Z27: R1 | AA27: a | AB27: + M (k-in/in) | AN27: (in3/ft) | AO27: (in3/ft) | AP27: (ksf) | AQ27: (in) | AR27: (in) | AS27: (klf) | AT27: (in) | AU27: (in) | AV27: (in) | AW27: (in) | AX27: (in) | AY27: (each)
P28: =BE4 -> Designation: | Q28: = | R28: =IF($E$17=$BE$3,$E$18,"-") -> - | AM28: Nonstandard Grid
P29: Fy (ksi): | Q29: = | R29: =IF($E$17=$BE$3,$E$19,"-") -> - | AM29: 5" 4-Way HD Modified | AN29: 5.588 | AO29: 8.1 | AP29: 0.0258 | AQ29: 5.1875 | AR29: 3.75 | AS29: 0.0053 | AT29: 2.5 | AU29: 4 | AV29: 0.25 | AW29: 1 | AX29: 0.25 | AY29: 1
B30: *Get designated section properties from the table when applicable. | P30: Main Beam (MB) Depth (in): | Q30: = | R30: =IF($E$17=$BE$3,$E$20,"-") -> - | V30: H/HS | W30: 16 | X30: =IF($F$34<$W$25,"YES","NO") -> YES | Y30: =IF(X30="YES","-",W30/$Y$25) -> - | Z30: =IF(X30="YES","-",W30/2) -> - | AA30: =IF(X30="YES","-",($F$35-$Y$25)/2) -> - | AB30: =IF(X30="YES","-",(Z30*(AA30+(Z30/(2*Y30))))/$Y$26) -> - | AC30: - assuming that the wheel width will be less than the girder spacing, moments will be calculated based on a simple beam with a uniform load partially distributed. (Mu = R1*(a+(R1/2w))). | AM30: 5" 4-Way Modified | AN30: 4.038 | AO30: 4.321 | AP30: 0.0185 | AQ30: 5.1875 | AR30: 7.5 | AS30: 0.0053 | AT30: 2.5 | AU30: 4 | AV30: 0.25 | AW30: 1 | AX30: 0.25 | AY30: 2
B31: DATA FOR LIVE LOAD DISTRIBUTION | H31: TIRE CONTACT AREA OVERRIDE (in) | P31: Main Beam (MB) thickness (in): | Q31: = | R31: =IF($E$17=$BE$3,$E$21,"-") -> - | V31: SU4/SU5/NRL | W31: 8.5 | X31: =IF($F$34<$W$25,"YES","NO") -> YES | Y31: =IF(X31="YES","-",W31/$Y$25) -> - | Z31: =IF(X31="YES","-",W31/2) -> - | AA31: =IF(X31="YES","-",($F$35-$Y$25)/2) -> - | AB31: =IF(X31="YES","-",(Z31*(AA31+(Z31/(2*Y31))))/$Y$26) -> - | AM31: 5" RB 4.2M | AN31: 6.421 | AO31: 7.889 | AP31: 0.0254 | AQ31: 5.1875 | AR31: 4 | AS31: 0.0053 | AT31: 2.5 | AU31: 4 | AV31: 0.25 | AW31: 1 | AX31: 0.25 | AY31: 2
B32: Stringer Spacing (in): | K32: Width | L32: Length | P32: Main Beam (MB) Spacing (in): | Q32: = | R32: =IF($E$17=$BE$3,$E$22,"-") -> - | V32: SU6/SU7 | W32: 8.5 | X32: YES | Y32: - | Z32: - | AA32: - | AB32: - | AM32: 5" RB 6.2M | AN32: 4.281 | AO32: 5.26 | AP32: 0.0192 | AQ32: 5.1875 | AR32: 6 | AS32: 0.0053 | AT32: 2.5 | AU32: 4 | AV32: 0.25 | AW32: 1 | AX32: 0.25 | AY32: 2
E33: Flange Width (in): | H33: All Trucks Rear | P33: MB Thickness Section Loss (%): | Q33: = | R33: =IF($E$17=$BE$3,$E$23,"-") -> - | V33: T3 | W33: 8.5 | X33: =IF($F$34<$W$25,"YES","NO") -> YES | Y33: - | Z33: - | AA33: - | AB33: - | AM33: 5" RB 8.2M | AN33: 3.219 | AO33: 3.955 | AP33: 0.0164 | AQ33: 5.1875 | AR33: 8 | AS33: 0.0053 | AT33: 2.5 | AU33: 4 | AV33: 0.25 | AW33: 1 | AX33: 0.25 | AY33: 2
E34: Calculated Deck Span Between Flange Tips (in): | F34: =F32-F33 -> 0 | H34: All Trucks Front | P34: Supplemental Bar Depth (in): | Q34: = | R34: =IF($E$17=$BE$3,E24,"-") -> - | V34: T3S2 | W34: 7.75 | X34: =IF($F$34<$W$25,"YES","NO") -> YES | Y34: - | Z34: - | AA34: - | AB34: -
E35: Calculated Deck Span (in): | F35: =IF(E17=$BE$3,F34+E20,F32-F33/2) -> 0 | H35: ="**Tire contact areas referenced in "&IF(E17=P3,"AASHTO 3.30",IF(E17=P15,"AASHTO 10.41.2",IF(E17=P27,"AASHTO 3.27.3",""))) -> **Tire contact areas referenced in | P35: Supplemental Bar Thickness (in): | Q35: = | R35: =IF($E$17=$BE$3,$E$25,"-") -> - | V35: T3-3 | W35: 8 | X35: =IF($F$34<$W$25,"YES","NO") -> YES | Y35: - | Z35: - | AA35: - | AB35: -
P36: =BE12 -> Supplemental Bars Btw Each MB: | Q36: = | R36: =IF($E$17=$BE$3,$E$26,"-") -> -
B37: LL Impact Factor: | F37: 1.3 | P37: =BE13 -> Total Weight (ksf): | Q37: = | R37: =IF($E$17=$BE$3,$E$27,"-") -> - | V37: EV2 | W37: =33.5/2 -> 16.75 | X37: =IF($F$34<W25,"YES","NO") -> YES | Y37: =IF(X37="YES","-",W37/$Y$25) -> - | Z37: - | AA37: =IF(X37="YES","-",($F$35-$Y$25)/2) -> - | AB37: -
P38: =BE14 -> Original Sx (in^3/ft): | Q38: = | R38: =IF($E$17=$BE$3,$E$28,"-") -> - | V38: EV3 | W38: 15.5 | X38: =IF($F$34<W25,"YES","NO") -> YES | Y38: =IF(X38="YES","-",W38/$Y$25) -> - | Z38: - | AA38: =IF(X38="YES","-",($F$35-$Y$25)/2) -> - | AB38: -
P39: =BE15 -> Misc. Dead Load (ksf): | Q39: = | R39: =IF($E$17=$BE$3,$E$29,"-") -> -
P40: =BE16 ->  | Q40: = | V40: Live Load Moments (Front Axle)
B41: Analysis | Q41: = | V41: Tire contact area: (front axle)
Q42: = | W42: *** | X42: Add for Fill | Y42: Actual Load Area (in)
B43: Deck Capacity (Cu) | H43: Live Load Moments | V43: width = | W43: =IF($K$34<>"",$K$34,10) -> 10 | X43: =2*R11 ->  | Y43: =W43+X43 -> 
B44: Cu = Fy*Sx*(1-SL%) | H44: =IF($E$17=$BC$3,IF($R$8=$AZ$3,"+Mmax = R1*(a+(R1/2w)) or = 0.125*w*l^2",IF($R$8=$AZ$4,"+Mmax = R1*(a+(R1/2w)) or = 0.08*w*l^2","")),IF($E$17=$BD$3,IF($R$20=$AZ$3,"+Mmax = R1*(a+(R1/2w)) or = 0.125*w*l^2",IF($R$20=$AZ$4,"+Mmax = R1*(a+(R1/2w)) or = 0.080*w*l^2","")),IF($E$17=$BE$3,"+Mmax = R1*(a+(R1/2w)) or = 0.080*w*l^2",""))) ->  | V44: length = | W44: =IF($L$34<>"",$L$34,10) -> 10 | X44: =2*R11 ->  | Y44: =W44+X44 -> 
D45: =IF($E$17=$BC$3,"Cu = "&$R$5&" * "&ROUND($R$8,3)&" * (1-"&$R$9&") =",IF($E$17=$BD$3,"Cu = "&$R$17&" * "&ROUND($R$20,3)&" * (1-"&$R$21&") =",IF($E$17=$BE$3,"Cu = "&$R$29&" * "&ROUND($R$38,3)&" * (1-"&$R$33&") =",""))) ->  | E45: =IFERROR((IF($E$17=$BC$3,$X$6,IF($E$17=$BD$3,$X$78,IF($E$17=$BE$3,$X$152,"")))),"") ->  | F45: k-in/in | J45: MLL HS: | K45: =IFERROR((IF($E$17=$BC$3,$Z61,IF($E$17=$BD$3,$Z135,IF($E$17=$BE$3,$Y192,"")))),"") ->  | L45: k-in/in | P45: Steel Grid Decking Example Diagrams: | W45: ***wheel on front axle is assumed to be half as wide as the back wheel
J46: MLL H: | K46: =IFERROR((IF($E$17=$BC$3,$Z62,IF($E$17=$BD$3,$Z136,IF($E$17=$BE$3,$Y193,"")))),"") ->  | L46: k-in/in | V46: Truck | W46: Max. Wheel Load (k) | X46: Is calculated deck span between flange tips < wheel width? | Y46: load to top of deck(k/in) | Z46: R1 | AA46: a | AB46: + M (k-in/in)
C47: Dead Load Moments | D47: =IF($E$17=$BC$3,IF($R$10=$AZ$3,"Simple +Mmax = 0.125*w*l^2",IF($R$10=$AZ$4,"Continuous +Mmax = 0.08*w*l^2","")),IF($E$17=$BD$3,IF($R$22=$AZ$3,"Simple +Mmax = 0.125*w*l^2",IF($R$22=$AZ$4,"Continuous +Mmax = 0.08*w*l^2","")),IF($E$17=$BE$3,"Simple +Mmax = 0.125*w*l^2",""))) ->  | J47: MLL SHVSU4: | L47: k-in/in
C48: =E17&":" -> : | E48: =IFERROR((IF($E$17=$BC$3,IF($R$10=$AZ$3,$Y$9,IF($R$10=$AZ$4,$Y$10,"")),IF($E$17=$BD$3,IF($R$22=$AZ$3,$Y$81,IF($R$22=$AZ$4,$Y$82,"")),IF($E$17=$BE$3,$X$155,"")))),"") ->  | F48: k-in/in | J48: MLL SHVSU5: | L48: k-in/in
C49: Fill: | E49: =IFERROR((IF($E$17=$BC$3,IF($R$10=$AZ$3,$Y$13,IF($R$10=$AZ$4,$Y$14,"")),IF($E$17=$BD$3,IF($R$22=$AZ$3,$Y$85,IF($R$22=$AZ$4,$Y$86,"")),"0.000"))),"") -> 0.000 | F49: k-in/in | J49: MLL SHVSU6: | L49: k-in/in | V49: H/HS | W49: 4 | X49: =IF($F$34<$W$43,"YES","NO") -> YES | Y49: =IF(X49="YES","-",W49/$Y$43) -> - | Z49: =IF(X49="YES","-",W49/2) -> - | AA49: =IF(X49="YES","-",($F$35-$Y$43)/2) -> - | AB49: =IF(X49="YES","-",(Z49*(AA49+(Z49/(2*Y49))))/$Y$44) -> - | AC49: - assuming that the wheel width will be less than the girder spacing, moments will be calculated based on a simple beam with a uniform load partially distributed. (Mu = R1*(a+(R1/2w))).
C50: Miscellaneous: | E50: =IFERROR((IF($E$17=$BC$3,IF($R$10=$AZ$3,$Y$18,IF($R$10=$AZ$4,$Y$19,"")),IF($E$17=$BD$3,IF($R$22=$AZ$3,$Y$89,IF($R$22=$AZ$4,$Y$90,"")),IF($E$17=$BE$3,$X$158,"")))),"") ->  | F50: k-in/in | J50: MLL SHVSU7: | L50: k-in/in | V50: SU4/SU5/NRL | W50: 6 | X50: =IF($F$34<$W$43,"YES","NO") -> YES | Y50: =IF(X50="YES","-",W50/$Y$43) -> - | Z50: =IF(X50="YES","-",W50/2) -> - | AA50: =IF(X50="YES","-",($F$35-$Y$43)/2) -> - | AB50: =IF(X50="YES","-",(Z50*(AA50+(Z50/(2*Y50))))/$Y$44) -> -
D51: Total: | E51: =IFERROR((E48+E49+E50),"") ->  | F51: k-in/in | J51: MLL T3: | L51: k-in/in | V51: SU6/SU7 | W51: 6 | X51: =IF($F$34<$W$43,"YES","NO") -> YES | Y51: - | Z51: - | AA51: - | AB51: -
J52: MLL T3S2: | L52: k-in/in | V52: T3 | W52: 8 | X52: =IF($F$34<$W$43,"YES","NO") -> YES | Y52: - | Z52: - | AA52: - | AB52: -
J53: MLL T3-3: | L53: k-in/in | V53: T3S2 | W53: 5 | X53: =IF($F$34<$W$43,"YES","NO") -> YES | Y53: - | Z53: - | AA53: - | AB53: -
J54: MLL NRL: | L54: k-in/in | V54: T3-3 | W54: 6 | X54: =IF($F$34<$W$43,"YES","NO") -> YES | Y54: - | Z54: - | AA54: - | AB54: -
J55: MLL EV2: | L55: k-in/in | V55: EV2 | W55: =24/2 -> 12 | X55: =IF($F$34<$W$43,"YES","NO") -> YES | Y55: - | Z55: - | AA55: - | AB55: -
J56: MLL EV3: | L56: k-in/in | V56: EV3 | W56: 12 | X56: =IF($F$34<W43,"YES","NO") -> YES | Y56: - | Z56: - | AA56: - | AB56: -
B57: Additional Notes | V57: Rating Factors | AE57: Steel Corrugate Deck
H58: € HS Ratings | V58: Truck | W58: Truck Weight(Tons) | X58: Dead Loads Simple (+M) | Y58: Dead Loads Continuous (+M) | Z58: Controlling Live Loads (+M) | AA58: Rating Factor (Inv) | AB58: Rating (Inv) (Tons) | AC58: Rating Factor (Opr) | AD58: Rating (Opr) (Tons)
H59: HS Inventory: | K59: =IFERROR((IF($E$17=$BC$3,$AB61*20/36,IF($E$17=$BD$3,$AB135*20/36,IF($E$17=$BE$3,$AA192*20/36,"")))),"") ->  | L59: =IFERROR(K59/20,"") -> 
H60: HS Operating: | K60: =IFERROR((IF($E$17=$BC$3,AD61*20/36,IF($E$17=$BD$3,AD135*20/36,IF($E$17=$BE$3,$AC192*20/36,"")))),"") ->  | L60: =IFERROR(K60/20,"") -> 
H61: ¥£ H RATING | V61: HS | W61: 36 | X61: =$Y$9+$Y$13+$Y$18 ->  | Y61: =$Y$10+$Y$14+$Y$19 ->  | Z61: =MAX(AB49,AB30) -> 0 | AA61: =IF(Z61=0,1.25,($X$6-(1.3*IF($R$10=$AZ$3,$X61,$Y61)))/(2.17*Z61*$F$37)) -> 1.25 | AB61: =W61*AA61 -> 45 | AC61: =IF(Z61=0,2.0833,($X$6-(1.3*IF($R$10=$AZ$3,$X61,$Y61)))/(1.3*$Z61*$F$37)) -> 2.0833 | AD61: =W61*AC61 -> 74.9988
H62: H Inventory: | K62: =IFERROR((IF($E$17=$BC$3,$AB61*20/36,IF($E$17=$BD$3,$AB135*20/36,IF($E$17=$BE$3,$AA192*20/36,"")))),"") ->  | L62: =IFERROR(K62/20,"") ->  | V62: H | W62: 20 | X62: =$Y$9+$Y$13+$Y$18 ->  | Y62: =$Y$10+$Y$14+$Y$19 ->  | Z62: =MAX(AB49,AB30) -> 0 | AA62: =IF(Z62=0,1.25,($X$6-(1.3*IF($R$10=$AZ$3,$X62,$Y62)))/(2.17*Z62*$F$37)) -> 1.25 | AB62: =W62*AA62 -> 25 | AC62: =IF(Z62=0,2.0833,($X$6-(1.3*IF($R$10=$AZ$3,$X62,$Y62)))/(1.3*$Z62*$F$37)) -> 2.0833 | AD62: 41.666
H63: H Operating: | K63: =IFERROR((IF($E$17=$BC$3,AD61*20/36,IF($E$17=$BD$3,AD135*20/36,IF($E$17=$BE$3,$AC192*20/36,"")))),"") ->  | L63: =IFERROR(K63/20,"") ->  | V63: SU4 | W63: 27 | X63: =$Y$9+$Y$13+$Y$18 ->  | Y63: =$Y$10+$Y$14+$Y$19 ->  | Z63: =MAX(AB50,AB31) -> 0 | AA63: 1.25 | AB63: 33.75 | AC63: 2.0833 | AD63: 56.2491
H64: AASHTO LEGAL LOADS RATING FACTORS | V64: SU5 | W64: 31 | X64: =$Y$9+$Y$13+$Y$18 ->  | Z64: =MAX(AB50,AB31) -> 0 | AA64: 1.25 | AB64: 38.75 | AC64: 2.0833 | AD64: 64.5823
H65: SU4 Operating: | I65: =IFERROR((IF($E$17=$BC$3,$AC63,IF($E$17=$BD$3,$AC137,IF($E$17=$BE$3,$AB194,"")))),"") ->  | K65: TYPE 3: | L65: =IFERROR((IF($E$17=$BC$3,$AC67,IF($E$17=$BD$3,$AC141,IF($E$17=$BE$3,$AB198,"")))),"") ->  | V65: SU6 | W65: 34.75 | Z65: =MAX(AB51,AB32) -> 0 | AA65: 1.25 | AB65: 43.4375 | AC65: 2.0833 | AD65: 72.394675
H66: SU5 Operating: | I66: =IFERROR((IF($E$17=$BC$3,$AC64,IF($E$17=$BD$3,$AC138,IF($E$17=$BE$3,$AB195,"")))),"") ->  | K66: TYPE 3S2: | L66: =IFERROR((IF($E$17=$BC$3,$AC68,IF($E$17=$BD$3,$AC142,IF($E$17=$BE$3,$AB199,"")))),"") ->  | V66: SU7 | W66: 38.75 | Z66: =MAX(AB51,AB32) -> 0 | AA66: 1.25 | AB66: 48.4375 | AC66: 2.0833 | AD66: 80.727875
H67: SU6 Operating: | I67: =IFERROR((IF($E$17=$BC$3,$AC65,IF($E$17=$BD$3,$AC139,IF($E$17=$BE$3,$AB196,"")))),"") ->  | K67: TYPE 3-3: | L67: =IFERROR((IF($E$17=$BC$3,$AC69,IF($E$17=$BD$3,$AC143,IF($E$17=$BE$3,$AB200,"")))),"") ->  | V67: T3 | W67: 25 | Z67: =MAX(AB52,AB33) -> 0 | AA67: 1.25 | AB67: =W67*AA67 -> 31.25 | AC67: 2.0833 | AD67: =W67*AC67 -> 52.0825
B68: € - | C68: Flexure Controls Rating | H68: SU7 Operating: | I68: =IFERROR((IF($E$17=$BC$3,$AC66,IF($E$17=$BD$3,$AC140,IF($E$17=$BE$3,$AB197,"")))),"") ->  | K68: NRL: | L68: =IFERROR((IF($E$17=$BC$3,$AC70,IF($E$17=$BD$3,$AC144,IF($E$17=$BE$3,$AB201,"")))),"") ->  | V68: T3S2 | W68: 36 | Z68: =MAX(AB53,AB34) -> 0 | AA68: 1.25 | AB68: 45 | AC68: 2.0833 | AD68: 74.9988
B69: ¥ - | C69: Based on H-20 Rating | H69: EMERGENCY VEHICLE (EV) RATING FACTORS | P69: EV LIVE LOAD FACTOR | V69: T3-3 | W69: 40 | Z69: =MAX(AB54,AB35) -> 0 | AA69: 1.25 | AB69: 50 | AC69: 2.0833 | AD69: 83.332
B70: £ - | C70: Flexure Controls Rating | H70: EV2 Operating: | I70: =IFERROR((IF($E$17=$BC$3,AC71,IF($E$17=$BD$3,AC145,IF($E$17=$BE$3,$AB202,"")))),"") ->  | K70: EV3 Operating: | L70: =IFERROR((IF($E$17=$BC$3,AC72,IF($E$17=$BD$3,AC146,IF($E$17=$BE$3,$AB203,"")))),"") ->  | Q70: EV Crossing = | R70: =$I$10 -> 1 | V70: NRL | W70: 40 | Z70: =MAX(AB50,AB31) -> 0 | AA70: 1.25 | AB70: 50 | AC70: 2.0833 | AD70: 83.332
H71: See Formula 6-1a (MCEB) for the general Rating Formula. | Q71: ADTT = | R71: =$I$9*$I$10 -> 0.01 | V71: EV2 | W71: 57.5 | Z71: =MAX(AB55,AB37) -> 0 | AA71: 1.25 | AB71: 71.875 | AC71: 2.0833 | AD71: 119.78975
B72: *** DO NOT DISCLOSE *** THIS INFORMATION IS CONFIDENTIAL UNDER THE TEXAS HOMELAND SECURITY ACT AND 23 USC SECTION 409, SAFETY SENSITIVE INFORMATION | Q72: EV3 Operating LL Factor (1 crossing) = | R72: 1.1 | V72: EV3 | W72: 86 | X72: =$Y$9+$Y$13+$Y$18 ->  | Z72: =MAX(AB56,AB38) -> 0 | AA72: 1.25 | AB72: 107.5 | AC72: 2.0833 | AD72: 179.1638
Q73: EV2 Operating LL Factor (1 crossing) = | R73: =IF(AND(R71>0,R71<1000),1.1,IF(OR(R71=0,R71>6000),1.3,(1.3-1.1)*(R71-1000)/5000+1.1)) -> 1.1
Q74: EV3 Operating LL Factor (10 crossing) = | R74: =IF(AND(R71>0,R71<1000),1.1,IF(OR(R71=0,R71>6000),1.2,(1.2-1.1)*(R71-1000)/5000+1.1)) -> 1.1 | V74: Steel Plate Deck
Q75: EV2 Operating LL Factor (10 crossing) = | R75: =IF(AND(R71>0,R71<1000),1.1,IF(OR(R71=0,R71>6000),1.5,(1.5-1.1)*(R71-1000)/5000+1.1)) -> 1.1 | V75: Deck Capacity:
Q76: Min lanes = | R76: =$L$8 -> 1 | W76: Deck capacity (no section loss) = | X76: =R20*R17/12 ->  | Y76: k-in/in | Z76: Fy*S
Q77: EV2 Operating LL Factor = | R77: =IF(R76<2,1.3,IF(R70=1,R73,R75)) -> 1.3 | W77: Reduction factor for section loss = | X77: =1-$E$23 -> 1
Q78: EV3 Operating LL Factor = | R78: =IF(R76<2,1.3,IF(R70=1,R72,R74)) -> 1.3 | W78: Deck capacity (including section loss) = | X78: =X76*X77 ->  | Y78: k-in/in | Z78: Fy*S*(1-SL%) =
V80: Dead Load Moments
V81: Steel Plate Deck- | W81: Simple | X81: max + M = | Y81: =0.125*($R$19/144)*$F$32^2 ->  | Z81: k-in/in | AA81: 0.125*w*l^2
W82: Continuous | X82: max + M = | Y82: =0.08*($R$19/144)*$F$32^2 ->  | Z82: k-in/in | AA82: 0.08*w*l^2 | AB82: (based on beam diagrams for continuous spans)
V84: Fill material - | X84: w = | Y84: =(R25*R23/12)/144 ->  | Z84: k/in
P85: Superstructure Name | R85: Stringer Weight (klf) | S85: Stringer Spacing (in) | W85: Simple | X85: max + M = | Y85: =0.125*Y84*F32^2 ->  | Z85: k-in/in | AA85: 0.125*w*l^2
W86: Continuous | X86: max + M = | Y86: =0.08*Y84*F32^2 ->  | Z86: k-in/in | AA86: 0.08*w*l^2 | AB86: (based on beam diagrams for continuous spans)
P87: Steel Stringer (Simple) | R87: ='Dead Load Calcs and Tables'!F22 -> 0 | S87: ='Dead Load Calcs and Tables'!G22 -> 0
P88: Steel Stringer (Simple)(2) | R88: ='Dead Load Calcs and Tables'!F23 -> 0 | S88: ='Dead Load Calcs and Tables'!G23 -> 0 | V88: Miscellaneous - | X88: w = | Y88: =$R$26/144 ->  | Z88: k/in
P89: Steel Stringer (Continuous) | R89: ='Dead Load Calcs and Tables'!F24 -> - | S89: ='Dead Load Calcs and Tables'!G24 -> - | W89: Simple | X89: max + M = | Y89: =0.125*Y88*F32^2 ->  | Z89: k-in/in | AA89: 0.125*w*l^2
P90: Steel Stringer (Continuous)(2) | W90: Continuous | X90: max + M = | Y90: =0.08*Y88*F32^2 ->  | Z90: k-in/in | AA90: 0.08*w*l^2
P91: Steel Floorbeam | R91: ='Dead Load Calcs and Tables'!F30 -> 0 | S91: ='Dead Load Calcs and Tables'!G30 -> -
P92: Steel Floorbeam (2)
P93: Timber Stringer | R93: ='Dead Load Calcs and Tables'!F32 -> 0 | S93: ='Dead Load Calcs and Tables'!G32 -> 0 | V93: Live Load Moments (Rear Axle)
P94: Timber Stringer (2) | R94: ='Dead Load Calcs and Tables'!F33 -> 0 | S94: ='Dead Load Calcs and Tables'!G33 -> 0 | V94: Tire contact area: (rear axle) (AASHTO 10.41.2)
P95: User Input Girder | W95: Width Perpendicular to Traffic (in) | Z95: Length in Direction of Traffic (in)
P96: User Input Stringer | V96: Wheel Load (k) | W96: Per AASHTO | X96: add for fill | Y96: USE | Z96: Per AASHTO | AA96: add for fill | AB96: USE
P97: User Input Floorbeam | V97: 8 | W97: =IF($K$33<>"",$K$33,20) -> 20 | X97: =2*$R$23 ->  | Y97: =W97+X97 ->  | Z97: =IF($L$33<>"",$L$33,10) -> 10 | AA97: =2*$R$23 ->  | AB97: =Z97+AA97 -> 
P98: ='Dead Load Calcs and Tables'!E25 -> Continuous Stringer (Span 1) | R98: ='Dead Load Calcs and Tables'!F25 -> 0 | S98: ='Dead Load Calcs and Tables'!G25 -> 0 | V98: 12 | W98: =IF($K$33<>"",$K$33,20) -> 20 | X98: =2*$R$23 ->  | Y98: =W98+X98 ->  | Z98: =IF($L$33<>"",$L$33,10) -> 10 | AA98: =2*$R$23 ->  | AB98: =Z98+AA98 -> 
P99: ='Dead Load Calcs and Tables'!E26 -> Continuous Stringer (Span 2) | R99: ='Dead Load Calcs and Tables'!F26 -> 0 | S99: ='Dead Load Calcs and Tables'!G26 -> 0 | V99: 16 | W99: =IF($K$33<>"",$K$33,24) -> 24 | X99: =2*$R$23 ->  | Y99: =W99+X99 ->  | Z99: =IF($L$33<>"",$L$33,10) -> 10 | AA99: =2*$R$23 ->  | AB99: =Z99+AA99 -> 
P100: ='Dead Load Calcs and Tables'!E27 -> Continuous Stringer (Span 3) | R100: ='Dead Load Calcs and Tables'!F27 -> 0 | S100: ='Dead Load Calcs and Tables'!G27 -> 0 | AB100: =IF(MAX($AB$97:$AB$99)<48,"OK-Less than 48","more than 48, wheel loads overlap!!!") -> 
P101: ='Dead Load Calcs and Tables'!E28 -> Continuous Stringer (Span 4) | R101: ='Dead Load Calcs and Tables'!F28 -> 0 | S101: ='Dead Load Calcs and Tables'!G28 -> 0 | V101: Truck | W101: Max. Wheel Load (k) | X101: Wheel Distribution Width Perpendicular to Traffic (in) | Y101: Is calculated deck span between flange tips < wheel width? | Z101: load to top of deck(k/in) | AA101: R1 | AB101: a | AC101: + M (k-in/in)
P102: ='Dead Load Calcs and Tables'!E29 -> Continuous Stringer (Span 5) | R102: ='Dead Load Calcs and Tables'!F29 -> 0 | S102: ='Dead Load Calcs and Tables'!G29 -> 0
V104: H/HS | W104: 16 | X104: =VLOOKUP(ROUNDUP(W104,0),$V$97:$AB$99,4,TRUE) ->  | Y104: =IF($F$34<X104,"YES","NO") ->  | Z104: =IF(Y104="YES","-",W104/VLOOKUP(ROUNDUP(W104,0),$V$97:$AB$99,4,TRUE)) ->  | AA104: =IF(Y104="YES","-",W104/2) ->  | AB104: =IF(Y104="YES","-",($F$35-VLOOKUP(ROUNDUP(W104,0),$V$97:$AB$99,4,TRUE))/2) ->  | AC104: =IF(Y104="YES","-",(AA104*(AB104+(AA104/(2*Z104))))/VLOOKUP(ROUNDUP(W104,0),$V$97:$AB$99,7,TRUE)) ->  | AD104: - assuming that the wheel width will be less than the girder spacing, moments will be calculated based on a simple beam with a uniform load partially distributed. (Mu = R1*(a+(R1/2w))).
V105: SU4/SU5/NRL | W105: 8.5 | X105: =VLOOKUP(ROUNDUP(W105,0),$V$97:$AB$99,4,TRUE) ->  | Y105: =IF($F$34<X105,"YES","NO") ->  | Z105: =IF(Y105="YES","-",W105/VLOOKUP(ROUNDUP(W105,0),$V$97:$AB$99,4,TRUE)) ->  | AA105: =IF(Y105="YES","-",W105/2) ->  | AB105: =IF(Y105="YES","-",($F$35-VLOOKUP(ROUNDUP(W105,0),$V$97:$AB$99,4,TRUE))/2) ->  | AC105: =IF(Y105="YES","-",(AA105*(AB105+(AA105/(2*Z105))))/VLOOKUP(ROUNDUP(W105,0),$V$97:$AB$99,7,TRUE)) -> 
V106: SU6/SU7 | W106: 8.5
V107: T3 | W107: 8.5
V108: T3S2 | W108: 7.75
V109: T3-3 | W109: 8
V110: EV2 | W110: 16.75
V111: EV3 | W111: 15.5
V113: Live Load Moments (Front Axle)
V114: Tire contact area: (front axle)
W115: *** | X115: Add for Fill | Y115: Actual Load Area (in)
V116: width = | W116: =IF($K$34<>"",$K$34,10) -> 10 | X116: =2*$R$23 ->  | Y116: =W116+X116 -> 
V117: length = | W117: =IF($L$34<>"",$L$34,10) -> 10 | X117: =2*$R$23 ->  | Y117: =W117+X117 -> 
W118: ***wheel on front axle is assumed to be half as wide as the back wheel
V119: Truck | W119: Max. Wheel Load (k) | X119: Wheel Distribution Width Perpendicular to Traffic (in) | Y119: Is calculated deck span between flange tips < wheel width? | Z119: load to top of deck(k/in) | AA119: R1 | AB119: a | AC119: + M (k-in/in)
V122: H/HS | W122: 4 | X122: =$Y$116 ->  | Y122: =IF($F$34<X122,"YES","NO") ->  | Z122: =IF(Y122="YES","-",W122/$X$122) ->  | AA122: =IF(Y122="YES","-",W122/2) ->  | AB122: =IF(Y122="YES","-",($F$35-$Y$116)/2) ->  | AC122: =IF(Y122="YES","-",(AA122*(AB122+(AA122/(2*Z122))))/$Y$117) ->  | AD122: - assuming that the wheel width will be less than the girder spacing, moments will be calculated based on a simple beam with a uniform load partially distributed. (Mu = R1*(a+(R1/2w))).
V123: SU4/SU5/NRL | W123: 6 | X123: =$Y$116 ->  | Y123: =IF($F$34<X123,"YES","NO") ->  | Z123: =IF(Y123="YES","-",W123/$X$122) ->  | AA123: =IF(Y123="YES","-",W123/2) ->  | AB123: =IF(Y123="YES","-",($F$35-$Y$116)/2) ->  | AC123: =IF(Y123="YES","-",(AA123*(AB123+(AA123/(2*Z123))))/$Y$117) -> 
V124: SU6/SU7 | W124: 6
V125: T3 | W125: 8
V126: T3S2 | W126: 5
V127: T3-3 | W127: 6
V128: EV2 | W128: =24/2 -> 12
V129: EV3 | W129: 12
V131: Rating Factors | AE131: Steel Plate Deck
V132: Truck | W132: Truck Weight(Tons) | X132: Dead Loads Simple (+M) | Y132: Dead Loads Continuous (+M) | Z132: Controlling Live Loads (+M) | AA132: Rating Factor (Inv) | AB132: Rating (Inv) (Tons) | AC132: Rating Factor (Opr) | AD132: Rating (Opr) (Tons)
V135: HS | W135: 36 | X135: =$Y$81+$Y$85+$Y$89 ->  | Y135: =$Y$82+$Y$86+$Y$90 ->  | Z135: =MAX(AC122,AC104) ->  | AA135: =IF(Z135=0,1.25,($X$78-(1.3*IF($R$22=$AZ$3,$X135,$Y135)))/(2.17*$Z135*$F$37)) ->  | AB135: =W135*AA135 ->  | AC135: =IF(Z135=0,2.0833,($X$78-(1.3*IF($R$22=$AZ$3,$X135,$Y135)))/(1.3*$Z135*$F$37)) ->  | AD135: =W135*AC135 -> 
V136: H | W136: 20 | Z136: =MAX(AC122,AC104) ->  | AA136: =IF(Z136=0,1.25,($X$78-(1.3*IF($R$22=$AZ$3,$X136,$Y136)))/(2.17*$Z136*$F$37)) ->  | AC136: =IF(Z136=0,2.0833,($X$78-(1.3*IF($R$22=$AZ$3,$X136,$Y136)))/(1.3*$Z136*$F$37)) -> 
V137: SU4 | W137: 27 | Z137: =MAX(AC123,AC105) -> 
V138: SU5 | W138: 31 | Z138: =MAX(AC123,AC105) -> 
V139: SU6 | W139: 34.75 | Z139: =MAX(AC124,AC106) -> 
V140: SU7 | W140: 38.75 | Z140: =MAX(AC124,AC106) -> 
V141: T3 | W141: 25 | Z141: =MAX(AC125,AC107) -> 
V142: T3S2 | W142: 36 | X142: =$Y$81+$Y$85+$Y$89 ->  | Y142: =$Y$82+$Y$86+$Y$90 ->  | Z142: =MAX(AC126,AC108) -> 
V143: T3-3 | W143: 40 | X143: =$Y$81+$Y$85+$Y$89 ->  | Y143: =$Y$82+$Y$86+$Y$90 ->  | Z143: =MAX(AC127,AC109) -> 
V144: NRL | W144: 40 | X144: =$Y$81+$Y$85+$Y$89 ->  | Y144: =$Y$82+$Y$86+$Y$90 ->  | Z144: =MAX(AC123,AC105) -> 
V145: EV2 | W145: 57.5 | X145: =$Y$81+$Y$85+$Y$89 ->  | Y145: =$Y$82+$Y$86+$Y$90 ->  | Z145: =MAX(AC128,AC110) -> 
V146: EV3 | W146: 86 | X146: =$Y$81+$Y$85+$Y$89 ->  | Y146: =$Y$82+$Y$86+$Y$90 ->  | Z146: =MAX(AC129,AC111) ->  | AA146: =IF(Z146=0,1.25,($X$78-(1.3*IF($R$22=$AZ$3,$X146,$Y146)))/(2.17*$Z146*$F$37)) ->  | AC146: =IF(Z146=0,2.0833,($X$78-(1.3*IF($R$22=$AZ$3,$X146,$Y146)))/(1.3*$Z146*$F$37)) -> 
V148: Steel Open Grid Deck
V149: Deck Capacity:
W150: Deck capacity (no section loss) = | X150: =R29*R38/12 ->  | Y150: k-in/in | Z150: Fy*S
W151: Reduction factor for section loss = | X151: =1-$R$33 -> 
W152: Deck capacity (including section loss) = | X152: =X150*X151 ->  | Y152: k-in/in | Z152: Fy*S*(1-SL%) =
V154: Dead Load Moments
V155: Steel Open Grid - | W155: max + M = | X155: =0.08*($R$37/144)*$F$32^2 ->  | Y155: k-in/in | Z155: 0.08*w*l^2 | AA155: (based on beam diagrams for continuous spans)
V157: Miscellaneous Loads - | W157: w = | X157: =$R$39/144 ->  | Y157: k/in
W158: max + M = | X158: =0.08*($R$39/144)*$F$32^2 ->  | Y158: k-in/in | Z158: 0.08*w*l^2 | AA158: (based on beam diagrams for continuous spans)
V161: Live Load Moments (Rear Axle)
V162: Truck | W162: Max. Wheel Load (k) | X162: Wheel Distribution Length in Direction of Traffic (in) | Y162: Wheel Distribution Width Perpendicular to Traffic (in) | Z162: Is calculated deck span between flange tips < wheel width? | AA162: load to top of deck(k/in) | AB162: R1 | AC162: a | AD162: + M (k-in/in)
V165: H/HS | W165: 16 | X165: =1.25*W165+2*$R$32 ->  | Y165: 20 | Z165: =IF($F$34<Y165,"YES","NO") -> YES | AA165: =IF(Z165="YES","-",W165/IF($K$33<>"",$K$33,$Y$165)) -> - | AB165: =IF(Z165="YES","-",W165/2) -> - | AC165: =IF(Z165="YES","-",($F$35-IF($K$33<>"",$K$33,$Y$165))/2) -> - | AD165: =IF(Z165="YES","-",(AB165*(AC165+(AB165/(2*AA165))))/IF($L$33<>"",$L$33,$X$165)) -> - | AE165: - assuming that the wheel width will be less than the girder spacing, moments will be calculated based on a simple beam with a uniform load partially distributed. (Mu = R1*(a+(R1/2w))).
V166: SU4/SU5/NRL | W166: 8.5 | X166: =1.25*W166+2*$R$32 ->  | Y166: 20 | Z166: =IF($F$34<Y166,"YES","NO") -> YES | AA166: - | AB166: =IF(Z166="YES","-",W166/2) -> - | AC166: - | AD166: -
V167: SU6/SU7 | W167: 8.5 | Y167: 20 | Z167: YES | AA167: - | AB167: - | AC167: - | AD167: -
V168: T3 | W168: 8.5 | Y168: 20 | Z168: YES | AA168: - | AB168: - | AC168: - | AD168: -
V169: T3S2 | W169: 7.75 | Y169: 20 | Z169: YES | AA169: - | AB169: - | AC169: - | AD169: -
V170: T3-3 | W170: 8 | Y170: 20 | Z170: YES | AA170: - | AB170: - | AC170: - | AD170: -
V171: EV2 | W171: 16.75 | Y171: 20 | Z171: YES | AA171: - | AB171: - | AC171: - | AD171: -
V172: EV3 | W172: 15.5 | Y172: 20 | Z172: YES | AA172: - | AB172: - | AC172: - | AD172: -
V175: Live Load Moments (Front Axle) AASHTO 3.27.3
V176: Truck | W176: Max. Wheel Load (k) | X176: Wheel Distribution Length in Direction of Traffic (in) | Y176: Wheel Distribution Width Perpendicular to Traffic (in) | Z176: Is calculated deck span between flange tips < wheel width? | AA176: load to top of deck(k/in) | AB176: R1 | AC176: a | AD176: + M (k-in/in)
V179: H/HS | W179: 4 | X179: =MAX(10,1.25*W179+2*$R$32) ->  | Y179: 10 | Z179: =IF($F$34<Y179,"YES","NO") -> YES | AA179: =IF(Z179="YES","-",W179/IF($K$34<>"",$K$34,Y179)) -> - | AB179: =IF(Z179="YES","-",W179/2) -> - | AC179: =IF(Z179="YES","-",($F$35-IF($K$34<>"",$K$34,Y179))/2) -> - | AD179: =IF(Z179="YES","-",(AB179*(AC179+(AB179/(2*AA179))))/IF($L$34<>"",$L$34,X179)) -> - | AE179: - assuming that the wheel width will be less than the girder spacing, moments will be calculated based on a simple beam with a uniform load partially distributed. (Mu = R1*(a+(R1/2w))).
V180: SU4/SU5/NRL | W180: 6 | X180: =MAX(10,1.25*W180+2*$R$32) ->  | Y180: 10 | Z180: =IF($F$34<Y180,"YES","NO") -> YES | AA180: - | AB180: =IF(Z180="YES","-",W180/2) -> - | AC180: - | AD180: -
V181: SU6/SU7 | W181: 6 | Y181: 10 | Z181: YES | AA181: - | AB181: - | AC181: - | AD181: -
V182: T3 | W182: 8 | Y182: 10 | Z182: YES | AA182: - | AB182: =IF(Z182="YES","-",W182/2) -> - | AC182: - | AD182: -
V183: T3S2 | W183: 5 | Y183: 10 | Z183: YES | AA183: - | AB183: =IF(Z183="YES","-",W183/2) -> - | AC183: - | AD183: -
V184: T3-3 | W184: 6 | Y184: 10 | Z184: YES | AA184: - | AB184: - | AC184: - | AD184: -
V185: EV2 | W185: =24/2 -> 12 | Y185: 10 | Z185: YES | AA185: - | AB185: - | AC185: - | AD185: -
V186: EV3 | W186: 12 | Y186: 10 | Z186: YES | AA186: - | AB186: - | AC186: - | AD186: -
V188: Rating Factors | AD188: Steel Open Grid Deck
V189: Truck | W189: Truck Weight(Tons) | X189: Dead Loads (+ M) | Y189: Controlling Live Loads (+M) | Z189: Rating Factor (Inv) | AA189: Rating (Inv) (Tons) | AB189: Rating Factor (Opr) | AC189: Rating (Opr) (Tons)
V192: HS | W192: 36 | X192: =$X$155+$X$158 ->  | Y192: =MAX(AD179,AD165) -> 0 | Z192: =IF(Y192=0,1.25,($X$152-(1.3*X192))/(2.17*Y192*$F$37)) -> 1.25 | AA192: =W192*Z192 -> 45 | AB192: =IF(Y192=0,2.08333,($X$152-(1.3*X192))/(1.3*Y192*$F$37)) -> 2.08333 | AC192: =W192*AB192 -> 74.99988
V193: H | W193: 20 | X193: =$X$155+$X$158 ->  | Y193: =MAX(AD179,AD165) -> 0 | Z193: =IF(Y193=0,1.25,($X$152-(1.3*X193))/(2.17*Y193*$F$37)) -> 1.25 | AA193: =W193*Z193 -> 25 | AB193: =IF(Y193=0,2.08333,($X$152-(1.3*X193))/(1.3*Y193*$F$37)) -> 2.08333 | AC193: =W193*AB193 -> 41.6666
V194: SU4 | W194: 27 | Y194: =MAX(AD180,AD166) -> 0 | Z194: 1.25 | AA194: 33.75 | AB194: 2.08333 | AC194: 56.24991
V195: SU5 | W195: 31 | Y195: =MAX(AD180,AD166) -> 0 | Z195: 1.25 | AA195: 38.75 | AB195: 2.08333 | AC195: 64.58323
V196: SU6 | W196: 34.75 | Y196: =MAX(AD181,AD167) -> 0 | Z196: 1.25 | AA196: 43.4375 | AB196: 2.08333 | AC196: 72.3957175
V197: SU7 | W197: 38.75 | Y197: =MAX(AD181,AD167) -> 0 | Z197: 1.25 | AA197: 48.4375 | AB197: 2.08333 | AC197: 80.7290375
V198: T3 | W198: 25 | Y198: =MAX(AD182,AD168) -> 0 | Z198: 1.25 | AA198: 31.25 | AB198: 2.08333 | AC198: 52.08325
V199: T3S2 | W199: 36 | Y199: =MAX(AD183,AD169) -> 0 | Z199: 1.25 | AA199: =W199*Z199 -> 45 | AB199: 2.08333 | AC199: =W199*AB199 -> 74.99988
V200: T3-3 | W200: 40 | Y200: =MAX(AD184,AD170) -> 0 | Z200: 1.25 | AA200: =W200*Z200 -> 50 | AB200: 2.08333 | AC200: =W200*AB200 -> 83.3332
V201: NRL | W201: 40 | Y201: =MAX(AD180,AD166) -> 0 | Z201: 1.25 | AA201: =W201*Z201 -> 50 | AB201: 2.08333 | AC201: =W201*AB201 -> 83.3332
V202: EV2 | W202: 57.5 | Y202: =MAX(AD185,AD171) -> 0 | Z202: 1.25 | AA202: =W202*Z202 -> 71.875 | AB202: 2.08333 | AC202: =W202*AB202 -> 119.791475
V203: EV3 | W203: 86 | Y203: =MAX(AD186,AD172) -> 0 | Z203: 1.25 | AA203: =W203*Z203 -> 107.5 | AB203: 2.08333 | AC203: =W203*AB203 -> 179.16638

Sheet Timber Deck (hidden)
B1: TBLRP-LFR Spreadsheet
B2: Timber Deck (ASD)
H4: Date: | K4: =TODAY() -> 2024-11-13 | O4: RECOMMENDED UNIT WEIGHTS FOR FILL AND WEARING SURFACE MATERIALS
H5: Rating Engineer's Initials: | K5: =eng_initials -> TxDOT
H6: Version: | K6: =version_no -> 4.0.5 | O6: Material | P6: Unit Weight
B7: Bridge Information | O7: Concrete | P7: 0.15 | Q7: kcf
B8: District: | C8: =district -> Tyler (10) | G8: AADT ®: | H8: =AADT -> 50 | J8: # of Lanes: | K8: =no_lanes -> 1 | O8: Steel | P8: 0.49 | Q8: kcf
B9: County: | C9: =county -> Anderson (001) | G9: Truck % (1% MIN): | H9: =truck_pct -> 0.01 | O9: Wood/Timber | P9: 0.05 | Q9: kcf
B10: Structure # : | C10: =struct_no -> CCCC-SS-SSS | G10: EV Daily Crossing: | H10: =EV_crossing -> 1 | J10: (1 or 10) One Direction | O10: Soil (Light) | P10: 0.1 | Q10: kcf
B11: Location: | C11: =br_descrip -> xx Over xx | G11: Year Built: | H11: =yr_built -> 2000 | O11: Soil (Medium) | P11: 0.11 | Q11: kcf
G12: Deck Descr: | O12: Soil (Heavy) | P12: 0.12 | Q12: kcf
O13: Gravel | P13: 0.125 | Q13: kcf
B14: Deck Inputs | O14: Asphalt | P14: 0.145 | Q14: kcf
B16: DATA INPUT TABLE | G16: DECK PROPERTIES
B17: Deck Condition Rating: | G17: Is Deck Laminated:
B18: Deck Unit Weight (kcf): | E18: 0.05 | G18: Width of Deck Resist. Wheel Load (in): | K18: =IF(K17="Yes",P35,IF((E21+E23)=0,P33,P34)) -> 10
B19: Actual Plank Thickness (in): | G19: Sx (in3): | K19: =(1/6)*K18*E19^2 -> 0
B20: Actual Plank Width (in): | G20: Allowable Bending Stress, Fb (ksi): | M20: ="<Recommend using: "&IF(E17>6,Q26,IF(E17<5,Q28,Q27))&" For Allowable Bending Stress" -> <Recommend using: 1 For Allowable Bending Stress
B21: Surfacing (Runners) Thickness (in): | G21: MALL (k-in): | K21: =K19*K20 -> 0
B22: Surfacing (Runners) Unit Weight (kcf):
B23: Surfacing (Asphalt) Thickness (in): | G23: CONTROLLING DECK SPAN CHECK***
B24: Surfacing (Asphalt) Unit Weight (kcf): | G24: Deck Span1 (in): | K24: =E28-E29/2 -> 0
B25: Fill Material Depth (in): | G25: Deck Span2 (in): | K25: =E28-E29+E19 -> 0 | O25: Timber Condition*** | Q25: Allowable Bending Stress (ksi)
B26: Fill Material Unit Weight (kcf): | G26: Controlling Deck Span (in): | K26: =MIN(K25,K24) -> 0 | O26: Good (minor weathering and decay) | Q26: 2
B27: Misc. Dead Load (ksf): | G27: ***AASHTO 2002 17th Edition - 3.25.1.2 | O27: Fair (Substantial decay or damage) | Q27: 1.5
B28: Stringer Spacing (in): | O28: Poor (Severe deterioration) | Q28: 1
B29: Stringer Top Flange Width (in): | O29: ***This allowable bending stress recommendation is based upon seasoned and pressured treated southern pine. These values include a 33% increase for flatwise use and short duration loading.
O32: Width of Deck Resisting Wheel Load Check
O33: No Surfacing (in): | P33: =MAX(E20,10) -> 10 | Q33: < Width of Deck Resisting Wheel Load Check (Surfacing) = 1 plank width for bare plank deck [AASHTO 2002 17th Edition - 3.25.1.1]
O34: Surfacing Present (in): | P34: =E20*2 -> 0 | Q34: < Width of Deck Resisting Wheel Load Check (Laminated Deck) = 2 plank widths for plank deck with surfacing (From original TBLRP)
B35: Analysis | O35: Laminated Deck (in): | P35: =15+E19 -> 15 | Q35: < 15 inches plus deck thickness for laminated decks [AASHTO 2002 17th Edition - 3.25.1.1]
B37: Dead Load Moment | G37: H/HS - Ratings
B38: Plank Weight (k/in): | E38: =IFERROR((E19*E18/144*K18/12),"") -> 0 | G38: Inventory | O38: H-15 / HS-15 Moment Analyis
B39: Wearing Surface Weight (k/in): | E39: =IFERROR(((E23*E24+E22*E21)/144*K18/12),"") -> 0 | G39: MALL - MDL (k-in): | I39: =IFERROR((ROUND(K21-E43,2)),"") -> 0 | M39: =IF(I40="-","",IF(I40=P44,"OK","Adjust MALL to match MLL")) -> Adjust MALL to match MLL | N39: =IF(ISERR(I39-I40),0,(I39-I40)) -> 0 | O39: Equation 37a (Inv.) MLL | P39: =ROUND((0.16*I41*K26-(0.358*I41^1.5)),2) -> 0 | Q39: = 0.16*(Gross Weight of H-Truck Live Load)*(Controlling Deck Span)-0.358*(Gross Weight of H-Truck Live Load)1.5
B40: Fill Weight (k/in): | E40: =IFERROR((E25*E26/144*K18/12),"") -> 0 | G40: MLL (k-in): | I40: =IFERROR((IF(S44,IF(ISERROR(P39),0,P39),"-")),"") ->  | O40: Equation 37b (Inv.) MLL | P40: =ROUND((0.0179*I41^0.5*K26*K26),2) -> 0 | Q40: = 0.0179*(Gross Weight of H-Truck Live Load)0.5*(Controlling Deck Span)2
B41: Misc. Weight (k/in): | E41: =IFERROR((E27/12*K18/12),"") -> 0 | G41: H-Rating (Iteration): | I41: 0 | J41: =IF(P46="Yes - Equation 37a","< Iterate", "<Use H-Rating (Equation) below") ->  | O41: Equation 37a (Opr.) MLL | P41: =ROUND((0.16*I48*K26-(0.358*I48^1.5)),2) -> 0 | Q41: = 0.16*(Gross Weight of H-Truck Live Load)*(Controlling Deck Span)-0.358*(Gross Weight of H-Truck Live Load)1.5
B42: Total Weight in Deck Plank Span (k/in): | E42: =IFERROR((SUM(E38:E41)),"") -> 0 | G42: H-Rating (Equation): | I42: =IFERROR((IF(P46="Yes - Equation 37a","-", (3120*P44*P44/K26/K26/K26/K26))),"") ->  | J42: =IF(P46="Yes - Equation 37a","Use Iteration", "<Equation 37b") ->  | O42: Equation 37b (Opr.) MLL | P42: =ROUND((0.0179*I48^0.5*K26*K26),2) -> 0 | Q42: = 0.0179*(Gross Weight of H-Truck Live Load)0.5*(Controlling Deck Span)2
B43: [Simple / Distributed] MDL (k-in): | E43: =IFERROR((E42*E28*E28/8),"") -> 0 | G43: Controlling H-Rating: | I43: =IFERROR((IF(J41="< Iterate",I41,I42)),"") ->  | O43: Inventory Rating
O44: MALL - MDL | P44: =ROUND((K21-E43),2) -> 0 | Q44: k-in | R44: SD > W | S44: =K26 > P45 -> 
G45: Operating | O45: Tire Width | P45: =(4.47*P44)/(0.0179*K26*K26) ->  | Q45: in | R45: SD ≤ W | S45: =IF(S44=TRUE,FALSE,TRUE) -> 
G46: 1.36*MALL - MDL (k-in): | I46: =IFERROR((ROUND((K21*1.36-E43),2)),"") -> 0 | M46: =IF(I47="-","",IF(I47=P48,"OK","Adjust MALL to match MLL")) -> Adjust MALL to match MLL | N46: =IF(ISERR(I46-I47),0,(I46-I47)) -> 0 | O46: Do you use Iteration? | P46: =IF(S44,"Yes - Equation 37a","No - use Equation 37b") -> 
G47: MLL (k-in): | I47: =IFERROR((IF(S48,IF(ISERROR(P41),0,P41),"-")),"") ->  | O47: Operating Rating
G48: H-Rating (Iteration): | I48: 0 | J48: =IF(P50="Yes - Equation 37a","< Iterate", "<Use H-Rating (Equation) below") ->  | O48: 1.36*MALL - MDL | P48: =ROUND((1.36*K21-E43),2) -> 0 | Q48: kin | R48: SD > W | S48: =K26 > P49 -> 
G49: H-Rating (Equation): | I49: =IFERROR((IF(P50="Yes - Equation 37a","-",(3120*P48*P48/K26/K26/K26/K26))),"") ->  | J49: =IF(P50="Yes - Equation 37a","use Iteration", "<Equation 37b") ->  | O49: Tire Width | P49: =(4.47*P48)/(0.0179*K26*K26) ->  | Q49: in | R49: SD ≤ W | S49: =IF(S48=TRUE,FALSE,TRUE) -> 
G50: Controlling H-Rating: | I50: =IFERROR((IF(J48="< Iterate",I48,I49)),"") ->  | O50: Do you use Iteration? | P50: =IF(S48,"Yes - Equation 37a","No - use Equation 37b") -> 
B51: =IF(OR(N39>0,N46>0,N39<0,N46<0),"Select the Buttons above to iterate the H-Ratings","") -> 
O52: MALL = Fb * (1/6) * (Width of Deck Resisting Wheel Load) * (Deck Thickness)2 MDL = (1/8) * (Total Dead Load) * (Stringer Spacing)2 Solving by Iteration (using Equation 37a): If Controlling Deck Span > Tire Width MLL = 0.160 * (H-Rating) * (Controlling Deck Span) - 0.358 * (H-Rating)1.5 >>> Substitute (MALL - MDL) for MLL<<< (MALL - MDL) = 0.160 * (H-Rating) * (Controlling Deck Span) - 0.358 * (H-Rating)1.5 >>>Solve the above equation by iteration<<<
B57: Additional Notes
G58: € HS Ratings
G59: HS Inventory: | J59: =IFERROR((I43),"") ->  | K59: =IFERROR(J59/20,"") -> 
G60: HS Operating: | J60: =IFERROR((I50),"") ->  | K60: =IFERROR(J60/20,"") -> 
G61: ¥£ H RATING
G62: H Inventory: | J62: =IFERROR((I43),"") ->  | K62: =IFERROR(J62/20,"") -> 
G63: H Operating: | J63: =IFERROR((I50),"") ->  | K63: =IFERROR(J63/20,"") -> 
G64: AASHTO LEGAL LOADS RATING FACTORS
G65: SU4 Operating: | H65: =IFERROR(($J$60/20),"") ->  | J65: TYPE 3: | K65: =IFERROR(($J$60/20),"") -> 
G66: SU5 Operating: | H66: =IFERROR(($J$60/20),"") ->  | J66: TYPE 3S2: | K66: =IFERROR(($J$60/20),"") -> 
G67: SU6 Operating: | H67: =IFERROR(($J$60/20),"") ->  | J67: TYPE 3-3: | K67: =IFERROR(($J$60/20),"") -> 
B68: € - | C68: Flexure Controls Rating | G68: SU7 Operating: | H68: =IFERROR(($J$60/20),"") ->  | J68: NRL: | K68: =IFERROR(($J$60/20),"") -> 
B69: ¥ - | C69: Based on H-20 Rating | G69: EMERGENCY VEHICLE (EV) RATING FACTORS
B70: £ - | C70: Flexure Controls Rating | G70: EV2 Operating: | H70: =IFERROR((J60/20*32/33.5),"") ->  | J70: EV3 Operating: | K70: =IFERROR((J60/20),"") -> 
G71: Values calculated based on Allowable Stress Method
B72: *** DO NOT DISCLOSE *** THIS INFORMATION IS CONFIDENTIAL UNDER THE TEXAS HOMELAND SECURITY ACT AND 23 USC SECTION 409, SAFETY SENSITIVE INFORMATION | O72: If Controlling Deck Span < Tire Width MLL = 0.0179 * (H-Rating)0.5 * (Controlling Deck Span)2 >>>Substituting (MALL - MDL) for MLL<<< (MALL - MDL) = 0.0179 * (H-Rating)0.5 * (SD)2 >>>Rearrange Equation and solve<<< H-Rating = 3120 * (MALL - MDL)2 / (Controlling Deck Span)4
B75: Controlling Ratings (Shear vs Moments)
B76: H20 | C76: HS20 | D76: SU4 | E76: SU5 | F76: SU6 | H76: SU7 | J76: EV2 | K76: EV3
B77: +M | C77: +M | D77: +M | E77: +M | F77: +M | H77: +M | J77: +M | K77: +M

Sheet Steel Stringer (Simple) (hidden)
B1: TBLRP-LFR Spreadsheet
B2: Simple Span Steel Stringer | O2: Lever Rule = | P2: lever rule calc
AD3: Deck Module for Dead Loads Options | BK3: Deck Properties Input Options
H4: Date: | K4: =TODAY() -> 2024-11-13 | AD4: No Deck Import | AI4: Determination of Controlling Moment Capacities & Rating Factors | AO4: Calculation of Non-Composite Stringer Properties | AT4: Calculation of Non-Composite Stringer Properties | BA4: Calculation of Non-Composite Stringer Properties | BK4: Concrete Deck | BL4: Steel Corrugated Deck | BM4: Steel Plate | BN4: Steel Open Grid Deck | BO4: Timber Plank | BP4: Nail Laminated Timbers | BQ4: Glue Laminated Timbers
H5: Rating Engineer's Initials: | K5: =eng_initials -> TxDOT | AD5: ='Dead Load Calcs and Tables'!$E$11 -> Concrete Deck | AI5: Effective Width of Concrete Slab (as per AASHTO 10.38.3): | BJ5: Deck Options | BK5: Deck Thickness (in): | BL5: Designation | BM5: Designation | BN5: Open Grid Depth (in): | BO5: Plank Depth (in): | BP5: Timber Depth (in): | BQ5: Timber Depth (in):
H6: Version: | K6: =version_no -> 4.0.5 | AD6: ='Dead Load Calcs and Tables'!$E$12 -> Steel Deck | AI6: L/4 = | AJ6: =($E$18-$E$19)/4*12 -> 0 | AK6: in | AO6: ****PUBLISHED ROLLED SECTION DIMENSIONS/PROPERTIES**** | AW6: ****PUBLISHED ROLLED SECTION DIMENSIONS/PROPERTIES**** | BK6: f'c (ksi): | BL6: Weight of Corrugation (ksf): | BM6: Steel Plate Thickness (in): | BN6: Weight of Open Grid (ksf): | BO6: Fill Depth above top of deck (in): | BP6: Fill Depth above top of deck (in): | BQ6: Fill Depth above top of deck (in):
B7: Bridge Information | S7: Concrete Deck Allowable Compressive Stress | AD7: ='Dead Load Calcs and Tables'!$E$13 -> Steel Deck (2) | AI7: Slab*12 = | AJ7: =IF($J$26=$O$32,$E$33*12,"") ->  | AK7: in | AP7: Area | AQ7: Depth | AR7: WEB | AS7: FLANGE | AU7: FILLET | AV7: M A J O R A X I S | AY7: M I N O R A X I S | BK7: Fill Depth above top of deck (in): | BL7: Fill Depth above top of deck (in): | BM7: Fill Depth above top of deck (in): | BO7: Unit weight of fill material (kcf): | BP7: Unit weight of fill material (kcf): | BQ7: Unit weight of fill material (kcf):
B8: District: | C8: =district -> Tyler (10) | G8: AADT ®: | H8: =AADT -> 50 | J8: # of Lanes: | K8: =no_lanes -> 1 | S8: Date Built | T8: Compressive Stress | AD8: ='Dead Load Calcs and Tables'!$E$14 -> Timber Deck | AI8: Beam Spacing = | AJ8: =$E$21*12 -> 0 | AK8: in | AO8: Section | AP8: Section | AQ8: Section | AR8: THK | AS8: WIDTH | AT8: THK | AU8: RADIUS | AV8: Moment of Inertia | AW8: Elastic Sect. | AX8: Plastic Sect. | AY8: Moment of | AZ8: Elastic Sect. | BA8: Radius of | BK8: Unit weight of fill material (kcf): | BL8: Unit weight of fill material (kcf): | BM8: Unit weight of fill material (kcf):
B9: County: | C9: =county -> Anderson (001) | G9: Truck % (1% MIN): | H9: =truck_pct -> 0.01 | S9: Before 1959 | T9: 2.5 | U9: KSI | AD9: ='Dead Load Calcs and Tables'!$E$15 -> Timber Deck (2) | AI9: Effective Width = | AJ9: =MINA(AJ6:AJ8) -> 0 | AK9: in | AO9: Designation | AV9: Ix | AW9: Modulus, Sx | AX9: Modulus, Zx | AY9: Inertia, Ix | AZ9: Modulus, Sx | BA9: Gyration, ry | BK9: Composite Action (Y/N):
B10: Structure # : | C10: =struct_no -> CCCC-SS-SSS | G10: EV Daily Crossing: | H10: =EV_crossing -> 1 | J10: (1 or 10) One Direction | S10: 1959-1982 | T10: 3 | U10: KSI | AD10: ='Dead Load Calcs and Tables'!$E$16 -> 0 | AP10: (in^2) | AQ10: (in) | AR10: (in) | AS10: (in) | AT10: (in) | AU10: (in) | AV10: (in^4) | AW10: (in^3) | AX10: (in^3) | AY10: (in^4) | AZ10: (in^3) | BA10: (in^4) | BK10: Slab Embedment (in):
B11: Location: | C11: =br_descrip -> xx Over xx | G11: Year Built: | H11: =yr_built -> 2000 | S11: 1982-1993 | T11: 3.6 | U11: KSI | AI11: For Non-Composite Action [per AASHTO 16th Edition (1996), Articles 10.48.1, "Compact Sections"]: | AO11: =$J$17 -> 0 | AP11: =IF(ISERR(VLOOKUP($AO$11,Rolled_Section_Data,4,FALSE)),NA(),VLOOKUP($AO$11,Rolled_Section_Data,4,FALSE)) ->  | AQ11: =IF(ISERR(VLOOKUP($AO$11,Rolled_Section_Data,5,FALSE)),NA(),VLOOKUP($AO$11,Rolled_Section_Data,5,FALSE)) ->  | AR11: =IF(ISERR(VLOOKUP($AO$11,Rolled_Section_Data,6,FALSE)),NA(),VLOOKUP($AO$11,Rolled_Section_Data,6,FALSE)) ->  | AS11: =IF(ISERR(VLOOKUP($AO$11,Rolled_Section_Data,7,FALSE)),NA(),VLOOKUP($AO$11,Rolled_Section_Data,7,FALSE)) ->  | AT11: =IF(ISERR(VLOOKUP($AO$11,Rolled_Section_Data,8,FALSE)),NA(),VLOOKUP($AO$11,Rolled_Section_Data,8,FALSE)) ->  | AU11: =IF(ISERR(VLOOKUP($AO$11,Rolled_Section_Data,9,FALSE)),NA(),VLOOKUP($AO$11,Rolled_Section_Data,9,FALSE)) ->  | AV11: =IF(ISERR(VLOOKUP($AO$11,Rolled_Section_Data,10,FALSE)),NA(),VLOOKUP($AO$11,Rolled_Section_Data,10,FALSE)) ->  | AW11: =IF(ISERR(VLOOKUP($AO$11,Rolled_Section_Data,11,FALSE)),NA(),VLOOKUP($AO$11,Rolled_Section_Data,11,FALSE)) ->  | AX11: =IF(ISERR(VLOOKUP($AO$11,Rolled_Section_Data,12,FALSE)),NA(),VLOOKUP($AO$11,Rolled_Section_Data,12,FALSE)) ->  | AY11: =IF(ISERR(VLOOKUP($AO$11,Rolled_Section_Data,13,FALSE)),NA(),VLOOKUP($AO$11,Rolled_Section_Data,13,FALSE)) ->  | AZ11: =IF(ISERR(VLOOKUP($AO$11,Rolled_Section_Data,14,FALSE)),NA(),VLOOKUP($AO$11,Rolled_Section_Data,14,FALSE)) ->  | BA11: =IF(ISERR(VLOOKUP($AO$11,Rolled_Section_Data,15,FALSE)),NA(),VLOOKUP($AO$11,Rolled_Section_Data,15,FALSE)) -> 
G12: Stringer Descr: | S12: After 1993 | T12: 4 | U12: KSI
S13: Recommended Design Compressive Strength (KSI) | U13: =IF(VALUE($H$11)<1959,T9,IF(VALUE($H$11)<1982,T10,IF(VALUE($H$11)<1993,T11,T12))) -> 4 | AI13: b' = | AJ13: =$K$20/2 -> 0 | AK13: in
B14: Stringer Inputs | AI14: tft = | AJ14: =$K$21 -> 0 | AK14: in | AO14: ****INPUT DIMENSIONS**** | AR14: ****INPUT DIMENSIONS**** | AV14: ****INPUT DIMENSIONS****
AO15: Rolled Section Depth (in) | AP15: Web Thick. (in) | AQ15: Flange Width (in) | AR15: Top Flange Thick. (in) | AS15: Bottom Flange Thick. (in) | AT15: Fillet Radius (in) | AU15: Top Cover Plate Width (in) | AV15: Top Cover Plate Thick. (in) | AW15: Bot Cover Plate Width (in) | AX15: Bot Cover Plate Thick. (in)
B16: DATA INPUT TABLE | G16: STRINGER PROPERTIES | O16: EV LIVE LOAD FACTOR | S16: Structural Steel Allowable Yield Stress | X16: Single Lane | AA16: 2 or More Lanes | AI16: D = | AJ16: =($K$18-$K$21-$K$22) -> 0 | AK16: in
B17: Span ID: | G17: Standard Beam Designation: | P17: EV Crossing = | Q17: =$H$10 -> 1 | S17: Date Built | T17: Yield Stress | X17: S/? | Y17: Use footnote f if S exceeds (ft) | Z17: Footnote f LLDF | AA17: S/? | AB17: Use footnote f if S exceeds (ft) | AC17: Footnote f S/? | AI17: tw = | AJ17: =$K$19 -> 0 | AK17: in | BK17: Concrete Deck | BL17: Steel Deck | BM17: Timber Deck
B18: Span Length (ft): | G18: Rolled Section Depth (in): | P18: ADTT = | Q18: =$H$8*$H$9 -> 0.5 | S18: Before 1905 | T18: 26 | U18: KSI | AI18: Dc = | AJ18: =$AX$27-$E$25-$K$21 ->  | AK18: in | BK18: Deck Thickness (in): | BL18: Designation | BM18: Timber Depth (in):
B19: Span Bearing Length Deduct (ft): | G19: Web Thickness (in): | P19: EV3 Operating LL Factor (1 crossing) = | Q19: 1.1 | S19: 1905-1936 | T19: 30 | U19: KSI | AH19: Compact check for non-composite section. | AI19: (AASHTO EQ. 10-93): | AJ19: =$AJ$13/$AJ$14 ->  | AK19: =IF(+$AJ19<=+$AL19,"<=",">") ->  | AL19: =2055/(1000*$E$20)^0.5 ->  | AM19: =IF(+$AJ19<=+$AL19,1,0) ->  | AO19: =$K$18 -> 0 | AP19: =$K$19 -> 0 | AQ19: =$K$20 -> 0 | AR19: =$K$21 -> 0 | AS19: =$K$22 -> 0 | AT19: =$K$23 -> 0 | AU19: =$E$24 -> 0 | AV19: =$E$25 -> 0 | AW19: =$E$26 -> 0 | AX19: =$E$27 -> 0 | BL19: Weight of Corrugation (ksf):
B20: Fy (ksi): | G20: Flange Width (in): | P20: EV2 Operating LL Factor (1 crossing) = | Q20: =IF(AND(Q18>0,Q18<1000),1.1,IF(OR(Q18=0,Q18>6000),1.3,(1.3-1.1)*(Q18-1000)/5000+1.1)) -> 1.1 | S20: 1936-1963 | T20: 33 | U20: KSI | W20: Concrete Deck | X20: 7 | Y20: 10 | Z20: =IF(ISBLANK($Y20),0,IF($E$21>$Y20,1+($E$21-6)/$E$21,0)) -> 0 | AA20: 5.5 | AB20: 14 | AC20: =IF(ISBLANK($AB20),0,IF($E$21>$AB20,1+($E$21-6)/$E$21+($E$21-4)/$E$21+IF($E$21>10,($E$21-10)/$E$21,0),0)) -> 0 | AI20: (AASHTO EQ. 10-94): | AJ20: =$AJ$16/$AJ$17 ->  | AL20: =19230/(1000*$E$20)^0.5 ->  | BK20: Fill Weight (ksf): | BL20: Fill Weight (ksf): | BM20: Fill Weight (ksf):
B21: Stringer Spacing (ft): | G21: Top Flange Thickness (in): | P21: EV3 Operating LL Factor (10 crossing) = | Q21: =IF(AND(Q18>0,Q18<1000),1.1,IF(OR(Q18=0,Q18>6000),1.2,(1.2-1.1)*(Q18-1000)/5000+1.1)) -> 1.1 | S21: After 1963 | T21: 36 | U21: KSI | W21: Steel Corrugated Deck | X21: 5.5 | Z21: 0 | AA21: 4.5 | AC21: 0 | AI21: 3/4*(AASHTO EQ. 10-93): | AJ21: =$AJ$13/$AJ$14 ->  | AL21: =0.75*(2055/(1000*$E$20)^0.5) ->  | BK21: Composite Action (Y/N):
B22: Misc. Comp Dead Load per Beam (k/ft): | G22: Bottom Flange Thickness (in): | P22: EV2 Operating LL Factor (10 crossing) = | Q22: =IF(AND(Q18>0,Q18<1000),1.1,IF(OR(Q18=0,Q18>6000),1.5,(1.5-1.1)*(Q18-1000)/5000+1.1)) -> 1.1 | S22: Recommended Design Yield Strength (KSI) | U22: =IF(VALUE($H$11)<=1905,T18,IF(VALUE($H$11)<=1936,T19,IF(VALUE($H$11)<=1963,T20,T21))) -> 36 | W22: Steel Plate | X22: 5.5 | Z22: 0 | AA22: 4.5 | AC22: 0 | AI22: 3/4*(AASHTO EQ. 10-94): | AJ22: =$AJ$16/$AJ$17 ->  | AL22: =0.75*(19230/(1000*$E$20)^0.5) ->  | AO22: ****CALCULATED PROPERTIES**** | AS22: ****CALCULATED PROPERTIES**** | AW22: ****CALCULATED PROPERTIES**** | BA22: ****CALCULATED PROPERTIES**** | BD22: ****CALCULATED PROPERTIES**** | BK22: Slab Embedment (in):
B23: Misc. Non-Comp Dead Load per Beam (k/ft): | G23: Compact Override (Y/N): | J23: Fillet Radius (in): | P23: Min lanes = | Q23: =$K$8 -> 1 | W23: Steel Open Grid Deck | X23: =IF($K$27>4,6,4.5) -> 4.5 | Y23: =IF($K$27>4,6,"") ->  | Z23: 0 | AA23: =IF($K$27>4,5,4) -> 4 | AB23: =IF($K$27>4,10.5,"") ->  | AC23: 0 | AI23: (AASHTO EQ. 10-95): | AJ23: =$AJ16/$AJ$17+9.35*$AJ$13/$AJ$14 ->  | AL23: =33650/(1000*$E$20)^0.5 ->  | AO23: AREA | AP23: AREA | AQ23: AREA | AR23: AREA | AS23: AREA | AT23: AREA | AU23: TOTAL | AV23: DIST TO CENTROID | AW23: CENTROID | AX23: CENTROID | AY23: MOIx | AZ23: MOIy | BA23: ROGx | BB23: ROGy | BC23: Bottom Fiber | BD23: Top Fiber | BE23: Minor Axis | BF23: MAJOR | BK23: f'c (ksi): | BL23: Steel Deck Type
B24: Top Cover Plate Width (in): | G24: Section Modulus (in^3): | K24: =IFERROR(MIN(BC27:BD27),"") ->  | P24: EV2 Operating LL Factor Override = | Q24: =K32 -> 0 | W24: Timber Plank | X24: 4 | Z24: 0 | AA24: 3.75 | AC24: 0 | AI24: (AASHTO EQ. 10-96): | AJ24: =IF(OR(AJ25="Timber Deck",AJ25="Steel Open Grid Deck"),(E29*12/BB27),0) -> 0 | AL24: =(3.6-2.2*1)*10^6/(E20*1000) ->  | AO24: TOP | AP24: BOT | AQ24: WEB | AR24: TOP | AS24: BOT | AT24: EACH | AU24: AREA | AV24: OF FILLETS FROM | AW24: DIST | AX24: DIST | AY24: Major Axis | AZ24: Minor Axis | BA24: Major Axis | BB24: Minor Axis | BC24: Elastic Modulus | BD24: Elastic Modulus | BE24: Elastic Modulus | BF24: AXIS
B25: Top Cover Plate Thickness (in): | G25: LIVE LOAD FACTORS | P25: EV2 Operating LL Factor Override = | Q25: =K33 -> 0 | W25: Nail Laminated Timbers | X25: =IF($K$27>6,5,4.5) -> 4.5 | Y25: =IF($K$27>6,5,"") ->  | Z25: 0 | AA25: =IF($K$27>6,4.25,4) -> 4 | AB25: =IF($K$27>6,6.5,"") ->  | AC25: 0 | AI25: Deck Type Used: | AJ25: =IF(E31="Timber Deck","Timber Deck",IF(E31="Concrete Deck","Concrete Deck",E32)) -> 0 | AO25: FLANGE | AP25: FLANGE | AR25: COV PLT | AS25: COV PLT | AT25: FILLET | AU25: A | AV25: TOP&BOT OF WEB | AW25: Yb | AX25: Yt | AY25: Ix | AZ25: Iy | BA25: rx | BB25: ry | BC25: Major Axis, Sxb | BD25: Major Axis, Sxt | BE25: Sy | BF25: Z
B26: Bottom Cover Plate Width (in): | G26: Deck Type for LLDF: | M26: =IF(AND(E34="Y",J26<>"Concrete Deck"),"<<<DECK ERROR","") ->  | P26: EV2 Operating LL Factor = | Q26: =IF(Q24<>0,Q24,IF(Q23<2,1.3,IF(Q17=1,Q20,Q22))) -> 1.3 | W26: Glue Laminated Timbers | X26: =IF($K$27>4,5.25,4.5) -> 4.5 | Y26: =IF($K$27>4,5.5,"") ->  | Z26: 0 | AA26: =IF($K$27>4,4.5,4) -> 4 | AB26: =IF($K$27>4,7,"") ->  | AC26: 0 | AI26: If above criteria is met then (Mu)nc = Fy*Z: | AJ26: =IF($AM$19+$AM$20+AM24<3,"CRITERIA CHECK NO GOOD",IF(AND($AM$21+$AM$22=0,$AM$23=0), "CRITERIA CHECK NO GOOD","CRITERIA CHECK OK")) ->  | AO26: (in^2) | AP26: (in^2) | AQ26: (in^2) | AR26: (in^2) | AS26: (in^2) | AT26: (in^2) | AU26: (in^2) | AV26: (in) | AW26: (in) | AX26: (in) | AY26: (in^4) | AZ26: (in^4) | BA26: (in^4) | BB26: (in^4) | BC26: (in^3) | BD26: (in^3) | BE26: (in^3) | BF26: (in^3)
B27: Bottom Cover Plate Thickness (in): | G27: Thickness of Deck (in): | P27: EV3 Operating LL Factor = | Q27: =IF(Q25<>0,Q25,IF(Q23<2,1.3,IF(Q17=1,Q19,Q21))) -> 1.3 | AI27: =IF(AJ26="CRITERIA CHECK NO GOOD","See Section Below","(Mu)nc = Fy*Z:") ->  | AJ27: =IF(AJ26="CRITERIA CHECK OK",AJ29*E20/12,"NA") ->  | AK27: ft-k | AO27: =AQ19*AR19 -> 0 | AP27: =AQ19*AS19 -> 0 | AQ27: =(AO19-AR19-AS19)*AP19 -> 0 | AR27: =AU19*AV19 -> 0 | AS27: =AW19*AX19 -> 0 | AT27: =((AT19)^2)*(1-PI()/4) -> 0 | AU27: =SUM(AO27:AS27)+4*AT27 -> 0 | AV27: =((AT19^3)*(0.5-PI()*(1-4/3/PI())/4))/MAXA(0.00001,AT27) -> 0 | AW27: =$AS$39 ->  | AX27: =AX19+AO19+AV19-AW27 ->  | AY27: =$AV$39 ->  | AZ27: =$AW$38 -> 0 | BA27: =SQRT($AV$39/$AR$38) ->  | BB27: =SQRT($AW$38/$AR$38) ->  | BC27: =$AY$27/$AW$27 ->  | BD27: =$AY$27/$AX$27 ->  | BE27: =$AZ$27/($AP$39/2) ->  | BF27: =($AW$27-$AX$19/2)*$AS$27+($AW$27-$AX$19-$AS$19/2)*$AP$27+($AW$27-$AX$19-$AS$19-$AV$27)*2*$AT$27+((($AW$27-$AX$19-$AS$19)^2)/2)*$AP$19+((($AX$27-$AV$19-$AR$19)^2)/2)*$AP$19+($AX$27-$AV$19-$AR$19-$AV$27)*2*$AT$27+($AX$27-$AV$19-$AR$19/2)*$AO$27+($AX$27-$AV$19/2)*$AR$27 -> 
B28: Bottom Flange Unbraced Length, Lb-b (ft): | E28: =E18-E19 -> 0 | G28: Stringer Location: | J28: Interior | AI28: Fy = | AJ28: =E20 -> 0 | AK28: ksi
B29: Top Flange Unbraced Length, Lb-t (ft): | E29: =E18-E19 -> 0 | J29: Calculated | K29: Override | X29: Live Load Moments | AC29: Deck Selected | AD29: =E31 -> 0 | AI29: Z = | AJ29: =$BF$27 ->  | AK29: in^3 | AV29: NON-COMPOSITE SECTION
B30: DECK INPUTS | G30: LLDF Calc = S / | J30: =IFERROR(IF($J$28="Exterior","Exterior",IF($K$8=1,IF($Z$53<$Y$53,VLOOKUP($J$26,$W$20:$AC$26,2,0),"footnote f"),IF($K$8>1,IF($Z$52<$Y$52,VLOOKUP($J$26,$W$20:$AC$26,5,0),"footnote f"),""))),"More info needed") -> More info needed | O30: Deck Dead Load Calc | X30: (Based on values from worksheets LIVE LOADS) | AC30: LLDF Options | AD30: =IF($AD$29="User Input Dead Loads",W20,IF(OR($AD$29="Timber Deck",$AD$29="Timber Deck (2)"),W24,IF(OR($AD$29="Steel Deck",$AD$29="Steel Deck (2)"),W21,W20))) -> Concrete Deck | AO30: SUBRECTANGLE | AP30: b | AQ30: h | AR30: a | AS30: y | AT30: ay | AU30: i | AV30: a(y-ybar)^2 | AW30: iminor
D31: Import Values from Defined Deck Module: | G31: LL Moment Distribution Factor: | J31: =IFERROR(IF($J$28="Exterior",$P$2,IF($K$8=1,MAX(Y53:Z53),MAX(Y52:Z52))),"More info needed") -> More info needed | P31: Self | Q31: Self OR | R31: Fill | S31: Wearing | T31: Misc Loads | AD31: =IF($AD$29="User Input Dead Loads",W21,IF(OR($AD$29="Timber Deck",$AD$29="Timber Deck (2)"),W25,IF(OR($AD$29="Steel Deck",$AD$29="Steel Deck (2)"),W22,""))) ->  | AO31: BOT COV PLT | AP31: =$AW$19 -> 0 | AQ31: =$AX$19 -> 0 | AR31: =$AP31*$AQ31 -> 0 | AS31: =$AQ$31/2 -> 0 | AT31: =$AR31*$AS31 -> 0 | AU31: =(AP31*AQ31^3)/12 -> 0 | AV31: =$AR31*($AS31-$AS$39)^2 ->  | AW31: =($AQ31*$AP31^3)/12 -> 0
D32: Deck Type: | E32: =IF($E$31=$AD$10,'User Input Dead Loads'!$E$17,IF($E$31=$AD$6,'Steel Deck'!E17,"")) -> 0 | G32: EV2 Operating LL Factor: | J32: =IF(Q23<2,1.3,IF(Q17=1,Q20,Q22)) -> 1.3 | O32: Concrete Deck | P32: =IF(E32=O32,0.15*$E$33/12,IF($E$31=O32,'Dead Load Calcs and Tables'!$G$11,"")) ->  | Q32: =IF($P32="","",$E$37) ->  | R32: =IF(OR($E$31=O32,$E$32=O32),$E$38,"") ->  | S32: =IF(OR($E$31=O32,$E$32=O32),$E$39,"") ->  | T32: =IF(OR($E$31=O32,$E$32=O32),$E$40,"") ->  | U32: ksf | X32: HS Moment (one line of wheels)= | Y32: =(VLOOKUP($E$18-$E$19,I_MOMTABLE,22)+(VLOOKUP($E$18-$E$19+1,I_MOMTABLE,22)-VLOOKUP($E$18-$E$19,I_MOMTABLE,22))*($E$18-$E$19-INT($E$18-$E$19)))/2 -> 0 | Z32: ft-k | AD32: =IF($AD$29="User Input Dead Loads",W22,IF(OR($AD$29="Timber Deck",$AD$29="Timber Deck (2)"),W26,IF(OR($AD$29="Steel Deck",$AD$29="Steel Deck (2)"),W23,""))) ->  | AO32: BOT FLANGE | AP32: =$AQ$19 -> 0 | AQ32: =$AS$19 -> 0 | AR32: =$AP32*$AQ32 -> 0 | AS32: =$AS$31+$AQ$31/2+$AQ$32/2 -> 0 | AT32: 0 | AU32: =(AP32*AQ32^3)/12 -> 0 | AW32: =($AQ32*$AP32^3)/12 -> 0
D33: =IF(OR(E32="Steel Corrugated Deck",E32="Steel Open Grid Deck"),"Deck Designation:","Deck Thickness (in):") -> Deck Thickness (in): | E33: =IF($E$31=$AD$5,'Concrete Deck'!$E$18,IF(AND($E$31=$AD$6,OR($E$32=$O$33,$E$32=$O$35)),'Steel Deck'!$E$18:$F$18,IF(AND($E$31=$AD$6,$E$32=$O$34),'Steel Deck'!$E$20,IF($E$31=$AD$8,'Timber Deck'!$E$19,IF($E$31=$AD$10,IF($E$32=$O$34,'User Input Dead Loads'!$E$19,'User Input Dead Loads'!$E$18),""))))) -> 0 | G33: EV3 Operating LL Factor: | J33: =IF(Q23<2,1.3,IF(Q17=1,Q19,Q21)) -> 1.3 | O33: Steel Corrugated Deck | P33: =IFERROR(IF(AND($E$31="No Deck Import",$E$32=$O$33),VLOOKUP($E$33,'Steel Deck'!$AM$6:$AW$20,8,FALSE),IF($E$32=$O$33,VLOOKUP($E$31,'Dead Load Calcs and Tables'!$E$11:$O$16,3,0),"")),0) ->  | Q33: =IF($P33="","",$E$37) ->  | R33: =IF(OR($E$31=O33,$E$32=O33),$E$38,"") ->  | S33: =IF(OR($E$31=O33,$E$32=O33),$E$39,"") ->  | T33: =IF(OR($E$31=O33,$E$32=O33),$E$40,"") ->  | U33: ksf | X33: H Moment (one line of wheels)= | Y33: =(VLOOKUP($E$18-$E$19,I_MOMTABLE,23)+(VLOOKUP($E$18-$E$19+1,I_MOMTABLE,23)-VLOOKUP($E$18-$E$19,I_MOMTABLE,23))*($E$18-$E$19-INT($E$18-$E$19)))/2 -> 0 | Z33: ft-k | AD33: =IF($AD$29="User Input Dead Loads",W23,IF(OR($AD$29="Timber Deck",$AD$29="Timber Deck (2)"),"",IF(OR($AD$29="Steel Deck",$AD$29="Steel Deck (2)"),"",""))) ->  | AO33: BOT FILLETS | AR33: =2*$AT$27 -> 0 | AS33: =$AQ$31+$AQ$32+$AV$27 -> 0 | AT33: 0
D34: Composite Action (Y/N): | G34: Impact Factor (I): | J34: =_xlfn.LET(_xlpm.LLDF, 1+(50/(($E$18-$E$19)+125)), IF(_xlpm.LLDF > 1.3, 1.3, _xlpm.LLDF)) -> 1.3 | O34: Steel Plate Deck | P34: =IF(E32=O34,0.49*$E$33/12,IF($E$32=$O$34,VLOOKUP($E$31,'Dead Load Calcs and Tables'!$E$11:$O$16,3,0),"")) ->  | Q34: =IF($P34="","",$E$37) ->  | R34: =IF(OR($E$31=O34,$E$32=O34),$E$38,"") ->  | S34: =IF(OR($E$31=O34,$E$32=O34),$E$39,"") ->  | T34: =IF(OR($E$31=O34,$E$32=O34),$E$40,"") ->  | U34: ksf | X34: Concrete Truck or 80-KIP Truck Moment (one line of wheels)= | Y34: =(VLOOKUP($E$18-$E$19,I_MOMTABLE,21)+(VLOOKUP($E$18-$E$19+1,I_MOMTABLE,21)-VLOOKUP($E$18-$E$19,I_MOMTABLE,21))*($E$18-$E$19-INT($E$18-$E$19)))/2 -> 0 | Z34: ft-k | AD34: =IF($AD$29="User Input Dead Loads",W24,IF(OR($AD$29="Timber Deck",$AD$29="Timber Deck (2)"),"",IF(OR($AD$29="Steel Deck",$AD$29="Steel Deck (2)"),"",""))) ->  | AI34: For Non-Composite Action [per AASHTO 16th Edition (1996), Articles 10.48.2, "Braced noncompact Sections"]: | AO34: WEB | AP34: =$AP$19 -> 0 | AQ34: =$AO$19-$AQ$32-$AQ$36 -> 0 | AR34: =$AP34*$AQ34 -> 0 | AS34: =$AS$32+$AQ$32/2+$AQ$34/2 -> 0 | AT34: 0 | AU34: =(AP34*AQ34^3)/12 -> 0 | AW34: =($AQ34*$AP34^3)/12 -> 0
D35: f'c (ksi): | O35: Steel Open Grid Deck | P35: =IFERROR(IF(AND($E$31="No Deck Import",$E$32=$O$35),VLOOKUP($E$33,'Steel Deck'!$AM$28:$AY$35,4,FALSE),IF($E$32=$O$35,VLOOKUP($E$31,'Dead Load Calcs and Tables'!$E$11:$O$16,3,0),"")),0) ->  | Q35: =IF($P35="","",$E$37) ->  | R35: =IF(OR($E$31=O35,$E$32=O35),$E$38,"") ->  | S35: =IF(OR($E$31=O35,$E$32=O35),$E$39,"") ->  | T35: =IF(OR($E$31=O35,$E$32=O35),$E$40,"") ->  | U35: ksf | X35: SU4 = | Y35: =(VLOOKUP($E$18-$E$19,I_MOMTABLE,25)+(VLOOKUP($E$18-$E$19+1,I_MOMTABLE,25)-VLOOKUP($E$18-$E$19,I_MOMTABLE,25))*($E$18-$E$19-INT($E$18-$E$19)))/2 -> 0 | Z35: ft-k | AD35: =IF($AD$29="User Input Dead Loads",W25,IF(OR($AD$29="Timber Deck",$AD$29="Timber Deck (2)"),"",IF(OR($AD$29="Steel Deck",$AD$29="Steel Deck (2)"),"",""))) ->  | AJ35: Fcr = | AL35: =MIN(E20,((4400*AR19/AQ19)^2/1000)) ->  | AO35: BOT FILLETS | AR35: =2*$AT$27 -> 0 | AS35: =$AQ$31+$AQ$32+$AQ$34-$AV$27 -> 0 | AT35: 0
D36: Slab Embedment (in): | O36: Timber Deck | P36: =IF(E32=O36,0.05*$E$33/12,IF($E$31=$O$36,VLOOKUP($E$31,'Dead Load Calcs and Tables'!$E$11:$O$16,3,0),"")) ->  | Q36: =IF($P36="","",$E$37) ->  | R36: =IF(OR($E$31=O36,$E$32=O36),$E$38,"") ->  | S36: =IF(OR($E$31=O36,$E$32=O36),$E$39,"") ->  | T36: =IF(OR($E$31=O36,$E$32=O36),$E$40,"") ->  | U36: ksf | X36: SU5 = | Y36: =(VLOOKUP($E$18-$E$19,I_MOMTABLE,26)+(VLOOKUP($E$18-$E$19+1,I_MOMTABLE,26)-VLOOKUP($E$18-$E$19,I_MOMTABLE,26))*($E$18-$E$19-INT($E$18-$E$19)))/2 -> 0 | Z36: ft-k | AD36: =IF($AD$29="User Input Dead Loads",W26,IF(OR($AD$29="Timber Deck",$AD$29="Timber Deck (2)"),"",IF(OR($AD$29="Steel Deck",$AD$29="Steel Deck (2)"),"",""))) ->  | AI36: (AASHTO EQ. 10-100): | AJ36: =$AQ$19/$AR$19 ->  | AK36: =IF(+$AJ36<=+$AL36,"<=",">") ->  | AL36: 24 | AM36: =IF(+$AJ36<=+$AL36,1,0) ->  | AO36: TOP FLANGE | AP36: =$AQ$19 -> 0 | AQ36: =$AR$19 -> 0 | AR36: =$AP36*$AQ36 -> 0 | AS36: =$AS$34+$AQ$34/2+$AQ$36/2 -> 0 | AT36: 0 | AU36: =(AP36*AQ36^3)/12 -> 0 | AW36: =($AQ36*$AP36^3)/12 -> 0
D37: Deck Weight (ksf): | E37: =IFERROR(INDEX($P$32:$P$38,IFERROR(MATCH($E$31,$O$32:$O$38,0),MATCH($E$32,$O$32:$O$38,0))),0) -> 0 | X37: SU6 = | Y37: =(VLOOKUP($E$18-$E$19,I_MOMTABLE,27)+(VLOOKUP($E$18-$E$19+1,I_MOMTABLE,27)-VLOOKUP($E$18-$E$19,I_MOMTABLE,27))*($E$18-$E$19-INT($E$18-$E$19)))/2 -> 0 | Z37: ft-k | AI37: (AASHTO EQ. 10-100b): | AJ37: =AJ16/AJ17 ->  | AK37: =IF(+$AJ37<=+$AL37,"<=",">") ->  | AL37: 150 | AM37: =IF(+$AJ37<=+$AL37,1,0) ->  | AO37: TOP COV PLT | AP37: =$AU$19 -> 0 | AQ37: =$AV$19 -> 0 | AR37: =$AP37*$AQ37 -> 0 | AS37: =$AS$36+$AQ$36/2+$AQ$37/2 -> 0 | AT37: 0 | AU37: =(AP37*AQ37^3)/12 -> 0 | AW37: =($AQ37*$AP37^3)/12 -> 0
D38: Fill Weight (ksf): | E38: =IFERROR(VLOOKUP($E$31,'Dead Load Calcs and Tables'!$E$11:$J$16,4,0),0) -> 0 | X38: SU7 = | Y38: =(VLOOKUP($E$18-$E$19,I_MOMTABLE,28)+(VLOOKUP($E$18-$E$19+1,I_MOMTABLE,28)-VLOOKUP($E$18-$E$19,I_MOMTABLE,28))*($E$18-$E$19-INT($E$18-$E$19)))/2 -> 0 | Z38: ft-k | AI38: If instead the criteria below is met then (Mu)nc = Fy*S: | AJ38: =IF($AM$36+$AM$37<2,"CRITERIA CHECK NO GOOD","CRITERIA CHECK OK") ->  | AO38: SUMMATION | AP38: DEPTHnc | AQ38: =SUM($AQ$31:$AQ$37) -> 0 | AR38: =SUM($AR$31:$AR$37) -> 0 | AS38: AREAnc | AT38: =SUM($AT$31:$AT$37) -> 0 | AU38: =SUM($AU$31:$AU$37) -> 0 | AV38: =SUM($AV$31:$AV$37) ->  | AW38: =SUM($AW$31:$AW$37) -> 0 | AX38: MOIync
D39: Wearing Surface Weight (ksf): | E39: =IFERROR(VLOOKUP($E$31,'Dead Load Calcs and Tables'!$E$11:$J$16,5,0),0) -> 0 | X39: EV2 = | Y39: =(VLOOKUP($E$18-$E$19,I_MOMTABLE,30)+(VLOOKUP($E$18-$E$19+1,I_MOMTABLE,30)-VLOOKUP($E$18-$E$19,I_MOMTABLE,30))*($E$18-$E$19-INT($E$18-$E$19)))/2 -> 0 | Z39: ft-k | AI39: Unbraced length Lb-t = | AJ39: =IF(OR(AJ42="Timber Deck",AJ42="Steel Open Grid Deck"),(E29*12),0) -> 0 | AK39: in | AO39: MAX WIDTH | AP39: =MAXA(AP31:AP37) -> 0 | AR39: Ybnc | AS39: =$AT$38/$AR$38 ->  | AU39: MOIxnc | AV39: =$AU$38+$AV$38 -> 
D40: Misc. Loads (ksf): | E40: =IFERROR(VLOOKUP($E$31,'Dead Load Calcs and Tables'!$E$11:$J$16,6,0),0) -> 0 | X40: EV3 = | Y40: =(VLOOKUP($E$18-$E$19,I_MOMTABLE,31)+(VLOOKUP($E$18-$E$19+1,I_MOMTABLE,31)-VLOOKUP($E$18-$E$19,I_MOMTABLE,31))*($E$18-$E$19-INT($E$18-$E$19)))/2 -> 0 | Z40: ft-k | AI40: (AASHTO EQ. 10-101): | AJ40: =AJ39 -> 0 | AK40: =IF(+AJ40>+AL40,">","<") ->  | AL40: =(20000000*AO27)/((AO19)*(E20*1000)) ->  | AM40: =IF(+AJ40>+AL40,0,1) -> 
O41: Dead Load Moment on Stringer | X41: T3 = | Y41: =(VLOOKUP($E$18-$E$19,I_MOMTABLE,33)+(VLOOKUP($E$18-$E$19+1,I_MOMTABLE,33)-VLOOKUP($E$18-$E$19,I_MOMTABLE,33))*($E$18-$E$19-INT($E$18-$E$19)))/2 -> 0 | Z41: ft-k | AI41: =IF(AM40,"Section is Braced. Use 10.48.1 or 10.48.2 to calculate (Mu)nc","Section is a Partially Braced Section.") ->  | AJ41: =IF($AM$40<1,"CRITERIA CHECK NO GOOD","CRITERIA CHECK OK") ->  | AO41: Calculation of Transformed Composite Section Properties | AU41: Calculation of Transformed Composite Section Properties
B42: Analysis | O42: Deck + Misc. Deck Loads | P42: =(IFERROR(VLOOKUP($E$32,$O$32:$T$36,3,0),VLOOKUP($E$31,$O$32:$T$36,3,0))+IFERROR(VLOOKUP($E$32,$O$32:$T$36,6,0),VLOOKUP($E$31,$O$32:$T$36,6,0)))*$E$21 ->  | Q42: klf | X42: T3-S2 = | Y42: =(VLOOKUP($E$18-$E$19,I_MOMTABLE,34)+(VLOOKUP($E$18-$E$19+1,I_MOMTABLE,34)-VLOOKUP($E$18-$E$19,I_MOMTABLE,34))*($E$18-$E$19-INT($E$18-$E$19)))/2 -> 0 | Z42: ft-k | AI42: Deck Type Used: | AJ42: =IF(E31="Timber Deck","Timber Deck",IF(E31="Concrete Deck","Concrete Deck",E32)) -> 0 | AO42: N: | AP42: =TRUNC(29000000/((33*(150)^1.5)*SQRT(1000*$E$35))+0.5) -> 
B44: Stringer Capacity (CU) | G44: Live Load Moments (MLL) | O44: Beam | P44: =(($AR$38)/144)*0.49 -> 0 | Q44: klf | X44: T3-3 = | Y44: =(VLOOKUP($E$18-$E$19,I_MOMTABLE,35)+(VLOOKUP($E$18-$E$19+1,I_MOMTABLE,35)-VLOOKUP($E$18-$E$19,I_MOMTABLE,35))*($E$18-$E$19-INT($E$18-$E$19)))/2 -> 0 | Z44: ft-k | AI44: Min of Fy*Sxt or Fcr*Sxc*Rb = | AJ44: =MIN((AL35*AJ86*BD27/12),(E20*BC27/12)) ->  | AK44: in^3 | AL44: =IF(((AL35*AJ86*BD27/12)>(E20*BC27/12)),"<<<Fcr*Sxc*Rb","<<<Fy*Sxt") ->  | AO44: SLAB | AP44: =$AJ9/$AP$42 ->  | AQ44: =$E$33 -> 0 | AR44: =$AP$44*$AQ$44 ->  | AS44: =$AO$19+$AV$19+$AX$19-$E$36+$AQ$44/2 -> 0 | AT44: =$AR$44*$AS$44 ->  | AU44: =($AP$44*$AQ$44^3)/12 ->  | AV44: =$AR44*($AS44-$AS$46)^2 -> 
B45: CU = | D45: =IFERROR((AJ147),"") ->  | E45: k-ft | G45: Distributed Live Loads | O45: Misc Non-Comp Dead Load on Stringer | P45: =$E$23 -> 0 | Q45: klf | X45: NRL = | Y45: =(VLOOKUP($E$18-$E$19,I_MOMTABLE,32)+(VLOOKUP($E$18-$E$19+1,I_MOMTABLE,32)-VLOOKUP($E$18-$E$19,I_MOMTABLE,32))*($E$18-$E$19-INT($E$18-$E$19)))/2 -> 0 | Z45: ft-k | AI45: Controlling Mu (section 10.48.2) = | AJ45: =AJ44 ->  | AK45: ft-k | AO45: SUMMATION | AP45: DEPTHc1n | AQ45: =$AQ$38+$AQ$44 -> 0 | AR45: =$AR$38+$AR$44 ->  | AS45: AREAc | AT45: =$AT$38+$AT$44 ->  | AU45: =$AU$38+$AU$44 ->  | AV45: =$AV$38+$AV44+($AR45-$AR44)*($AS46-$AS$39)^2 -> 
B46: Cserv = | D46: =IFERROR((AJ148),"") ->  | E46: k-ft | I46: k-ft | K46: k-ft | O46: Misc Comp Dead Load on Stringer | P46: =$E$22 -> 0 | Q46: klf | AI46: Is interpolation needed? | AJ46: =IF(AL48="<<<Interpolate","Yes","No") ->  | AR46: Ybc | AS46: =$AT$45/$AR$45 ->  | AU46: MOIxc | AV46: =$AU$45+$AV$45 -> 
B47: Dead Load Moments (MDL) | G47: MLL HS: | I47: =IFERROR((Y54),"") ->  | J47: MLL T3: | K47: =IFERROR((Y63),"") ->  | O47: Fill/Wearing Surface | P47: =(IFERROR(VLOOKUP($E$32,$O$32:$T$36,4,0),VLOOKUP($E$31,$O$32:$T$36,4,0))+IFERROR(VLOOKUP($E$32,$O$32:$T$36,5,0),VLOOKUP($E$31,$O$32:$T$36,5,0)))*$E$21 ->  | Q47: klf | Z47: Overrides | AI47: Fy * Z = | AJ47: =$BF$27*E20/12 ->  | AK47: in^3 | AU47: Sxctn | AV47: =$AV$46/($AQ$45-$AS$46) -> 
B48: MDL = (1/8) * wDL * L2 | E48: k-ft | G48: MLL H: | I48: =IFERROR((Y55),"") ->  | J48: MLL T3S2: | K48: =IFERROR((Y64),"") ->  | O48: Total | P48: =SUM(P42:P47) ->  | Q48: klf | AI48: =IF(AND((AM36+AM37+AM40=3),AL48="<<<Interpolate",AJ26="CRITERIA CHECK NO GOOD"),"Interpolation between Fy*Z and Fy*Sxc or Fcr*Sxc*Rb=",IF(AJ26="CRITERIA CHECK OK","Compact, See Section Above",IF(AM37=0,"See Section Below",IF(AM36+AM37+AM40=3,"Fy * Z =",IF(AM40=0,"See Section Below","See Section Below"))))) ->  | AJ48: =IF(AI48="Interpolation between Fy*Z and Fy*Sxc or Fcr*Sxc*Rb=",((AJ47-(AJ47-AJ44)*(AJ36-(4110/(E20*1000)^(1/2)))/(AL36-(4110/(E20*1000)^(1/2))))),IF(AI48="Min of Fy*Sxt or Fcr*Sxc*Rb =",AJ44,IF(AI48="Fy * Z =",AJ47,"NA"))) ->  | AK48: ft-k | AL48: =IF(AND((AJ36>(4110/(E20*1000)^(1/2))),AJ36<=24,AM36+AM37+AM40=3),"<<<Interpolate","") ->  | AU48: Sxcbn | AV48: =$AV$46/($AS$46) -> 
B49: Mdeck = | E49: =IFERROR((($P$42)*($E$18-$E$19)^2/8),"") ->  | G49: MLL SU4: | I49: =IFERROR((Y57),"") ->  | J49: MLL T3-3: | K49: =IFERROR((Y65),"") ->  | AI49: =IF(AL48="<<<Interpolate","Controlling Mu (section 10.48.3) =",AI45) ->  | AJ49: =IF(E34="Y","N/A",IF(AJ26="CRITERIA CHECK OK","N/A",IF(AL48="<<<Interpolate",AJ48,AJ45))) ->  | AK49: ft-k
B50: Mbeam = | E50: =IFERROR((($P$44)*($E$18-$E$19)^2/8),"") -> 0 | G50: MLL SU5: | I50: =IFERROR((Y58),"") ->  | J50: MLL NRL: | K50: =IFERROR((Y66),"") ->  | O50: Noncomposite Dead Load Moment | P50: =IF(OR(UPPER(LEFT($E$35,1))="N",$E$35=""),(P42+P44+P45+P46+P47)*($E$18-$E$19)^2/8,(P42+P44+P45)*($E$18-$E$19)^2/8) ->  | Q50: ft-k | X50: Impact Factor = | Y50: =IF($Z$50<>0,$Z$50,$J$34) -> 1.3 | Z50: =$K$34 -> 0 | AO50: 3*N: | AP50: =3*$AP$42 -> 
B51: Mmisc comp DL = | E51: =IFERROR((($P$46)*($E$18-$E$19)^2/8),"") -> 0 | G51: MLL SU6: | I51: =IFERROR((Y59),"") ->  | J51: MLL EV2: | K51: =IFERROR((Y61),"") ->  | O51: Composite Dead Load Moment | P51: =IF(OR(UPPER(LEFT($E$35,1))="N",$E$35=""),0,(P46+P47)*($E$18-$E$19)^2/8) -> 0 | Q51: ft-k | X51: Distribution Factor = | Y51: =IF($Z$51<>0,$Z$51,IF($K$8=1,MAX(Y53:Z53),MAX(Y52:Z52))) ->  | Z51: =K31 -> 0 | AI51: Check Lateral Bracing requirements [per AASHTO 16th Edition (1996), Article 10.48.4]: | AO51: SLAB | AP51: =$AJ9/$AP$50 ->  | AQ51: =$E$33 -> 0 | AR51: =$AP$51*$AQ$51 ->  | AS51: =$AO$19+$AV$19+$AX$19-$E$36+$AQ$51/2 -> 0 | AT51: =$AR$51*$AS$51 ->  | AU51: =($AP$51*$AQ$51^3)/12 ->  | AV51: =$AR51*($AS51-$AS$53)^2 -> 
B52: Mmisc non-comp DL = | E52: =IFERROR((($P$45)*($E$18-$E$19)^2/8),"") -> 0 | G52: MLL SU7: | I52: =IFERROR((Y60),"") ->  | J52: MLL EV3: | K52: =IFERROR((Y62),"") ->  | O52: Total Dead Load Moment | P52: =P50+P51 ->  | Q52: ft-k | X52: Distribution Factor (multi-lane)= | Y52: =IF($J$28="Exterior","",$E$21/VLOOKUP($J$26,$W$20:$AC$26,5,0)) ->  | Z52: =IF($J$28="Exterior","",VLOOKUP($J$26,$W$20:$AC$26,7,0)) ->  | AI52: Lateral bracing (AASHTO EQ. 10-103a) Mu = Mr*Rb: | AO52: SUMMATION | AP52: DEPTHc3n | AQ52: =$AQ$38+$AQ$51 -> 0 | AR52: =$AR$38+$AR$51 ->  | AS52: AREAc | AT52: =$AT$38+$AT$51 ->  | AU52: =$AU$38+$AU$51 ->  | AV52: =$AV$38+$AV51+($AR52-$AR51)*($AS53-$AS$39)^2 -> 
B53: Mfill/wearing surface = | E53: =IFERROR((($P$47)*($E$18-$E$19)^2/8),"") ->  | X53: Distribution Factor (single-lane)= | Y53: =IF($J$28="Exterior","",$E$21/VLOOKUP($J$26,$W$20:$AC$26,2,0)) ->  | Z53: =IF($J$28="Exterior","",VLOOKUP($J$26,$W$20:$AC$26,4,0)) ->  | AR53: Ybc | AS53: =$AT$52/$AR$52 ->  | AU53: MOIxsc | AV53: =$AU$52+$AV$52 -> 
B54: MDL = | E54: =IFERROR((SUM(E49:E53)),"") -> 0 | X54: Distributed HS LL+I Moment = | Y54: =Y32*Y$50*Y$51 ->  | Z54: ft-k | AI54: (AASHTO 10.48.4.1) Iyc/Iy | AJ54: =(2*AR19*((AQ19/2)^3)/3)/AZ27 ->  | AK54: =IF(+AJ54>=+AL54,">=","<") ->  | AL54: 0.1 | AM54: =IF(+AJ54>=+AL54,1,0) ->  | AU54: Sxct3n | AV54: =$AV$53/($AQ$52-$AS$53) -> 
X55: Distributed H, LL+I Moment = | Z55: ft-k | AJ55: =(2*AR19*((AQ19/2)^3)/3)/AZ27 ->  | AK55: =IF(+AJ55<=+AL55,"<=",">") ->  | AL55: 0.9 | AM55: =IF(+AJ55<=+AL55,1,0) ->  | AU55: Sxcb3n | AV55: =$AV$53/($AS$53) -> 
X56: Distributed Concrete Truck or 80-KIP Truck LL+I Moment = | Z56: ft-k | AJ56: =IF(OR($AM$54<1,$AM$55<1),"CRITERIA CHECK NO GOOD","CRITERIA CHECK OK") -> 
B57: Additional Notes | X57: SU4 = | Z57: ft-k | AI57: Check Dc <= D/2: | AJ57: =AJ18 ->  | AK57: =IF(+AJ57<=+AL57,"<=",">") ->  | AL57: =AJ16/2 -> 0 | AM57: =IF(+AJ57<=+AL57,1,0) -> 
G58: € HS Ratings | X58: SU5 = | Z58: ft-k | AI58: λ: | AJ58: =IF(AM57,15400,12500) ->  | AR58: Fy (psi) input = | AS58: =E20*1000 -> 0
G59: HS Inventory: | J59: =IFERROR((MIN(AJ150:AJ151))*20,"") ->  | K59: =IFERROR((MIN(AJ150:AJ151)),"") ->  | X59: SU6 = | Z59: ft-k | AI59: Sxc: | AJ59: =IF(E34="Y","NA",BD27) ->  | AK59: in3
G60: HS Operating: | J60: =IFERROR((MIN(AJ152:AJ153))*20,"") ->  | K60: =IFERROR((MIN(AJ152:AJ153)),"") ->  | X60: SU7 = | Z60: ft-k | AI60: Lp : | AJ60: =9500*AJ61/(SQRT(E20*1000)) ->  | AK60: in | AQ60: Table 10.48.1.2a Limitations for Compact Sections
G61: ¥£ H RATING | X61: EV2 = | Z61: ft-k | AI61: Radius of gyration of compression flange about the vertical axis in the plane of the web r': | AJ61: =SQRT(AJ62/AO27) ->  | AK61: in | AR61: Fy (psi) | AS61: 36000 | AT61: 50000 | AU61: 70000
G62: H Inventory: | J62: =IFERROR((MIN(AJ155:AJ156))*20,"") ->  | K62: =IFERROR((MIN(AJ155:AJ156)),"") ->  | X62: EV3 = | Z62: ft-k | AI62: Moment of inetia of compression flange about the vertical axis in the plane of the web, Iyc: | AJ62: =(2*AR19*((AQ19/2)^3)/3) -> 0 | AK62: in4 | AR62: b/t | AS62: 21.7 | AT62: 18.4 | AU62: 15.5
G63: H Operating: | J63: =IFERROR((MIN(AJ157:AJ158))*20,"") ->  | K63: =IFERROR((MIN(AJ157:AJ158)),"") ->  | X63: T3 = | Z63: ft-k | AI63: d: | AJ63: =AO19+AV19+AX19 -> 0 | AK63: in | AR63: D/tw | AS63: 101 | AT63: 86 | AU63: 72
G64: AASHTO LEGAL LOADS RATING FACTORS | X64: T3-S2 = | Z64: ft-k | AI64: Lr | AJ64: =IF(E34="Y","NA",((572*(10^6)*AJ62*AJ63)/((E20*1000)*AJ59))^(1/2)) ->  | AK64: in | AR64: Lb/ry (M1/Mu = 0*) | AS64: 100 | AT64: 72 | AU64: 51
G65: SU4 Operating: | H65: =IFERROR(MIN(AJ172:AJ173),"") ->  | J65: TYPE 3: | K65: =IFERROR(ROUNDDOWN($J$60/20/VLOOKUP(ROUND($E$18-$E$19,0),'LIVE LOADS'!AJ8:AN309,3,FALSE),2),"") ->  | X65: T3-3 = | Y65: =Y44*Y$50*Y$51 ->  | Z65: ft-k | AI65: J: | AJ65: =((AQ19*AR19^3)+(AQ19*AS19^3)+(AJ16*AJ17^3))/3 -> 0 | AK65: in4 | AR65: Lb/ry (M1/Mu = 1*) | AS65: 39 | AT65: 28 | AU65: 20
G66: SU5 Operating: | H66: =IFERROR(MIN(AJ177:AJ178),"") ->  | J66: TYPE 3S2: | K66: =IFERROR(ROUNDDOWN($J$60/20/VLOOKUP(ROUND($E$18-$E$19,0),'LIVE LOADS'!AJ8:AN309,4,FALSE),2),"") ->  | X66: NRL = | Y66: =Y45*Y$50*Y$51 ->  | Z66: ft-k | AI66: Cb = | AJ66: 1 | AQ66: *For values of M1/Mu other than 0 and 1, use Equation (10-96)
G67: SU6 Operating: | H67: =IFERROR(MIN(AJ182:AJ183),"") ->  | J67: TYPE 3-3: | K67: =IFERROR(ROUNDDOWN($J$60/20/VLOOKUP(ROUND($E$18-$E$19,0),'LIVE LOADS'!AJ8:AN309,5,FALSE),2),"") ->  | AI67: =IF(AJ67=E28*12,"Bottom Flange Unbraced Length, Lb-b (ft) =","Top Flange Unbraced Length, Lb-b (ft) =") -> Bottom Flange Unbraced Length, Lb-b (ft) = | AJ67: =MAX(E28:E29)*12 -> 0 | AK67: in | AQ67: M1 = Smaller moment at the end of the unbraced length of the member
B68: € - | C68: =IFERROR(AK150 & AK151,"Strength Controls Ratings") -> Strength Controls Ratings | G68: SU7 Operating: | H68: =IFERROR(MIN(AJ187:AJ188),"") ->  | J68: NRL: | K68: =IFERROR(ROUNDDOWN($J$60/20/VLOOKUP(ROUND($E$18-$E$19,0),'LIVE LOADS'!AJ8:AN309,2,FALSE),2),"") ->  | AI68: Check AASHTO EQS. 10-103c, 10-103d, 10-103e, 10-103g for Mr determination:
B69: ¥ - | C69: Based on H-20 Rating | G69: EMERGENCY VEHICLE (EV) RATING FACTORS | AI69: For sections with (Dc / tw) ≤ (λ / √Fy) or with Longitudinally stiffened webs - (AASHTO EQ. 10-103c): | AJ69: =AJ18/AJ17 ->  | AK69: =IF(+AJ69<=+AL69,"<=",">") ->  | AL69: =AJ58/SQRT(E20*1000) ->  | AM69: =IF(+AJ69<=+AL69,1,0) -> 
B70: £ - | C70: =IFERROR(AK155 & AK156,"Strength Controls Ratings") -> Strength Controls Ratings | G70: EV2 Operating: | H70: =IFERROR(AJ192,"") ->  | J70: EV3 Operating: | K70: =IFERROR(AJ197,"") -> 
G71: See Formula 6-1a (MCEB) for the general Rating Formula. | AI71: For sections with (Dc / tw) ≤ (λ / √Fy): | AJ71: =IF($AM$69<1,"CRITERIA CHECK NO GOOD","CRITERIA CHECK OK") -> 
B72: *** DO NOT DISCLOSE *** THIS INFORMATION IS CONFIDENTIAL UNDER THE TEXAS HOMELAND SECURITY ACT AND 23 USC SECTION 409, SAFETY SENSITIVE INFORMATION | AI72: Mr: | AJ72: =IF(AM69=1,MIN(((91*(10^6))*AJ66*(AJ62/(AJ67))*SQRT(0.772*(AJ65/AJ62)+9.87*(AJ63/(AJ67))^2))/1000/12,E20*BD27/12),"NA") ->  | AK72: k-ft
AI73: For sections with (Dc / tw) > (λ / √Fy)(AASHTO EQ. 10-103d): | AJ73: =AJ67 -> 0 | AK73: =IF(AJ73<=AL73,"<=",">") ->  | AL73: =AJ60 ->  | AM73: =IF(+AJ73<=+AL73,1,0) -> 
AJ74: =IF($AM$73<1,"CRITERIA CHECK NO GOOD","CRITERIA CHECK OK") -> 
AI75: Mr = My: | AJ75: =IF(AM73,E20*BD27/12,"NA") ->  | AK75: k-ft
AI77: (AASHTO EQ. 10-103e): | AJ77: =AJ64 ->  | AK77: =IF(+AJ77>=+AL77,">=","<") ->  | AL77: =AJ67 -> 0 | AM77: =IF(+AJ77>=+AL77,1,0) -> 
AJ78: =AJ67 -> 0 | AK78: =IF(+AJ78>+AL78,">","<") ->  | AL78: =AJ60 ->  | AM78: =IF(+AJ78>=+AL78,1,0) -> 
AJ79: =IF(SUM($AM$77,$AM$78)<2,"CRITERIA CHECK NO GOOD","CRITERIA CHECK OK") -> 
AI80: Mr: | AJ80: =IF(OR(AM73=1,SUM(AM77,AM78)<2),"NA",(AJ66*E20*AJ59*(1-0.5*((AJ67-AJ60)/(AJ64-AJ60))))/12) ->  | AK80: k-ft
AI81: (AASHTO EQ. 10-103g): | AJ81: =AJ67 -> 0 | AK81: =IF(+AJ81>+AL81,">","<") ->  | AL81: =AJ64 ->  | AM81: =IF(+AJ81>+AL81,1,0) -> 
AJ82: =IF($AM$81<1,"CRITERIA CHECK NO GOOD","CRITERIA CHECK OK") -> 
AI83: =IF(OR(AM73=1,SUM(AM77,AM78)=2,AM81<1),"AASHTO EQ. 10-103g not applicable","Mr:") ->  | AJ83: =IF(OR(AM69,AM73,SUM(AM77,AM78)=2),"NA",IF(AM81=1,AJ66*(((E20)*AJ59)/2)*(AJ64/(AJ67))^2,0)/12) ->  | AK83: k-ft
AI84: Afc: | AJ84: =AO27 -> 0 | AK84: in2
AI85: Mr (used) = | AJ85: =IF(AM69=1,AJ72,IF(AM73=1,AJ75,IF(AM77+AM78=2,AJ80,IF(AM81=1,AJ83)))) -> 
AI86: (AASHTO EQ. 10-103b) Rb: | AJ86: =MIN(1,(1-0.002*(AJ18*AJ17/AJ84)*(AJ18/AJ17-AJ58/SQRT(AJ85/AJ59)))) -> 
AI87: Mu | AJ87: =IF(E34="Y","NA",(AJ85*AJ86)) ->  | AK87: k-ft
AI88: Equivalent Sx, (Mu/Fy): | AJ88: =12*AJ87/E20 ->  | AK88: in3
AI91: The checks performed here apply to both non-composite and composite sections, however Dc of a
AI92: composite section is calculated per the provisions of AASHTO 10.50 (b), assuming the positive moment
AI93: region is stressed to point of first yield.
AI94: For Composite Action:
AI95: Moment to bring Composite Section to First Yield:
AI97: Sxncb = | AJ97: =$BC$27 ->  | AK97: in3
AI98: Sxcbn = | AJ98: =$AV$48 ->  | AK98: in3
AI99: Sxcb3n = | AJ99: =$AV$55 ->  | AK99: in3
AI100: My = Sxcbn*Fy/12+ncDLMoment*(1-Sxcbn/Sxbnc)+compDLMoment(1-Sxcbn/Sxcb3n) = | AJ100: =AJ98*E20/12+$P$50*(1-AJ98/AJ97)+$P$51*(1-AJ98/AJ99) ->  | AK100: ft-k
AI101: Top Flange (top fiber) Stress at First Yield Moment = | AJ101: =12*P50/$BD$27+12*P51/$AV$54+($AQ$38-$AS$46)*(($AJ$102-(12*P50/$BD$27+12*P51/$AV$55))/$AS$46) ->  | AK101: ksi Comp
AI102: Bott Flange (bottom fiber) Stress at First Yield Moment = | AJ102: =$E$20 -> 0 | AK102: ksi Tension
AI103: Dc = | AJ103: =$AQ$38*$AJ$101/($AJ$102+$AJ$101)-$E$25-$K$21 ->  | AK103: in
AI104: (AASHTO EQ. 10-103b-2): | AJ104: =$AJ$103/$AJ$17 ->  | AK104: =IF(+$AJ104<=+$AL104,"<=",">") ->  | AL104: =IF(AJ103<=(K18-K21-K22)/2,15400,12500)/(1000*$E$20)^0.5 ->  | AO104: Is Dc less than or equal to d/2?
AI105: =IF(RIGHT($AJ$105,2)="OK","","Section violates both AASHTO 10.48.2; beyond the scope of this spreadsheet.") ->  | AJ105: =IF(+$AJ104<=+$AL104,"CRITERIA CHECK OK","CRITERIA CHECK NO GOOD") ->  | AO105: =IF(AJ103<=(K18-K21-K22)/2,"YES, use 15,400 for Lambda","No, use 12,500 for Lamda") -> 
AI106: Fully Plastic Moment (fillets conservatively excluded from section):
AI107: d = | AJ107: =$AQ$38 -> 0 | AK107: in
AI108: ts = | AJ108: =$E$33 -> 0 | AK108: in
AI109: th = | AJ109: =-$E$36 -> 0 | AK109: in
AI110: H = | AJ110: =SUM($AJ$107:$AJ$109) -> 0 | AK110: in
AI111: D = | AJ111: =$AJ$16 -> 0 | AK111: in
AI112: Area Sum of Flanges, Cover Plates, and Web (stringer) = | AJ112: =$E$25*$E$24+($K$21+$K$22)*$K$20+$AJ$111*$K$19+$E$27*$E$26 -> 0 | AK112: in2 <-- Does not include areas of fillets
AI114: C (AASHTO EQ. 10-123) = | AJ114: =0.85*$E$35*$AJ$9*$AJ$108 -> 0 | AK114: kips
AI115: C (AASHTO EQ. 10-124) = | AJ115: =$AJ$112*$E$20 -> 0 | AK115: kips
AI116: =IF(AJ115>AJ114,"Climit (slab controlled) =","Climit (stringer controlled) =") -> Climit (stringer controlled) = | AJ116: =MINA($AJ$114:$AJ$115) -> 0 | AK116: kips
AI117: a (AASHTO EQ. 10-125; conservatively excluding reinforcement in compression region of slab) = | AJ117: =$AJ$116/0.85/$E$35/$AJ$9 ->  | AK117: in
AI118: C' (AASHTO EQ. 10-126) = | AJ118: =MAXA(($AJ$115-$AJ$114)/2,0) -> 0 | AK118: kips
AI120: (AFy)tcp = | AJ120: =$E$25*$E$24*$E$20 -> 0 | AK120: kips
AI121: (AFy)tf = | AJ121: =$K$21*$K$20*$E$20 -> 0 | AK121: kips
AI122: (AFy)w = | AJ122: =$K$19*$AJ$111*$E$20 -> 0 | AK122: kips
AI124: Compressed portion of top cover plate (AASHTO EQ. 10-127) = | AJ124: =MINA(($AJ$118/MAXA(0.00001,$AJ$120))*$E$25,$E$25) -> 0 | AK124: in <--measured from top of tcp, if any
AI125: Compressed portion of top flange (AASHTO EQ. 10-127) = | AJ125: =MAXA(0,MINA((($AJ$118-$AJ$120*$AJ$124/MAXA(0.00001,$E$25))/$AJ$121)*$K$21,$K$21)) ->  | AK125: in <--measured from top of tf
AI126: Dcp=Compressed portion of web (AASHTO EQ. 10-128) = | AJ126: =MAXA(0,MINA((($AJ$118-$AJ$120*$AJ$124/MAXA(0.00001,$E$25)-$AJ$121*$AJ$125/MAXA(0.00001,$K$21))/$AJ$122)*$K$19,$K$19)) ->  | AK126: in <--measured from top of w
AI127: yt = | AJ127: =SUM($AJ$124:$AJ$126) ->  | AK127: in <--measured from top of tcp, if any, or tf
AI128: yb = | AJ128: =$AJ$107-$AJ$127 ->  | AK128: in <--measured from bot of bcp, if any, or bf
AI129: Dp = | AJ129: =IF($AJ$127=0,$AJ$117,$AJ$108+$AJ$109+$AJ$127) ->  | AK129: in
AI130: Centroid of Max Plastic Compressive Force in Steel = | AJ130: =($AJ$124^2*$E$24/2+($AJ$124+$AJ$125/2)*$AJ$125*$K$20+($AJ$127-$AJ$126/2)*$AJ$126*$K$19)/MAXA(0.00001,($AJ$118/$E$20)) ->  | AK130: in <--measured from top of tcp, if any, or tf
AI131: Centroid of Max Plastic Tension Force in Steel = | AJ131: =((MAXA(0,$AJ$108+$AJ$109-$AJ$129)+$AJ$128-$E$27/2)*$AS$27+(MAXA(0,$AJ$108+$AJ109-$AJ$129)+$AJ$128-$E$27-$K$22/2)*$AP$27+(MAXA(0,$AJ$108+$AJ$109-$AJ$129)+$AJ$128-$E$27-$K$22-($AJ$111-$AJ$126)/2)*($AJ$111-$AJ$126)*$K$19+(MAXA(0,$AJ$108+$AJ$109-$AJ$129)+$AJ$128-$E$27-$K$22-$AJ$111-($K$21-$AJ$125)/2)*($K$21-$AJ$125)*$K$20+(MAXA(0,$AJ$108+$AJ$109-$AJ129)+($E$25-$AJ$124)/2)*($E$25-$AJ$124)*$E$24)/($AS$27+$AP$27+($AJ$111-$AJ$126)*$K$19+($K$21-$AJ$125)*$K$20+($E$25-$AJ$124)*$E$24) ->  | AK131: in <--measured from neutral axis of fully plastic section
AI132: Max Plastic Compression Moment = | AJ132: =((MAXA($AJ$129,$AJ$108+$AJ$109)-$AJ$117/2)*$AJ$116+$AJ$118*($AJ$127-$AJ$130))/12 ->  | AK132: ft-k
AI133: Max Plastic Tension Moment = | AJ133: =($AS$27+$AP$27+($AJ$111-$AJ$126)*$K$19+($K$21-$AJ$125)*$K$20+($E$25-$AJ124)*$E$25)*$E$20*$AJ$131/12 ->  | AK133: ft-k
AI134: Mp = | AJ134: =$AJ$132+$AJ$133 ->  | AK134: ft-k
AI135: Check for Compact Section (AASHTO EQ. 10-129) = | AJ135: =2*$AJ$126/$K$19 ->  | AK135: =IF(+$AJ135<=+$AL135,"<=",">") ->  | AL135: =19230/(1000*$E$20)^0.5 ->  | AM135: =IF($AJ$135>$AL$135,"NO GOOD","OK") -> 
AI136: Check for Compact Section (AASHTO EQ. 10-129a) = | AJ136: =$AJ$129/$AJ$137 ->  | AK136: =IF($AJ136>5,"> 5","<= 5") ->  | AM136: =IF($AJ$136>5,"NO GOOD","OK") -> 
AI137: D' for Compact Section (AASHTO EQ. 10-129a) = | AJ137: =IF($E$20<=36,0.9,0.7)*$AJ$110/7.5 -> 0 | AK137: in
AI138: Controlling Ultimate Moment Capacity:
AI139: =IF(RIGHT($AJ$41,2)="OK",(IF(UPPER(LEFT($E$35,1))="N","Cu = Mp =",IF(RIGHT($AJ$105,2)="OK",IF(OR($AM$135="NO GOOD",$AM$136="NO GOOD"),"Cu = My =",IF($AJ$136<1,"Cu = Mp =","Cu = Mu ="))))),"Requirements of AASHTO Article 10.48.1 and 10.48.2 violated.") ->  | AJ139: =IF(AND(OR(UPPER(LEFT($E$34,1))="N",$E$34=""),RIGHT($AJ$26,2)="OK",RIGHT($AJ$41,2)="OK"),$AJ$49,(IF(AND(OR(UPPER(LEFT($E$34,1))="N",$E$34=""),RIGHT($AJ$41,7)="NO GOOD"),$AJ$87,IF(RIGHT($AJ$105,2)="OK",IF(OR($AM$135="NO GOOD",$AM$136="NO GOOD"),AJ100,IF($AJ$136<1,AJ134,(5*AJ134-0.85*AJ100)/4+((0.85*AJ100-AJ134)/4)*$AJ$129/$AJ$137)),"NA")))) ->  | AK139: ft-k | AL139: =IF(RIGHT($AJ$26,2)="OK",(IF(OR(UPPER(LEFT($E$35,1))="N",$E$35=""),"<---Non-Composite Section",IF(RIGHT($AJ$105,2)="OK",IF(OR($AM$135="NO GOOD",$AM$136="NO GOOD"),"<--- EQ. 10-129 Controlled Composite Section and/or EQ. 10-129a Controlled Composite Section, thus, Composite Section Controlled by First Yeild Moment",IF($AJ$136<1,"<---Fully Plastic Moment Allowed on Composite Section","<---Partially Plastic Moment Allowed on Composite Section"))))),"Requirements of AASHTO Article 10.48.1 and 10.48.2 violated.") -> 
AI140: Determination of Serviceable Moment Capacity (as per AASHTO 10.57.2):
AI141: 0.8*FySxncmin = | AJ141: =IF(E34="Y","N/A",(E20/12*MIN(BC27:BD27)*0.8)) ->  | AK141: ft-k | AL141: <---Non-Composite Section
AI142: 0.95*My = | AJ142: =0.95*AJ100 ->  | AK142: ft-k | AL142: <---Composite Section
AI143: Mserv = | AJ143: =IF(OR(UPPER(LEFT($E$34,1))="N",$E$34=""),$AJ$141,$AJ$142) ->  | AK143: ft-k | AL143: <---Controls
AI144: Rating Factors:
AI145: Sxncb = | AJ145: =$BC$27 ->  | AK145: in^3
AI146: Sxscb = | AJ146: =$AV$55 ->  | AK146: in^3
AI147: Cu = | AJ147: =IF(E34="Y",AJ139,IF(AJ26="CRITERIA CHECK OK",AJ27,IF(AM36+AM37+AM40=3,AJ49,AJ87))) ->  | AK147: ft-k | AL147: =IF(E35="Y","Section 10.50 Controls",IF(AJ26="CRITERIA CHECK OK","Section 10.48.1 Controls",IF(AM36+AM37+AM40=3,"Section 10.48.2 Controls","Section 10.48.4 Controls"))) -> 
AI148: Cserv= | AJ148: =$AJ$143 ->  | AK148: ft-k | AL148: =IF(E35="Y","Section 10.50 Controls",IF(AJ26="CRITERIA CHECK OK","Section 10.48.1 Controls",IF(AM36+AM37+AM40=3,"Section 10.48.2 Controls","Section 10.48.4 Controls"))) -> 
AI150: HS Load Factor Inventory Rating Factor--> | AJ150: =($AJ$147-1.3*$P$52)/(2.17*$Y$54) ->  | AK150: =IF(AJ150<=AJ151,"Strength Controls Ratings","") -> 
AI151: HS Serviceable Inventory Rating Factor--> | AJ151: =($AJ$148-$P$52)/(5*$Y$54/3) ->  | AK151: =IF(AJ151<AJ150,"AASHTO 10.57 (Serviceability) Controls Ratings","") -> 
AI152: HS Load Factor Operating Rating--> | AJ152: =AJ150*2.17/1.3 -> 
AI153: HS Serviceable Operating Rating--> | AJ153: =AJ151*1.67 -> 
AI155: H Load Factor Inventory Rating Factor--> | AJ155: =($AJ$147-1.3*$P$52)/(2.17*$Y$55) ->  | AK155: =IF(AJ155<=AJ156,"Strength Controls Ratings","") -> 
AI156: H Serviceable Inventory Rating Factor--> | AJ156: =($AJ$148-$P$52)/(5*$Y$55/3) ->  | AK156: =IF(AJ156<AJ155,"AASHTO 10.57 (Serviceability) Controls Ratings","") -> 
AI157: H Load Factor Operating Rating--> | AJ157: =AJ155*2.17/1.3 -> 
AI158: H Serviceable Operating Rating--> | AJ158: =AJ156*1.67 -> 
AI165: Concrete Truck or 80-KIP Truck, Load Factor Inventory Rating Factor--> | AJ165: =($AJ$147-1.3*$P$52)/(2.17*$Y$56) ->  | AK165: =IF(AJ165<=AJ166,"Strength Controls Ratings","") -> 
AI166: Concrete Truck or 80-KIP Truck, Serviceable Inventory Rating Factor--> | AJ166: =($AJ$148-$P$52)/(5*$Y$56/3) ->  | AK166: =IF(AJ166<AJ165,"AASHTO 10.57 (Serviceability) Controls Ratings","") -> 
AI167: Concrete Truck or 80-KIP Truck, Load Factor Operating Rating--> | AJ167: =AJ165*2.17/1.3 -> 
AI168: Concrete Truck or 80-KIP Truck, Serviceable Operating Rating--> | AJ168: =AJ166*1.67 -> 
AI170: SU4 Load Factor Inventory Rating Factor--> | AJ170: =($AJ$147-1.3*$P$52)/(2.17*$Y$57) ->  | AK170: =IF(AJ170<=AJ171,"Strength Controls Ratings","") -> 
AI171: SU4 Serviceable Inventory Rating Factor--> | AJ171: =($AJ$148-$P$52)/(5*$Y$57/3) ->  | AK171: =IF(AJ171<AJ170,"AASHTO 10.57 (Serviceability) Controls Ratings","") -> 
AI172: SU4 Load Factor Operating Rating--> | AJ172: =AJ170*2.17/1.3 -> 
AI173: SU4 Serviceable Operating Rating--> | AJ173: =AJ171*1.67 -> 
AI175: SU5 Load Factor Inventory Rating Factor--> | AJ175: =($AJ$147-1.3*$P$52)/(2.17*$Y$58) ->  | AK175: =IF(AJ175<=AJ176,"Strength Controls Ratings","") -> 
AI176: SU5 Serviceable Inventory Rating Factor--> | AJ176: =($AJ$148-$P$52)/(5*$Y$58/3) ->  | AK176: =IF(AJ176<AJ175,"AASHTO 10.57 (Serviceability) Controls Ratings","") -> 
AI177: SU5 Load Factor Operating Rating--> | AJ177: =AJ175*2.17/1.3 -> 
AI178: SU5 Serviceable Operating Rating--> | AJ178: =AJ176*1.67 -> 
AI180: SU6 Load Factor Inventory Rating Factor--> | AJ180: =($AJ$147-1.3*$P$52)/(2.17*$Y$59) ->  | AK180: =IF(AJ180<=AJ181,"Strength Controls Ratings","") -> 
AI181: SU6 Serviceable Inventory Rating Factor--> | AJ181: =($AJ$148-$P$52)/(5*$Y$59/3) ->  | AK181: =IF(AJ181<AJ180,"AASHTO 10.57 (Serviceability) Controls Ratings","") -> 
AI182: SU6 Load Factor Operating Rating--> | AJ182: =AJ180*2.17/1.3 -> 
AI183: SU6 Serviceable Operating Rating--> | AJ183: =AJ181*1.67 -> 
AI185: SU7 Load Factor Inventory Rating Factor--> | AJ185: =($AJ$147-1.3*$P$52)/(2.17*$Y$60) ->  | AK185: =IF(AJ185<=AJ186,"Strength Controls Ratings","") -> 
AI186: SU7 Serviceable Inventory Rating Factor--> | AJ186: =($AJ$148-$P$52)/(5*$Y$60/3) ->  | AK186: =IF(AJ186<AJ185,"AASHTO 10.57 (Serviceability) Controls Ratings","") -> 
AI187: SU7 Load Factor Operating Rating--> | AJ187: =AJ185*2.17/1.3 -> 
AI188: SU7 Serviceable Operating Rating--> | AJ188: =AJ186*1.67 -> 
AI190: EV2 Load Factor Inventory Rating Factor--> | AJ190: =($AJ$147-1.3*$P$52)/(2.17*$Y$61) ->  | AK190: =IF(AJ190<=AJ191,"Strength Controls Ratings","") -> 
AI191: EV2 Serviceable Inventory Rating Factor--> | AJ191: =($AJ$148-$P$52)/(5*$Y$61/3) ->  | AK191: =IF(AJ191<AJ190,"AASHTO 10.57 (Serviceability) Controls Ratings","") -> 
AI192: EV2 Load Factor Operating Rating--> | AJ192: =AJ190*2.17/$Q$26 -> 
AI193: EV2 Serviceable Operating Rating--> | AJ193: =AJ191*5/3 -> 
AI195: EV3 Load Factor Inventory Rating Factor--> | AJ195: =($AJ$147-1.3*$P$52)/(2.17*$Y$62) ->  | AK195: =IF(AJ195<=AJ196,"Strength Controls Ratings","") -> 
AI196: EV3 Serviceable Inventory Rating Factor--> | AJ196: =($AJ$148-$P$52)/(5*$Y$62/3) ->  | AK196: =IF(AJ196<AJ195,"AASHTO 10.57 (Serviceability) Controls Ratings","") -> 
AI197: EV3 Load Factor Operating Rating--> | AJ197: =AJ195*2.17/$Q$27 -> 
AI198: EV3 Serviceable Operating Rating--> | AJ198: =AJ196*5/3 -> 
AI200: T3 Load Factor Inventory Rating Factor--> | AJ200: =($AJ$147-1.3*$P$52)/(2.17*$Y$63) ->  | AK200: =IF(AJ200<=AJ201,"Strength Controls Ratings","") -> 
AI201: T3 Serviceable Inventory Rating Factor--> | AJ201: =($AJ$148-$P$52)/(5*$Y$63/3) ->  | AK201: =IF(AJ201<AJ200,"AASHTO 10.57 (Serviceability) Controls Ratings","") -> 
AI202: T3 Load Factor Operating Rating--> | AJ202: =AJ200*2.17/1.3 -> 
AI203: T3 Serviceable Operating Rating--> | AJ203: =AJ201*1.67 -> 
AI205: T3-S2 Load Factor Inventory Rating Factor--> | AJ205: =($AJ$147-1.3*$P$52)/(2.17*$Y$64) ->  | AK205: =IF(AJ205<=AJ206,"Strength Controls Ratings","") -> 
AI206: T3-S2 Serviceable Inventory Rating Factor--> | AJ206: =($AJ$148-$P$52)/(5*$Y$64/3) ->  | AK206: =IF(AJ206<AJ205,"AASHTO 10.57 (Serviceability) Controls Ratings","") -> 
AI207: T3-S2 Load Factor Operating Rating--> | AJ207: =AJ205*2.17/1.3 -> 
AI208: T3-S2 Serviceable Operating Rating--> | AJ208: =AJ206*1.67 -> 
AI210: T3-3 Load Factor Inventory Rating Factor--> | AJ210: =($AJ$147-1.3*$P$52)/(2.17*$Y$65) ->  | AK210: =IF(AJ210<=AJ211,"Strength Controls Ratings","") -> 
AI211: T3-3 Serviceable Inventory Rating Factor--> | AJ211: =($AJ$148-$P$52)/(5*$Y$65/3) ->  | AK211: =IF(AJ211<AJ210,"AASHTO 10.57 (Serviceability) Controls Ratings","") -> 
AI212: T3-3 Load Factor Operating Rating--> | AJ212: =AJ210*2.17/1.3 -> 
AI213: T3-3 Serviceable Operating Rating--> | AJ213: =AJ211*1.67 -> 
AI215: NRL Load Factor Inventory Rating Factor--> | AJ215: =($AJ$147-1.3*$P$52)/(2.17*$Y$66) ->  | AK215: =IF(AJ215<=AJ216,"Strength Controls Ratings","") -> 
AI216: NRL Serviceable Inventory Rating Factor--> | AJ216: =($AJ$148-$P$52)/(5*$Y$66/3) ->  | AK216: =IF(AJ216<AJ215,"AASHTO 10.57 (Serviceability) Controls Ratings","") -> 
AI217: NRL Load Factor Operating Rating--> | AJ217: =AJ215*2.17/1.3 -> 
AI218: NRL Serviceable Operating Rating--> | AJ218: =AJ216*1.67 -> 

Sheet Steel Stringer (Simple) (2) (hidden)
B1: TBLRP-LFR Spreadsheet
B2: Simple Span Steel Stringer | O2: Lever Rule = | P2: lever rule calc
AD3: Deck Module for Dead Loads Options | BK3: Deck Properties Input Options
H4: Date: | K4: =TODAY() -> 2024-11-13 | AD4: No Deck Import | AI4: Determination of Controlling Moment Capacities & Rating Factors | AO4: Calculation of Non-Composite Stringer Properties | AT4: Calculation of Non-Composite Stringer Properties | BA4: Calculation of Non-Composite Stringer Properties | BK4: Concrete Deck | BL4: Steel Corrugated Deck | BM4: Steel Plate | BN4: Steel Open Grid Deck | BO4: Timber Plank | BP4: Nail Laminated Timbers | BQ4: Glue Laminated Timbers
H5: Rating Engineer's Initials: | K5: =eng_initials -> TxDOT | AD5: ='Dead Load Calcs and Tables'!$E$11 -> Concrete Deck | AI5: Effective Width of Concrete Slab (as per AASHTO 10.38.3): | BJ5: Deck Options | BK5: Deck Thickness (in): | BL5: Designation | BM5: Designation | BN5: Open Grid Depth (in): | BO5: Plank Depth (in): | BP5: Timber Depth (in): | BQ5: Timber Depth (in):
H6: Version: | K6: =version_no -> 4.0.5 | AD6: ='Dead Load Calcs and Tables'!$E$12 -> Steel Deck | AI6: L/4 = | AJ6: =($E$18-$E$19)/4*12 -> 0 | AK6: in | AO6: ****PUBLISHED ROLLED SECTION DIMENSIONS/PROPERTIES**** | AW6: ****PUBLISHED ROLLED SECTION DIMENSIONS/PROPERTIES**** | BK6: f'c (ksi): | BL6: Weight of Corrugation (ksf): | BM6: Steel Plate Thickness (in): | BN6: Weight of Open Grid (ksf): | BO6: Fill Depth above top of deck (in): | BP6: Fill Depth above top of deck (in): | BQ6: Fill Depth above top of deck (in):
B7: Bridge Information | S7: Concrete Deck Allowable Compressive Stress | AD7: ='Dead Load Calcs and Tables'!$E$13 -> Steel Deck (2) | AI7: Slab*12 = | AJ7: =IF($J$26=$O$32,$E$33*12,"") ->  | AK7: in | AP7: Area | AQ7: Depth | AR7: WEB | AS7: FLANGE | AU7: FILLET | AV7: M A J O R A X I S | AY7: M I N O R A X I S | BK7: Fill Depth above top of deck (in): | BL7: Fill Depth above top of deck (in): | BM7: Fill Depth above top of deck (in): | BO7: Unit weight of fill material (kcf): | BP7: Unit weight of fill material (kcf): | BQ7: Unit weight of fill material (kcf):
B8: District: | C8: =district -> Tyler (10) | G8: AADT ®: | H8: =AADT -> 50 | J8: # of Lanes: | K8: =no_lanes -> 1 | S8: Date Built | T8: Compressive Stress | AD8: ='Dead Load Calcs and Tables'!$E$14 -> Timber Deck | AI8: Beam Spacing = | AJ8: =$E$21*12 -> 0 | AK8: in | AO8: Section | AP8: Section | AQ8: Section | AR8: THK | AS8: WIDTH | AT8: THK | AU8: RADIUS | AV8: Moment of Inertia | AW8: Elastic Sect. | AX8: Plastic Sect. | AY8: Moment of | AZ8: Elastic Sect. | BA8: Radius of | BK8: Unit weight of fill material (kcf): | BL8: Unit weight of fill material (kcf): | BM8: Unit weight of fill material (kcf):
B9: County: | C9: =county -> Anderson (001) | G9: Truck % (1% MIN): | H9: =truck_pct -> 0.01 | S9: Before 1959 | T9: 2.5 | U9: KSI | AD9: ='Dead Load Calcs and Tables'!$E$15 -> Timber Deck (2) | AI9: Effective Width = | AJ9: =MINA(AJ6:AJ8) -> 0 | AK9: in | AO9: Designation | AV9: Ix | AW9: Modulus, Sx | AX9: Modulus, Zx | AY9: Inertia, Ix | AZ9: Modulus, Sx | BA9: Gyration, ry | BK9: Composite Action (Y/N):
B10: Structure # : | C10: =struct_no -> CCCC-SS-SSS | G10: EV Daily Crossing: | H10: =EV_crossing -> 1 | J10: (1 or 10) One Direction | S10: 1959-1982 | T10: 3 | U10: KSI | AD10: ='Dead Load Calcs and Tables'!$E$16 -> 0 | AP10: (in^2) | AQ10: (in) | AR10: (in) | AS10: (in) | AT10: (in) | AU10: (in) | AV10: (in^4) | AW10: (in^3) | AX10: (in^3) | AY10: (in^4) | AZ10: (in^3) | BA10: (in^4) | BK10: Slab Embedment (in):
B11: Location: | C11: =br_descrip -> xx Over xx | G11: Year Built: | H11: =yr_built -> 2000 | S11: 1982-1993 | T11: 3.6 | U11: KSI | AI11: For Non-Composite Action [per AASHTO 16th Edition (1996), Articles 10.48.1, "Compact Sections"]: | AO11: =$J$17 -> 0 | AP11: =IF(ISERR(VLOOKUP($AO$11,Rolled_Section_Data,4,FALSE)),NA(),VLOOKUP($AO$11,Rolled_Section_Data,4,FALSE)) ->  | AQ11: =IF(ISERR(VLOOKUP($AO$11,Rolled_Section_Data,5,FALSE)),NA(),VLOOKUP($AO$11,Rolled_Section_Data,5,FALSE)) ->  | AR11: =IF(ISERR(VLOOKUP($AO$11,Rolled_Section_Data,6,FALSE)),NA(),VLOOKUP($AO$11,Rolled_Section_Data,6,FALSE)) ->  | AS11: =IF(ISERR(VLOOKUP($AO$11,Rolled_Section_Data,7,FALSE)),NA(),VLOOKUP($AO$11,Rolled_Section_Data,7,FALSE)) ->  | AT11: =IF(ISERR(VLOOKUP($AO$11,Rolled_Section_Data,8,FALSE)),NA(),VLOOKUP($AO$11,Rolled_Section_Data,8,FALSE)) ->  | AU11: =IF(ISERR(VLOOKUP($AO$11,Rolled_Section_Data,9,FALSE)),NA(),VLOOKUP($AO$11,Rolled_Section_Data,9,FALSE)) ->  | AV11: =IF(ISERR(VLOOKUP($AO$11,Rolled_Section_Data,10,FALSE)),NA(),VLOOKUP($AO$11,Rolled_Section_Data,10,FALSE)) ->  | AW11: =IF(ISERR(VLOOKUP($AO$11,Rolled_Section_Data,11,FALSE)),NA(),VLOOKUP($AO$11,Rolled_Section_Data,11,FALSE)) ->  | AX11: =IF(ISERR(VLOOKUP($AO$11,Rolled_Section_Data,12,FALSE)),NA(),VLOOKUP($AO$11,Rolled_Section_Data,12,FALSE)) ->  | AY11: =IF(ISERR(VLOOKUP($AO$11,Rolled_Section_Data,13,FALSE)),NA(),VLOOKUP($AO$11,Rolled_Section_Data,13,FALSE)) ->  | AZ11: =IF(ISERR(VLOOKUP($AO$11,Rolled_Section_Data,14,FALSE)),NA(),VLOOKUP($AO$11,Rolled_Section_Data,14,FALSE)) ->  | BA11: =IF(ISERR(VLOOKUP($AO$11,Rolled_Section_Data,15,FALSE)),NA(),VLOOKUP($AO$11,Rolled_Section_Data,15,FALSE)) -> 
G12: Stringer Descr: | S12: After 1993 | T12: 4 | U12: KSI
S13: Recommended Design Compressive Strength (KSI) | U13: =IF(VALUE($H$11)<1959,T9,IF(VALUE($H$11)<1982,T10,IF(VALUE($H$11)<1993,T11,T12))) -> 4 | AI13: b' = | AJ13: =$K$20/2 -> 0 | AK13: in
B14: Stringer Inputs | AI14: tft = | AJ14: =$K$21 -> 0 | AK14: in | AO14: ****INPUT DIMENSIONS**** | AR14: ****INPUT DIMENSIONS**** | AV14: ****INPUT DIMENSIONS****
AO15: Rolled Section Depth (in) | AP15: Web Thick. (in) | AQ15: Flange Width (in) | AR15: Top Flange Thick. (in) | AS15: Bottom Flange Thick. (in) | AT15: Fillet Radius (in) | AU15: Top Cover Plate Width (in) | AV15: Top Cover Plate Thick. (in) | AW15: Bot Cover Plate Width (in) | AX15: Bot Cover Plate Thick. (in)
B16: DATA INPUT TABLE | G16: STRINGER PROPERTIES | O16: EV LIVE LOAD FACTOR | S16: Structural Steel Allowable Yield Stress | X16: Single Lane | AA16: 2 or More Lanes | AI16: D = | AJ16: =($K$18-$K$21-$K$22) -> 0 | AK16: in
B17: Span ID: | G17: Standard Beam Designation: | P17: EV Crossing = | Q17: =$H$10 -> 1 | S17: Date Built | T17: Yield Stress | X17: S/? | Y17: Use footnote f if S exceeds (ft) | Z17: Footnote f LLDF | AA17: S/? | AB17: Use footnote f if S exceeds (ft) | AC17: Footnote f S/? | AI17: tw = | AJ17: =$K$19 -> 0 | AK17: in | BK17: Concrete Deck | BL17: Steel Deck | BM17: Timber Deck
B18: Span Length (ft): | G18: Rolled Section Depth (in): | P18: ADTT = | Q18: =$H$8*$H$9 -> 0.5 | S18: Before 1905 | T18: 26 | U18: KSI | AI18: Dc = | AJ18: =$AX$27-$E$25-$K$21 ->  | AK18: in | BK18: Deck Thickness (in): | BL18: Designation | BM18: Timber Depth (in):
B19: Span Bearing Length Deduct (ft): | G19: Web Thickness (in): | P19: EV3 Operating LL Factor (1 crossing) = | Q19: 1.1 | S19: 1905-1936 | T19: 30 | U19: KSI | AH19: Compact check for non-composite section. | AI19: (AASHTO EQ. 10-93): | AJ19: =$AJ$13/$AJ$14 ->  | AK19: =IF(+$AJ19<=+$AL19,"<=",">") ->  | AL19: =2055/(1000*$E$20)^0.5 ->  | AM19: =IF(+$AJ19<=+$AL19,1,0) ->  | AO19: =$K$18 -> 0 | AP19: =$K$19 -> 0 | AQ19: =$K$20 -> 0 | AR19: =$K$21 -> 0 | AS19: =$K$22 -> 0 | AT19: =$K$23 -> 0 | AU19: =$E$24 -> 0 | AV19: =$E$25 -> 0 | AW19: =$E$26 -> 0 | AX19: =$E$27 -> 0 | BL19: Weight of Corrugation (ksf):
B20: Fy (ksi): | G20: Flange Width (in): | P20: EV2 Operating LL Factor (1 crossing) = | Q20: =IF(AND(Q18>0,Q18<1000),1.1,IF(OR(Q18=0,Q18>6000),1.3,(1.3-1.1)*(Q18-1000)/5000+1.1)) -> 1.1 | S20: 1936-1963 | T20: 33 | U20: KSI | W20: Concrete Deck | X20: 7 | Y20: 10 | Z20: =IF(ISBLANK($Y20),0,IF($E$21>$Y20,1+($E$21-6)/$E$21,0)) -> 0 | AA20: 5.5 | AB20: 14 | AC20: =IF(ISBLANK($AB20),0,IF($E$21>$AB20,1+($E$21-6)/$E$21+($E$21-4)/$E$21+IF($E$21>10,($E$21-10)/$E$21,0),0)) -> 0 | AI20: (AASHTO EQ. 10-94): | AJ20: =$AJ$16/$AJ$17 ->  | AL20: =19230/(1000*$E$20)^0.5 ->  | BK20: Fill Weight (ksf): | BL20: Fill Weight (ksf): | BM20: Fill Weight (ksf):
B21: Stringer Spacing (ft): | G21: Top Flange Thickness (in): | P21: EV3 Operating LL Factor (10 crossing) = | Q21: =IF(AND(Q18>0,Q18<1000),1.1,IF(OR(Q18=0,Q18>6000),1.2,(1.2-1.1)*(Q18-1000)/5000+1.1)) -> 1.1 | S21: After 1963 | T21: 36 | U21: KSI | W21: Steel Corrugated Deck | X21: 5.5 | Z21: 0 | AA21: 4.5 | AC21: 0 | AI21: 3/4*(AASHTO EQ. 10-93): | AJ21: =$AJ$13/$AJ$14 ->  | AL21: =0.75*(2055/(1000*$E$20)^0.5) ->  | BK21: Composite Action (Y/N):
B22: Misc. Comp Dead Load per Beam (k/ft): | G22: Bottom Flange Thickness (in): | P22: EV2 Operating LL Factor (10 crossing) = | Q22: =IF(AND(Q18>0,Q18<1000),1.1,IF(OR(Q18=0,Q18>6000),1.5,(1.5-1.1)*(Q18-1000)/5000+1.1)) -> 1.1 | S22: Recommended Design Yield Strength (KSI) | U22: =IF(VALUE($H$11)<=1905,T18,IF(VALUE($H$11)<=1936,T19,IF(VALUE($H$11)<=1963,T20,T21))) -> 36 | W22: Steel Plate | X22: 5.5 | Z22: 0 | AA22: 4.5 | AC22: 0 | AI22: 3/4*(AASHTO EQ. 10-94): | AJ22: =$AJ$16/$AJ$17 ->  | AL22: =0.75*(19230/(1000*$E$20)^0.5) ->  | AO22: ****CALCULATED PROPERTIES**** | AS22: ****CALCULATED PROPERTIES**** | AW22: ****CALCULATED PROPERTIES**** | BA22: ****CALCULATED PROPERTIES**** | BD22: ****CALCULATED PROPERTIES**** | BK22: Slab Embedment (in):
B23: Misc. Non-Comp Dead Load per Beam (k/ft): | G23: Compact Override (Y/N): | J23: Fillet Radius (in): | P23: Min lanes = | Q23: =$K$8 -> 1 | W23: Steel Open Grid Deck | X23: =IF($K$27>4,6,4.5) -> 4.5 | Y23: =IF($K$27>4,6,"") ->  | Z23: 0 | AA23: =IF($K$27>4,5,4) -> 4 | AB23: =IF($K$27>4,10.5,"") ->  | AC23: 0 | AI23: (AASHTO EQ. 10-95): | AJ23: =$AJ16/$AJ$17+9.35*$AJ$13/$AJ$14 ->  | AL23: =33650/(1000*$E$20)^0.5 ->  | AO23: AREA | AP23: AREA | AQ23: AREA | AR23: AREA | AS23: AREA | AT23: AREA | AU23: TOTAL | AV23: DIST TO CENTROID | AW23: CENTROID | AX23: CENTROID | AY23: MOIx | AZ23: MOIy | BA23: ROGx | BB23: ROGy | BC23: Bottom Fiber | BD23: Top Fiber | BE23: Minor Axis | BF23: MAJOR | BK23: f'c (ksi): | BL23: Steel Deck Type
B24: Top Cover Plate Width (in): | G24: Section Modulus (in^3): | K24: =IFERROR(MIN(BC27:BD27),"") ->  | P24: EV2 Operating LL Factor Override = | Q24: =K32 -> 0 | W24: Timber Plank | X24: 4 | Z24: 0 | AA24: 3.75 | AC24: 0 | AI24: (AASHTO EQ. 10-96): | AJ24: =IF(OR(AJ25="Timber Deck",AJ25="Steel Open Grid Deck"),(E29*12/BB27),0) -> 0 | AL24: =(3.6-2.2*1)*10^6/(E20*1000) ->  | AO24: TOP | AP24: BOT | AQ24: WEB | AR24: TOP | AS24: BOT | AT24: EACH | AU24: AREA | AV24: OF FILLETS FROM | AW24: DIST | AX24: DIST | AY24: Major Axis | AZ24: Minor Axis | BA24: Major Axis | BB24: Minor Axis | BC24: Elastic Modulus | BD24: Elastic Modulus | BE24: Elastic Modulus | BF24: AXIS
B25: Top Cover Plate Thickness (in): | G25: LIVE LOAD FACTORS | P25: EV2 Operating LL Factor Override = | Q25: =K33 -> 0 | W25: Nail Laminated Timbers | X25: =IF($K$27>6,5,4.5) -> 4.5 | Y25: =IF($K$27>6,5,"") ->  | Z25: 0 | AA25: =IF($K$27>6,4.25,4) -> 4 | AB25: =IF($K$27>6,6.5,"") ->  | AC25: 0 | AI25: Deck Type Used: | AJ25: =IF(E31="Timber Deck","Timber Deck",IF(E31="Concrete Deck","Concrete Deck",E32)) -> 0 | AO25: FLANGE | AP25: FLANGE | AR25: COV PLT | AS25: COV PLT | AT25: FILLET | AU25: A | AV25: TOP&BOT OF WEB | AW25: Yb | AX25: Yt | AY25: Ix | AZ25: Iy | BA25: rx | BB25: ry | BC25: Major Axis, Sxb | BD25: Major Axis, Sxt | BE25: Sy | BF25: Z
B26: Bottom Cover Plate Width (in): | G26: Deck Type for LLDF: | M26: =IF(AND(E34="Y",J26<>"Concrete Deck"),"<<<DECK ERROR","") ->  | P26: EV2 Operating LL Factor = | Q26: =IF(Q24<>0,Q24,IF(Q23<2,1.3,IF(Q17=1,Q20,Q22))) -> 1.3 | W26: Glue Laminated Timbers | X26: =IF($K$27>4,5.25,4.5) -> 4.5 | Y26: =IF($K$27>4,5.5,"") ->  | Z26: 0 | AA26: =IF($K$27>4,4.5,4) -> 4 | AB26: =IF($K$27>4,7,"") ->  | AC26: 0 | AI26: If above criteria is met then (Mu)nc = Fy*Z: | AJ26: =IF($AM$19+$AM$20+AM24<3,"CRITERIA CHECK NO GOOD",IF(AND($AM$21+$AM$22=0,$AM$23=0), "CRITERIA CHECK NO GOOD","CRITERIA CHECK OK")) ->  | AO26: (in^2) | AP26: (in^2) | AQ26: (in^2) | AR26: (in^2) | AS26: (in^2) | AT26: (in^2) | AU26: (in^2) | AV26: (in) | AW26: (in) | AX26: (in) | AY26: (in^4) | AZ26: (in^4) | BA26: (in^4) | BB26: (in^4) | BC26: (in^3) | BD26: (in^3) | BE26: (in^3) | BF26: (in^3)
B27: Bottom Cover Plate Thickness (in): | G27: Thickness of Deck (in): | P27: EV3 Operating LL Factor = | Q27: =IF(Q25<>0,Q25,IF(Q23<2,1.3,IF(Q17=1,Q19,Q21))) -> 1.3 | AI27: =IF(AJ26="CRITERIA CHECK NO GOOD","See Section Below","(Mu)nc = Fy*Z:") ->  | AJ27: =IF(AJ26="CRITERIA CHECK OK",AJ29*E20/12,"NA") ->  | AK27: ft-k | AO27: =AQ19*AR19 -> 0 | AP27: =AQ19*AS19 -> 0 | AQ27: =(AO19-AR19-AS19)*AP19 -> 0 | AR27: =AU19*AV19 -> 0 | AS27: =AW19*AX19 -> 0 | AT27: =((AT19)^2)*(1-PI()/4) -> 0 | AU27: =SUM(AO27:AS27)+4*AT27 -> 0 | AV27: =((AT19^3)*(0.5-PI()*(1-4/3/PI())/4))/MAXA(0.00001,AT27) -> 0 | AW27: =$AS$39 ->  | AX27: =AX19+AO19+AV19-AW27 ->  | AY27: =$AV$39 ->  | AZ27: =$AW$38 -> 0 | BA27: =SQRT($AV$39/$AR$38) ->  | BB27: =SQRT($AW$38/$AR$38) ->  | BC27: =$AY$27/$AW$27 ->  | BD27: =$AY$27/$AX$27 ->  | BE27: =$AZ$27/($AP$39/2) ->  | BF27: =($AW$27-$AX$19/2)*$AS$27+($AW$27-$AX$19-$AS$19/2)*$AP$27+($AW$27-$AX$19-$AS$19-$AV$27)*2*$AT$27+((($AW$27-$AX$19-$AS$19)^2)/2)*$AP$19+((($AX$27-$AV$19-$AR$19)^2)/2)*$AP$19+($AX$27-$AV$19-$AR$19-$AV$27)*2*$AT$27+($AX$27-$AV$19-$AR$19/2)*$AO$27+($AX$27-$AV$19/2)*$AR$27 -> 
B28: Bottom Flange Unbraced Length, Lb-b (ft): | E28: =E18-E19 -> 0 | G28: Stringer Location: | J28: Interior | AI28: Fy = | AJ28: =E20 -> 0 | AK28: ksi
B29: Top Flange Unbraced Length, Lb-t (ft): | E29: =E18-E19 -> 0 | J29: Calculated | K29: Override | X29: Live Load Moments | AC29: Deck Selected | AD29: =E31 -> 0 | AI29: Z = | AJ29: =$BF$27 ->  | AK29: in^3 | AV29: NON-COMPOSITE SECTION
B30: DECK INPUTS | G30: LLDF Calc = S / | J30: =IFERROR(IF($J$28="Exterior","Exterior",IF($K$8=1,IF($Z$53<$Y$53,VLOOKUP($J$26,$W$20:$AC$26,2,0),"footnote f"),IF($K$8>1,IF($Z$52<$Y$52,VLOOKUP($J$26,$W$20:$AC$26,5,0),"footnote f"),""))),"More info needed") -> More info needed | O30: Deck Dead Load Calc | X30: (Based on values from worksheets LIVE LOADS) | AC30: LLDF Options | AD30: =IF($AD$29="User Input Dead Loads",W20,IF(OR($AD$29="Timber Deck",$AD$29="Timber Deck (2)"),W24,IF(OR($AD$29="Steel Deck",$AD$29="Steel Deck (2)"),W21,W20))) -> Concrete Deck | AO30: SUBRECTANGLE | AP30: b | AQ30: h | AR30: a | AS30: y | AT30: ay | AU30: i | AV30: a(y-ybar)^2 | AW30: iminor
D31: Import Values from Defined Deck Module: | G31: LL Moment Distribution Factor: | J31: =IFERROR(IF($J$28="Exterior",$P$2,IF($K$8=1,MAX(Y53:Z53),MAX(Y52:Z52))),"More info needed") -> More info needed | P31: Self | Q31: Self OR | R31: Fill | S31: Wearing | T31: Misc Loads | AD31: =IF($AD$29="User Input Dead Loads",W21,IF(OR($AD$29="Timber Deck",$AD$29="Timber Deck (2)"),W25,IF(OR($AD$29="Steel Deck",$AD$29="Steel Deck (2)"),W22,""))) ->  | AO31: BOT COV PLT | AP31: =$AW$19 -> 0 | AQ31: =$AX$19 -> 0 | AR31: =$AP31*$AQ31 -> 0 | AS31: =$AQ$31/2 -> 0 | AT31: =$AR31*$AS31 -> 0 | AU31: =(AP31*AQ31^3)/12 -> 0 | AV31: =$AR31*($AS31-$AS$39)^2 ->  | AW31: =($AQ31*$AP31^3)/12 -> 0
D32: Deck Type: | E32: =IF($E$31=$AD$10,'User Input Dead Loads'!$E$17,IF($E$31=$AD$6,'Steel Deck'!E17,"")) -> 0 | G32: EV2 Operating LL Factor: | J32: =IF(Q23<2,1.3,IF(Q17=1,Q20,Q22)) -> 1.3 | O32: Concrete Deck | P32: =IF(E32=O32,0.15*$E$33/12,IF($E$31=O32,'Dead Load Calcs and Tables'!$G$11,"")) ->  | Q32: =IF($P32="","",$E$37) ->  | R32: =IF(OR($E$31=O32,$E$32=O32),$E$38,"") ->  | S32: =IF(OR($E$31=O32,$E$32=O32),$E$39,"") ->  | T32: =IF(OR($E$31=O32,$E$32=O32),$E$40,"") ->  | U32: ksf | X32: HS Moment (one line of wheels)= | Y32: =(VLOOKUP($E$18-$E$19,I_MOMTABLE,22)+(VLOOKUP($E$18-$E$19+1,I_MOMTABLE,22)-VLOOKUP($E$18-$E$19,I_MOMTABLE,22))*($E$18-$E$19-INT($E$18-$E$19)))/2 -> 0 | Z32: ft-k | AD32: =IF($AD$29="User Input Dead Loads",W22,IF(OR($AD$29="Timber Deck",$AD$29="Timber Deck (2)"),W26,IF(OR($AD$29="Steel Deck",$AD$29="Steel Deck (2)"),W23,""))) ->  | AO32: BOT FLANGE | AP32: =$AQ$19 -> 0 | AQ32: =$AS$19 -> 0 | AR32: =$AP32*$AQ32 -> 0 | AS32: =$AS$31+$AQ$31/2+$AQ$32/2 -> 0 | AT32: 0 | AU32: =(AP32*AQ32^3)/12 -> 0 | AW32: =($AQ32*$AP32^3)/12 -> 0
D33: =IF(OR(E32="Steel Corrugated Deck",E32="Steel Open Grid Deck"),"Deck Designation:","Deck Thickness (in):") -> Deck Thickness (in): | E33: =IF($E$31=$AD$5,'Concrete Deck'!$E$18,IF(AND($E$31=$AD$6,OR($E$32=$O$33,$E$32=$O$35)),'Steel Deck'!$E$18:$F$18,IF(AND($E$31=$AD$6,$E$32=$O$34),'Steel Deck'!$E$20,IF($E$31=$AD$8,'Timber Deck'!$E$19,IF($E$31=$AD$10,IF($E$32=$O$34,'User Input Dead Loads'!$E$19,'User Input Dead Loads'!$E$18),""))))) -> 0 | G33: EV3 Operating LL Factor: | J33: =IF(Q23<2,1.3,IF(Q17=1,Q19,Q21)) -> 1.3 | O33: Steel Corrugated Deck | P33: =IFERROR(IF(AND($E$31="No Deck Import",$E$32=$O$33),VLOOKUP($E$33,'Steel Deck'!$AM$6:$AW$20,8,FALSE),IF($E$32=$O$33,VLOOKUP($E$31,'Dead Load Calcs and Tables'!$E$11:$O$16,3,0),"")),0) ->  | Q33: =IF($P33="","",$E$37) ->  | R33: =IF(OR($E$31=O33,$E$32=O33),$E$38,"") ->  | S33: =IF(OR($E$31=O33,$E$32=O33),$E$39,"") ->  | T33: =IF(OR($E$31=O33,$E$32=O33),$E$40,"") ->  | U33: ksf | X33: H Moment (one line of wheels)= | Y33: =(VLOOKUP($E$18-$E$19,I_MOMTABLE,23)+(VLOOKUP($E$18-$E$19+1,I_MOMTABLE,23)-VLOOKUP($E$18-$E$19,I_MOMTABLE,23))*($E$18-$E$19-INT($E$18-$E$19)))/2 -> 0 | Z33: ft-k | AD33: =IF($AD$29="User Input Dead Loads",W23,IF(OR($AD$29="Timber Deck",$AD$29="Timber Deck (2)"),"",IF(OR($AD$29="Steel Deck",$AD$29="Steel Deck (2)"),"",""))) ->  | AO33: BOT FILLETS | AR33: =2*$AT$27 -> 0 | AS33: =$AQ$31+$AQ$32+$AV$27 -> 0 | AT33: 0
D34: Composite Action (Y/N): | G34: Impact Factor (I): | J34: =_xlfn.LET(_xlpm.LLDF, 1+(50/(($E$18-$E$19)+125)), IF(_xlpm.LLDF > 1.3, 1.3, _xlpm.LLDF)) -> 1.3 | O34: Steel Plate Deck | P34: =IF(E32=O34,0.49*$E$33/12,IF($E$32=$O$34,VLOOKUP($E$31,'Dead Load Calcs and Tables'!$E$11:$O$16,3,0),"")) ->  | Q34: =IF($P34="","",$E$37) ->  | R34: =IF(OR($E$31=O34,$E$32=O34),$E$38,"") ->  | S34: =IF(OR($E$31=O34,$E$32=O34),$E$39,"") ->  | T34: =IF(OR($E$31=O34,$E$32=O34),$E$40,"") ->  | U34: ksf | X34: Concrete Truck or 80-KIP Truck Moment (one line of wheels)= | Y34: =(VLOOKUP($E$18-$E$19,I_MOMTABLE,21)+(VLOOKUP($E$18-$E$19+1,I_MOMTABLE,21)-VLOOKUP($E$18-$E$19,I_MOMTABLE,21))*($E$18-$E$19-INT($E$18-$E$19)))/2 -> 0 | Z34: ft-k | AD34: =IF($AD$29="User Input Dead Loads",W24,IF(OR($AD$29="Timber Deck",$AD$29="Timber Deck (2)"),"",IF(OR($AD$29="Steel Deck",$AD$29="Steel Deck (2)"),"",""))) ->  | AI34: For Non-Composite Action [per AASHTO 16th Edition (1996), Articles 10.48.2, "Braced noncompact Sections"]: | AO34: WEB | AP34: =$AP$19 -> 0 | AQ34: =$AO$19-$AQ$32-$AQ$36 -> 0 | AR34: =$AP34*$AQ34 -> 0 | AS34: =$AS$32+$AQ$32/2+$AQ$34/2 -> 0 | AT34: 0 | AU34: =(AP34*AQ34^3)/12 -> 0 | AW34: =($AQ34*$AP34^3)/12 -> 0
D35: f'c (ksi): | O35: Steel Open Grid Deck | P35: =IFERROR(IF(AND($E$31="No Deck Import",$E$32=$O$35),VLOOKUP($E$33,'Steel Deck'!$AM$28:$AY$35,4,FALSE),IF($E$32=$O$35,VLOOKUP($E$31,'Dead Load Calcs and Tables'!$E$11:$O$16,3,0),"")),0) ->  | Q35: =IF($P35="","",$E$37) ->  | R35: =IF(OR($E$31=O35,$E$32=O35),$E$38,"") ->  | S35: =IF(OR($E$31=O35,$E$32=O35),$E$39,"") ->  | T35: =IF(OR($E$31=O35,$E$32=O35),$E$40,"") ->  | U35: ksf | X35: SU4 = | Y35: =(VLOOKUP($E$18-$E$19,I_MOMTABLE,25)+(VLOOKUP($E$18-$E$19+1,I_MOMTABLE,25)-VLOOKUP($E$18-$E$19,I_MOMTABLE,25))*($E$18-$E$19-INT($E$18-$E$19)))/2 -> 0 | Z35: ft-k | AD35: =IF($AD$29="User Input Dead Loads",W25,IF(OR($AD$29="Timber Deck",$AD$29="Timber Deck (2)"),"",IF(OR($AD$29="Steel Deck",$AD$29="Steel Deck (2)"),"",""))) ->  | AJ35: Fcr = | AL35: =MIN(E20,((4400*AR19/AQ19)^2/1000)) ->  | AO35: BOT FILLETS | AR35: =2*$AT$27 -> 0 | AS35: =$AQ$31+$AQ$32+$AQ$34-$AV$27 -> 0 | AT35: 0
D36: Slab Embedment (in): | O36: Timber Deck | P36: =IF(E32=O36,0.05*$E$33/12,IF($E$31=$O$36,VLOOKUP($E$31,'Dead Load Calcs and Tables'!$E$11:$O$16,3,0),"")) ->  | Q36: =IF($P36="","",$E$37) ->  | R36: =IF(OR($E$31=O36,$E$32=O36),$E$38,"") ->  | S36: =IF(OR($E$31=O36,$E$32=O36),$E$39,"") ->  | T36: =IF(OR($E$31=O36,$E$32=O36),$E$40,"") ->  | U36: ksf | X36: SU5 = | Y36: =(VLOOKUP($E$18-$E$19,I_MOMTABLE,26)+(VLOOKUP($E$18-$E$19+1,I_MOMTABLE,26)-VLOOKUP($E$18-$E$19,I_MOMTABLE,26))*($E$18-$E$19-INT($E$18-$E$19)))/2 -> 0 | Z36: ft-k | AD36: =IF($AD$29="User Input Dead Loads",W26,IF(OR($AD$29="Timber Deck",$AD$29="Timber Deck (2)"),"",IF(OR($AD$29="Steel Deck",$AD$29="Steel Deck (2)"),"",""))) ->  | AI36: (AASHTO EQ. 10-100): | AJ36: =$AQ$19/$AR$19 ->  | AK36: =IF(+$AJ36<=+$AL36,"<=",">") ->  | AL36: 24 | AM36: =IF(+$AJ36<=+$AL36,1,0) ->  | AO36: TOP FLANGE | AP36: =$AQ$19 -> 0 | AQ36: =$AR$19 -> 0 | AR36: =$AP36*$AQ36 -> 0 | AS36: =$AS$34+$AQ$34/2+$AQ$36/2 -> 0 | AT36: 0 | AU36: =(AP36*AQ36^3)/12 -> 0 | AW36: =($AQ36*$AP36^3)/12 -> 0
D37: Deck Weight (ksf): | E37: =IFERROR(INDEX($P$32:$P$38,IFERROR(MATCH($E$31,$O$32:$O$38,0),MATCH($E$32,$O$32:$O$38,0))),0) -> 0 | X37: SU6 = | Y37: =(VLOOKUP($E$18-$E$19,I_MOMTABLE,27)+(VLOOKUP($E$18-$E$19+1,I_MOMTABLE,27)-VLOOKUP($E$18-$E$19,I_MOMTABLE,27))*($E$18-$E$19-INT($E$18-$E$19)))/2 -> 0 | Z37: ft-k | AI37: (AASHTO EQ. 10-100b): | AJ37: =AJ16/AJ17 ->  | AK37: =IF(+$AJ37<=+$AL37,"<=",">") ->  | AL37: 150 | AM37: =IF(+$AJ37<=+$AL37,1,0) ->  | AO37: TOP COV PLT | AP37: =$AU$19 -> 0 | AQ37: =$AV$19 -> 0 | AR37: =$AP37*$AQ37 -> 0 | AS37: =$AS$36+$AQ$36/2+$AQ$37/2 -> 0 | AT37: 0 | AU37: =(AP37*AQ37^3)/12 -> 0 | AW37: =($AQ37*$AP37^3)/12 -> 0
D38: Fill Weight (ksf): | E38: =IFERROR(VLOOKUP($E$31,'Dead Load Calcs and Tables'!$E$11:$J$16,4,0),0) -> 0 | X38: SU7 = | Y38: =(VLOOKUP($E$18-$E$19,I_MOMTABLE,28)+(VLOOKUP($E$18-$E$19+1,I_MOMTABLE,28)-VLOOKUP($E$18-$E$19,I_MOMTABLE,28))*($E$18-$E$19-INT($E$18-$E$19)))/2 -> 0 | Z38: ft-k | AI38: If instead the criteria below is met then (Mu)nc = Fy*S: | AJ38: =IF($AM$36+$AM$37<2,"CRITERIA CHECK NO GOOD","CRITERIA CHECK OK") ->  | AO38: SUMMATION | AP38: DEPTHnc | AQ38: =SUM($AQ$31:$AQ$37) -> 0 | AR38: =SUM($AR$31:$AR$37) -> 0 | AS38: AREAnc | AT38: =SUM($AT$31:$AT$37) -> 0 | AU38: =SUM($AU$31:$AU$37) -> 0 | AV38: =SUM($AV$31:$AV$37) ->  | AW38: =SUM($AW$31:$AW$37) -> 0 | AX38: MOIync
D39: Wearing Surface Weight (ksf): | E39: =IFERROR(VLOOKUP($E$31,'Dead Load Calcs and Tables'!$E$11:$J$16,5,0),0) -> 0 | X39: EV2 = | Y39: =(VLOOKUP($E$18-$E$19,I_MOMTABLE,30)+(VLOOKUP($E$18-$E$19+1,I_MOMTABLE,30)-VLOOKUP($E$18-$E$19,I_MOMTABLE,30))*($E$18-$E$19-INT($E$18-$E$19)))/2 -> 0 | Z39: ft-k | AI39: Unbraced length Lb-t = | AJ39: =IF(OR(AJ42="Timber Deck",AJ42="Steel Open Grid Deck"),(E29*12),0) -> 0 | AK39: in | AO39: MAX WIDTH | AP39: =MAXA(AP31:AP37) -> 0 | AR39: Ybnc | AS39: =$AT$38/$AR$38 ->  | AU39: MOIxnc | AV39: =$AU$38+$AV$38 -> 
D40: Misc. Loads (ksf): | E40: =IFERROR(VLOOKUP($E$31,'Dead Load Calcs and Tables'!$E$11:$J$16,6,0),0) -> 0 | X40: EV3 = | Y40: =(VLOOKUP($E$18-$E$19,I_MOMTABLE,31)+(VLOOKUP($E$18-$E$19+1,I_MOMTABLE,31)-VLOOKUP($E$18-$E$19,I_MOMTABLE,31))*($E$18-$E$19-INT($E$18-$E$19)))/2 -> 0 | Z40: ft-k | AI40: (AASHTO EQ. 10-101): | AJ40: =AJ39 -> 0 | AK40: =IF(+AJ40>+AL40,">","<") ->  | AL40: =(20000000*AO27)/((AO19)*(E20*1000)) ->  | AM40: =IF(+AJ40>+AL40,0,1) -> 
O41: Dead Load Moment on Stringer | X41: T3 = | Y41: =(VLOOKUP($E$18-$E$19,I_MOMTABLE,33)+(VLOOKUP($E$18-$E$19+1,I_MOMTABLE,33)-VLOOKUP($E$18-$E$19,I_MOMTABLE,33))*($E$18-$E$19-INT($E$18-$E$19)))/2 -> 0 | Z41: ft-k | AI41: =IF(AM40,"Section is Braced. Use 10.48.1 or 10.48.2 to calculate (Mu)nc","Section is a Partially Braced Section.") ->  | AJ41: =IF($AM$40<1,"CRITERIA CHECK NO GOOD","CRITERIA CHECK OK") ->  | AO41: Calculation of Transformed Composite Section Properties | AU41: Calculation of Transformed Composite Section Properties
B42: Analysis | O42: Deck + Misc. Deck Loads | P42: =(IFERROR(VLOOKUP($E$32,$O$32:$T$36,3,0),VLOOKUP($E$31,$O$32:$T$36,3,0))+IFERROR(VLOOKUP($E$32,$O$32:$T$36,6,0),VLOOKUP($E$31,$O$32:$T$36,6,0)))*$E$21 ->  | Q42: klf | X42: T3-S2 = | Y42: =(VLOOKUP($E$18-$E$19,I_MOMTABLE,34)+(VLOOKUP($E$18-$E$19+1,I_MOMTABLE,34)-VLOOKUP($E$18-$E$19,I_MOMTABLE,34))*($E$18-$E$19-INT($E$18-$E$19)))/2 -> 0 | Z42: ft-k | AI42: Deck Type Used: | AJ42: =IF(E31="Timber Deck","Timber Deck",IF(E31="Concrete Deck","Concrete Deck",E32)) -> 0 | AO42: N: | AP42: =TRUNC(29000000/((33*(150)^1.5)*SQRT(1000*$E$35))+0.5) -> 
B44: Stringer Capacity (CU) | G44: Live Load Moments (MLL) | O44: Beam | P44: =(($AR$38)/144)*0.49 -> 0 | Q44: klf | X44: T3-3 = | Y44: =(VLOOKUP($E$18-$E$19,I_MOMTABLE,35)+(VLOOKUP($E$18-$E$19+1,I_MOMTABLE,35)-VLOOKUP($E$18-$E$19,I_MOMTABLE,35))*($E$18-$E$19-INT($E$18-$E$19)))/2 -> 0 | Z44: ft-k | AI44: Min of Fy*Sxt or Fcr*Sxc*Rb = | AJ44: =MIN((AL35*AJ86*BD27/12),(E20*BC27/12)) ->  | AK44: in^3 | AL44: =IF(((AL35*AJ86*BD27/12)>(E20*BC27/12)),"<<<Fcr*Sxc*Rb","<<<Fy*Sxt") ->  | AO44: SLAB | AP44: =$AJ9/$AP$42 ->  | AQ44: =$E$33 -> 0 | AR44: =$AP$44*$AQ$44 ->  | AS44: =$AO$19+$AV$19+$AX$19-$E$36+$AQ$44/2 -> 0 | AT44: =$AR$44*$AS$44 ->  | AU44: =($AP$44*$AQ$44^3)/12 ->  | AV44: =$AR44*($AS44-$AS$46)^2 -> 
B45: CU = | D45: =IFERROR((AJ147),"") ->  | E45: k-ft | G45: Distributed Live Loads | O45: Misc Non-Comp Dead Load on Stringer | P45: =$E$23 -> 0 | Q45: klf | X45: NRL = | Y45: =(VLOOKUP($E$18-$E$19,I_MOMTABLE,32)+(VLOOKUP($E$18-$E$19+1,I_MOMTABLE,32)-VLOOKUP($E$18-$E$19,I_MOMTABLE,32))*($E$18-$E$19-INT($E$18-$E$19)))/2 -> 0 | Z45: ft-k | AI45: Controlling Mu (section 10.48.2) = | AJ45: =AJ44 ->  | AK45: ft-k | AO45: SUMMATION | AP45: DEPTHc1n | AQ45: =$AQ$38+$AQ$44 -> 0 | AR45: =$AR$38+$AR$44 ->  | AS45: AREAc | AT45: =$AT$38+$AT$44 ->  | AU45: =$AU$38+$AU$44 ->  | AV45: =$AV$38+$AV44+($AR45-$AR44)*($AS46-$AS$39)^2 -> 
B46: Cserv = | D46: =IFERROR((AJ148),"") ->  | E46: k-ft | I46: k-ft | K46: k-ft | O46: Misc Comp Dead Load on Stringer | P46: =$E$22 -> 0 | Q46: klf | AI46: Is interpolation needed? | AJ46: =IF(AL48="<<<Interpolate","Yes","No") ->  | AR46: Ybc | AS46: =$AT$45/$AR$45 ->  | AU46: MOIxc | AV46: =$AU$45+$AV$45 -> 
B47: Dead Load Moments (MDL) | G47: MLL HS: | I47: =IFERROR((Y54),"") ->  | J47: MLL T3: | K47: =IFERROR((Y63),"") ->  | O47: Fill/Wearing Surface | P47: =(IFERROR(VLOOKUP($E$32,$O$32:$T$36,4,0),VLOOKUP($E$31,$O$32:$T$36,4,0))+IFERROR(VLOOKUP($E$32,$O$32:$T$36,5,0),VLOOKUP($E$31,$O$32:$T$36,5,0)))*$E$21 ->  | Q47: klf | Z47: Overrides | AI47: Fy * Z = | AJ47: =$BF$27*E20/12 ->  | AK47: in^3 | AU47: Sxctn | AV47: =$AV$46/($AQ$45-$AS$46) -> 
B48: MDL = (1/8) * wDL * L2 | E48: k-ft | G48: MLL H: | I48: =IFERROR((Y55),"") ->  | J48: MLL T3S2: | K48: =IFERROR((Y64),"") ->  | O48: Total | P48: =SUM(P42:P47) ->  | Q48: klf | AI48: =IF(AND((AM36+AM37+AM40=3),AL48="<<<Interpolate",AJ26="CRITERIA CHECK NO GOOD"),"Interpolation between Fy*Z and Fy*Sxc or Fcr*Sxc*Rb=",IF(AJ26="CRITERIA CHECK OK","Compact, See Section Above",IF(AM37=0,"See Section Below",IF(AM36+AM37+AM40=3,"Fy * Z =",IF(AM40=0,"See Section Below","See Section Below"))))) ->  | AJ48: =IF(AI48="Interpolation between Fy*Z and Fy*Sxc or Fcr*Sxc*Rb=",((AJ47-(AJ47-AJ44)*(AJ36-(4110/(E20*1000)^(1/2)))/(AL36-(4110/(E20*1000)^(1/2))))),IF(AI48="Min of Fy*Sxt or Fcr*Sxc*Rb =",AJ44,IF(AI48="Fy * Z =",AJ47,"NA"))) ->  | AK48: ft-k | AL48: =IF(AND((AJ36>(4110/(E20*1000)^(1/2))),AJ36<=24,AM36+AM37+AM40=3),"<<<Interpolate","") ->  | AU48: Sxcbn | AV48: =$AV$46/($AS$46) -> 
B49: Mdeck = | E49: =IFERROR((($P$42)*($E$18-$E$19)^2/8),"") ->  | G49: MLL SU4: | I49: =IFERROR((Y57),"") ->  | J49: MLL T3-3: | K49: =IFERROR((Y65),"") ->  | AI49: =IF(AL48="<<<Interpolate","Controlling Mu (section 10.48.3) =",AI45) ->  | AJ49: =IF(E34="Y","N/A",IF(AJ26="CRITERIA CHECK OK","N/A",IF(AL48="<<<Interpolate",AJ48,AJ45))) ->  | AK49: ft-k
B50: Mbeam = | E50: =IFERROR((($P$44)*($E$18-$E$19)^2/8),"") -> 0 | G50: MLL SU5: | I50: =IFERROR((Y58),"") ->  | J50: MLL NRL: | K50: =IFERROR((Y66),"") ->  | O50: Noncomposite Dead Load Moment | P50: =IF(OR(UPPER(LEFT($E$35,1))="N",$E$35=""),(P42+P44+P45+P46+P47)*($E$18-$E$19)^2/8,(P42+P44+P45)*($E$18-$E$19)^2/8) ->  | Q50: ft-k | X50: Impact Factor = | Y50: =IF($Z$50<>0,$Z$50,$J$34) -> 1.3 | Z50: =$K$34 -> 0 | AO50: 3*N: | AP50: =3*$AP$42 -> 
B51: Mmisc comp DL = | E51: =IFERROR((($P$46)*($E$18-$E$19)^2/8),"") -> 0 | G51: MLL SU6: | I51: =IFERROR((Y59),"") ->  | J51: MLL EV2: | K51: =IFERROR((Y61),"") ->  | O51: Composite Dead Load Moment | P51: =IF(OR(UPPER(LEFT($E$35,1))="N",$E$35=""),0,(P46+P47)*($E$18-$E$19)^2/8) -> 0 | Q51: ft-k | X51: Distribution Factor = | Y51: =IF($Z$51<>0,$Z$51,IF($K$8=1,MAX(Y53:Z53),MAX(Y52:Z52))) ->  | Z51: =K31 -> 0 | AI51: Check Lateral Bracing requirements [per AASHTO 16th Edition (1996), Article 10.48.4]: | AO51: SLAB | AP51: =$AJ9/$AP$50 ->  | AQ51: =$E$33 -> 0 | AR51: =$AP$51*$AQ$51 ->  | AS51: =$AO$19+$AV$19+$AX$19-$E$36+$AQ$51/2 -> 0 | AT51: =$AR$51*$AS$51 ->  | AU51: =($AP$51*$AQ$51^3)/12 ->  | AV51: =$AR51*($AS51-$AS$53)^2 -> 
B52: Mmisc non-comp DL = | E52: =IFERROR((($P$45)*($E$18-$E$19)^2/8),"") -> 0 | G52: MLL SU7: | I52: =IFERROR((Y60),"") ->  | J52: MLL EV3: | K52: =IFERROR((Y62),"") ->  | O52: Total Dead Load Moment | P52: =P50+P51 ->  | Q52: ft-k | X52: Distribution Factor (multi-lane)= | Y52: =IF($J$28="Exterior","",$E$21/VLOOKUP($J$26,$W$20:$AC$26,5,0)) ->  | Z52: =IF($J$28="Exterior","",VLOOKUP($J$26,$W$20:$AC$26,7,0)) ->  | AI52: Lateral bracing (AASHTO EQ. 10-103a) Mu = Mr*Rb: | AO52: SUMMATION | AP52: DEPTHc3n | AQ52: =$AQ$38+$AQ$51 -> 0 | AR52: =$AR$38+$AR$51 ->  | AS52: AREAc | AT52: =$AT$38+$AT$51 ->  | AU52: =$AU$38+$AU$51 ->  | AV52: =$AV$38+$AV51+($AR52-$AR51)*($AS53-$AS$39)^2 -> 
B53: Mfill/wearing surface = | E53: =IFERROR((($P$47)*($E$18-$E$19)^2/8),"") ->  | X53: Distribution Factor (single-lane)= | Y53: =IF($J$28="Exterior","",$E$21/VLOOKUP($J$26,$W$20:$AC$26,2,0)) ->  | Z53: =IF($J$28="Exterior","",VLOOKUP($J$26,$W$20:$AC$26,4,0)) ->  | AR53: Ybc | AS53: =$AT$52/$AR$52 ->  | AU53: MOIxsc | AV53: =$AU$52+$AV$52 -> 
B54: MDL = | E54: =IFERROR((SUM(E49:E53)),"") -> 0 | X54: Distributed HS LL+I Moment = | Y54: =Y32*Y$50*Y$51 ->  | Z54: ft-k | AI54: (AASHTO 10.48.4.1) Iyc/Iy | AJ54: =(2*AR19*((AQ19/2)^3)/3)/AZ27 ->  | AK54: =IF(+AJ54>=+AL54,">=","<") ->  | AL54: 0.1 | AM54: =IF(+AJ54>=+AL54,1,0) ->  | AU54: Sxct3n | AV54: =$AV$53/($AQ$52-$AS$53) -> 
X55: Distributed H, LL+I Moment = | Z55: ft-k | AJ55: =(2*AR19*((AQ19/2)^3)/3)/AZ27 ->  | AK55: =IF(+AJ55<=+AL55,"<=",">") ->  | AL55: 0.9 | AM55: =IF(+AJ55<=+AL55,1,0) ->  | AU55: Sxcb3n | AV55: =$AV$53/($AS$53) -> 
X56: Distributed Concrete Truck or 80-KIP Truck LL+I Moment = | Z56: ft-k | AJ56: =IF(OR($AM$54<1,$AM$55<1),"CRITERIA CHECK NO GOOD","CRITERIA CHECK OK") -> 
B57: Additional Notes | X57: SU4 = | Z57: ft-k | AI57: Check Dc <= D/2: | AJ57: =AJ18 ->  | AK57: =IF(+AJ57<=+AL57,"<=",">") ->  | AL57: =AJ16/2 -> 0 | AM57: =IF(+AJ57<=+AL57,1,0) -> 
G58: € HS Ratings | X58: SU5 = | Z58: ft-k | AI58: λ: | AJ58: =IF(AM57,15400,12500) ->  | AR58: Fy (psi) input = | AS58: =E20*1000 -> 0
G59: HS Inventory: | J59: =IFERROR((MIN(AJ150:AJ151))*20,"") ->  | K59: =IFERROR((MIN(AJ150:AJ151)),"") ->  | X59: SU6 = | Z59: ft-k | AI59: Sxc: | AJ59: =IF(E34="Y","NA",BD27) ->  | AK59: in3
G60: HS Operating: | J60: =IFERROR((MIN(AJ152:AJ153))*20,"") ->  | K60: =IFERROR((MIN(AJ152:AJ153)),"") ->  | X60: SU7 = | Z60: ft-k | AI60: Lp : | AJ60: =9500*AJ61/(SQRT(E20*1000)) ->  | AK60: in | AQ60: Table 10.48.1.2a Limitations for Compact Sections
G61: ¥£ H RATING | X61: EV2 = | Z61: ft-k | AI61: Radius of gyration of compression flange about the vertical axis in the plane of the web r': | AJ61: =SQRT(AJ62/AO27) ->  | AK61: in | AR61: Fy (psi) | AS61: 36000 | AT61: 50000 | AU61: 70000
G62: H Inventory: | J62: =IFERROR((MIN(AJ155:AJ156))*20,"") ->  | K62: =IFERROR((MIN(AJ155:AJ156)),"") ->  | X62: EV3 = | Z62: ft-k | AI62: Moment of inetia of compression flange about the vertical axis in the plane of the web, Iyc: | AJ62: =(2*AR19*((AQ19/2)^3)/3) -> 0 | AK62: in4 | AR62: b/t | AS62: 21.7 | AT62: 18.4 | AU62: 15.5
G63: H Operating: | J63: =IFERROR((MIN(AJ157:AJ158))*20,"") ->  | K63: =IFERROR((MIN(AJ157:AJ158)),"") ->  | X63: T3 = | Z63: ft-k | AI63: d: | AJ63: =AO19+AV19+AX19 -> 0 | AK63: in | AR63: D/tw | AS63: 101 | AT63: 86 | AU63: 72
G64: AASHTO LEGAL LOADS RATING FACTORS | X64: T3-S2 = | Z64: ft-k | AI64: Lr | AJ64: =IF(E34="Y","NA",((572*(10^6)*AJ62*AJ63)/((E20*1000)*AJ59))^(1/2)) ->  | AK64: in | AR64: Lb/ry (M1/Mu = 0*) | AS64: 100 | AT64: 72 | AU64: 51
G65: SU4 Operating: | H65: =IFERROR(MIN(AJ172:AJ173),"") ->  | J65: TYPE 3: | K65: =IFERROR(ROUNDDOWN($J$60/20/VLOOKUP(ROUND($E$18-$E$19,0),'LIVE LOADS'!AJ8:AN309,3,FALSE),2),"") ->  | X65: T3-3 = | Y65: =Y44*Y$50*Y$51 ->  | Z65: ft-k | AI65: J: | AJ65: =((AQ19*AR19^3)+(AQ19*AS19^3)+(AJ16*AJ17^3))/3 -> 0 | AK65: in4 | AR65: Lb/ry (M1/Mu = 1*) | AS65: 39 | AT65: 28 | AU65: 20
G66: SU5 Operating: | H66: =IFERROR(MIN(AJ177:AJ178),"") ->  | J66: TYPE 3S2: | K66: =IFERROR(ROUNDDOWN($J$60/20/VLOOKUP(ROUND($E$18-$E$19,0),'LIVE LOADS'!AJ8:AN309,4,FALSE),2),"") ->  | X66: NRL = | Y66: =Y45*Y$50*Y$51 ->  | Z66: ft-k | AI66: Cb = | AJ66: 1 | AQ66: *For values of M1/Mu other than 0 and 1, use Equation (10-96)
G67: SU6 Operating: | H67: =IFERROR(MIN(AJ182:AJ183),"") ->  | J67: TYPE 3-3: | K67: =IFERROR(ROUNDDOWN($J$60/20/VLOOKUP(ROUND($E$18-$E$19,0),'LIVE LOADS'!AJ8:AN309,5,FALSE),2),"") ->  | AI67: =IF(AJ67=E28*12,"Bottom Flange Unbraced Length, Lb-b (ft) =","Top Flange Unbraced Length, Lb-b (ft) =") -> Bottom Flange Unbraced Length, Lb-b (ft) = | AJ67: =MAX(E28:E29)*12 -> 0 | AK67: in | AQ67: M1 = Smaller moment at the end of the unbraced length of the member
B68: € - | C68: =IFERROR(AK150 & AK151,"Strength Controls Ratings") -> Strength Controls Ratings | G68: SU7 Operating: | H68: =IFERROR(MIN(AJ187:AJ188),"") ->  | J68: NRL: | K68: =IFERROR(ROUNDDOWN($J$60/20/VLOOKUP(ROUND($E$18-$E$19,0),'LIVE LOADS'!AJ8:AN309,2,FALSE),2),"") ->  | AI68: Check AASHTO EQS. 10-103c, 10-103d, 10-103e, 10-103g for Mr determination:
B69: ¥ - | C69: Based on H-20 Rating | G69: EMERGENCY VEHICLE (EV) RATING FACTORS | AI69: For sections with (Dc / tw) ≤ (λ / √Fy) or with Longitudinally stiffened webs - (AASHTO EQ. 10-103c): | AJ69: =AJ18/AJ17 ->  | AK69: =IF(+AJ69<=+AL69,"<=",">") ->  | AL69: =AJ58/SQRT(E20*1000) ->  | AM69: =IF(+AJ69<=+AL69,1,0) -> 
B70: £ - | C70: =IFERROR(AK155 & AK156,"Strength Controls Ratings") -> Strength Controls Ratings | G70: EV2 Operating: | H70: =IFERROR(AJ192,"") ->  | J70: EV3 Operating: | K70: =IFERROR(AJ197,"") -> 
G71: See Formula 6-1a (MCEB) for the general Rating Formula. | AI71: For sections with (Dc / tw) ≤ (λ / √Fy): | AJ71: =IF($AM$69<1,"CRITERIA CHECK NO GOOD","CRITERIA CHECK OK") -> 
B72: *** DO NOT DISCLOSE *** THIS INFORMATION IS CONFIDENTIAL UNDER THE TEXAS HOMELAND SECURITY ACT AND 23 USC SECTION 409, SAFETY SENSITIVE INFORMATION | AI72: Mr: | AJ72: =IF(AM69=1,MIN(((91*(10^6))*AJ66*(AJ62/(AJ67))*SQRT(0.772*(AJ65/AJ62)+9.87*(AJ63/(AJ67))^2))/1000/12,E20*BD27/12),"NA") ->  | AK72: k-ft
AI73: For sections with (Dc / tw) > (λ / √Fy)(AASHTO EQ. 10-103d): | AJ73: =AJ67 -> 0 | AK73: =IF(AJ73<=AL73,"<=",">") ->  | AL73: =AJ60 ->  | AM73: =IF(+AJ73<=+AL73,1,0) -> 
AJ74: =IF($AM$73<1,"CRITERIA CHECK NO GOOD","CRITERIA CHECK OK") -> 
AI75: Mr = My: | AJ75: =IF(AM73,E20*BD27/12,"NA") ->  | AK75: k-ft
AI77: (AASHTO EQ. 10-103e): | AJ77: =AJ64 ->  | AK77: =IF(+AJ77>=+AL77,">=","<") ->  | AL77: =AJ67 -> 0 | AM77: =IF(+AJ77>=+AL77,1,0) -> 
AJ78: =AJ67 -> 0 | AK78: =IF(+AJ78>+AL78,">","<") ->  | AL78: =AJ60 ->  | AM78: =IF(+AJ78>=+AL78,1,0) -> 
AJ79: =IF(SUM($AM$77,$AM$78)<2,"CRITERIA CHECK NO GOOD","CRITERIA CHECK OK") -> 
AI80: Mr: | AJ80: =IF(OR(AM73=1,SUM(AM77,AM78)<2),"NA",(AJ66*E20*AJ59*(1-0.5*((AJ67-AJ60)/(AJ64-AJ60))))/12) ->  | AK80: k-ft
AI81: (AASHTO EQ. 10-103g): | AJ81: =AJ67 -> 0 | AK81: =IF(+AJ81>+AL81,">","<") ->  | AL81: =AJ64 ->  | AM81: =IF(+AJ81>+AL81,1,0) -> 
AJ82: =IF($AM$81<1,"CRITERIA CHECK NO GOOD","CRITERIA CHECK OK") -> 
AI83: =IF(OR(AM73=1,SUM(AM77,AM78)=2,AM81<1),"AASHTO EQ. 10-103g not applicable","Mr:") ->  | AJ83: =IF(OR(AM69,AM73,SUM(AM77,AM78)=2),"NA",IF(AM81=1,AJ66*(((E20)*AJ59)/2)*(AJ64/(AJ67))^2,0)/12) ->  | AK83: k-ft
AI84: Afc: | AJ84: =AO27 -> 0 | AK84: in2
AI85: Mr (used) = | AJ85: =IF(AM69=1,AJ72,IF(AM73=1,AJ75,IF(AM77+AM78=2,AJ80,IF(AM81=1,AJ83)))) -> 
AI86: (AASHTO EQ. 10-103b) Rb: | AJ86: =MIN(1,(1-0.002*(AJ18*AJ17/AJ84)*(AJ18/AJ17-AJ58/SQRT(AJ85/AJ59)))) -> 
AI87: Mu | AJ87: =IF(E34="Y","NA",(AJ85*AJ86)) ->  | AK87: k-ft
AI88: Equivalent Sx, (Mu/Fy): | AJ88: =12*AJ87/E20 ->  | AK88: in3
AI91: The checks performed here apply to both non-composite and composite sections, however Dc of a
AI92: composite section is calculated per the provisions of AASHTO 10.50 (b), assuming the positive moment
AI93: region is stressed to point of first yield.
AI94: For Composite Action:
AI95: Moment to bring Composite Section to First Yield:
AI97: Sxncb = | AJ97: =$BC$27 ->  | AK97: in3
AI98: Sxcbn = | AJ98: =$AV$48 ->  | AK98: in3
AI99: Sxcb3n = | AJ99: =$AV$55 ->  | AK99: in3
AI100: My = Sxcbn*Fy/12+ncDLMoment*(1-Sxcbn/Sxbnc)+compDLMoment(1-Sxcbn/Sxcb3n) = | AJ100: =AJ98*E20/12+$P$50*(1-AJ98/AJ97)+$P$51*(1-AJ98/AJ99) ->  | AK100: ft-k
AI101: Top Flange (top fiber) Stress at First Yield Moment = | AJ101: =12*P50/$BD$27+12*P51/$AV$54+($AQ$38-$AS$46)*(($AJ$102-(12*P50/$BD$27+12*P51/$AV$55))/$AS$46) ->  | AK101: ksi Comp
AI102: Bott Flange (bottom fiber) Stress at First Yield Moment = | AJ102: =$E$20 -> 0 | AK102: ksi Tension
AI103: Dc = | AJ103: =$AQ$38*$AJ$101/($AJ$102+$AJ$101)-$E$25-$K$21 ->  | AK103: in
AI104: (AASHTO EQ. 10-103b-2): | AJ104: =$AJ$103/$AJ$17 ->  | AK104: =IF(+$AJ104<=+$AL104,"<=",">") ->  | AL104: =IF(AJ103<=(K18-K21-K22)/2,15400,12500)/(1000*$E$20)^0.5 ->  | AO104: Is Dc less than or equal to d/2?
AI105: =IF(RIGHT($AJ$105,2)="OK","","Section violates both AASHTO 10.48.2; beyond the scope of this spreadsheet.") ->  | AJ105: =IF(+$AJ104<=+$AL104,"CRITERIA CHECK OK","CRITERIA CHECK NO GOOD") ->  | AO105: =IF(AJ103<=(K18-K21-K22)/2,"YES, use 15,400 for Lambda","No, use 12,500 for Lamda") -> 
AI106: Fully Plastic Moment (fillets conservatively excluded from section):
AI107: d = | AJ107: =$AQ$38 -> 0 | AK107: in
AI108: ts = | AJ108: =$E$33 -> 0 | AK108: in
AI109: th = | AJ109: =-$E$36 -> 0 | AK109: in
AI110: H = | AJ110: =SUM($AJ$107:$AJ$109) -> 0 | AK110: in
AI111: D = | AJ111: =$AJ$16 -> 0 | AK111: in
AI112: Area Sum of Flanges, Cover Plates, and Web (stringer) = | AJ112: =$E$25*$E$24+($K$21+$K$22)*$K$20+$AJ$111*$K$19+$E$27*$E$26 -> 0 | AK112: in2 <-- Does not include areas of fillets
AI114: C (AASHTO EQ. 10-123) = | AJ114: =0.85*$E$35*$AJ$9*$AJ$108 -> 0 | AK114: kips
AI115: C (AASHTO EQ. 10-124) = | AJ115: =$AJ$112*$E$20 -> 0 | AK115: kips
AI116: =IF(AJ115>AJ114,"Climit (slab controlled) =","Climit (stringer controlled) =") -> Climit (stringer controlled) = | AJ116: =MINA($AJ$114:$AJ$115) -> 0 | AK116: kips
AI117: a (AASHTO EQ. 10-125; conservatively excluding reinforcement in compression region of slab) = | AJ117: =$AJ$116/0.85/$E$35/$AJ$9 ->  | AK117: in
AI118: C' (AASHTO EQ. 10-126) = | AJ118: =MAXA(($AJ$115-$AJ$114)/2,0) -> 0 | AK118: kips
AI120: (AFy)tcp = | AJ120: =$E$25*$E$24*$E$20 -> 0 | AK120: kips
AI121: (AFy)tf = | AJ121: =$K$21*$K$20*$E$20 -> 0 | AK121: kips
AI122: (AFy)w = | AJ122: =$K$19*$AJ$111*$E$20 -> 0 | AK122: kips
AI124: Compressed portion of top cover plate (AASHTO EQ. 10-127) = | AJ124: =MINA(($AJ$118/MAXA(0.00001,$AJ$120))*$E$25,$E$25) -> 0 | AK124: in <--measured from top of tcp, if any
AI125: Compressed portion of top flange (AASHTO EQ. 10-127) = | AJ125: =MAXA(0,MINA((($AJ$118-$AJ$120*$AJ$124/MAXA(0.00001,$E$25))/$AJ$121)*$K$21,$K$21)) ->  | AK125: in <--measured from top of tf
AI126: Dcp=Compressed portion of web (AASHTO EQ. 10-128) = | AJ126: =MAXA(0,MINA((($AJ$118-$AJ$120*$AJ$124/MAXA(0.00001,$E$25)-$AJ$121*$AJ$125/MAXA(0.00001,$K$21))/$AJ$122)*$K$19,$K$19)) ->  | AK126: in <--measured from top of w
AI127: yt = | AJ127: =SUM($AJ$124:$AJ$126) ->  | AK127: in <--measured from top of tcp, if any, or tf
AI128: yb = | AJ128: =$AJ$107-$AJ$127 ->  | AK128: in <--measured from bot of bcp, if any, or bf
AI129: Dp = | AJ129: =IF($AJ$127=0,$AJ$117,$AJ$108+$AJ$109+$AJ$127) ->  | AK129: in
AI130: Centroid of Max Plastic Compressive Force in Steel = | AJ130: =($AJ$124^2*$E$24/2+($AJ$124+$AJ$125/2)*$AJ$125*$K$20+($AJ$127-$AJ$126/2)*$AJ$126*$K$19)/MAXA(0.00001,($AJ$118/$E$20)) ->  | AK130: in <--measured from top of tcp, if any, or tf
AI131: Centroid of Max Plastic Tension Force in Steel = | AJ131: =((MAXA(0,$AJ$108+$AJ$109-$AJ$129)+$AJ$128-$E$27/2)*$AS$27+(MAXA(0,$AJ$108+$AJ109-$AJ$129)+$AJ$128-$E$27-$K$22/2)*$AP$27+(MAXA(0,$AJ$108+$AJ$109-$AJ$129)+$AJ$128-$E$27-$K$22-($AJ$111-$AJ$126)/2)*($AJ$111-$AJ$126)*$K$19+(MAXA(0,$AJ$108+$AJ$109-$AJ$129)+$AJ$128-$E$27-$K$22-$AJ$111-($K$21-$AJ$125)/2)*($K$21-$AJ$125)*$K$20+(MAXA(0,$AJ$108+$AJ$109-$AJ129)+($E$25-$AJ$124)/2)*($E$25-$AJ$124)*$E$24)/($AS$27+$AP$27+($AJ$111-$AJ$126)*$K$19+($K$21-$AJ$125)*$K$20+($E$25-$AJ$124)*$E$24) ->  | AK131: in <--measured from neutral axis of fully plastic section
AI132: Max Plastic Compression Moment = | AJ132: =((MAXA($AJ$129,$AJ$108+$AJ$109)-$AJ$117/2)*$AJ$116+$AJ$118*($AJ$127-$AJ$130))/12 ->  | AK132: ft-k
AI133: Max Plastic Tension Moment = | AJ133: =($AS$27+$AP$27+($AJ$111-$AJ$126)*$K$19+($K$21-$AJ$125)*$K$20+($E$25-$AJ124)*$E$25)*$E$20*$AJ$131/12 ->  | AK133: ft-k
AI134: Mp = | AJ134: =$AJ$132+$AJ$133 ->  | AK134: ft-k
AI135: Check for Compact Section (AASHTO EQ. 10-129) = | AJ135: =2*$AJ$126/$K$19 ->  | AK135: =IF(+$AJ135<=+$AL135,"<=",">") ->  | AL135: =19230/(1000*$E$20)^0.5 ->  | AM135: =IF($AJ$135>$AL$135,"NO GOOD","OK") -> 
AI136: Check for Compact Section (AASHTO EQ. 10-129a) = | AJ136: =$AJ$129/$AJ$137 ->  | AK136: =IF($AJ136>5,"> 5","<= 5") ->  | AM136: =IF($AJ$136>5,"NO GOOD","OK") -> 
AI137: D' for Compact Section (AASHTO EQ. 10-129a) = | AJ137: =IF($E$20<=36,0.9,0.7)*$AJ$110/7.5 -> 0 | AK137: in
AI138: Controlling Ultimate Moment Capacity:
AI139: =IF(RIGHT($AJ$41,2)="OK",(IF(UPPER(LEFT($E$35,1))="N","Cu = Mp =",IF(RIGHT($AJ$105,2)="OK",IF(OR($AM$135="NO GOOD",$AM$136="NO GOOD"),"Cu = My =",IF($AJ$136<1,"Cu = Mp =","Cu = Mu ="))))),"Requirements of AASHTO Article 10.48.1 and 10.48.2 violated.") ->  | AJ139: =IF(AND(OR(UPPER(LEFT($E$34,1))="N",$E$34=""),RIGHT($AJ$26,2)="OK",RIGHT($AJ$41,2)="OK"),$AJ$49,(IF(AND(OR(UPPER(LEFT($E$34,1))="N",$E$34=""),RIGHT($AJ$41,7)="NO GOOD"),$AJ$87,IF(RIGHT($AJ$105,2)="OK",IF(OR($AM$135="NO GOOD",$AM$136="NO GOOD"),AJ100,IF($AJ$136<1,AJ134,(5*AJ134-0.85*AJ100)/4+((0.85*AJ100-AJ134)/4)*$AJ$129/$AJ$137)),"NA")))) ->  | AK139: ft-k | AL139: =IF(RIGHT($AJ$26,2)="OK",(IF(OR(UPPER(LEFT($E$35,1))="N",$E$35=""),"<---Non-Composite Section",IF(RIGHT($AJ$105,2)="OK",IF(OR($AM$135="NO GOOD",$AM$136="NO GOOD"),"<--- EQ. 10-129 Controlled Composite Section and/or EQ. 10-129a Controlled Composite Section, thus, Composite Section Controlled by First Yeild Moment",IF($AJ$136<1,"<---Fully Plastic Moment Allowed on Composite Section","<---Partially Plastic Moment Allowed on Composite Section"))))),"Requirements of AASHTO Article 10.48.1 and 10.48.2 violated.") -> 
AI140: Determination of Serviceable Moment Capacity (as per AASHTO 10.57.2):
AI141: 0.8*FySxncmin = | AJ141: =IF(E34="Y","N/A",(E20/12*MIN(BC27:BD27)*0.8)) ->  | AK141: ft-k | AL141: <---Non-Composite Section
AI142: 0.95*My = | AJ142: =0.95*AJ100 ->  | AK142: ft-k | AL142: <---Composite Section
AI143: Mserv = | AJ143: =IF(OR(UPPER(LEFT($E$34,1))="N",$E$34=""),$AJ$141,$AJ$142) ->  | AK143: ft-k | AL143: <---Controls
AI144: Rating Factors:
AI145: Sxncb = | AJ145: =$BC$27 ->  | AK145: in^3
AI146: Sxscb = | AJ146: =$AV$55 ->  | AK146: in^3
AI147: Cu = | AJ147: =IF(E34="Y",AJ139,IF(AJ26="CRITERIA CHECK OK",AJ27,IF(AM36+AM37+AM40=3,AJ49,AJ87))) ->  | AK147: ft-k | AL147: =IF(E35="Y","Section 10.50 Controls",IF(AJ26="CRITERIA CHECK OK","Section 10.48.1 Controls",IF(AM36+AM37+AM40=3,"Section 10.48.2 Controls","Section 10.48.4 Controls"))) -> 
AI148: Cserv= | AJ148: =$AJ$143 ->  | AK148: ft-k | AL148: =IF(E35="Y","Section 10.50 Controls",IF(AJ26="CRITERIA CHECK OK","Section 10.48.1 Controls",IF(AM36+AM37+AM40=3,"Section 10.48.2 Controls","Section 10.48.4 Controls"))) -> 
AI150: HS Load Factor Inventory Rating Factor--> | AJ150: =($AJ$147-1.3*$P$52)/(2.17*$Y$54) ->  | AK150: =IF(AJ150<=AJ151,"Strength Controls Ratings","") -> 
AI151: HS Serviceable Inventory Rating Factor--> | AJ151: =($AJ$148-$P$52)/(5*$Y$54/3) ->  | AK151: =IF(AJ151<AJ150,"AASHTO 10.57 (Serviceability) Controls Ratings","") -> 
AI152: HS Load Factor Operating Rating--> | AJ152: =AJ150*2.17/1.3 -> 
AI153: HS Serviceable Operating Rating--> | AJ153: =AJ151*1.67 -> 
AI155: H Load Factor Inventory Rating Factor--> | AJ155: =($AJ$147-1.3*$P$52)/(2.17*$Y$55) ->  | AK155: =IF(AJ155<=AJ156,"Strength Controls Ratings","") -> 
AI156: H Serviceable Inventory Rating Factor--> | AJ156: =($AJ$148-$P$52)/(5*$Y$55/3) ->  | AK156: =IF(AJ156<AJ155,"AASHTO 10.57 (Serviceability) Controls Ratings","") -> 
AI157: H Load Factor Operating Rating--> | AJ157: =AJ155*2.17/1.3 -> 
AI158: H Serviceable Operating Rating--> | AJ158: =AJ156*1.67 -> 
AI165: Concrete Truck or 80-KIP Truck, Load Factor Inventory Rating Factor--> | AJ165: =($AJ$147-1.3*$P$52)/(2.17*$Y$56) ->  | AK165: =IF(AJ165<=AJ166,"Strength Controls Ratings","") -> 
AI166: Concrete Truck or 80-KIP Truck, Serviceable Inventory Rating Factor--> | AJ166: =($AJ$148-$P$52)/(5*$Y$56/3) ->  | AK166: =IF(AJ166<AJ165,"AASHTO 10.57 (Serviceability) Controls Ratings","") -> 
AI167: Concrete Truck or 80-KIP Truck, Load Factor Operating Rating--> | AJ167: =AJ165*2.17/1.3 -> 
AI168: Concrete Truck or 80-KIP Truck, Serviceable Operating Rating--> | AJ168: =AJ166*1.67 -> 
AI170: SU4 Load Factor Inventory Rating Factor--> | AJ170: =($AJ$147-1.3*$P$52)/(2.17*$Y$57) ->  | AK170: =IF(AJ170<=AJ171,"Strength Controls Ratings","") -> 
AI171: SU4 Serviceable Inventory Rating Factor--> | AJ171: =($AJ$148-$P$52)/(5*$Y$57/3) ->  | AK171: =IF(AJ171<AJ170,"AASHTO 10.57 (Serviceability) Controls Ratings","") -> 
AI172: SU4 Load Factor Operating Rating--> | AJ172: =AJ170*2.17/1.3 -> 
AI173: SU4 Serviceable Operating Rating--> | AJ173: =AJ171*1.67 -> 
AI175: SU5 Load Factor Inventory Rating Factor--> | AJ175: =($AJ$147-1.3*$P$52)/(2.17*$Y$58) ->  | AK175: =IF(AJ175<=AJ176,"Strength Controls Ratings","") -> 
AI176: SU5 Serviceable Inventory Rating Factor--> | AJ176: =($AJ$148-$P$52)/(5*$Y$58/3) ->  | AK176: =IF(AJ176<AJ175,"AASHTO 10.57 (Serviceability) Controls Ratings","") -> 
AI177: SU5 Load Factor Operating Rating--> | AJ177: =AJ175*2.17/1.3 -> 
AI178: SU5 Serviceable Operating Rating--> | AJ178: =AJ176*1.67 -> 
AI180: SU6 Load Factor Inventory Rating Factor--> | AJ180: =($AJ$147-1.3*$P$52)/(2.17*$Y$59) ->  | AK180: =IF(AJ180<=AJ181,"Strength Controls Ratings","") -> 
AI181: SU6 Serviceable Inventory Rating Factor--> | AJ181: =($AJ$148-$P$52)/(5*$Y$59/3) ->  | AK181: =IF(AJ181<AJ180,"AASHTO 10.57 (Serviceability) Controls Ratings","") -> 
AI182: SU6 Load Factor Operating Rating--> | AJ182: =AJ180*2.17/1.3 -> 
AI183: SU6 Serviceable Operating Rating--> | AJ183: =AJ181*1.67 -> 
AI185: SU7 Load Factor Inventory Rating Factor--> | AJ185: =($AJ$147-1.3*$P$52)/(2.17*$Y$60) ->  | AK185: =IF(AJ185<=AJ186,"Strength Controls Ratings","") -> 
AI186: SU7 Serviceable Inventory Rating Factor--> | AJ186: =($AJ$148-$P$52)/(5*$Y$60/3) ->  | AK186: =IF(AJ186<AJ185,"AASHTO 10.57 (Serviceability) Controls Ratings","") -> 
AI187: SU7 Load Factor Operating Rating--> | AJ187: =AJ185*2.17/1.3 -> 
AI188: SU7 Serviceable Operating Rating--> | AJ188: =AJ186*1.67 -> 
AI190: EV2 Load Factor Inventory Rating Factor--> | AJ190: =($AJ$147-1.3*$P$52)/(2.17*$Y$61) ->  | AK190: =IF(AJ190<=AJ191,"Strength Controls Ratings","") -> 
AI191: EV2 Serviceable Inventory Rating Factor--> | AJ191: =($AJ$148-$P$52)/(5*$Y$61/3) ->  | AK191: =IF(AJ191<AJ190,"AASHTO 10.57 (Serviceability) Controls Ratings","") -> 
AI192: EV2 Load Factor Operating Rating--> | AJ192: =AJ190*2.17/$Q$26 -> 
AI193: EV2 Serviceable Operating Rating--> | AJ193: =AJ191*5/3 -> 
AI195: EV3 Load Factor Inventory Rating Factor--> | AJ195: =($AJ$147-1.3*$P$52)/(2.17*$Y$62) ->  | AK195: =IF(AJ195<=AJ196,"Strength Controls Ratings","") -> 
AI196: EV3 Serviceable Inventory Rating Factor--> | AJ196: =($AJ$148-$P$52)/(5*$Y$62/3) ->  | AK196: =IF(AJ196<AJ195,"AASHTO 10.57 (Serviceability) Controls Ratings","") -> 
AI197: EV3 Load Factor Operating Rating--> | AJ197: =AJ195*2.17/$Q$27 -> 
AI198: EV3 Serviceable Operating Rating--> | AJ198: =AJ196*5/3 -> 
AI200: T3 Load Factor Inventory Rating Factor--> | AJ200: =($AJ$147-1.3*$P$52)/(2.17*$Y$63) ->  | AK200: =IF(AJ200<=AJ201,"Strength Controls Ratings","") -> 
AI201: T3 Serviceable Inventory Rating Factor--> | AJ201: =($AJ$148-$P$52)/(5*$Y$63/3) ->  | AK201: =IF(AJ201<AJ200,"AASHTO 10.57 (Serviceability) Controls Ratings","") -> 
AI202: T3 Load Factor Operating Rating--> | AJ202: =AJ200*2.17/1.3 -> 
AI203: T3 Serviceable Operating Rating--> | AJ203: =AJ201*1.67 -> 
AI205: T3-S2 Load Factor Inventory Rating Factor--> | AJ205: =($AJ$147-1.3*$P$52)/(2.17*$Y$64) ->  | AK205: =IF(AJ205<=AJ206,"Strength Controls Ratings","") -> 
AI206: T3-S2 Serviceable Inventory Rating Factor--> | AJ206: =($AJ$148-$P$52)/(5*$Y$64/3) ->  | AK206: =IF(AJ206<AJ205,"AASHTO 10.57 (Serviceability) Controls Ratings","") -> 
AI207: T3-S2 Load Factor Operating Rating--> | AJ207: =AJ205*2.17/1.3 -> 
AI208: T3-S2 Serviceable Operating Rating--> | AJ208: =AJ206*1.67 -> 
AI210: T3-3 Load Factor Inventory Rating Factor--> | AJ210: =($AJ$147-1.3*$P$52)/(2.17*$Y$65) ->  | AK210: =IF(AJ210<=AJ211,"Strength Controls Ratings","") -> 
AI211: T3-3 Serviceable Inventory Rating Factor--> | AJ211: =($AJ$148-$P$52)/(5*$Y$65/3) ->  | AK211: =IF(AJ211<AJ210,"AASHTO 10.57 (Serviceability) Controls Ratings","") -> 
AI212: T3-3 Load Factor Operating Rating--> | AJ212: =AJ210*2.17/1.3 -> 
AI213: T3-3 Serviceable Operating Rating--> | AJ213: =AJ211*1.67 -> 
AI215: NRL Load Factor Inventory Rating Factor--> | AJ215: =($AJ$147-1.3*$P$52)/(2.17*$Y$66) ->  | AK215: =IF(AJ215<=AJ216,"Strength Controls Ratings","") -> 
AI216: NRL Serviceable Inventory Rating Factor--> | AJ216: =($AJ$148-$P$52)/(5*$Y$66/3) ->  | AK216: =IF(AJ216<AJ215,"AASHTO 10.57 (Serviceability) Controls Ratings","") -> 
AI217: NRL Load Factor Operating Rating--> | AJ217: =AJ215*2.17/1.3 -> 
AI218: NRL Serviceable Operating Rating--> | AJ218: =AJ216*1.67 -> 

Sheet Steel Stringer (Continuous) (hidden)
B1: TBLRP-LFR Spreadsheet | P1: TBLRP-LFR Spreadsheet
B2: Continuous Span Steel Stringer | P2: Continuous Span Steel Stringer | AG2: Lever Rule = | AH2: lever rule | DV2: 10 Sections
AZ3: Deck Module for Dead Loads Options | BM3: Determination of Controlling Moment Capacities & Rating Factors | BN3: Span 1 | BQ3: Span 2 | BT3: Span 3 | BW3: Span 4 | BZ3: Span 5 | CG3: ****INPUT DIMENSIONS**** | CQ3: ****INPUT DIMENSIONS**** | DA3: ****INPUT DIMENSIONS**** | DK3: ****PUBLISHED ROLLED SECTION DIMENSIONS/PROPERTIES**** | DV3: 0
I4: Date: | M4: =TODAY() -> 2024-11-13 | X4: Date: | AC4: =TODAY() -> 2024-11-13 | AG4: Deck Module for Dead Loads Options | AI4: Steel Deck Options | AZ4: No Deck Import | BN4: Orig Sect | BO4: Section 1 | BP4: Section 2 | BQ4: Orig Sect | BR4: Section 1 | BS4: Section 2 | BT4: Orig Sect | BU4: Section 1 | BV4: Section 2 | BW4: Orig Sect | BX4: Section 1 | BY4: Section 2 | BZ4: Orig Sect | CA4: Section 1 | CB4: Section 2 | CK4: Span 1 | CL4: Span 2 | CM4: Span 3 | CN4: Span 4 | CO4: Span 5 | CU4: Span 1 | CV4: Span 2 | CW4: Span 3 | CX4: Span 4 | CY4: Span 5 | DE4: Span 1 | DF4: Span 2 | DG4: Span 3 | DH4: Span 4 | DI4: Span 5 | DO4: Span 1 | DP4: Span 2 | DQ4: Span 3 | DR4: Span 4 | DS4: Span 5 | DV4: 0.1
I5: Rating Engineer's Initials: | M5: =eng_initials -> TxDOT | X5: Rating Engineer's Initials: | AC5: =M5 -> TxDOT | AG5: ='Dead Load Calcs and Tables'!E11 -> Concrete Deck | AI5: ='Steel Deck'!BC3 -> Steel Corrugated Deck | AZ5: ='Dead Load Calcs and Tables'!E11 -> Concrete Deck | BM5: Effective Width of Concrete Slab (as per AASHTO 10.38.3): | CG5: Original Section | CH5: Rolled Section Depth | CJ5: (in) | CK5: =S$38 -> 0 | CL5: =T$38 -> 0 | CM5: =W$38 -> 0 | CN5: =Y$38 -> 0 | CO5: =AB$38 -> 0 | CQ5: From Original Section | CR5: Rolled Section Depth | CT5: (in) | CU5: =CK5 -> 0 | CV5: =CL5 -> 0 | CW5: =CM5 -> 0 | CX5: =CN5 -> 0 | CY5: =CO5 -> 0 | DA5: From Original Section | DB5: Rolled Section Depth | DD5: (in) | DE5: =CK5 -> 0 | DF5: =CL5 -> 0 | DG5: =CM5 -> 0 | DH5: =CN5 -> 0 | DI5: =CO5 -> 0 | DK5: Section Dimensions | DL5: Section Designation | DO5: =$S$36 -> 0 | DP5: =$T$36 -> 0 | DQ5: =$W$36 -> 0 | DR5: =$Y$36 -> 0 | DS5: =$AB$36 -> 0 | DV5: 0.2
I6: Version: | M6: =version_no -> 4.0.5 | X6: Version: | AC6: =version_no -> 4.0.5 | AG6: ='Dead Load Calcs and Tables'!E12 -> Steel Deck | AI6: ='Steel Deck'!BD3 -> Steel Plate Deck | AZ6: ='Dead Load Calcs and Tables'!E12 -> Steel Deck | BM6: L/4 (in) = | BN6: =($S$30-$S$31)/4*12 -> 0 | BO6: =($S$30-$S$31)/4*12 -> 0 | BP6: =($S$30-$S$31)/4*12 -> 0 | BQ6: =($T$30-$T$31)/4*12 -> 0 | BR6: =($T$30-$T$31)/4*12 -> 0 | BS6: =($T$30-$T$31)/4*12 -> 0 | BT6: =($W$30-$W$31)/4*12 -> 0 | BU6: =($W$30-$W$31)/4*12 -> 0 | BV6: =($W$30-$W$31)/4*12 -> 0 | BW6: =($Y$30-$Y$31)/4*12 -> 0 | BX6: =($Y$30-$Y$31)/4*12 -> 0 | BY6: =($Y$30-$Y$31)/4*12 -> 0 | BZ6: =($AB$30-$AB$31)/4*12 -> 0 | CA6: =($AB$30-$AB$31)/4*12 -> 0 | CB6: =($AB$30-$AB$31)/4*12 -> 0 | CH6: WEB THK | CJ6: (in) | CK6: =S$39 -> 0 | CL6: =T$39 -> 0 | CM6: =W$39 -> 0 | CN6: =Y$39 -> 0 | CO6: =AB$39 -> 0 | CR6: WEB THK | CT6: (in) | CU6: =S49 -> 0 | CV6: 0 | CW6: =W49 -> 0 | CX6: =Y49 -> 0 | CY6: =AB49 -> 0 | DB6: WEB THK | DD6: (in) | DE6: =S61 -> 0 | DF6: 0 | DG6: =W61 -> 0 | DH6: =Y61 -> 0 | DI6: =AB61 -> 0 | DL6: Area Section | DN6: (in^2) | DO6: =IF(ISERR(VLOOKUP(DO$5,Rolled_Section_Data,4)),NA(),VLOOKUP(DO$5,Rolled_Section_Data,4)) ->  | DP6: =IF(ISERR(VLOOKUP(DP$5,Rolled_Section_Data,4)),NA(),VLOOKUP(DP$5,Rolled_Section_Data,4)) ->  | DQ6: =IF(ISERR(VLOOKUP(DQ$5,Rolled_Section_Data,4)),NA(),VLOOKUP(DQ$5,Rolled_Section_Data,4)) ->  | DR6: =IF(ISERR(VLOOKUP(DR$5,Rolled_Section_Data,4)),NA(),VLOOKUP(DR$5,Rolled_Section_Data,4)) ->  | DS6: =IF(ISERR(VLOOKUP(DS$5,Rolled_Section_Data,4)),NA(),VLOOKUP(DS$5,Rolled_Section_Data,4)) ->  | DV6: 0.3
B7: Bridge Information | P7: Bridge Information | AG7: ='Dead Load Calcs and Tables'!E13 -> Steel Deck (2) | AI7: ='Steel Deck'!BE3 -> Steel Open Grid Deck | AK7: Concrete Deck Allowable Compressive Stress | AZ7: ='Dead Load Calcs and Tables'!E13 -> Steel Deck (2) | BM7: Slab*12 (in) = | BN7: =IF(AND(OR($S$17=$AG$70,$S$18=$AG$70),$S$20="Y"),$S$19*12,"") ->  | CH7: FLANGE WIDTH | CJ7: (in) | CK7: =S$40 -> 0 | CL7: =T$40 -> 0 | CM7: =W$40 -> 0 | CN7: =Y$40 -> 0 | CO7: =AB$40 -> 0 | CQ7: Positive Moment Section | CR7: FLANGE WIDTH | CT7: (in) | CU7: 0 | CV7: 0 | CW7: =W50 -> 0 | CX7: =Y50 -> 0 | CY7: =AB50 -> 0 | DA7: Negative Moment Section | DB7: FLANGE WIDTH | DD7: (in) | DE7: 0 | DF7: 0 | DG7: =W62 -> 0 | DH7: =Y62 -> 0 | DI7: =AB62 -> 0 | DL7: Depth Section | DN7: (in) | DO7: =IF(ISERR(VLOOKUP(DO$5,Rolled_Section_Data,5)),NA(),VLOOKUP(DO$5,Rolled_Section_Data,5)) ->  | DP7: =IF(ISERR(VLOOKUP(DP$5,Rolled_Section_Data,5)),NA(),VLOOKUP(DP$5,Rolled_Section_Data,5)) ->  | DQ7: =IF(ISERR(VLOOKUP(DQ$5,Rolled_Section_Data,5)),NA(),VLOOKUP(DQ$5,Rolled_Section_Data,5)) ->  | DR7: =IF(ISERR(VLOOKUP(DR$5,Rolled_Section_Data,5)),NA(),VLOOKUP(DR$5,Rolled_Section_Data,5)) ->  | DS7: =IF(ISERR(VLOOKUP(DS$5,Rolled_Section_Data,5)),NA(),VLOOKUP(DS$5,Rolled_Section_Data,5)) ->  | DV7: 0.4
B8: District: | C8: =district -> Tyler (10) | H8: AADT ®: | I8: =AADT -> 50 | L8: # of Lanes: | M8: =no_lanes -> 1 | P8: District: | Q8: =district -> Tyler (10) | V8: AADT ®: | X8: =AADT -> 50 | AB8: # of Lanes: | AC8: =no_lanes -> 1 | AG8: ='Dead Load Calcs and Tables'!E14 -> Timber Deck | AK8: Date Built | AM8: Compressive Stress | AZ8: ='Dead Load Calcs and Tables'!E14 -> Timber Deck | BM8: Beam Spacing (in) = | BN8: =$S$32*12 -> 0 | BO8: =$S$32*12 -> 0 | BP8: =$S$32*12 -> 0 | BQ8: =$T$32*12 -> 0 | BR8: =$T$32*12 -> 0 | BS8: =$T$32*12 -> 0 | BT8: =$W$32*12 -> 0 | BU8: =$W$32*12 -> 0 | BV8: =$W$32*12 -> 0 | BW8: =$Y$32*12 -> 0 | BX8: =$Y$32*12 -> 0 | BY8: =$Y$32*12 -> 0 | BZ8: =$AB$32*12 -> 0 | CA8: =$AB$32*12 -> 0 | CB8: =$AB$32*12 -> 0 | CH8: Top FLG THK | CJ8: (in) | CK8: =S$41 -> 0 | CL8: =T$41 -> 0 | CM8: =W$41 -> 0 | CN8: =Y$41 -> 0 | CO8: =AB$41 -> 0 | CR8: Top FLG THK | CT8: (in) | CU8: 0 | CV8: 0 | CW8: =W51 -> 0 | CX8: =Y51 -> 0 | CY8: =AB51 -> 0 | DB8: Top FLG THK | DD8: (in) | DE8: 0 | DF8: 0 | DG8: =W63 -> 0 | DH8: =Y63 -> 0 | DI8: =AB63 -> 0 | DL8: WEB THK | DN8: (in) | DO8: =IF(ISERR(VLOOKUP(DO$5,Rolled_Section_Data,6)),NA(),VLOOKUP(DO$5,Rolled_Section_Data,6)) ->  | DP8: =IF(ISERR(VLOOKUP(DP$5,Rolled_Section_Data,6)),NA(),VLOOKUP(DP$5,Rolled_Section_Data,6)) ->  | DQ8: =IF(ISERR(VLOOKUP(DQ$5,Rolled_Section_Data,6)),NA(),VLOOKUP(DQ$5,Rolled_Section_Data,6)) ->  | DR8: =IF(ISERR(VLOOKUP(DR$5,Rolled_Section_Data,6)),NA(),VLOOKUP(DR$5,Rolled_Section_Data,6)) ->  | DS8: =IF(ISERR(VLOOKUP(DS$5,Rolled_Section_Data,6)),NA(),VLOOKUP(DS$5,Rolled_Section_Data,6)) ->  | DV8: 0.5
B9: County: | C9: =county -> Anderson (001) | H9: Truck % (1% MIN): | I9: =truck_pct -> 0.01 | P9: County: | Q9: =county -> Anderson (001) | V9: Truck % (1% MIN): | X9: =truck_pct -> 0.01 | AG9: ='Dead Load Calcs and Tables'!E15 -> Timber Deck (2) | AK9: Before 1959 | AM9: 2.5 | AN9: KSI | AZ9: ='Dead Load Calcs and Tables'!E15 -> Timber Deck (2) | BM9: Effective Width (in) = | BN9: =MINA(BN6:BN8) -> 0 | BO9: 0 | BP9: 0 | BQ9: 0 | BR9: 0 | BS9: 0 | BT9: =MINA(BT6:BT8) -> 0 | BU9: =MINA(BU6:BU8) -> 0 | BV9: =MINA(BV6:BV8) -> 0 | BW9: 0 | BX9: =MINA(BX6:BX8) -> 0 | BY9: =MINA(BY6:BY8) -> 0 | BZ9: 0 | CA9: =MINA(CA6:CA8) -> 0 | CB9: =MINA(CB6:CB8) -> 0 | CH9: Bottom FLG THK | CJ9: (in) | CK9: =S$42 -> 0 | CL9: =T$42 -> 0 | CM9: =W$42 -> 0 | CN9: =Y$42 -> 0 | CO9: =AB$42 -> 0 | CR9: Bottom FLG THK | CT9: (in) | CU9: 0 | CV9: 0 | CW9: =W52 -> 0 | CX9: =Y52 -> 0 | CY9: =AB52 -> 0 | DB9: Bottom FLG THK | DD9: (in) | DE9: 0 | DF9: 0 | DG9: =W64 -> 0 | DH9: =Y64 -> 0 | DI9: =AB64 -> 0 | DL9: FLANGE WIDTH | DN9: (in) | DO9: =IF(ISERR(VLOOKUP(DO$5,Rolled_Section_Data,7)),NA(),VLOOKUP(DO$5,Rolled_Section_Data,7)) ->  | DP9: =IF(ISERR(VLOOKUP(DP$5,Rolled_Section_Data,7)),NA(),VLOOKUP(DP$5,Rolled_Section_Data,7)) ->  | DQ9: =IF(ISERR(VLOOKUP(DQ$5,Rolled_Section_Data,7)),NA(),VLOOKUP(DQ$5,Rolled_Section_Data,7)) ->  | DR9: =IF(ISERR(VLOOKUP(DR$5,Rolled_Section_Data,7)),NA(),VLOOKUP(DR$5,Rolled_Section_Data,7)) ->  | DS9: =IF(ISERR(VLOOKUP(DS$5,Rolled_Section_Data,7)),NA(),VLOOKUP(DS$5,Rolled_Section_Data,7)) ->  | DV9: 0.6
B10: Structure # : | C10: =struct_no -> CCCC-SS-SSS | H10: EV Daily Crossing: | I10: =EV_crossing -> 1 | K10: (1 or 10) One Direction | P10: Structure # : | Q10: =struct_no -> CCCC-SS-SSS | V10: EV Daily Crossing: | X10: =EV_crossing -> 1 | AA10: (1 or 10) One Direction | AG10: ='Dead Load Calcs and Tables'!E16 -> 0 | AK10: 1959-1982 | AM10: 3 | AN10: KSI | AZ10: ='Dead Load Calcs and Tables'!E16 -> 0 | CH10: FILLET RADIUS | CJ10: (in) | CK10: =S$43 -> 0 | CL10: =T$43 -> 0 | CM10: =W$43 -> 0 | CN10: =Y$43 -> 0 | CO10: =AB$43 -> 0 | CR10: FILLET RADIUS | CT10: (in) | CU10: =CK10 -> 0 | CV10: =CL10 -> 0 | CW10: =CM10 -> 0 | CX10: =CN10 -> 0 | CY10: =CO10 -> 0 | DB10: FILLET RADIUS | DD10: (in) | DE10: =CK10 -> 0 | DF10: =CL10 -> 0 | DG10: =CM10 -> 0 | DH10: =CN10 -> 0 | DI10: =CO10 -> 0 | DL10: FLANGE THK | DN10: (in) | DO10: =IF(ISERR(VLOOKUP(DO$5,Rolled_Section_Data,8)),NA(),VLOOKUP(DO$5,Rolled_Section_Data,8)) ->  | DP10: =IF(ISERR(VLOOKUP(DP$5,Rolled_Section_Data,8)),NA(),VLOOKUP(DP$5,Rolled_Section_Data,8)) ->  | DQ10: =IF(ISERR(VLOOKUP(DQ$5,Rolled_Section_Data,8)),NA(),VLOOKUP(DQ$5,Rolled_Section_Data,8)) ->  | DR10: =IF(ISERR(VLOOKUP(DR$5,Rolled_Section_Data,8)),NA(),VLOOKUP(DR$5,Rolled_Section_Data,8)) ->  | DS10: =IF(ISERR(VLOOKUP(DS$5,Rolled_Section_Data,8)),NA(),VLOOKUP(DS$5,Rolled_Section_Data,8)) ->  | DV10: 0.7
B11: Location: | C11: =br_descrip -> xx Over xx | H11: Year Built: | I11: =yr_built -> 2000 | P11: Location: | Q11: =br_descrip -> xx Over xx | V11: Year Built: | X11: =yr_built -> 2000 | AK11: 1982-1993 | AM11: 3.6 | AN11: KSI | BM11: For Non-Composite Action [per AASHTO 16th Edition (1996), Articles 10.48.1, "Compact Sections" and 10.48.2, "Braced Noncompact Sections"]: | CH11: TOP COV. PLT WIDTH | CJ11: (in) | CK11: 0 | CL11: 0 | CM11: 0 | CN11: 0 | CO11: 0 | CR11: TOP COV. PLT WIDTH | CT11: (in) | CU11: =S$54 -> 0 | CV11: =T$54 -> 0 | CW11: =W$54 -> 0 | CX11: =Y$54 -> 0 | CY11: =AB$54 -> 0 | DB11: TOP COV. PLT WIDTH | DD11: (in) | DE11: =S$66 -> 0 | DF11: =T$66 -> 0 | DG11: =W$66 -> 0 | DH11: =Y$66 -> 0 | DI11: =AB$66 -> 0 | DL11: FILLET RADIUS | DN11: (in) | DO11: =IF(ISERR(VLOOKUP(DO$5,Rolled_Section_Data,9)),NA(),VLOOKUP(DO$5,Rolled_Section_Data,9)) ->  | DP11: =IF(ISERR(VLOOKUP(DP$5,Rolled_Section_Data,9)),NA(),VLOOKUP(DP$5,Rolled_Section_Data,9)) ->  | DQ11: =IF(ISERR(VLOOKUP(DQ$5,Rolled_Section_Data,9)),NA(),VLOOKUP(DQ$5,Rolled_Section_Data,9)) ->  | DR11: =IF(ISERR(VLOOKUP(DR$5,Rolled_Section_Data,9)),NA(),VLOOKUP(DR$5,Rolled_Section_Data,9)) ->  | DS11: =IF(ISERR(VLOOKUP(DS$5,Rolled_Section_Data,9)),NA(),VLOOKUP(DS$5,Rolled_Section_Data,9)) ->  | DV11: 0.8
H12: Stringer Descr: | V12: Stringer Descr: | X12: =I12 -> 0 | AK12: After 1993 | AM12: 4 | AN12: KSI | CH12: TOP COV. PLT THK | CJ12: (in) | CK12: 0 | CL12: 0 | CM12: 0 | CN12: 0 | CO12: 0 | CR12: TOP COV. PLT THK | CT12: (in) | CU12: =S$55 -> 0 | CV12: =T$55 -> 0 | CW12: =W$55 -> 0 | CX12: =Y$55 -> 0 | CY12: =AB$55 -> 0 | DB12: TOP COV. PLT THK | DD12: (in) | DE12: =S$67 -> 0 | DF12: =T$67 -> 0 | DG12: =W$67 -> 0 | DH12: =Y$67 -> 0 | DI12: =AB$67 -> 0 | DK12: M A J O R A X I S | DL12: Moment of Inertia Ix | DN12: (in^4) | DO12: =IF(ISERR(VLOOKUP(DO$5,Rolled_Section_Data,10)),NA(),VLOOKUP(DO$5,Rolled_Section_Data,10)) ->  | DP12: =IF(ISERR(VLOOKUP(DP$5,Rolled_Section_Data,10)),NA(),VLOOKUP(DP$5,Rolled_Section_Data,10)) ->  | DQ12: =IF(ISERR(VLOOKUP(DQ$5,Rolled_Section_Data,10)),NA(),VLOOKUP(DQ$5,Rolled_Section_Data,10)) ->  | DR12: =IF(ISERR(VLOOKUP(DR$5,Rolled_Section_Data,10)),NA(),VLOOKUP(DR$5,Rolled_Section_Data,10)) ->  | DS12: =IF(ISERR(VLOOKUP(DS$5,Rolled_Section_Data,10)),NA(),VLOOKUP(DS$5,Rolled_Section_Data,10)) ->  | DV12: 0.9
AK13: Recommended Design Compressive Strength (KSI) | AN13: =IF(VALUE($I$11)<1959,AM9,IF(VALUE($I$11)<1982,AM10,IF(VALUE($I$11)<1993,AM11,AM12))) -> 4 | BM13: b' (in) = | BN13: =CK$7/2 -> 0 | BO13: =CU$7/2 -> 0 | BP13: =DE$7/2 -> 0 | BQ13: =CL$7/2 -> 0 | BR13: =CV$7/2 -> 0 | BS13: =DF$7/2 -> 0 | BT13: =CM$7/2 -> 0 | BU13: =CW$7/2 -> 0 | BV13: =DG$7/2 -> 0 | BW13: =CN$7/2 -> 0 | BX13: =CX$7/2 -> 0 | BY13: =DH$7/2 -> 0 | BZ13: =CO$7/2 -> 0 | CA13: =CY$7/2 -> 0 | CB13: =DI$7/2 -> 0 | CH13: BOT COV. PLT WIDTH | CJ13: (in) | CK13: 0 | CL13: 0 | CM13: 0 | CN13: 0 | CO13: 0 | CR13: BOT COV. PLT WIDTH | CT13: (in) | CU13: =S$56 -> 0 | CV13: =T$56 -> 0 | CW13: =W$56 -> 0 | CX13: =Y$56 -> 0 | CY13: =AB$56 -> 0 | DB13: BOT COV. PLT WIDTH | DD13: (in) | DE13: =S$68 -> 0 | DF13: =T$68 -> 0 | DG13: =W$68 -> 0 | DH13: =Y$68 -> 0 | DI13: =AB$68 -> 0 | DL13: Elastic Sect. Modulus, Sx | DN13: (in^3) | DO13: =IF(ISERR(VLOOKUP(DO$5,Rolled_Section_Data,11)),NA(),VLOOKUP(DO$5,Rolled_Section_Data,11)) ->  | DP13: =IF(ISERR(VLOOKUP(DP$5,Rolled_Section_Data,11)),NA(),VLOOKUP(DP$5,Rolled_Section_Data,11)) ->  | DQ13: =IF(ISERR(VLOOKUP(DQ$5,Rolled_Section_Data,11)),NA(),VLOOKUP(DQ$5,Rolled_Section_Data,11)) ->  | DR13: =IF(ISERR(VLOOKUP(DR$5,Rolled_Section_Data,11)),NA(),VLOOKUP(DR$5,Rolled_Section_Data,11)) ->  | DS13: =IF(ISERR(VLOOKUP(DS$5,Rolled_Section_Data,11)),NA(),VLOOKUP(DS$5,Rolled_Section_Data,11)) ->  | DV13: 1
B14: Analysis | P14: Input Tables | BM14: tft (in) = | BN14: =CK$8 -> 0 | BO14: =CU$8 -> 0 | BP14: =DE$8 -> 0 | BQ14: =CL$8 -> 0 | BR14: =CV$8 -> 0 | BS14: =DF$8 -> 0 | BT14: =CM$8 -> 0 | BU14: =CW$8 -> 0 | BV14: =DG$8 -> 0 | BW14: =CN$8 -> 0 | BX14: =CX$8 -> 0 | BY14: =DH$8 -> 0 | BZ14: =CO$8 -> 0 | CA14: =CY$8 -> 0 | CB14: =DI$8 -> 0 | CH14: BOT COV. PLT THK | CJ14: (in) | CK14: 0 | CL14: 0 | CM14: 0 | CN14: 0 | CO14: 0 | CR14: BOT COV. PLT THK | CT14: (in) | CU14: =S$57 -> 0 | CV14: =T$57 -> 0 | CW14: =W$57 -> 0 | CX14: =Y$57 -> 0 | CY14: =AB$57 -> 0 | DB14: BOT COV. PLT THK | DD14: (in) | DE14: =S$69 -> 0 | DF14: =T$69 -> 0 | DG14: =W$69 -> 0 | DH14: =Y$69 -> 0 | DI14: =AB$69 -> 0 | DL14: Plastic Sect. Modulus, Zx | DN14: (in^3) | DO14: =IF(ISERR(VLOOKUP(DO$5,Rolled_Section_Data,12)),NA(),VLOOKUP(DO$5,Rolled_Section_Data,12)) ->  | DP14: =IF(ISERR(VLOOKUP(DP$5,Rolled_Section_Data,12)),NA(),VLOOKUP(DP$5,Rolled_Section_Data,12)) ->  | DQ14: =IF(ISERR(VLOOKUP(DQ$5,Rolled_Section_Data,12)),NA(),VLOOKUP(DQ$5,Rolled_Section_Data,12)) ->  | DR14: =IF(ISERR(VLOOKUP(DR$5,Rolled_Section_Data,12)),NA(),VLOOKUP(DR$5,Rolled_Section_Data,12)) ->  | DS14: =IF(ISERR(VLOOKUP(DS$5,Rolled_Section_Data,12)),NA(),VLOOKUP(DS$5,Rolled_Section_Data,12)) -> 
DK15: M I N O R A X I S | DL15: Moment of Inertia, Ix | DN15: (in^4) | DO15: =IF(ISERR(VLOOKUP(DO$5,Rolled_Section_Data,13)),NA(),VLOOKUP(DO$5,Rolled_Section_Data,13)) ->  | DP15: =IF(ISERR(VLOOKUP(DP$5,Rolled_Section_Data,13)),NA(),VLOOKUP(DP$5,Rolled_Section_Data,13)) ->  | DQ15: =IF(ISERR(VLOOKUP(DQ$5,Rolled_Section_Data,13)),NA(),VLOOKUP(DQ$5,Rolled_Section_Data,13)) ->  | DR15: =IF(ISERR(VLOOKUP(DR$5,Rolled_Section_Data,13)),NA(),VLOOKUP(DR$5,Rolled_Section_Data,13)) ->  | DS15: =IF(ISERR(VLOOKUP(DS$5,Rolled_Section_Data,13)),NA(),VLOOKUP(DS$5,Rolled_Section_Data,13)) -> 
B16: Stringer Capacity (CU) at Section Checks | H16: Stringer Capacity (Cserv) at Section Checks | P16: DECK INPUTS | V16: LIVE LOAD FACTORS | AG16: EV LIVE LOAD FACTOR | AK16: Structural Steel Allowable Yield Stress | AS16: Single Lane | AV16: 2 or More Lanes | BM16: D (in) = | BN16: =(CK$5-CK$8-CK$9) -> 0 | BO16: =(CU$5-CU$8-CU$9) -> 0 | BP16: =(DE$5-DE$8-DE$9) -> 0 | BQ16: =(CL$5-CL$8-CL$9) -> 0 | BR16: =(CV$5-CV$8-CV$9) -> 0 | BS16: =(DF$5-DF$8-DF$9) -> 0 | BT16: =(CM$5-CM$8-CM$9) -> 0 | BU16: =(CW$5-CW$8-CW$9) -> 0 | BV16: =(DG$5-DG$8-DG$9) -> 0 | BW16: =(CN$5-CN$8-CN$9) -> 0 | BX16: =(CX$5-CX$8-CX$9) -> 0 | BY16: =(DH$5-DH$8-DH$9) -> 0 | BZ16: =(CO$5-CO$8-CO$9) -> 0 | CA16: =(CY$5-CY$8-CY$9) -> 0 | CB16: =(DI$5-DI$8-DI$9) -> 0 | DL16: Elastic Sect. Modulus, Sx | DN16: (in^3) | DO16: =IF(ISERR(VLOOKUP(DO$5,Rolled_Section_Data,14)),NA(),VLOOKUP(DO$5,Rolled_Section_Data,14)) ->  | DP16: =IF(ISERR(VLOOKUP(DP$5,Rolled_Section_Data,14)),NA(),VLOOKUP(DP$5,Rolled_Section_Data,14)) ->  | DQ16: =IF(ISERR(VLOOKUP(DQ$5,Rolled_Section_Data,14)),NA(),VLOOKUP(DQ$5,Rolled_Section_Data,14)) ->  | DR16: =IF(ISERR(VLOOKUP(DR$5,Rolled_Section_Data,14)),NA(),VLOOKUP(DR$5,Rolled_Section_Data,14)) ->  | DS16: =IF(ISERR(VLOOKUP(DS$5,Rolled_Section_Data,14)),NA(),VLOOKUP(DS$5,Rolled_Section_Data,14)) -> 
C17: Span | D17: % span | E17: k-ft | J17: Span | K17: % span | L17: k-ft | R17: Import Values from Defined Deck Module: | V17: Deck Type for Live Loads: | AH17: EV Crossing = | AI17: =$I$10 -> 1 | AK17: Date Built | AM17: Yield Stress | AS17: S/? | AT17: Use footnote f if S exceeds (ft) | AU17: Footnote f LLDF (span 1) | AV17: S/? | AW17: Use footnote f if S exceeds (ft) | AX17: Footnote f LLDF (span 1) | BM17: tw (in) = | BN17: =CK$6 -> 0 | BO17: =CU$6 -> 0 | BP17: =DE$6 -> 0 | BQ17: =CL$6 -> 0 | BR17: =CV$6 -> 0 | BS17: =DF$6 -> 0 | BT17: =CM$6 -> 0 | BU17: =CW$6 -> 0 | BV17: =DG$6 -> 0 | BW17: =CN$6 -> 0 | BX17: =CX$6 -> 0 | BY17: =DH$6 -> 0 | BZ17: =CO$6 -> 0 | CA17: =CY$6 -> 0 | CB17: =DI$6 -> 0 | DL17: Radius of Gyration, ry | DN17: (in^4) | DO17: =IF(ISERR(VLOOKUP(DO$5,Rolled_Section_Data,15)),NA(),VLOOKUP(DO$5,Rolled_Section_Data,15)) ->  | DP17: =IF(ISERR(VLOOKUP(DP$5,Rolled_Section_Data,15)),NA(),VLOOKUP(DP$5,Rolled_Section_Data,15)) ->  | DQ17: =IF(ISERR(VLOOKUP(DQ$5,Rolled_Section_Data,15)),NA(),VLOOKUP(DQ$5,Rolled_Section_Data,15)) ->  | DR17: =IF(ISERR(VLOOKUP(DR$5,Rolled_Section_Data,15)),NA(),VLOOKUP(DR$5,Rolled_Section_Data,15)) ->  | DS17: =IF(ISERR(VLOOKUP(DS$5,Rolled_Section_Data,15)),NA(),VLOOKUP(DS$5,Rolled_Section_Data,15)) -> 
C18: =IF($S$48="","",1) ->  | D18: =IF($S$48="","",$S$48) ->  | E18: =IFERROR(AY95,"") ->  | J18: =IF($S$48="","",1) ->  | K18: =IF($S$48="","",$S$48) ->  | L18: =IFERROR(AY96,"") ->  | R18: Deck Type: | S18: =IF($S$17=$AZ$6,'Steel Deck'!E17,"") ->  | V18: Thickness of Deck (in): | AH18: ADTT = | AI18: =$I$8*$I$9 -> 0.5 | AK18: Before 1905 | AM18: 26 | AN18: KSI | BM18: Dc (in) = | BN18: =CK$35-CK$12-CK$8 ->  | BO18: =CU$35-CU$12-CU$8 ->  | BP18: =DE$35-DE$12-DE$8 ->  | BQ18: =CL$35-CL$12-CL$8 ->  | BR18: =CV$35-CV$12-CV$8 ->  | BS18: =DF$35-DF$12-DF$8 ->  | BT18: =CM$35-CM$12-CM$8 ->  | BU18: =CW$35-CW$12-CW$8 ->  | BV18: =DG$35-DG$12-DG$8 ->  | BW18: =CN$35-CN$12-CN$8 ->  | BX18: =CX$35-CX$12-CX$8 ->  | BY18: =DH$35-DH$12-DH$8 ->  | BZ18: =CO$35-CO$12-CO$8 ->  | CA18: =CY$35-CY$12-CY$8 ->  | CB18: =DI$35-DI$12-DI$8 -> 
C19: =IF($S$60="","",1) ->  | D19: =IF($S$60="","",$S$60) ->  | E19: =IFERROR(AZ95,"") ->  | J19: =IF($S$60="","",1) ->  | K19: =IF($S$60="","",$S$60) ->  | L19: =IFERROR(AZ96,"") ->  | R19: =IF(OR(S18="Steel Corrugated Deck",S18="Steel Open Grid Deck"),"Deck Designation:","Deck Thickness (in):") -> Deck Thickness (in): | S19: =IF($S$17=$AG$70,'Concrete Deck'!$E$18,IF(AND($S$17=$AZ$6,OR($S$18=$AG$71,$S$18=$AG$73)),'Steel Deck'!$E$18,IF(AND($S$17=$AZ$6,$S$18=$AG$72),'Steel Deck'!$E$20,IF($S$17=$AZ$8,'Timber Deck'!$E$19,"")))) ->  | V19: Stringer Location: | AA19: Interior | AH19: EV3 Operating LL Factor (1 crossing) = | AI19: 1.1 | AK19: 1905-1936 | AM19: 30 | AN19: KSI | AZ19: Deck Selected | BA19: =S17 -> 0 | BM19: (AASHTO EQ. 10-93): | BN19: =BN$13/BN$14 ->  | BO19: =BO$13/BO$14 ->  | BP19: =BP$13/BP$14 ->  | BQ19: =BQ$13/BQ$14 -> 
C20: =IF($T$48="","",2) ->  | D20: =IF($T$48="","",$T$48) ->  | E20: =IFERROR(BA95,"") ->  | J20: =IF($T$48="","",2) ->  | K20: =IF($T$48="","",$T$48) ->  | L20: =IFERROR(BA96,"") ->  | R20: Composite Action (Y/N): | W20: LLDF S/ | X20: LLDF | AA20: Override | AB20: IM | AC20: Override | AH20: EV2 Operating LL Factor (1 crossing) = | AI20: =IF(AND(AI18>0,AI18<1000),1.1,IF(OR(AI18=0,AI18>6000),1.3,(1.3-1.1)*(AI18-1000)/5000+1.1)) -> 1.1 | AK20: 1936-1963 | AM20: 33 | AN20: KSI | AP20: Concrete Deck | AS20: 7 | AT20: 10 | AU20: =IF(ISBLANK($AT20),0,IF($S$32>$AT20,1+($S$32-6)/$S$32,0)) -> 0 | AV20: 5.5 | AW20: 14 | AX20: =IF(ISBLANK($AW20),0,IF($S$32>$AW20,1+($S$32-6)/$S$32+($S$32-4)/$S$32+IF($S$32>10,($S$32-10)/$S$32,0),0)) -> 0 | AZ20: LLDF Options | BA20: =IF($BA$19="User Input Dead Loads",AP20,IF(OR($BA$19="Timber Deck",$BA$19="Timber Deck (2)"),AP24,IF(OR($BA$19="Steel Deck",$BA$19="Steel Deck (2)"),AP21,AP20))) -> Concrete Deck | BM20: Checks | BN20: =IF(+BN$19<=+BN$21,"<=",">") ->  | BO20: =IF(+BO$19<=+BO$21,"<=",">") ->  | BP20: =IF(+BP$19<=+BP$21,"<=",">") ->  | BQ20: =IF(+BQ$19<=+BQ$21,"<=",">") ->  | BT20: =IF(+BT$19<=+BT$21,"<=",">") -> 
C21: =IF($T$60="","",2) ->  | D21: =IF($T$60="","",$T$60) ->  | E21: =IFERROR(BB95,"") ->  | J21: =IF($T$60="","",2) ->  | K21: =IF($T$60="","",$T$60) ->  | L21: =IFERROR(BB96,"") ->  | R21: f'c (ksi): | V21: Span 1: | W21: =IF($AA$19="Exterior","Exterior",IF($M$8=1,IF($AQ$49<$AQ$48,VLOOKUP($AA$17,$AP$20:$AX$26,4,0),"footnote f"),IF($M$8>1,IF($AQ$47<$AQ$46,VLOOKUP($AA$17,$AP$20:$AX$26,7,0),"footnote f"),""))) ->  | X21: =IF($AA$19 = "Exterior", $AH$2,IF($M$8=1,MAX(AQ48:AQ49),MAX(AQ46:AQ47))) ->  | AB21: =AQ42 -> 1.3 | AH21: EV3 Operating LL Factor (10 crossing) = | AI21: =IF(AND(AI18>0,AI18<1000),1.1,IF(OR(AI18=0,AI18>6000),1.2,(1.2-1.1)*(AI18-1000)/5000+1.1)) -> 1.1 | AK21: After 1963 | AM21: 36 | AN21: KSI | AP21: Steel Corrugated Deck | AS21: 5.5 | AU21: 0 | AV21: 4.5 | AX21: 0 | BA21: =IF($BA$19="User Input Dead Loads",AP21,IF(OR($BA$19="Timber Deck",$BA$19="Timber Deck (2)"),AP25,IF(OR($BA$19="Steel Deck",$BA$19="Steel Deck (2)"),AP22,""))) ->  | BN21: =2055/(1000*$S$35)^0.5 ->  | BO21: =2055/(1000*$S$35)^0.5 ->  | BP21: =2055/(1000*$S$35)^0.5 ->  | BQ21: =2055/(1000*$T$35)^0.5 ->  | BR21: =2055/(1000*$T$35)^0.5 ->  | BS21: =2055/(1000*$T$35)^0.5 ->  | BT21: =2055/(1000*$W$35)^0.5 ->  | BU21: =2055/(1000*$W$35)^0.5 ->  | BV21: =2055/(1000*$W$35)^0.5 ->  | BW21: =2055/(1000*$Y$35)^0.5 ->  | BX21: =2055/(1000*$Y$35)^0.5 ->  | BY21: =2055/(1000*$Y$35)^0.5 ->  | BZ21: =2055/(1000*$AB$35)^0.5 ->  | CA21: =2055/(1000*$AB$35)^0.5 ->  | CB21: =2055/(1000*$AB$35)^0.5 -> 
C22: =IF($W$48="","",3) ->  | D22: =IF($W$48="","",$W$48) ->  | E22: =IFERROR(BC95,"") ->  | J22: =IF($W$48="","",3) ->  | K22: =IF($W$48="","",$W$48) ->  | L22: =IFERROR(BC96,"") ->  | R22: Slab Embedment (in): | V22: Span 2: | W22: =IF($AA$19="Exterior","Exterior",IF($M$8=1,IF($AR$49<$AR$48,VLOOKUP($AA$17,$AP$20:$AX$26,4,0),"footnote f"),IF($M$8>1,IF($AR$47<$AR$46,VLOOKUP($AA$17,$AP$20:$AX$26,7,0),"footnote f"),""))) ->  | X22: =IF($AA$19 = "Exterior", $AH$2,IF($M$8=1,MAX(AR48:AR49),MAX(AR46:AR47))) ->  | AB22: =AR42 -> 1.3 | AH22: EV2 Operating LL Factor (10 crossing) = | AI22: =IF(AND(AI18>0,AI18<1000),1.1,IF(OR(AI18=0,AI18>6000),1.5,(1.5-1.1)*(AI18-1000)/5000+1.1)) -> 1.1 | AK22: Recommended Yield Strength (KSI) | AN22: =IF(VALUE(I11)<=1905,AM18,IF(VALUE(I11)<=1936,AM19,IF(VALUE(I11)<=1963,AM20,AM21))) -> 36 | AP22: Steel Plate Deck | AS22: 5.5 | AU22: 0 | AV22: 4.5 | AX22: 0 | BA22: =IF($BA$19="User Input Dead Loads",AP22,IF(OR($BA$19="Timber Deck",$BA$19="Timber Deck (2)"),AP26,IF(OR($BA$19="Steel Deck",$BA$19="Steel Deck (2)"),AP23,""))) ->  | BN22: =IF(+BN$19<=+BN$21,1,0) ->  | BO22: =IF(+BO$19<=+BO$21,1,0) ->  | BP22: =IF(+BP$19<=+BP$21,1,0) ->  | BQ22: =IF(+BQ$19<=+BQ$21,1,0) ->  | EF22: Deck Properties Input Options
C23: =IF($W$60="","",3) ->  | D23: =IF($W$60="","",$W$60) ->  | E23: =IFERROR(BD95,"") ->  | J23: =IF($W$60="","",3) ->  | K23: =IF($W$60="","",$W$60) ->  | L23: =IFERROR(BD96,"") ->  | R23: Deck Weight (ksf): | S23: =IFERROR(INDEX($AH$70:$AH$74,IFERROR(MATCH($S$17,$AG$70:$AG$74,0),MATCH($S$18,$AG$70:$AG$74,0))),0) -> 0 | V23: =IF(S28<3,"","Span 3:") ->  | W23: =IF($S$28<3,"",IF($AA$19="Exterior","Exterior",IF($M$8=1,IF($AS$49<$AS$48,VLOOKUP($AA$17,$AP$20:$AX$26,4,0),"footnote f"),IF($M$8>1,IF($AS$47<$AS$46,VLOOKUP($AA$17,$AP$20:$AX$26,7,0),"footnote f"),"")))) ->  | X23: =IF(S28<3,"",IF($AA$19 = "Exterior", $AH$2,IF($M$8=1,MAX(AS48:AS49),MAX(AS46:AS47)))) ->  | AB23: =IF(S28<3,"",AS42) ->  | AH23: Min lanes = | AI23: =$M$8 -> 1 | AP23: Steel Open Grid Deck | AS23: =IF($AC$18>4,6,4.5) -> 4.5 | AT23: =IF($AC$18>4,6,"") ->  | AU23: 0 | AV23: =IF($AC$18>4,5,4) -> 4 | AW23: =IF($AC$18>4,10.5,"") ->  | AX23: 0 | BA23: =IF($BA$19="User Input Dead Loads",AP23,IF(OR($BA$19="Timber Deck",$BA$19="Timber Deck (2)"),"",IF(OR($BA$19="Steel Deck",$BA$19="Steel Deck (2)"),"",""))) ->  | BM23: (AASHTO EQ. 10-94): | BN23: =BN$16/BN$17 ->  | BO23: =BO$16/BO$17 ->  | BP23: =BP$16/BP$17 ->  | BQ23: =BQ$16/BQ$17 ->  | CG23: ****CALCULATED PROPERTIES FOR ORIGINAL SECTION**** | CQ23: ****CALCULATED PROPERTIES FOR SECTION 1**** | DA23: ****CALCULATED PROPERTIES FOR SECTION 2**** | EF23: Concrete Deck | EG23: Steel Deck | EH23: Steel Deck (2) | EI23: Timber Deck | EJ23: Timber Deck (2) | EM23: Steel Deck
C24: =IF($Y$48="","",4) ->  | D24: =IF($Y$48="","",$Y$48) ->  | E24: =IFERROR(BE95,"") ->  | J24: =IF($Y$48="","",4) ->  | K24: =IF($Y$48="","",$Y$48) ->  | L24: =IFERROR(BE96,"") ->  | R24: Fill Weight (ksf): | S24: =IFERROR(VLOOKUP($S$17,'Dead Load Calcs and Tables'!$E$11:$J$16,4,0),0) -> 0 | V24: =IF(S28<3,"","Span 4:") ->  | W24: =IF($S$28<4,"",IF($AA$19="Exterior","Exterior",IF($M$8=1,IF($AT$49<$AT$48,VLOOKUP($AA$17,$AP$20:$AX$26,4,0),"footnote f"),IF($M$8>1,IF($AT$47<$AT$46,VLOOKUP($AA$17,$AP$20:$AX$26,7,0),"footnote f"),"")))) ->  | X24: =IF(S28<3,"",IF($AA$19 = "Exterior", $AH$2,IF($M$8=1,MAX(AT48:AT49),MAX(AT46:AT47)))) ->  | AB24: =IF(S28<4,"",AT42) ->  | AH24: EV2 Operating LL Factor = | AI24: =IF(AI23<2,1.3,IF(AI17=1,AI20,AI22)) -> 1.3 | AP24: Timber Plank | AS24: 4 | AU24: 0 | AV24: 3.75 | AX24: 0 | BA24: =IF($BA$19="User Input Dead Loads",AP24,IF(OR($BA$19="Timber Deck",$BA$19="Timber Deck (2)"),"",IF(OR($BA$19="Steel Deck",$BA$19="Steel Deck (2)"),"",""))) ->  | BM24: Checks | BN24: =IF(+BN$23<=+BN$25,"<=",">") ->  | BO24: =IF(+BO$23<=+BO$25,"<=",">") ->  | BP24: =IF(+BP$23<=+BP$25,"<=",">") ->  | BQ24: =IF(+BQ$23<=+BQ$25,"<=",">") ->  | CK24: Span 1 | CL24: Span 2 | CM24: Span 3 | CN24: Span 4 | CO24: Span 5 | CU24: Span 1 | CV24: Span 2 | CW24: Span 3 | CX24: Span 4 | CY24: Span 5 | DE24: Span 1 | DF24: Span 2 | DG24: Span 3 | DH24: Span 4 | DI24: Span 5 | EE24: Deck Options | EF24: Deck Thickness (in): | EG24: Designation | EH24: Designation | EI24: Plank Depth (in): | EJ24: Plank Depth (in):
C25: =IF($Y$60="","",4) ->  | D25: =IF($Y$60="","",$Y$60) ->  | E25: =IFERROR(BF95,"") ->  | J25: =IF($Y$60="","",4) ->  | K25: =IF($Y$60="","",$Y$60) ->  | L25: =IFERROR(BF96,"") ->  | R25: Wearing Surface Weight (ksf): | S25: =IFERROR(VLOOKUP($S$17,'Dead Load Calcs and Tables'!$E$11:$J$16,5,0),0) -> 0 | V25: =IF(S28<3,"","Span 5:") ->  | W25: =IF($S$28<5,"",IF($AA$19="Exterior","Exterior",IF($M$8=1,IF($AU$49<$AU$48,VLOOKUP($AA$17,$AP$20:$AX$26,4,0),"footnote f"),IF($M$8>1,IF($AU$47<$AU$46,VLOOKUP($AA$17,$AP$20:$AX$26,7,0),"footnote f"),"")))) ->  | X25: =IF(S28<3,"",IF($AA$19 = "Exterior", $AH$2,IF($M$8=1,MAX(AU48:AU49),MAX(AU46:AU47)))) ->  | AB25: =IF(S28<5,"",AU42) ->  | AH25: EV3 Operating LL Factor = | AI25: =IF(AI23<2,1.3,IF(AI17=1,AI19,AI21)) -> 1.3 | AP25: Nail Laminated Timbers | AS25: =IF($AC$18>6,5,4.5) -> 4.5 | AT25: =IF($AC$18>6,5,"") ->  | AU25: 0 | AV25: =IF($AC$18>6,4.25,4) -> 4 | AW25: =IF($AC$18>6,6.5,"") ->  | AX25: 0 | BA25: =IF($BA$19="User Input Dead Loads",AP25,IF(OR($BA$19="Timber Deck",$BA$19="Timber Deck (2)"),"",IF(OR($BA$19="Steel Deck",$BA$19="Steel Deck (2)"),"",""))) ->  | BN25: =19230/(1000*$S$35)^0.5 ->  | BO25: =19230/(1000*$S$35)^0.5 ->  | BP25: =19230/(1000*$S$35)^0.5 ->  | BQ25: =19230/(1000*$T$35)^0.5 ->  | BR25: =19230/(1000*$T$35)^0.5 ->  | BS25: =19230/(1000*$T$35)^0.5 ->  | BT25: =19230/(1000*$W$35)^0.5 ->  | BU25: =19230/(1000*$W$35)^0.5 ->  | BV25: =19230/(1000*$W$35)^0.5 ->  | BW25: =19230/(1000*$Y$35)^0.5 ->  | BX25: =19230/(1000*$Y$35)^0.5 ->  | BY25: =19230/(1000*$Y$35)^0.5 ->  | BZ25: =19230/(1000*$AB$35)^0.5 ->  | CA25: =19230/(1000*$AB$35)^0.5 ->  | CB25: =19230/(1000*$AB$35)^0.5 ->  | CG25: AREA TOP FLANGE | CJ25: (in^2) | CK25: =CK7*CK8 -> 0 | CL25: =CL7*CL8 -> 0 | CM25: =CM7*CM8 -> 0 | CN25: =CN7*CN8 -> 0 | CO25: =CO7*CO8 -> 0 | CQ25: AREA TOP FLANGE | CT25: (in^2) | CU25: =CU7*CU8 -> 0 | CV25: =CV7*CV8 -> 0 | CW25: =CW7*CW8 -> 0 | CX25: =CX7*CX8 -> 0 | CY25: =CY7*CY8 -> 0 | DA25: AREA TOP FLANGE | DD25: (in^2) | DE25: =DE7*DE8 -> 0 | DF25: =DF7*DF8 -> 0 | DG25: =DG7*DG8 -> 0 | DH25: =DH7*DH8 -> 0 | DI25: =DI7*DI8 -> 0 | EG25: Weight of Corrugation (ksf): | EH25: Steel Plate Thickness (in):
C26: =IF($AB$48="","",5) ->  | D26: =IF($AB$48="","",$AB$48) ->  | E26: =IFERROR(BG95,"") ->  | J26: =IF($AB$48="","",5) ->  | K26: =IF($AB$48="","",$AB$48) ->  | L26: =IFERROR(BG96,"") ->  | R26: Misc. Loads (ksf): | S26: =IFERROR(VLOOKUP($S$17,'Dead Load Calcs and Tables'!$E$11:$J$16,6,0),0) -> 0 | AP26: Glue Laminated Timbers | AS26: =IF($AC$18>4,5.25,4.5) -> 4.5 | AT26: =IF($AC$18>4,5.5,"") ->  | AU26: 0 | AV26: =IF($AC$18>4,4.5,4) -> 4 | AW26: =IF($AC$18>4,7,"") ->  | AX26: 0 | BA26: =IF($BA$19="User Input Dead Loads",AP26,IF(OR($BA$19="Timber Deck",$BA$19="Timber Deck (2)"),"",IF(OR($BA$19="Steel Deck",$BA$19="Steel Deck (2)"),"",""))) ->  | BN26: =IF(+BN$23<=+BN$25,1,0) ->  | BO26: =IF(+BO$23<=+BO$25,1,0) ->  | BP26: =IF(+BP$23<=+BP$25,1,0) ->  | BQ26: =IF(+BQ$23<=+BQ$25,1,0) ->  | CG26: AREA BOT FLANGE | CH26: BOT | CI26: FLANGE | CJ26: (in^2) | CK26: =CK7*CK9 -> 0 | CL26: =CL7*CL9 -> 0 | CM26: =CM7*CM9 -> 0 | CN26: =CN7*CN9 -> 0 | CO26: =CO7*CO9 -> 0 | CQ26: AREA BOT FLANGE | CR26: BOT | CS26: FLANGE | CT26: (in^2) | CU26: =CU7*CU9 -> 0 | CV26: =CV7*CV9 -> 0 | CW26: =CW7*CW9 -> 0 | CX26: =CX7*CX9 -> 0 | CY26: =CY7*CY9 -> 0 | DA26: AREA BOT FLANGE | DB26: BOT | DC26: FLANGE | DD26: (in^2) | DE26: =DE7*DE9 -> 0 | DF26: =DF7*DF9 -> 0 | DG26: =DG7*DG9 -> 0 | DH26: =DH7*DH9 -> 0 | DI26: =DI7*DI9 -> 0
C27: =IF($AB$60="","",5) ->  | D27: =IF($AB$60="","",$AB$60) ->  | E27: =IFERROR(BH95,"") ->  | J27: =IF($AB$60="","",5) ->  | K27: =IF($AB$60="","",$AB$60) ->  | L27: =IFERROR(BH96,"") ->  | P27: DATA INPUT TABLE | BM27: 3/4*(AASHTO EQ. 10-93): | BN27: =BN$13/BN$14 ->  | BO27: =BO$13/BO$14 ->  | BP27: =BP$13/BP$14 ->  | BQ27: =BQ$13/BQ$14 ->  | CG27: AREA WEB | CH27: WEB | CJ27: (in^2) | CK27: =(CK5-CK8-CK9)*CK6 -> 0 | CL27: =(CL5-CL8-CL9)*CL6 -> 0 | CM27: =(CM5-CM8-CM9)*CM6 -> 0 | CN27: =(CN5-CN8-CN9)*CN6 -> 0 | CO27: =(CO5-CO8-CO9)*CO6 -> 0 | CQ27: AREA WEB | CR27: WEB | CT27: (in^2) | CU27: =(CU5-CU8-CU9)*CU6 -> 0 | CV27: =(CV5-CV8-CV9)*CV6 -> 0 | CW27: =(CW5-CW8-CW9)*CW6 -> 0 | CX27: =(CX5-CX8-CX9)*CX6 -> 0 | CY27: =(CY5-CY8-CY9)*CY6 -> 0 | DA27: AREA WEB | DB27: WEB | DD27: (in^2) | DE27: =(DE5-DE8-DE9)*DE6 -> 0 | DF27: =(DF5-DF8-DF9)*DF6 -> 0 | DG27: =(DG5-DG8-DG9)*DG6 -> 0 | DH27: =(DH5-DH8-DH9)*DH6 -> 0 | DI27: =(DI5-DI8-DI9)*DI6 -> 0
P28: Number of Continuous Spans: | W28: Modulus of Elasticity, E (ksi): | AB28: 29000 | AH28: Run Continuous Stringer Analysis Inputs | BM28: Checks | BN28: =IF(+BN$27<=+BN$29,"<=",">") ->  | BO28: =IF(+BO$27<=+BO$29,"<=",">") ->  | BP28: =IF(+BP$27<=+BP$29,"<=",">") ->  | BQ28: =IF(+BQ$27<=+BQ$29,"<=",">") ->  | CG28: AREA TOP COV PLT | CH28: TOP | CI28: COV PLT | CJ28: (in^2) | CQ28: AREA TOP COV PLT | CR28: TOP | CS28: COV PLT | CT28: (in^2) | CU28: =CU11*CU12 -> 0 | CV28: =CV11*CV12 -> 0 | CW28: =CW11*CW12 -> 0 | CX28: =CX11*CX12 -> 0 | CY28: =CY11*CY12 -> 0 | DA28: AREA TOP COV PLT | DB28: TOP | DC28: COV PLT | DD28: (in^2) | DE28: =DE11*DE12 -> 0 | DF28: =DF11*DF12 -> 0 | DG28: =DG11*DG12 -> 0 | DH28: =DH11*DH12 -> 0 | DI28: =DI11*DI12 -> 0 | EF28: Composite Action (Y/N):
B29: (+MDL) and Distributed (+MLL) at Controlling Location | H29: (-MDL) and Distributed (-MLL) at Controlling Location | P29: Span ID: | S29: 1 | T29: 2 | W29: 3 | Y29: 4 | AB29: 5 | AH29: Number of Spans | AI29: Span Length (in) | AJ29: Moment of Inertia (in4) | AK29: Moment of Inertia (in4) | AL29: DL non (k/in) | AM29: Number of supports | AN29: Support location, in | AO29: Elastic Modulus (ksi) | BN29: =0.75*(2055/(1000*$S$35)^0.5) ->  | BO29: =0.75*(2055/(1000*$S$35)^0.5) ->  | BP29: =0.75*(2055/(1000*$S$35)^0.5) ->  | BQ29: =0.75*(2055/(1000*$T$35)^0.5) ->  | BR29: =0.75*(2055/(1000*$T$35)^0.5) ->  | BS29: =0.75*(2055/(1000*$T$35)^0.5) ->  | BT29: =0.75*(2055/(1000*$W$35)^0.5) ->  | BU29: =0.75*(2055/(1000*$W$35)^0.5) ->  | BV29: =0.75*(2055/(1000*$W$35)^0.5) ->  | BW29: =0.75*(2055/(1000*$Y$35)^0.5) ->  | BX29: =0.75*(2055/(1000*$Y$35)^0.5) ->  | BY29: =0.75*(2055/(1000*$Y$35)^0.5) ->  | BZ29: =0.75*(2055/(1000*$AB$35)^0.5) ->  | CA29: =0.75*(2055/(1000*$AB$35)^0.5) ->  | CB29: =0.75*(2055/(1000*$AB$35)^0.5) ->  | CG29: AREA BOT COV PLT | CH29: BOT | CI29: COV PLT | CJ29: (in^2) | CQ29: AREA BOT COV PLT | CR29: BOT | CS29: COV PLT | CT29: (in^2) | CU29: =CU13*CU14 -> 0 | CV29: =CV13*CV14 -> 0 | CW29: =CW13*CW14 -> 0 | CX29: =CX13*CX14 -> 0 | CY29: =CY13*CY14 -> 0 | DA29: AREA BOT COV PLT | DB29: BOT | DC29: COV PLT | DD29: (in^2) | DE29: =DE13*DE14 -> 0 | DF29: =DF13*DF14 -> 0 | DG29: =DG13*DG14 -> 0 | DH29: =DH13*DH14 -> 0 | DI29: =DI13*DI14 -> 0 | EF29: Slab Embedment (in):
C30: Span | D30: % span | E30: +MDL k-ft | F30: +MLL k-ft | J30: Span | K30: % span | L30: -MDL k-ft | M30: -MLL k-ft | P30: Span Length (ft): | BN30: =IF(+BN$27<=+BN$29,1,0) ->  | BO30: =IF(+BO$27<=+BO$29,1,0) ->  | BP30: =IF(+BP$27<=+BP$29,1,0) ->  | BQ30: =IF(+BQ$27<=+BQ$29,1,0) ->  | CG30: AREA EACH FILLET | CH30: EACH | CI30: FILLET | CJ30: (in^2) | CK30: =((CK10)^2)*(1-PI()/4) -> 0 | CL30: =((CL10)^2)*(1-PI()/4) -> 0 | CM30: =((CM10)^2)*(1-PI()/4) -> 0 | CN30: =((CN10)^2)*(1-PI()/4) -> 0 | CO30: =((CO10)^2)*(1-PI()/4) -> 0 | CQ30: AREA EACH FILLET | CR30: EACH | CS30: FILLET | CT30: (in^2) | CU30: =((CU10)^2)*(1-PI()/4) -> 0 | CV30: =((CV10)^2)*(1-PI()/4) -> 0 | CW30: =((CW10)^2)*(1-PI()/4) -> 0 | CX30: =((CX10)^2)*(1-PI()/4) -> 0 | CY30: =((CY10)^2)*(1-PI()/4) -> 0 | DA30: AREA EACH FILLET | DB30: EACH | DC30: FILLET | DD30: (in^2) | DE30: =((DE10)^2)*(1-PI()/4) -> 0 | DF30: =((DF10)^2)*(1-PI()/4) -> 0 | DG30: =((DG10)^2)*(1-PI()/4) -> 0 | DH30: =((DH10)^2)*(1-PI()/4) -> 0 | DI30: =((DI10)^2)*(1-PI()/4) -> 0
B31: HS: | C31: =IFERROR(ROUNDUP($BJ$94/10,0),"") ->  | D31: =IFERROR(1-(C31-$BJ$94/10),"") ->  | E31: =IFERROR($BJ$99,"") ->  | F31: =IFERROR($BJ$98,"") ->  | I31: HS: | J31: =IFERROR(ROUNDUP($BK$94/10,0),"") ->  | K31: =IFERROR(1-(J31-$BK$94/10),"") ->  | L31: =IFERROR($BK$99,"") ->  | M31: =IFERROR(BK98,"") ->  | P31: Span Bearing Length Deduct (ft): | BM31: 3/4*(AASHTO EQ. 10-94): | BN31: =BN$16/BN$17 ->  | BO31: =BO$16/BO$17 ->  | BP31: =BP$16/BP$17 ->  | BQ31: =BQ$16/BQ$17 ->  | CG31: TOTAL AREA A | CH31: AREA | CI31: A | CJ31: (in^2) | CK31: =SUM(CK25:CK29)+4*CK30 -> 0 | CL31: =SUM(CL25:CL29)+4*CL30 -> 0 | CM31: =SUM(CM25:CM29)+4*CM30 -> 0 | CN31: =SUM(CN25:CN29)+4*CN30 -> 0 | CO31: =SUM(CO25:CO29)+4*CO30 -> 0 | CQ31: TOTAL AREA A | CR31: AREA | CS31: A | CT31: (in^2) | CU31: =SUM(CU25:CU29)+4*CU30 -> 0 | CV31: =SUM(CV25:CV29)+4*CV30 -> 0 | CW31: =SUM(CW25:CW29)+4*CW30 -> 0 | CX31: =SUM(CX25:CX29)+4*CX30 -> 0 | CY31: =SUM(CY25:CY29)+4*CY30 -> 0 | DA31: TOTAL AREA A | DB31: AREA | DC31: A | DD31: (in^2) | DE31: =SUM(DE25:DE29)+4*DE30 -> 0 | DF31: =SUM(DF25:DF29)+4*DF30 -> 0 | DG31: =SUM(DG25:DG29)+4*DG30 -> 0 | DH31: =SUM(DH25:DH29)+4*DH30 -> 0 | DI31: =SUM(DI25:DI29)+4*DI30 -> 0
B32: SU4: | C32: =IFERROR(ROUNDUP($BJ$106/10,0),"") ->  | D32: =IFERROR(1-(C32-$BJ$106/10),"") ->  | E32: =IFERROR($BJ$111,"") ->  | F32: =IFERROR($BJ$110,"") ->  | I32: SU4: | J32: =IFERROR(ROUNDUP($BK$106/10,0),"") ->  | K32: =IFERROR(1-(J32-$BK$106/10),"") ->  | L32: =IFERROR($BK$111,"") ->  | M32: =IFERROR(BK110,"") ->  | P32: Stringer Spacing (ft): | AH32: =S28 -> 0 | AI32: =$S$30*12 -> 0 | AJ32: =$CK$38 ->  | AK32: =AJ32 ->  | AL32: =(-1)*$AH$46/12 ->  | AM32: =AH32+1 -> 1 | AN32: 0 | AO32: =$AB$28 -> 29000 | BM32: Checks | BN32: =IF(+BN$31<=+BN$33,"<=",">") ->  | BO32: =IF(+BO$31<=+BO$33,"<=",">") ->  | BP32: =IF(+BP$31<=+BP$33,"<=",">") ->  | BQ32: =IF(+BQ$31<=+BQ$33,"<=",">") ->  | CG32: POSITIVE OR NEGATIVE LOCATION: | CK32: =IF(OR(AY97=0,ISERROR(AY97)),IF(OR(P46=0.3,S48=0.4,S48=0.5,S48=0.6,S48=0.7),"P","N"),IF($AY$97<0,"N","P")) ->  | CU32: =IF(OR($AY$97=0,ISERROR($AY$97)),IF(OR(S48=0.3,S48=0.4,S48=0.5,S48=0.6,S48=0.7),"P","N"),IF($AY$97<0,"N","P")) ->  | CV32: =IF(OR($BA$97=0,ISERROR($BA$97)),IF(OR(T48=0.3,T48=0.4,T48=0.5,T48=0.6,T48=0.7),"P","N"),IF($BA$97<0,"N","P")) ->  | CW32: =IF(OR($BC$97=0,ISERROR($BC$97)),IF(OR(W48=0.3,W48=0.4,W48=0.5,W48=0.6,W48=0.7),"P","N"),IF($BC$97<0,"N","P")) ->  | CX32: =IF(OR($BE$97=0,ISERROR($BE$97)),IF(OR(Y48=0.3,Y48=0.4,Y48=0.5,Y48=0.6,Y48=0.7),"P","N"),IF($BE$97<0,"N","P")) ->  | CY32: =IF(OR($BG$97=0,ISERROR($BG$97)),IF(OR(AB48=0.3,AB48=0.4,AB48=0.5,AB48=0.6,AB48=0.7),"P","N"),IF($BG$97<0,"N","P")) ->  | DE32: =IF(OR($AZ$97=0,ISERROR($AZ$97)),IF(OR(S60=0.3,S60=0.4,S60=0.5,S60=0.6,S60=0.7),"P","N"),IF($AZ$97<0,"N","P")) ->  | DF32: =IF(OR($BB$97=0,ISERROR($BB$97)),IF(OR(T60=0.3,T60=0.4,T60=0.5,T60=0.6,T60=0.7),"P","N"),IF($BB$97<0,"N","P")) ->  | DG32: =IF(OR($BD$97=0,ISERROR($BD$97)),IF(OR(W60=0.3,W60=0.4,W60=0.5,W60=0.6,W60=0.7),"P","N"),IF($BD$97<0,"N","P")) ->  | DH32: =IF(OR($BF$97=0,ISERROR($BF$97)),IF(OR(Y60=0.3,Y60=0.4,Y60=0.5,Y60=0.6,Y60=0.7),"P","N"),IF($BF$97<0,"N","P")) ->  | DI32: =IF(OR($BH$97=0,ISERROR($BH$97)),IF(OR(AB60=0.3,AB60=0.4,AB60=0.5,AB60=0.6,AB60=0.7),"P","N"),IF($BH$97<0,"N","P")) -> 
B33: SU5: | C33: =IFERROR(ROUNDUP($BJ$118/10,0),"") ->  | D33: =IFERROR(1-(C33-$BJ$118/10),"") ->  | E33: =IFERROR($BJ$123,"") ->  | F33: =IFERROR($BJ$122,"") ->  | I33: SU5: | J33: =IFERROR(ROUNDUP($BK$118/10,0),"") ->  | K33: =IFERROR(1-(J33-$BK$118/10),"") ->  | L33: =IFERROR($BK$123,"") ->  | M33: =IFERROR(BK122,"") ->  | P33: Misc. Non-Comp Dead Load per Beam (k/ft): | AI33: =$T$30*12 -> 0 | AJ33: =$CL$38 ->  | AK33: =AJ33 ->  | AL33: =(-1)*$AI$46/12 ->  | AN33: =AN32+AI32 -> 0 | AO33: =$AB$28 -> 29000 | BN33: =0.75*(19230/(1000*$S$35)^0.5) ->  | BO33: =0.75*(19230/(1000*$S$35)^0.5) ->  | BP33: =0.75*(19230/(1000*$S$35)^0.5) ->  | BQ33: =0.75*(19230/(1000*$T$35)^0.5) ->  | BR33: =0.75*(19230/(1000*$T$35)^0.5) ->  | BS33: =0.75*(19230/(1000*$T$35)^0.5) ->  | BT33: =0.75*(19230/(1000*$W$35)^0.5) ->  | BU33: =0.75*(19230/(1000*$W$35)^0.5) ->  | BV33: =0.75*(19230/(1000*$W$35)^0.5) ->  | BW33: =0.75*(19230/(1000*$Y$35)^0.5) ->  | BX33: =0.75*(19230/(1000*$Y$35)^0.5) ->  | BY33: =0.75*(19230/(1000*$Y$35)^0.5) ->  | BZ33: =0.75*(19230/(1000*$AB$35)^0.5) ->  | CA33: =0.75*(19230/(1000*$AB$35)^0.5) ->  | CB33: =0.75*(19230/(1000*$AB$35)^0.5) ->  | CG33: DIST TO CENTROID OF FILLETS FROM TOP&BOT OF WEB | CH33: OF FILLETS FROM | CI33: TOP&BOT OF WEB | CJ33: (in) | CK33: =((CK10^3)*(0.5-PI()*(1-4/3/PI())/4))/MAXA(0.00001,CK30) -> 0 | CL33: =((CL10^3)*(0.5-PI()*(1-4/3/PI())/4))/MAXA(0.00001,CL30) -> 0 | CM33: =((CM10^3)*(0.5-PI()*(1-4/3/PI())/4))/MAXA(0.00001,CM30) -> 0 | CN33: =((CN10^3)*(0.5-PI()*(1-4/3/PI())/4))/MAXA(0.00001,CN30) -> 0 | CO33: =((CO10^3)*(0.5-PI()*(1-4/3/PI())/4))/MAXA(0.00001,CO30) -> 0 | CQ33: DIST TO CENTROID OF FILLETS FROM TOP&BOT OF WEB | CR33: OF FILLETS FROM | CS33: TOP&BOT OF WEB | CT33: (in) | CU33: =((CU10^3)*(0.5-PI()*(1-4/3/PI())/4))/MAXA(0.00001,CU30) -> 0 | CV33: =((CV10^3)*(0.5-PI()*(1-4/3/PI())/4))/MAXA(0.00001,CV30) -> 0 | CW33: =((CW10^3)*(0.5-PI()*(1-4/3/PI())/4))/MAXA(0.00001,CW30) -> 0 | CX33: =((CX10^3)*(0.5-PI()*(1-4/3/PI())/4))/MAXA(0.00001,CX30) -> 0 | CY33: =((CY10^3)*(0.5-PI()*(1-4/3/PI())/4))/MAXA(0.00001,CY30) -> 0 | DA33: DIST TO CENTROID OF FILLETS FROM TOP&BOT OF WEB | DB33: OF FILLETS FROM | DC33: TOP&BOT OF WEB | DD33: (in) | DE33: =((DE10^3)*(0.5-PI()*(1-4/3/PI())/4))/MAXA(0.00001,DE30) -> 0 | DF33: =((DF10^3)*(0.5-PI()*(1-4/3/PI())/4))/MAXA(0.00001,DF30) -> 0 | DG33: =((DG10^3)*(0.5-PI()*(1-4/3/PI())/4))/MAXA(0.00001,DG30) -> 0 | DH33: =((DH10^3)*(0.5-PI()*(1-4/3/PI())/4))/MAXA(0.00001,DH30) -> 0 | DI33: =((DI10^3)*(0.5-PI()*(1-4/3/PI())/4))/MAXA(0.00001,DI30) -> 0 | EF33: Concrete Deck | EG33: Steel Corrugated Deck | EH33: Steel Plate Deck | EI33: Steel Open Grid Deck | EJ33: Timber Plank | EK33: Nail Laminated Timbers | EL33: Glue Laminated Timbers
B34: SU6: | C34: =IFERROR(ROUNDUP($BJ$130/10,0),"") ->  | D34: =IFERROR(1-(C34-$BJ$130/10),"") ->  | E34: =IFERROR($BJ$135,"") ->  | F34: =IFERROR($BJ$134,"") ->  | I34: SU6: | J34: =IFERROR(ROUNDUP($BK$130/10,0),"") ->  | K34: =IFERROR(1-(J34-$BK$130/10),"") ->  | L34: =IFERROR($BK$135,"") ->  | M34: =IFERROR(BK134,"") ->  | P34: Misc. Comp Dead Load per Beam (k/ft): | AI34: =$W$30*12 -> 0 | AJ34: =IFERROR($CM$38,"") ->  | AL34: =(-1)*$AJ$46/12 ->  | AN34: =AN33+AI33 -> 0 | AO34: 29000 | BN34: =IF(+BN$31<=+BN$33,1,0) ->  | BO34: =IF(+BO$31<=+BO$33,1,0) ->  | BP34: =IF(+BP$31<=+BP$33,1,0) ->  | BQ34: =IF(+BQ$31<=+BQ$33,1,0) ->  | CG34: CENTROID DIST Yb | CH34: DIST | CI34: Yb | CJ34: (in) | CK34: =$CK$65 ->  | CL34: =$CK$94 ->  | CM34: =$CK$122 ->  | CN34: =$CK$150 ->  | CO34: =$CK$178 ->  | CQ34: CENTROID DIST Yb | CR34: DIST | CS34: Yb | CT34: (in) | CU34: =CU$65 ->  | CV34: =CU$94 ->  | CW34: =CU$122 ->  | CX34: =CU$150 ->  | CY34: =CU$178 ->  | DA34: CENTROID DIST Yb | DB34: DIST | DC34: Yb | DD34: (in) | DE34: =DE$65 ->  | DF34: =DE$94 ->  | DG34: =DE$122 ->  | DH34: =DE$150 ->  | DI34: =DE$178 ->  | EF34: Deck Thickness (in): | EG34: Designation | EH34: Designation | EI34: Open Grid Depth (in): | EJ34: Plank Depth (in): | EK34: Timber Depth (in): | EL34: Timber Depth (in):
B35: SU7: | C35: =IFERROR(ROUNDUP($BJ$142/10,0),"") ->  | D35: =IFERROR(1-(C35-$BJ$142/10),"") ->  | E35: =IFERROR($BJ$147,"") ->  | F35: =IFERROR($BJ$146,"") ->  | I35: SU7: | J35: =IFERROR(ROUNDUP($BK$142/10,0),"") ->  | K35: =IFERROR(1-(J35-$BK$142/10),"") ->  | L35: =IFERROR($BK$147,"") ->  | M35: =IFERROR(BK146,"") ->  | P35: Fy (ksi): | AI35: =$Y$30*12 -> 0 | AJ35: =IFERROR($CN$38,"") ->  | AL35: =(-1)*$AK$46/12 ->  | AN35: =IF(AH32<3,"",(AN34+AI34)) ->  | AO35: 29000 | BM35: (AASHTO EQ. 10-95): | BN35: =BN16/BN$17+9.35*BN$13/BN$14 ->  | CG35: CENTROID DIST Yt | CH35: DIST | CI35: Yt | CJ35: (in) | CK35: =CU14+CK5+DE12-CK34 ->  | CL35: =CV14+CL5+DF12-CL34 ->  | CM35: =CW14+CM5+DG12-CM34 ->  | CN35: =CX14+CN5+DH12-CN34 ->  | CO35: =CY14+CO5+DI12-CO34 ->  | CQ35: CENTROID DIST Yt | CR35: DIST | CS35: Yt | CT35: (in) | CU35: =CU12+CU5+CU14-CU34 ->  | CV35: =CV12+CV5+CV14-CV34 ->  | CW35: =CW12+CW5+CW14-CW34 ->  | CX35: =CX12+CX5+CX14-CX34 ->  | CY35: =CY12+CY5+CY14-CY34 ->  | DA35: CENTROID DIST Yt | DB35: DIST | DC35: Yt | DD35: (in) | DE35: =DE12+DE5+DE14-DE34 ->  | DF35: =DF12+DF5+DF14-DF34 ->  | DG35: =DG12+DG5+DG14-DG34 ->  | DH35: =DH12+DH5+DH14-DH34 ->  | DI35: =DI12+DI5+DI14-DI34 ->  | EF35: f'c (ksi): | EG35: Weight of Corrugation (ksf): | EH35: Steel Plate Thickness (in): | EI35: Weight of Open Grid (ksf): | EJ35: Fill Depth above top of deck (in): | EK35: Fill Depth above top of deck (in): | EL35: Fill Depth above top of deck (in):
B36: EV2: | C36: =IFERROR(ROUNDUP(BJ154/10,0),"") ->  | D36: =IFERROR(1-(C36-$BJ$154/10),"") ->  | E36: =IFERROR($BJ$159,"") ->  | F36: =IFERROR($BJ$158,"") ->  | I36: EV2: | J36: =IFERROR(ROUNDUP($BK$154/10,0),"") ->  | K36: =IFERROR(1-(J36-$BK$154/10),"") ->  | L36: =IFERROR($BK$159,"") ->  | M36: =IFERROR(BK158,"") ->  | P36: Standard Beam Designation: | AI36: =$AB$30*12 -> 0 | AJ36: =IFERROR($CO$38,"") ->  | AL36: =(-1)*$AL$46/12 ->  | AN36: =IF(AH32<4,"",(AN35+AI35)) ->  | AO36: 29000 | BM36: Checks | BN36: =IF(+BN$35<=+BN$37,"<=",">") ->  | BO36: =IF(+BO$35<=+BO$37,"<=",">") ->  | BP36: =IF(+BP$35<=+BP$37,"<=",">") ->  | BQ36: =IF(+BQ$35<=+BQ$37,"<=",">") ->  | CG36: MOIxnc Major Axis Ix | CH36: Major Axis | CI36: Ix | CJ36: (in^4) | CK36: =CN$65 ->  | CL36: =CN$94 ->  | CM36: =CN$122 ->  | CN36: =CN$150 ->  | CO36: =CN$178 ->  | CQ36: MOIxnc Major Axis Ix | CR36: Major Axis | CS36: Ix | CT36: (in^4) | CU36: =CX$65 ->  | CV36: =CX$94 ->  | CW36: =CX$122 ->  | CX36: =CX$150 ->  | CY36: =CX$178 ->  | DA36: MOIxnc Major Axis Ix | DB36: Major Axis | DC36: Ix | DD36: (in^4) | DE36: =DH$65 ->  | DF36: =DH$94 ->  | DG36: =DH$122 ->  | DH36: =DH$150 ->  | DI36: =DH$178 ->  | EF36: Fill Depth above top of deck (in): | EG36: Fill Depth above top of deck (in): | EH36: Fill Depth above top of deck (in): | EJ36: Unit weight of fill material (kcf): | EK36: Unit weight of fill material (kcf): | EL36: Unit weight of fill material (kcf):
B37: EV3: | C37: =IFERROR(ROUNDUP($BJ$166/10,0),"") ->  | D37: =IFERROR(1-(C37-$BJ$166/10),"") ->  | E37: =IFERROR($BJ$171,"") ->  | F37: =IFERROR($BJ$170,"") ->  | I37: EV3: | J37: =IFERROR(ROUNDUP($BK$166/10,0),"") ->  | K37: =IFERROR(1-(J37-$BK$166/10),"") ->  | L37: =IFERROR($BK$171,"") ->  | M37: =IFERROR(BK170,"") ->  | AN37: =IF(AH32<5,"",(AN36+AI36)) ->  | BN37: =33650/(1000*$S$35)^0.5 ->  | BO37: =33650/(1000*$S$35)^0.5 ->  | BP37: =33650/(1000*$S$35)^0.5 ->  | BQ37: =33650/(1000*$T$35)^0.5 ->  | BR37: =33650/(1000*$T$35)^0.5 ->  | BS37: =33650/(1000*$T$35)^0.5 ->  | BT37: =33650/(1000*$W$35)^0.5 ->  | BU37: =33650/(1000*$W$35)^0.5 ->  | BV37: =33650/(1000*$W$35)^0.5 ->  | BW37: =33650/(1000*$Y$35)^0.5 ->  | BX37: =33650/(1000*$Y$35)^0.5 ->  | BY37: =33650/(1000*$Y$35)^0.5 ->  | BZ37: =33650/(1000*$AB$35)^0.5 ->  | CA37: =33650/(1000*$AB$35)^0.5 ->  | CB37: =33650/(1000*$AB$35)^0.5 ->  | CG37: MOIync Minor Axis Iy | CH37: Minor Axis | CI37: Iy | CJ37: (in^4) | CK37: =$CO$63 -> 0 | CL37: =$CO$93 -> 0 | CM37: =$CO$121 -> 0 | CN37: =$CO$149 -> 0 | CO37: =$CO$177 -> 0 | CQ37: MOIync Minor Axis Iy | CR37: Minor Axis | CS37: Iy | CT37: (in^4) | CU37: =CY$63 -> 0 | CV37: =CY$93 -> 0 | CW37: =CY$121 -> 0 | CX37: =CY$149 -> 0 | CY37: =CY$177 -> 0 | DA37: MOIync Minor Axis Iy | DB37: Minor Axis | DC37: Iy | DD37: (in^4) | DE37: =DI$63 -> 0 | DF37: =DI$93 -> 0 | DG37: =DI$121 -> 0 | DH37: =DI$149 -> 0 | DI37: =DI$177 -> 0 | EF37: Unit weight of fill material (kcf): | EG37: Unit weight of fill material (kcf): | EH37: Unit weight of fill material (kcf):
B38: T3: | C38: =IFERROR(ROUNDUP($BJ$178/10,0),"") ->  | D38: =IFERROR(1-(C38-$BJ$178/10),"") ->  | E38: =IFERROR($BJ$183,"") ->  | F38: =IFERROR($BJ$182,"") ->  | I38: T3: | J38: =IFERROR(ROUNDUP($BK$178/10,0),"") ->  | K38: =IFERROR(1-(J38-$BK$178/10),"") ->  | L38: =IFERROR($BK$183,"") ->  | M38: =IFERROR($BK$182,"") ->  | P38: ORIGINAL STRINGER SECTION | Q38: Rolled Section Depth (in): | BN38: =IF(+BN$35<=+BN$37,1,0) ->  | BO38: =IF(+BO$35<=+BO$37,1,0) ->  | BP38: =IF(+BP$35<=+BP$37,1,0) ->  | BQ38: =IF(+BQ$35<=+BQ$37,1,0) ->  | CG38: MOIx Major Axis Ix | CH38: Major Axis | CI38: Ix | CJ38: (in^4) | CK38: =$CN$78 ->  | CL38: =$CN$107 ->  | CM38: =$CN$135 ->  | CN38: =$CN$163 ->  | CO38: =$CN$191 ->  | CQ38: MOIx Major Axis Ix | CR38: Major Axis | CS38: Ix | CT38: (in^4) | CU38: =CX$78 ->  | CV38: =CX$107 ->  | CW38: =CX$135 ->  | CX38: =CX$163 ->  | CY38: =CX$191 ->  | DA38: MOIx Major Axis Ix | DB38: Major Axis | DC38: Ix | DD38: (in^4) | DE38: =DH$65 ->  | DF38: =DH$94 ->  | DG38: =DH$122 ->  | DH38: =DH$150 ->  | DI38: =DH$178 ->  | EF38: Composite Action (Y/N):
B39: T3S2: | C39: =IFERROR(ROUNDUP($BJ$190/10,0),"") ->  | D39: =IFERROR(1-(C39-$BJ$190/10),"") ->  | E39: =IFERROR($BJ$195,"") ->  | F39: =IFERROR($BJ$194,"") ->  | I39: T3S2: | J39: =IFERROR(ROUNDUP($BK$190/10,0),"") ->  | K39: =IFERROR(1-(J39-$BK$190/10),"") ->  | L39: =IFERROR($BK$195,"") ->  | M39: =IFERROR($BK$194,"") ->  | Q39: Web Thickness (in): | AG39: Dead Loads (klf) | AN39: Live Load Factors | BM39: Assume compression flange is fully braced by slab [i.e., meets Lateral Bracing requirements of per AASHTO 16th Edition (1996), Article 10.48.1.1c]: | CG39: MOIy Minor Axis Iy | CH39: Minor Axis | CI39: Iy | CJ39: (in^4) | CK39: =$CO$63 -> 0 | CL39: =$CO$93 -> 0 | CM39: =$CO$121 -> 0 | CN39: =$CO$149 -> 0 | CO39: =$CO$177 -> 0 | CQ39: MOIy Minor Axis Iy | CR39: Minor Axis | CS39: Iy | CT39: (in^4) | CU39: =CY$63 -> 0 | CV39: =CY$93 -> 0 | CW39: =CY$121 -> 0 | CX39: =CY$149 -> 0 | CY39: =CY$177 -> 0 | DA39: MOIy Minor Axis Iy | DB39: Minor Axis | DC39: Iy | DD39: (in^4) | DE39: =DI$63 -> 0 | DF39: =DI$93 -> 0 | DG39: =DI$121 -> 0 | DH39: =DI$149 -> 0 | DI39: =DI$177 -> 0 | EF39: Slab Embedment (in):
B40: T3-3: | C40: =IFERROR(ROUNDUP($BJ$202/10,0),"") ->  | D40: =IFERROR(1-(C40-$BJ$202/10),"") ->  | E40: =IFERROR($BJ$207,"") ->  | F40: =IFERROR($BJ$206,"") ->  | I40: T3-3: | J40: =IFERROR(ROUNDUP($BK$202/10,0),"") ->  | K40: =IFERROR(1-(J40-$BK$202/10),"") ->  | L40: =IFERROR($BK$207,"") ->  | M40: =IFERROR($BK$206,"") ->  | Q40: Flange Width (in): | AH40: Span 1 | AI40: Span 2 | AJ40: Span 3 | AK40: Span 4 | AL40: Span 5 | AQ40: Span 1 | AR40: Span 2 | AS40: Span 3 | AT40: Span 4 | AU40: Span 5 | CG40: ROGx Major Axis rx | CH40: Major Axis | CI40: rx | CJ40: (in^4) | CK40: =SQRT($CN$65/$CJ$63) ->  | CL40: =SQRT($CN$94/$CJ$93) ->  | CM40: =SQRT($CN$122/$CJ$121) ->  | CN40: =SQRT($CN$150/$CJ$149) ->  | CO40: =SQRT($CN$178/$CJ$177) ->  | CQ40: ROGx Major Axis rx | CR40: Major Axis | CS40: rx | CT40: (in^4) | CU40: =SQRT(CX$65/CT$63) ->  | CV40: =SQRT(CX$94/CT$93) ->  | CW40: =SQRT(CX$122/CT$121) ->  | CX40: =SQRT(CX$150/CT$149) ->  | CY40: =SQRT(CX$178/CT$177) ->  | DA40: ROGx Major Axis rx | DB40: Major Axis | DC40: rx | DD40: (in^4) | DE40: =SQRT(DH$65/DD$63) ->  | DF40: =SQRT(DH$94/DD$93) ->  | DG40: =SQRT(DH$122/DD$121) ->  | DH40: =SQRT(DH$150/DD$149) ->  | DI40: =SQRT(DH$178/DD$177) -> 
B41: NRL: | C41: =IFERROR(ROUNDUP($BJ$214/10,0),"") ->  | D41: =IFERROR(1-(C41-$BJ$214/10),"") ->  | E41: =IFERROR($BJ$219,"") ->  | F41: =IFERROR($BJ$218,"") ->  | I41: NRL: | J41: =IFERROR(ROUNDUP($BK$214/10,0),"") ->  | K41: =IFERROR(1-(J41-$BK$214/10),"") ->  | L41: =IFERROR($BK$219,"") ->  | M41: =IFERROR($BK$218,"") ->  | Q41: Top Flange Thickness (in): | AG41: Deck | AH41: =(IFERROR(VLOOKUP($S$18,$AG$70:$AL$74,3,0),VLOOKUP($S$17,$AG$70:$AL$74,3,0))+IFERROR(VLOOKUP($S$18,$AG$70:$AL$74,6,0),VLOOKUP($S$17,$AG$70:$AL$74,6,0)))*S$32 ->  | AI41: =(IFERROR(VLOOKUP($S$18,$AG$70:$AL$74,3,0),VLOOKUP($S$17,$AG$70:$AL$74,3,0))+IFERROR(VLOOKUP($S$18,$AG$70:$AL$74,6,0),VLOOKUP($S$17,$AG$70:$AL$74,6,0)))*T$32 ->  | AJ41: =(IFERROR(VLOOKUP($S$18,$AG$70:$AL$74,3,0),VLOOKUP($S$17,$AG$70:$AL$74,3,0))+IFERROR(VLOOKUP($S$18,$AG$70:$AL$74,6,0),VLOOKUP($S$17,$AG$70:$AL$74,6,0)))*W$32 ->  | AK41: =(IFERROR(VLOOKUP($S$18,$AG$70:$AL$74,3,0),VLOOKUP($S$17,$AG$70:$AL$74,3,0))+IFERROR(VLOOKUP($S$18,$AG$70:$AL$74,6,0),VLOOKUP($S$17,$AG$70:$AL$74,6,0)))*Y$32 ->  | AL41: =(IFERROR(VLOOKUP($S$18,$AG$70:$AL$74,3,0),VLOOKUP($S$17,$AG$70:$AL$74,3,0))+IFERROR(VLOOKUP($S$18,$AG$70:$AL$74,6,0),VLOOKUP($S$17,$AG$70:$AL$74,6,0)))*AB$32 ->  | AP41: Impact Factor | AQ41: =IF(OR(AQ$43=0,AQ$43=""),AQ$42,AQ$43) -> 1.3 | AR41: =IF(OR(AR$43=0,AR$43=""),AR$42,AR$43) -> 1.3 | AS41: =IF(OR(AS$43=0,AS$43=""),AS$42,AS$43) -> 1.3 | AT41: =IF(OR(AT$43=0,AT$43=""),AT$42,AT$43) -> 1.3 | AU41: =IF(OR(AU$43=0,AU$43=""),AU$42,AU$43) -> 1.3 | BM41: If above criteria is met then (Mu)nc = Fy*Z: | BN41: =IF(BN$22+BN$26<2,"NO GOOD",IF(AND(BN$30+BN$34=0,BN$38=0), "NO GOOD","CHECK OK")) ->  | BO41: =IF(BO$22+BO$26<2,"NO GOOD",IF(AND(BO$30+BO$34=0,BO$38=0), "NO GOOD","CHECK OK")) ->  | CG41: ROGy Minor Axis ry | CH41: Minor Axis | CI41: ry | CJ41: (in^4) | CK41: =SQRT($CO$63/$CJ$63) ->  | CL41: =SQRT($CO$93/$CJ$93) ->  | CM41: =SQRT($CO$121/$CJ$121) ->  | CN41: =SQRT($CO$149/$CJ$149) ->  | CO41: =SQRT($CO$177/$CJ$177) ->  | CQ41: ROGy Minor Axis ry | CR41: Minor Axis | CS41: ry | CT41: (in^4) | CU41: =SQRT(CY$63/CT$63) ->  | CV41: =SQRT(CY$93/CT$93) ->  | CW41: =SQRT(CY$121/CT$121) ->  | CX41: =SQRT(CY$149/CT$149) ->  | CY41: =SQRT(CY$177/CT$177) ->  | DA41: ROGy Minor Axis ry | DB41: Minor Axis | DC41: ry | DD41: (in^4) | DE41: =SQRT(DI$63/DD$63) ->  | DF41: =SQRT(DI$93/DD$93) ->  | DG41: =SQRT(DI$121/DD$121) ->  | DH41: =SQRT(DI$149/DD$149) ->  | DI41: =SQRT(DI$177/DD$177) -> 
Q42: Bottom Flange Thickness (in): | AG42: Beam | AH42: =(($CJ$63)/144)*0.49 -> 0 | AI42: =(($CJ$93)/144)*0.49 -> 0 | AJ42: =(($CJ$121)/144)*0.49 -> 0 | AK42: =(($CJ$149)/144)*0.49 -> 0 | AL42: =(($CJ$177)/144)*0.49 -> 0 | AP42: Impact Factor Calculated | AQ42: =IF((1+(50/(($S$30-$S$31)+125)))>1.3,1.3,1+(50/(($S$30-$S$31)+125))) -> 1.3 | AR42: =IF((1+(50/(($T$30-$T$31)+125)))>1.3,1.3,1+(50/(($T$30-$T$31)+125))) -> 1.3 | AS42: =IF((1+(50/(($W$30-$W$31)+125)))>1.3,1.3,1+(50/(($W$30-$W$31)+125))) -> 1.3 | AT42: =IF((1+(50/(($Y$30-$Y$31)+125)))>1.3,1.3,1+(50/(($Y$30-$Y$31)+125))) -> 1.3 | AU42: =IF((1+(50/(($AB$30-$AB$31)+125)))>1.3,1.3,1+(50/(($AB$30-$AB$31)+125))) -> 1.3 | BM42: Else, | CG42: Bottom Fiber Elastic Mod Major Axis, Sxbnc | CH42: Elastic Modulus | CI42: Major Axis, Sxb | CJ42: (in^3) | CK42: =CK$36/CK$34 ->  | CL42: =CL$36/CL$34 ->  | CM42: =CM$36/CM$34 ->  | CN42: =CN$36/CN$34 ->  | CO42: =CO$36/CO$34 ->  | CQ42: Bottom Fiber Elastic Mod Major Axis, Sxbnc | CR42: Elastic Modulus | CS42: Major Axis, Sxb | CT42: (in^3) | CU42: =CU$36/CU$34 ->  | CV42: =CV$36/CV$34 ->  | CW42: =CW$36/CW$34 ->  | CX42: =CX$36/CX$34 ->  | CY42: =CY$36/CY$34 ->  | DA42: Bottom Fiber Elastic Mod Major Axis, Sxbnc | DB42: Elastic Modulus | DC42: Major Axis, Sxb | DD42: (in^3) | DE42: =DE$36/DE$34 ->  | DF42: =DF$36/DF$34 ->  | DG42: =DG$36/DG$34 ->  | DH42: =DH$36/DH$34 ->  | DI42: =DI$36/DI$34 -> 
Q43: Fillet Radius (in): | AG43: Misc Non-Comp Dead Load on Stringer | AH43: =S33 -> 0 | AI43: =T33 -> 0 | AJ43: =W33 -> 0 | AK43: =Y33 -> 0 | AL43: =AB33 -> 0 | AP43: Impact Factor Override | AQ43: =AC21 -> 0 | AR43: =AC22 -> 0 | AS43: =AC23 -> 0 | AT43: =AC24 -> 0 | AU43: =AC25 -> 0 | BM43: If instead the criteria below is met then (Mu)nc = Fy*S: | BN43: =IF(BN$47+BN$51<2,"NO GOOD","CHECK OK") ->  | BO43: =IF(BO$47+BO$51<2,"NO GOOD","CHECK OK") ->  | CG43: Top Fiber Elastic Mod Major Axis, Sxtnc | CH43: Elastic Modulus | CI43: Major Axis, Sxt | CJ43: (in^3) | CK43: =CK$36/CK$35 ->  | CL43: =CL$36/CL$35 ->  | CM43: =CM$36/CM$35 ->  | CN43: =CN$36/CN$35 ->  | CO43: =CO$36/CO$35 ->  | CQ43: Top Fiber Elastic Mod Major Axis, Sxtnc | CR43: Elastic Modulus | CS43: Major Axis, Sxt | CT43: (in^3) | CU43: =CU$36/CU$35 ->  | CV43: =CV$36/CV$35 ->  | CW43: =CW$36/CW$35 ->  | CX43: =CX$36/CX$35 ->  | CY43: =CY$36/CY$35 ->  | DA43: Top Fiber Elastic Mod Major Axis, Sxtnc | DB43: Elastic Modulus | DC43: Major Axis, Sxt | DD43: (in^3) | DE43: =DE$36/DE$35 ->  | DF43: =DF$36/DF$35 ->  | DG43: =DG$36/DG$35 ->  | DH43: =DH$36/DH$35 ->  | DI43: =DI$36/DI$35 -> 
Q44: Moment of Inertia (in^4): | S44: =IFERROR($CK$38,"") ->  | T44: =IFERROR($CL$38,"") ->  | W44: =IFERROR($CM$38,"") ->  | Y44: =IFERROR($CN$38,"") ->  | AB44: =IFERROR($CO$38,"") ->  | AG44: Misc Comp Dead Load on Stringer | AH44: =S34 -> 0 | AI44: =T34 -> 0 | AJ44: =W34 -> 0 | AK44: =Y34 -> 0 | AL44: =AB34 -> 0 | AP44: Distribution Factor | AQ44: =IF(AQ45<>0,AQ45,IF($M$8=1,MAX(AQ48:AQ49),MAX(AQ46:AQ47))) ->  | AR44: =IF(AR45<>0,AR45,IF($M$8=1,MAX(AR48:AR49),MAX(AR46:AR47))) ->  | AS44: =IF(S28<3,"",IF(AS45<>0,AS45,IF($M$8=1,MAX(AS48:AS49),MAX(AS46:AS47)))) ->  | AT44: =IF(S28<4,"",IF(AT45<>0,AT45,IF($M$8=1,MAX(AT48:AT49),MAX(AT46:AT47)))) ->  | AU44: =IF(S28<5,"",IF(AU45<>0,AU45,IF($M$8=1,MAX(AU48:AU49),MAX(AU46:AU47)))) ->  | BM44: (AASHTO EQ. 10-99): | BN44: =BN$13/BN$14 ->  | BO44: =BO$13/BO$14 ->  | BP44: =BP$13/BP$14 ->  | BQ44: =BQ$13/BQ$14 -> 
P45: Compact Section Override (Y/N): | AG45: Fill/Wearing Surface | AH45: =(IFERROR(VLOOKUP($S$18,$AG$70:$AL$74,4,0),VLOOKUP($S$17,$AG$70:$AL$74,4,0))+IFERROR(VLOOKUP($S$18,$AG$70:$AL$74,5,0),VLOOKUP($S$17,$AG$70:$AL$74,5,0)))*S$32 ->  | AI45: =(IFERROR(VLOOKUP($S$18,$AG$70:$AL$74,4,0),VLOOKUP($S$17,$AG$70:$AL$74,4,0))+IFERROR(VLOOKUP($S$18,$AG$70:$AL$74,5,0),VLOOKUP($S$17,$AG$70:$AL$74,5,0)))*T$32 ->  | AJ45: =(IFERROR(VLOOKUP($S$18,$AG$70:$AL$74,4,0),VLOOKUP($S$17,$AG$70:$AL$74,4,0))+IFERROR(VLOOKUP($S$18,$AG$70:$AL$74,5,0),VLOOKUP($S$17,$AG$70:$AL$74,5,0)))*W$32 ->  | AK45: =(IFERROR(VLOOKUP($S$18,$AG$70:$AL$74,4,0),VLOOKUP($S$17,$AG$70:$AL$74,4,0))+IFERROR(VLOOKUP($S$18,$AG$70:$AL$74,5,0),VLOOKUP($S$17,$AG$70:$AL$74,5,0)))*Y$32 ->  | AL45: =(IFERROR(VLOOKUP($S$18,$AG$70:$AL$74,4,0),VLOOKUP($S$17,$AG$70:$AL$74,4,0))+IFERROR(VLOOKUP($S$18,$AG$70:$AL$74,5,0),VLOOKUP($S$17,$AG$70:$AL$74,5,0)))*AB$32 ->  | AP45: Distribution Factor Override | AQ45: =$AA$21 -> 0 | AR45: =$AA$22 -> 0 | AS45: =$AA$23 -> 0 | AT45: =$AA$24 -> 0 | AU45: =$AA$25 -> 0 | BM45: Checks | BN45: =IF(+BN$44<=+BN$46,"<=",">") ->  | BO45: =IF(+BO$44<=+BO$46,"<=",">") ->  | BP45: =IF(+BP$44<=+BP$46,"<=",">") ->  | BQ45: =IF(+BQ$44<=+BQ$46,"<=",">") -> 
P46: The continuous analysis for dead and live loads is run based on the original stringer section and composite section if applicable. The below inputs are for capacity checks. | AG46: Total | AH46: =SUM(AH41:AH45) ->  | AI46: =SUM(AI41:AI45) ->  | AJ46: =SUM(AJ41:AJ45) ->  | AK46: =SUM(AK41:AK45) ->  | AL46: =SUM(AL41:AL45) ->  | AP46: Distribution Factor (multi-lane)= | AQ46: =IF($AA$19="Exterior","",$S$32/VLOOKUP($AA$17,$AP$20:$AX$26,7,0)) ->  | AR46: =IF($AA$19="Exterior","",$T$32/VLOOKUP($AA$17,$AP$20:$AX$26,7,0)) ->  | AS46: =IF($AA$19="Exterior","",$W$32/VLOOKUP($AA$17,$AP$20:$AX$26,7,0)) ->  | AT46: =IF($AA$19="Exterior","",$Y$32/VLOOKUP($AA$17,$AP$20:$AX$26,7,0)) ->  | AU46: =IF($AA$19="Exterior","",$AB$32/VLOOKUP($AA$17,$AP$20:$AX$26,7,0)) ->  | BN46: =2200/(1000*$S$35)^0.5 ->  | BO46: =2200/(1000*$S$35)^0.5 ->  | BP46: =2200/(1000*$S$35)^0.5 ->  | BQ46: =2200/(1000*$T$35)^0.5 ->  | BR46: =2200/(1000*$T$35)^0.5 ->  | BS46: =2200/(1000*$T$35)^0.5 ->  | BT46: =2200/(1000*$W$35)^0.5 ->  | BU46: =2200/(1000*$W$35)^0.5 ->  | BV46: =2200/(1000*$W$35)^0.5 ->  | BW46: =2200/(1000*$Y$35)^0.5 ->  | BX46: =2200/(1000*$Y$35)^0.5 ->  | BY46: =2200/(1000*$Y$35)^0.5 ->  | BZ46: =2200/(1000*$AB$35)^0.5 ->  | CA46: =2200/(1000*$AB$35)^0.5 ->  | CB46: =2200/(1000*$AB$35)^0.5 ->  | CG46: Bottom Fiber Elastic Modulus Major Axis, Sxb | CH46: Elastic Modulus | CI46: Major Axis, Sxb | CJ46: (in^3) | CK46: =CK$38/CK$34 ->  | CL46: =CL$38/CL$34 ->  | CM46: =CM$38/CM$34 ->  | CN46: =CN$38/CN$34 ->  | CO46: =CO$38/CO$34 ->  | CQ46: Bottom Fiber Elastic Modulus Major Axis, Sxb | CR46: Elastic Modulus | CS46: Major Axis, Sxb | CT46: (in^3) | CU46: =CU$38/CU$34 ->  | CV46: =CV$38/CV$34 ->  | CW46: =CW$38/CW$34 ->  | CX46: =CX$38/CX$34 ->  | CY46: =CY$38/CY$34 ->  | DA46: Bottom Fiber Elastic Modulus Major Axis, Sxb | DB46: Elastic Modulus | DC46: Major Axis, Sxb | DD46: (in^3) | DE46: =DE$38/DE$34 ->  | DF46: =DF$38/DF$34 ->  | DG46: =DG$38/DG$34 ->  | DH46: =DH$38/DH$34 ->  | DI46: =DI$38/DI$34 -> 
AP47: footnote f (multi-lane)= | AQ47: =IF($AA$19="Exterior","",IF($S$32>VLOOKUP($AA$17,$AP$20:$AX$26,8,0),1+($S$32-6)/$S$32,0)) ->  | AR47: =IF($AA$19="Exterior","",IF($T$32>VLOOKUP($AA$17,$AP$20:$AX$26,8,0),1+($T$32-6)/$T$32,0)) ->  | AS47: =IF($AA$19="Exterior","",IF($W$32>VLOOKUP($AA$17,$AP$20:$AX$26,8,0),1+($W$32-6)/$W$32,0)) ->  | AT47: =IF($AA$19="Exterior","",IF($Y$32>VLOOKUP($AA$17,$AP$20:$AX$26,8,0),1+($Y$32-6)/$Y$32,0)) ->  | AU47: =IF($AA$19="Exterior","",IF($AB$32>VLOOKUP($AA$17,$AP$20:$AX$26,8,0),1+($AB$32-6)/$AB$32,0)) ->  | BN47: =IF(+BN$44<=+BN$46,1,0) ->  | BO47: =IF(+BO$44<=+BO$46,1,0) ->  | BP47: =IF(+BP$44<=+BP$46,1,0) ->  | BQ47: =IF(+BQ$44<=+BQ$46,1,0) ->  | CG47: Top Fiber Elastic Modulus Major Axis, Sxt | CH47: Elastic Modulus | CI47: Major Axis, Sxt | CJ47: (in^3) | CK47: =CK$38/CK$35 ->  | CL47: =CL$38/CL$35 ->  | CM47: =CM$38/CM$35 ->  | CN47: =CN$38/CN$35 ->  | CO47: =CO$38/CO$35 ->  | CQ47: Top Fiber Elastic Modulus Major Axis, Sxt | CR47: Elastic Modulus | CS47: Major Axis, Sxt | CT47: (in^3) | CU47: =CU$38/CU$35 ->  | CV47: =CV$38/CV$35 ->  | CW47: =CW$38/CW$35 ->  | CX47: =CX$38/CX$35 ->  | CY47: =CY$38/CY$35 ->  | DA47: Top Fiber Elastic Modulus Major Axis, Sxt | DB47: Elastic Modulus | DC47: Major Axis, Sxt | DD47: (in^3) | DE47: =DE$38/DE$35 ->  | DF47: =DF$38/DF$35 ->  | DG47: =DG$38/DG$35 ->  | DH47: =DH$38/DH$35 ->  | DI47: =DI$38/DI$35 -> 
P48: SECTION CHECK 1 | Q48: Section Location: | AG48: Noncomposite Dead Load Moment | AH48: =IF(OR(UPPER(LEFT($S$20,1))="N",$S$20=""),(AH41+AH42+AH43+AH44+AH45)*($S$30-$S$31)^2/8,(AH41+AH42+AH43)*($S$30-$S$31)^2/8) ->  | AI48: =IF(OR(UPPER(LEFT($S$20,1))="N",$S$20=""),(AI41+AI42+AI43+AI44+AI45)*($T$30-$T$31)^2/8,(AI41+AI42+AI43)*($T$30-$T$31)^2/8) ->  | AJ48: =IF(OR(UPPER(LEFT($S$20,1))="N",$S$20=""),(AJ41+AJ42+AJ43+AJ44+AJ45)*($W$30-$W$31)^2/8,(AJ41+AJ42+AJ43)*($W$30-$W$31)^2/8) ->  | AK48: =IF(OR(UPPER(LEFT($S$20,1))="N",$S$20=""),(AK41+AK42+AK43+AK44+AK45)*($Y$30-$Y$31)^2/8,(AK41+AK42+AK43)*($Y$30-$Y$31)^2/8) ->  | AL48: =IF(OR(UPPER(LEFT($S$20,1))="N",$S$20=""),(AL41+AL42+AL43+AL44+AL45)*($AB$30-$AB$31)^2/8,(AL41+AL42+AL43)*($AB$30-$AB$31)^2/8) ->  | AP48: Distribution Factor (single-lane)= | AQ48: =IF($AA$19="Exterior","",$S$32/VLOOKUP($AA$17,$AP$20:$AX$26,4,0)) ->  | AR48: =IF($AA$19="Exterior","",$T$32/VLOOKUP($AA$17,$AP$20:$AX$26,4,0)) ->  | AS48: =IF($AA$19="Exterior","",$W$32/VLOOKUP($AA$17,$AP$20:$AX$26,4,0)) ->  | AT48: =IF($AA$19="Exterior","",$Y$32/VLOOKUP($AA$17,$AP$20:$AX$26,4,0)) ->  | AU48: =IF($AA$19="Exterior","",$AB$32/VLOOKUP($AA$17,$AP$20:$AX$26,4,0)) ->  | BM48: (AASHTO EQ. 10-100): | BN48: =BN$18/BN$17 ->  | BO48: =BO$18/BO$17 ->  | BP48: =BP$18/BP$17 ->  | BQ48: =BQ$18/BQ$17 ->  | CG48: Minor Axis Elastic Modulus Sy | CH48: Elastic Modulus | CI48: Sy | CJ48: (in^3) | CK48: =CK$39/($CH$65/2) ->  | CL48: =CL$39/($CH$94/2) ->  | CM48: =CM$39/($CH$122/2) ->  | CN48: =CN$39/($CH$150/2) ->  | CO48: =CO$39/($CH$178/2) ->  | CQ48: Minor Axis Elastic Modulus Sy | CR48: Elastic Modulus | CS48: Sy | CT48: (in^3) | CU48: =CU$39/(CR$65/2) ->  | CV48: =CV$39/(CR$94/2) ->  | CW48: =CW$39/(CR$122/2) ->  | CX48: =CX$39/(CR$150/2) ->  | CY48: =CY$39/(CR$178/2) ->  | DA48: Minor Axis Elastic Modulus Sy | DB48: Elastic Modulus | DC48: Sy | DD48: (in^3) | DE48: =DE$39/(DB$65/2) ->  | DF48: =DF$39/(DB$94/2) ->  | DG48: =DG$39/(DB$122/2) ->  | DH48: =DH$39/(DB$150/2) ->  | DI48: =DI$39/(DB$178/2) -> 
Q49: Web Thickness (in): | AG49: Composite Dead Load Moment (if applicable) | AH49: =IF(OR(UPPER(LEFT($S$20,1))="N",$S$20=""),0,(AH44+AH45)*($S$30-$S$31)^2/8) -> 0 | AI49: =IF(OR(UPPER(LEFT($S$20,1))="N",$S$20=""),0,(AI44+AI45)*($T$30-$T$31)^2/8) -> 0 | AJ49: =IF(OR(UPPER(LEFT($S$20,1))="N",$S$20=""),0,(AJ44+AJ45)*($W$30-$W$31)^2/8) -> 0 | AK49: =IF(OR(UPPER(LEFT($S$20,1))="N",$S$20=""),0,(AK44+AK45)*($Y$30-$Y$31)^2/8) -> 0 | AL49: =IF(OR(UPPER(LEFT($S$20,1))="N",$S$20=""),0,(AL44+AL45)*($AB$30-$AB$31)^2/8) -> 0 | AP49: footnote f (single-lane)= | AQ49: =IF($AA$19="Exterior","",IF($S$32>VLOOKUP($AA$17,$AP$20:$AX$26,5,0),1+($S$32-6)/$S$32,0)) ->  | AR49: =IF($AA$19="Exterior","",IF($T$32>VLOOKUP($AA$17,$AP$20:$AX$26,5,0),1+($T$32-6)/$T$32,0)) ->  | AS49: =IF($AA$19="Exterior","",IF($W$32>VLOOKUP($AA$17,$AP$20:$AX$26,5,0),1+($W$32-6)/$W$32,0)) ->  | AT49: =IF($AA$19="Exterior","",IF($Y$32>VLOOKUP($AA$17,$AP$20:$AX$26,5,0),1+($Y$32-6)/$Y$32,0)) ->  | AU49: =IF($AA$19="Exterior","",IF($AB$32>VLOOKUP($AA$17,$AP$20:$AX$26,5,0),1+($AB$32-6)/$AB$32,0)) ->  | BM49: Checks | BN49: =IF(+BN$48<=+BN$50,"<=",">") ->  | BO49: =IF(+BO$48<=+BO$50,"<=",">") ->  | BP49: =IF(+BP$48<=+BP$50,"<=",">") ->  | BQ49: =IF(+BQ$48<=+BQ$50,"<=",">") ->  | CG49: MAJOR AXIS Z | CH49: AXIS | CI49: Z | CJ49: (in^3) | CK49: =(CK$34-CK$14/2)*CK$29+(CK$34-CK$14-CK$9/2)*CK$26+(CK$34-CK$14-CK$9-CK$33)*2*CK$30+(((CK$34-CK$14-CK$9)^2)/2)*CK$6+(((CK$35-CK$12-CK$8)^2)/2)*CK$6+(CK$35-CK$12-CK$8-CK$33)*2*CK$30+(CK$35-CK$12-CK$8/2)*CK$25+(CK$35-CK$12/2)*CK$28 ->  | CL49: =(CL$34-CV$14/2)*CL$29+(CL$34-CV$14-CL$9/2)*CL$26+(CL$34-CV$14-CL$9-CL$33)*2*CL$30+(((CL$34-CV$14-CL$9)^2)/2)*CL$6+(((CL$35-DF$12-CL$8)^2)/2)*CL$6+(CL$35-DF$12-CL$8-CL$33)*2*CL$30+(CL$35-DF$12-CL$8/2)*CL$25+(CL$35-DF$12/2)*CL$28 ->  | CM49: =(CM$34-CW$14/2)*CM$29+(CM$34-CW$14-CM$9/2)*CM$26+(CM$34-CW$14-CM$9-CM$33)*2*CM$30+(((CM$34-CW$14-CM$9)^2)/2)*CM$6+(((CM$35-DG$12-CM$8)^2)/2)*CM$6+(CM$35-DG$12-CM$8-CM$33)*2*CM$30+(CM$35-DG$12-CM$8/2)*CM$25+(CM$35-DG$12/2)*CM$28 ->  | CN49: =(CN$34-CX$14/2)*CN$29+(CN$34-CX$14-CN$9/2)*CN$26+(CN$34-CX$14-CN$9-CN$33)*2*CN$30+(((CN$34-CX$14-CN$9)^2)/2)*CN$6+(((CN$35-DH$12-CN$8)^2)/2)*CN$6+(CN$35-DH$12-CN$8-CN$33)*2*CN$30+(CN$35-DH$12-CN$8/2)*CN$25+(CN$35-DH$12/2)*CN$28 ->  | CO49: =(CO$34-CY$14/2)*CO$29+(CO$34-CY$14-CO$9/2)*CO$26+(CO$34-CY$14-CO$9-CO$33)*2*CO$30+(((CO$34-CY$14-CO$9)^2)/2)*CO$6+(((CO$35-DI$12-CO$8)^2)/2)*CO$6+(CO$35-DI$12-CO$8-CO$33)*2*CO$30+(CO$35-DI$12-CO$8/2)*CO$25+(CO$35-DI$12/2)*CO$28 ->  | CQ49: MAJOR AXIS Z | CR49: AXIS | CS49: Z | CT49: (in^3) | CU49: =(CU$34-CU$14/2)*CU$29+(CU$34-CU$14-CU$9/2)*CU$26+(CU$34-CU$14-CU$9-CU$33)*2*CU$30+(((CU$34-CU$14-CU$9)^2)/2)*CU$6+(((CU$35-CU$12-CU$8)^2)/2)*CU$6+(CU$35-CU$12-CU$8-CU$33)*2*CU$30+(CU$35-CU$12-CU$8/2)*CU$25+(CU$35-CU$12/2)*CU$28 ->  | CV49: =(CV$34-CV$14/2)*CV$29+(CV$34-CV$14-CV$9/2)*CV$26+(CV$34-CV$14-CV$9-CV$33)*2*CV$30+(((CV$34-CV$14-CV$9)^2)/2)*CV$6+(((CV$35-CV$12-CV$8)^2)/2)*CV$6+(CV$35-CV$12-CV$8-CV$33)*2*CV$30+(CV$35-CV$12-CV$8/2)*CV$25+(CV$35-CV$12/2)*CV$28 ->  | CW49: =(CW$34-CW$14/2)*CW$29+(CW$34-CW$14-CW$9/2)*CW$26+(CW$34-CW$14-CW$9-CW$33)*2*CW$30+(((CW$34-CW$14-CW$9)^2)/2)*CW$6+(((CW$35-CW$12-CW$8)^2)/2)*CW$6+(CW$35-CW$12-CW$8-CW$33)*2*CW$30+(CW$35-CW$12-CW$8/2)*CW$25+(CW$35-CW$12/2)*CW$28 ->  | CX49: =(CX$34-CX$14/2)*CX$29+(CX$34-CX$14-CX$9/2)*CX$26+(CX$34-CX$14-CX$9-CX$33)*2*CX$30+(((CX$34-CX$14-CX$9)^2)/2)*CX$6+(((CX$35-CX$12-CX$8)^2)/2)*CX$6+(CX$35-CX$12-CX$8-CX$33)*2*CX$30+(CX$35-CX$12-CX$8/2)*CX$25+(CX$35-CX$12/2)*CX$28 ->  | CY49: =(CY$34-CY$14/2)*CY$29+(CY$34-CY$14-CY$9/2)*CY$26+(CY$34-CY$14-CY$9-CY$33)*2*CY$30+(((CY$34-CY$14-CY$9)^2)/2)*CY$6+(((CY$35-CY$12-CY$8)^2)/2)*CY$6+(CY$35-CY$12-CY$8-CY$33)*2*CY$30+(CY$35-CY$12-CY$8/2)*CY$25+(CY$35-CY$12/2)*CY$28 ->  | DA49: MAJOR AXIS Z | DB49: AXIS | DC49: Z | DD49: (in^3) | DE49: =(DE$34-DE$14/2)*DE$29+(DE$34-DE$14-DE$9/2)*DE$26+(DE$34-DE$14-DE$9-DE$33)*2*DE$30+(((DE$34-DE$14-DE$9)^2)/2)*DE$6+(((DE$35-DE$12-DE$8)^2)/2)*DE$6+(DE$35-DE$12-DE$8-DE$33)*2*DE$30+(DE$35-DE$12-DE$8/2)*DE$25+(DE$35-DE$12/2)*DE$28 ->  | DF49: =(DF$34-DF$14/2)*DF$29+(DF$34-DF$14-DF$9/2)*DF$26+(DF$34-DF$14-DF$9-DF$33)*2*DF$30+(((DF$34-DF$14-DF$9)^2)/2)*DF$6+(((DF$35-DF$12-DF$8)^2)/2)*DF$6+(DF$35-DF$12-DF$8-DF$33)*2*DF$30+(DF$35-DF$12-DF$8/2)*DF$25+(DF$35-DF$12/2)*DF$28 ->  | DG49: =(DG$34-DG$14/2)*DG$29+(DG$34-DG$14-DG$9/2)*DG$26+(DG$34-DG$14-DG$9-DG$33)*2*DG$30+(((DG$34-DG$14-DG$9)^2)/2)*DG$6+(((DG$35-DG$12-DG$8)^2)/2)*DG$6+(DG$35-DG$12-DG$8-DG$33)*2*DG$30+(DG$35-DG$12-DG$8/2)*DG$25+(DG$35-DG$12/2)*DG$28 ->  | DH49: =(DH$34-DH$14/2)*DH$29+(DH$34-DH$14-DH$9/2)*DH$26+(DH$34-DH$14-DH$9-DH$33)*2*DH$30+(((DH$34-DH$14-DH$9)^2)/2)*DH$6+(((DH$35-DH$12-DH$8)^2)/2)*DH$6+(DH$35-DH$12-DH$8-DH$33)*2*DH$30+(DH$35-DH$12-DH$8/2)*DH$25+(DH$35-DH$12/2)*DH$28 ->  | DI49: =(DI$34-DI$14/2)*DI$29+(DI$34-DI$14-DI$9/2)*DI$26+(DI$34-DI$14-DI$9-DI$33)*2*DI$30+(((DI$34-DI$14-DI$9)^2)/2)*DI$6+(((DI$35-DI$12-DI$8)^2)/2)*DI$6+(DI$35-DI$12-DI$8-DI$33)*2*DI$30+(DI$35-DI$12-DI$8/2)*DI$25+(DI$35-DI$12/2)*DI$28 -> 
Q50: Flange Width (in): | AG50: Total Dead Load Moment | AH50: =AH48+AH49 ->  | AI50: =AI48+AI49 ->  | AJ50: =AJ48+AJ49 ->  | AK50: =AK48+AK49 ->  | AL50: =AL48+AL49 ->  | BN50: =15400/(1000*$S$35)^0.5 ->  | BO50: =15400/(1000*$S$35)^0.5 ->  | BP50: =15400/(1000*$S$35)^0.5 ->  | BQ50: =15400/(1000*$T$35)^0.5 ->  | BR50: =15400/(1000*$T$35)^0.5 ->  | BS50: =15400/(1000*$T$35)^0.5 ->  | BT50: =15400/(1000*$W$35)^0.5 ->  | BU50: =15400/(1000*$W$35)^0.5 ->  | BV50: =15400/(1000*$W$35)^0.5 ->  | BW50: =15400/(1000*$Y$35)^0.5 ->  | BX50: =15400/(1000*$Y$35)^0.5 ->  | BY50: =15400/(1000*$Y$35)^0.5 ->  | BZ50: =15400/(1000*$AB$35)^0.5 ->  | CA50: =15400/(1000*$AB$35)^0.5 ->  | CB50: =15400/(1000*$AB$35)^0.5 -> 
Q51: Top Flange Thickness (in): | BN51: =IF(+BN$48<=+BN$50,1,0) ->  | BO51: =IF(+BO$48<=+BO$50,1,0) ->  | BP51: =IF(+BP$48<=+BP$50,1,0) ->  | BQ51: =IF(+BQ$48<=+BQ$50,1,0) -> 
Q52: Bottom Flange Thickness (in): | BM52: Z (in^3) = | BN52: =CK$49 ->  | BO52: =CU$49 ->  | BP52: =DE$49 ->  | BQ52: =CL$49 ->  | BR52: =CV$49 ->  | BS52: =DF$49 ->  | BT52: =CM$49 ->  | BU52: =CW$49 ->  | BV52: =DG$49 ->  | BW52: =CN$49 ->  | BX52: =CX$49 ->  | BY52: =DH$49 ->  | BZ52: =CO$49 ->  | CA52: =CY$49 ->  | CB52: =DI$49 ->  | CG52: ****CALCULATED PROPERTIES FOR ORIGINAL SECTION**** | CQ52: ****CALCULATED PROPERTIES FOR POSITIVE MOMENT SECTION**** | DA52: ****CALCULATED PROPERTIES FOR NEGATIVE MOMENT SECTION****
CG53: Span 1 | CQ53: Span 1 | DA53: Span 1
Q54: Top Cover Plate | R54: Width (in): | BM54: Sxncmin (in^3) = | BN54: =MINA(CK$42:CK$43) ->  | BO54: =MINA(CU$42:CU$43) ->  | BP54: =MINA(DE$42:DE$43) ->  | BQ54: =MINA(CL$42:CL$43) ->  | BR54: =MINA(CV$42:CV$43) ->  | BS54: =MINA(DF$42:DF$43) ->  | BT54: =MINA(CM$42:CM$43) ->  | BU54: =MINA(CW$42:CW$43) ->  | BV54: =MINA(DG$42:DG$43) ->  | BW54: =MINA(CN$42:CN$43) ->  | BX54: =MINA(CX$42:CX$43) ->  | BY54: =MINA(DH$42:DH$43) ->  | BZ54: =MINA(CO$42:CO$43) ->  | CA54: =MINA(CY$42:CY$43) ->  | CB54: =MINA(DI$42:DI$43) ->  | CN54: NON-COMPOSITE SECTION | CX54: NON-COMPOSITE SECTION | DH54: NON-COMPOSITE SECTION
R55: Thickness (in): | BM55: =IF(RIGHT(BN$41,2)="OK","Fy*Z=",IF(RIGHT(BN$43,2)="OK","Interpolation Between Fy*Z and Fy*Sxncmin=","Fy*Sxncmin (unless compact section override is selected Y) =")) ->  | BN55: =IF(OR(RIGHT(BN$41,2)="OK",$S$45="Y"),$S$35*BN$52/12,IF(RIGHT(BN$43,2)="OK",($S$35*BN$52-$S$35*(BN$52-BN$54)*(BN$44-BN$21)/(BN$46-BN$21))/12,$S$35*BN$54/12)) ->  | BO55: =IF(OR(RIGHT(BO$41,2)="OK",$S$45="Y"),$S$35*BO$52/12,IF(RIGHT(BO$43,2)="OK",($S$35*BO$52-$S$35*(BO$52-BO$54)*(BO$44-BO$21)/(BO$46-BO$21))/12,$S$35*BO$54/12)) ->  | BP55: =IF(OR(RIGHT(BP$41,2)="OK",$S$45="Y"),$S$35*BP$52/12,IF(RIGHT(BP$43,2)="OK",($S$35*BP$52-$S$35*(BP$52-BP$54)*(BP$44-BP$21)/(BP$46-BP$21))/12,$S$35*BP$54/12)) ->  | BQ55: =IF(OR(RIGHT(BQ$41,2)="OK",$T$45="Y"),$T$35*BQ$52/12,IF(RIGHT(BQ$43,2)="OK",($T$35*BQ$52-$T$35*(BQ$52-BQ$54)*(BQ$44-BQ$21)/(BQ$46-BQ$21))/12,$T$35*BQ$54/12)) ->  | BR55: =IF(OR(RIGHT(BR$41,2)="OK",$T$45="Y"),$T$35*BR$52/12,IF(RIGHT(BR$43,2)="OK",($T$35*BR$52-$T$35*(BR$52-BR$54)*(BR$44-BR$21)/(BR$46-BR$21))/12,$T$35*BR$54/12)) ->  | BS55: =IF(OR(RIGHT(BS$41,2)="OK",$T$45="Y"),$T$35*BS$52/12,IF(RIGHT(BS$43,2)="OK",($T$35*BS$52-$T$35*(BS$52-BS$54)*(BS$44-BS$21)/(BS$46-BS$21))/12,$T$35*BS$54/12)) ->  | BT55: =IF(OR(RIGHT(BT$41,2)="OK",$W$45="Y"),$W$35*BT$52/12,IF(RIGHT(BT$43,2)="OK",($W$35*BT$52-$W$35*(BT$52-BT$54)*(BT$44-BT$21)/(BT$46-BT$21))/12,$W$35*BT$54/12)) ->  | BU55: =IF(OR(RIGHT(BU$41,2)="OK",$W$45="Y"),$W$35*BU$52/12,IF(RIGHT(BU$43,2)="OK",($W$35*BU$52-$W$35*(BU$52-BU$54)*(BU$44-BU$21)/(BU$46-BU$21))/12,$W$35*BU$54/12)) ->  | BV55: =IF(OR(RIGHT(BV$41,2)="OK",$W$45="Y"),$W$35*BV$52/12,IF(RIGHT(BV$43,2)="OK",($W$35*BV$52-$W$35*(BV$52-BV$54)*(BV$44-BV$21)/(BV$46-BV$21))/12,$W$35*BV$54/12)) ->  | BW55: =IF(OR(RIGHT(BW$41,2)="OK",$Y$45="Y"),$Y$35*BW$52/12,IF(RIGHT(BW$43,2)="OK",($Y$35*BW$52-$Y$35*(BW$52-BW$54)*(BW$44-BW$21)/(BW$46-BW$21))/12,$Y$35*BW$54/12)) ->  | BX55: =IF(OR(RIGHT(BX$41,2)="OK",$Y$45="Y"),$Y$35*BX$52/12,IF(RIGHT(BX$43,2)="OK",($Y$35*BX$52-$Y$35*(BX$52-BX$54)*(BX$44-BX$21)/(BX$46-BX$21))/12,$Y$35*BX$54/12)) ->  | BY55: =IF(OR(RIGHT(BY$41,2)="OK",$Y$45="Y"),$Y$35*BY$52/12,IF(RIGHT(BY$43,2)="OK",($Y$35*BY$52-$Y$35*(BY$52-BY$54)*(BY$44-BY$21)/(BY$46-BY$21))/12,$Y$35*BY$54/12)) ->  | BZ55: =IF(OR(RIGHT(BZ$41,2)="OK",$AB$45="Y"),$AB$35*BZ$52/12,IF(RIGHT(BZ$43,2)="OK",($AB$35*BZ$52-$AB$35*(BZ$52-BZ$54)*(BZ$44-BZ$21)/(BZ$46-BZ$21))/12,$AB$35*BZ$54/12)) ->  | CA55: =IF(OR(RIGHT(CA$41,2)="OK",$AB$45="Y"),$AB$35*CA$52/12,IF(RIGHT(CA$43,2)="OK",($AB$35*CA$52-$AB$35*(CA$52-CA$54)*(CA$44-CA$21)/(CA$46-CA$21))/12,$AB$35*CA$54/12)) ->  | CB55: =IF(OR(RIGHT(CB$41,2)="OK",$AB$45="Y"),$AB$35*CB$52/12,IF(RIGHT(CB$43,2)="OK",($AB$35*CB$52-$AB$35*(CB$52-CB$54)*(CB$44-CB$21)/(CB$46-CB$21))/12,$AB$35*CB$54/12)) ->  | CG55: SUBRECTANGLE | CH55: b | CI55: h | CJ55: a | CK55: y | CL55: ay | CM55: i | CN55: a(y-ybar)^2 | CO55: iminor | CQ55: SUBRECTANGLE | CR55: b | CS55: h | CT55: a | CU55: y | CV55: ay | CW55: i | CX55: a(y-ybar)^2 | CY55: iminor | DA55: SUBRECTANGLE | DB55: b | DC55: h | DD55: a | DE55: y | DF55: ay | DG55: i | DH55: a(y-ybar)^2 | DI55: iminor
Q56: Bottom Cover Plate | R56: Width (in): | BM56: If the beam fails both tests above it does not meet the requirements of a braced noncompact section. | CG56: BOT COV PLT | CQ56: BOT COV PLT | CR56: =CU$13 -> 0 | CS56: =CU$14 -> 0 | CT56: =CR56*CS56 -> 0 | CU56: =CS56/2 -> 0 | CV56: =CT56*CU56 -> 0 | CW56: =(CR56*CS56^3)/12 -> 0 | CX56: =CT56*(CU56-CU65)^2 ->  | CY56: =(CS56*CR56^3)/12 -> 0 | DA56: BOT COV PLT | DB56: =DE$13 -> 0 | DC56: =DE$14 -> 0 | DD56: =DB56*DC56 -> 0 | DE56: =DC56/2 -> 0 | DF56: =DD56*DE56 -> 0 | DG56: =(DB56*DC56^3)/12 -> 0 | DH56: =DD56*(DE56-DE65)^2 ->  | DI56: =(DC56*DB56^3)/12 -> 0
B57: Additional Notes | R57: Thickness (in): | BM57: The checks performed here apply to both non-composite and composite sections, however Dc of a | CG57: BOT FLANGE | CH57: =CK$7 -> 0 | CI57: =CK$9 -> 0 | CJ57: =CH57*CI57 -> 0 | CK57: =CK56+CI56/2+CI57/2 -> 0 | CL57: =CJ57*CK57 -> 0 | CM57: =(CH57*CI57^3)/12 -> 0 | CN57: =CJ57*(CK57-CK65)^2 ->  | CO57: =(CI57*CH57^3)/12 -> 0 | CQ57: BOT FLANGE | CR57: =CU$7 -> 0 | CS57: =CU$9 -> 0 | CT57: =CR57*CS57 -> 0 | CU57: =CU56+CS56/2+CS57/2 -> 0 | CV57: 0 | CW57: =(CR57*CS57^3)/12 -> 0 | CX57: =CT57*(CU57-CU65)^2 ->  | CY57: =(CS57*CR57^3)/12 -> 0 | DA57: BOT FLANGE | DB57: =DE$7 -> 0 | DC57: =DE$9 -> 0 | DD57: =DB57*DC57 -> 0 | DE57: =DE56+DC56/2+DC57/2 -> 0 | DF57: 0 | DG57: =(DB57*DC57^3)/12 -> 0 | DH57: =DD57*(DE57-DE65)^2 ->  | DI57: =(DC57*DB57^3)/12 -> 0
